Workbook

Sheet Summary of Funding (hidden)
A1: Date Issued: 11th March 2022 | H1: Last Amended: 29/9/2022
A2: COVENTRY CITY COUNCIL
A3: 2022-23 Funding Allocations for Special Schools | P3: ID
A4: Summary of Funding
A6: =VLOOKUP(P3,Data!A4:AD11,2,FALSE)&" Special School" -> 
A9: =IF(P35=0,"","***ERROR - CALCULATED ADJUSTMENT DOES NOT EQUAL ACTUAL ***") -> 
A10: Coventry Budget Share Elements
A12: Place Led Funding - see 'Place Led Funding' tab | F12: ='Place Led Funding'!M26 ->  | P12: =INDEX(Data!$C$71:$C$78,MATCH('Summary of Funding'!$P$3,Data!$A$59:$A$66,0))-F12 -> 
A14: INDICATIVE Coventry Top-up Funding - see 'Top-up Funding' tabs | F14: ='Summer 2022 Top-up'!K28+'Autumn 2022 Top-up'!K28+'Spring 2023 Top-up'!K28 ->  | P14: =INDEX(Data!$D$71:$D$78,MATCH('Summary of Funding'!$P$3,Data!$A$59:$A$66,0))-F14 -> 
A16: Teachers Pay & Pension Grant 2022/23 | F16: =INDEX(Data!$AP$4:$AP$11,MATCH('Summary of Funding'!P3,Data!$A$4:$A$11,0)) -> 
H18: =F12+F14+F16 ->  | P18: =P14+P12 -> 
A20: Other LA Budget Share Elements
A22: INDICATIVE Other LA Top-up Funding - see 'Top-up Funding' tabs | F22: ='Summer 2022 Top-up'!K48+'Autumn 2022 Top-up'!K48+'Spring 2023 Top-up'!K48 ->  | P22: =INDEX(Data!$E$71:$E$78,MATCH('Summary of Funding'!$P$3,Data!$A$59:$A$66,0))-F22 -> 
H24: =F22 ->  | P24: =P22 -> 
A26: INDICATIVE Total Budget Share 2022/23 | H26: =H18+H24 ->  | P26: =P24+P18 -> 
A28: Other Funding Elements
A30: INDICATIVE Pupil Premium Grant 2022/23 | F30: =INDEX(Data!$AO$4:$AO$11,MATCH('Summary of Funding'!P3,Data!$A$4:$A$11,0)) ->  | P30: =INDEX(Data!$AO$4:$AO$11,MATCH('Summary of Funding'!$P$3,Data!$A$4:$A$11,0))-F30 -> 
H32: =F30 -> 
A34: INDICATIVE Total Revenue Resources | H34: =H26+H32 ->  | P34: =P32+P26 -> 
A37: Notes
A39: This funding summary is intended to give you an overview of the indicative resources allocated to the school for the 2022/23 financial year.
A40: The actual budget that you will receive is based on the real-time movement of pupils and so will not be finalised until March 2023.
A42: Your summer 2022 top-up has been updated to reflect the actual level of provision during the term - this allocation is now final. The autumn
A43: and spring terms remain indicative. These top-up figures are based on the level of provision your school delivered in the same terms in the
A44: 2021/22 financial year. Where the number of places at your school has changed we have scaled the indicative level of provision up or down
A45: as appropriate to reflect the changing position at the school - but we have not allowed this to increase above your number of comissioned places.
A47: Pupil Premium Funding has been updated to reflect 22/23 elgibility data from DFE. This may still be subject to some slight change.

Sheet Place Led Funding (hidden)
A1: ='Summary of Funding'!A1 -> Date Issued: 11th March 2022 | M1: ='Summary of Funding'!H1 -> Last Amended: 29/9/2022
A2: ='Summary of Funding'!A2 -> COVENTRY CITY COUNCIL
A3: ='Summary of Funding'!A3 -> 2022-23 Funding Allocations for Special Schools | P3: ID
A4: Place Led Funding
A6: =VLOOKUP(P3,Data!A4:AD11,2,FALSE)&" Special School" ->  | P6: Checks
A10: Factors | C10: Factor Measurement | G10: Number of Units | I10: Funding Per Unit | K10: Pro Rata | M10: Funding Allocated
I11: £ | M11: £
A13: Pre-16 Funding | C13: No. Places comissioned (Apr 2022 - Jul 2022) | G13: =VLOOKUP($P$3,Data!$A$4:$AD$11,6,FALSE) ->  | I13: 10000 | K13: =4/12 -> 0.3333333333 | M13: =G13*I13*K13 -> 
C14: No. Places comissioned (Aug 2022) | G14: =VLOOKUP($P$3,Data!$A$4:$AD$11,7,FALSE) ->  | I14: 10000 | K14: 0.08333333333 | M14: =G14*I14*K14 -> 
C15: No. Places comissioned (Sep 2022 - Mar 2023) | G15: =VLOOKUP($P$3,Data!$A$4:$AD$11,8,FALSE) ->  | I15: 10000 | K15: 0.5833333333 | M15: =G15*I15*K15 -> 
M17: =SUM(M13:M15) ->  | P17: =VLOOKUP($P$3,Data!$A$4:$AD$11,15,FALSE)+VLOOKUP($P$3,Data!$A$4:$AD$11,16,FALSE)+VLOOKUP($P$3,Data!$A$4:$AD$11,17,FALSE)-M17 -> 
A19: Post-16 Funding | C19: No. Places comissioned (Apr 2022 - Jul 2022) | G19: =VLOOKUP($P$3,Data!$A$4:$AD$11,9,FALSE) ->  | I19: 10000 | K19: =4/12 -> 0.3333333333 | M19: =G19*I19*K19 -> 
C20: No. Places comissioned (Aug 2022) | G20: =VLOOKUP($P$3,Data!$A$4:$AD$11,9,FALSE) ->  | I20: 10000 | K20: 0.08333333333 | M20: =G20*I20*K20 -> 
C21: No. Places comissioned (Sep 2022 - Mar 2023) | G21: =VLOOKUP($P$3,Data!$A$4:$AD$11,10,FALSE) ->  | I21: 10000 | K21: 0.5833333333 | M21: =G21*I21*K21 -> 
M23: =SUM(M19:M21) ->  | P23: =VLOOKUP($P$3,Data!$A$4:$AD$11,18,FALSE)+VLOOKUP($P$3,Data!$A$4:$AD$11,19,FALSE)+VLOOKUP($P$3,Data!$A$4:$AD$11,20,FALSE)-M23 -> 
A26: Total Indicative Place Led Funding | M26: =M17+M23 ->  | P26: =P23+P17 -> 

Sheet HN Framework Values (hidden)
A1: ='Summary of Funding'!A1 -> Date Issued: 11th March 2022 | K1: ='Summary of Funding'!H1 -> Last Amended: 29/9/2022
A2: ='Summary of Funding'!A2 -> COVENTRY CITY COUNCIL
A3: ='Summary of Funding'!A3 -> 2022-23 Funding Allocations for Special Schools | P3: ID
A4: High Needs Banded Framework Top-up Rates
A6: =VLOOKUP(P3,Data!A4:AB11,2,FALSE)&" Special School" ->  | P6: Checks
A11: High Needs Banded Framework
A12: Table 1 | D12: Cat 1 | E12: Cat 2 | F12: Cat 3 | G12: Cat 4 | H12: Cat 5 | I12: Cat 6
D13: Communication and Interaction | E13: Cognition and Learning | F13: SEMH | G13: Sensory &/or Physical | H13: Exceptional | I13: Personalised
C14: Level A | D14: Universal | I14: Early Support - only as agreed with Head of SS
C15: Level B | D15: Targeted
C16: Level C | D16: S&L Disorder | E16: Specific LD
C17: Level D | D17: Social Comm - Moderate | E17: MLD | F17: SEMH - Moderate | G17: HI/VI
C18: Level E | D18: Social Comm - High | E18: SLD | F18: SEMH - High | G18: PD - High | H18: OOC - only as agreed with Head of SS | I18: CC - only as agreed with Head of SS
C19: Level F | D19: Social Comm - Severe | E19: PMLD | F19: SEMH - Severe | G19: MSI
A22: HN Framework Top-up Rates
A23: Table 2 | D23: Cat 1 | E23: Cat 2 | F23: Cat 3 | G23: Cat 4 | H23: Cat 5 | I23: Cat 6
D24: Communication and Interaction | E24: Cognition and Learning | F24: SEMH | G24: Sensory &/or Physical | H24: Exceptional | I24: Personalised
C25: Level A | D25: 0 | E25: 0 | F25: 0 | G25: 0 | I25: As agreed with Head of SS
C26: Level B | D26: 0 | E26: 0 | F26: 0 | G26: 0
C27: Level C | D27: =D38 ->  | E27: =E38 -> 
C28: Level D | D28: =D39 ->  | F28: =F39 -> 
C29: Level E | F29: =F40 ->  | H29: As agreed with Head of SS | I29: As agreed with Head of SS
C30: Level F | F30: =F41 -> 
A33: MFG PROTECTED Top-up Rates
A34: Table 3 | D34: Cat 1 | E34: Cat 2 | F34: Cat 3 | G34: Cat 4 | H34: Cat 5 | I34: Cat 6
A35: Protection | D35: Communication and Interaction | E35: Cognition and Learning | F35: SEMH | G35: Sensory &/or Physical | H35: Exceptional | I35: Personalised
A36: Level: | B36: =((D41/D30)-1) ->  | C36: Level A | D36: 0 | E36: 0 | F36: 0 | G36: 0 | H36: 0 | I36: 0
C37: Level B | D37: 0 | E37: 0 | F37: 0 | G37: 0 | H37: 0 | I37: 0
C38: Level C | D38: =INDEX(Data!V$4:V$11,MATCH('HN Framework Values'!$P$3,Data!$A$4:$A$11,0)) ->  | E38: =INDEX(Data!W$4:W$11,MATCH('HN Framework Values'!$P$3,Data!$A$4:$A$11,0)) ->  | F38: 0 | G38: 0 | H38: 0 | I38: 0
C39: Level D | D39: =INDEX(Data!X$4:X$11,MATCH('HN Framework Values'!$P$3,Data!$A$4:$A$11,0)) ->  | E39: =INDEX(Data!Y$4:Y$11,MATCH('HN Framework Values'!$P$3,Data!$A$4:$A$11,0)) ->  | F39: =INDEX(Data!Z$4:Z$11,MATCH('HN Framework Values'!$P$3,Data!$A$4:$A$11,0)) ->  | G39: =INDEX(Data!AA$4:AA$11,MATCH('HN Framework Values'!$P$3,Data!$A$4:$A$11,0)) ->  | H39: 0 | I39: 0
C40: Level E | D40: =INDEX(Data!AB$4:AB$11,MATCH('HN Framework Values'!$P$3,Data!$A$4:$A$11,0)) ->  | E40: =INDEX(Data!AC$4:AC$11,MATCH('HN Framework Values'!$P$3,Data!$A$4:$A$11,0)) ->  | F40: =INDEX(Data!AD$4:AD$11,MATCH('HN Framework Values'!$P$3,Data!$A$4:$A$11,0)) ->  | G40: =INDEX(Data!AE$4:AE$11,MATCH('HN Framework Values'!$P$3,Data!$A$4:$A$11,0)) ->  | H40: =INDEX(Data!AF$4:AF$11,MATCH('HN Framework Values'!$P$3,Data!$A$4:$A$11,0)) ->  | I40: =INDEX(Data!AG$4:AG$11,MATCH('HN Framework Values'!$P$3,Data!$A$4:$A$11,0)) -> 
C41: Level F | D41: =INDEX(Data!AH$4:AH$11,MATCH('HN Framework Values'!$P$3,Data!$A$4:$A$11,0)) ->  | E41: =INDEX(Data!AI$4:AI$11,MATCH('HN Framework Values'!$P$3,Data!$A$4:$A$11,0)) ->  | F41: =INDEX(Data!AJ$4:AJ$11,MATCH('HN Framework Values'!$P$3,Data!$A$4:$A$11,0)) ->  | G41: =INDEX(Data!AK$4:AK$11,MATCH('HN Framework Values'!$P$3,Data!$A$4:$A$11,0)) ->  | H41: =INDEX(Data!AL$4:AL$11,MATCH('HN Framework Values'!$P$3,Data!$A$4:$A$11,0)) ->  | I41: =INDEX(Data!AM$4:AM$11,MATCH('HN Framework Values'!$P$3,Data!$A$4:$A$11,0)) -> 
A45: Notes
A47: Table 2 shows the High Needs Top-up Rates that apply to special schools for each element of the High Needs Funding Matrix. All
A48: top-up rates have seen a 4% inflationary rise in their per pupil budget share funding.
A52: =IF(N4="MFG","standard High Needs Top-up rates. Your protected top-up rates are shown in table 3 and apply to your school for the 2021/22 financial year.","") -> 

Sheet Summer 2022 Top-up (hidden)
A1: ='Summary of Funding'!A1 -> Date Issued: 11th March 2022 | M1: ='Summary of Funding'!H1 -> Last Amended: 29/9/2022
A2: ='Summary of Funding'!A2 -> COVENTRY CITY COUNCIL
A3: ='Summary of Funding'!A3 -> 2022-23 Funding Allocations for Special Schools | P3: ID
A4: Summer 2022 Top-up Funding
A6: =VLOOKUP(P3,Data!A4:AB11,2,FALSE)&" Special School" ->  | P6: Checks
A10: Total days in term: | B10: =Data!A19 -> 66
A11: Summer 2022 Funded days - Coventry
A12: Actual | D12: Cat 1 | E12: Cat 2 | F12: Cat 3 | G12: Cat 4 | H12: Cat 5 | I12: Cat 6
C13: Level A | D13: 0 | E13: 0 | F13: 0 | G13: 0 | H13: 0 | I13: 0
C14: Level B | D14: 0 | E14: 0 | F14: 0 | G14: 0 | H14: 0 | I14: 0
C15: Level C | D15: =INDEX(Data!$D$20:$D$27,MATCH('Summer 2022 Top-up'!$P$3,Data!$A$20:$A$27,0)) ->  | E15: =INDEX(Data!$E$20:$E$27,MATCH('Summer 2022 Top-up'!$P$3,Data!$A$20:$A$27,0)) ->  | F15: 0 | G15: 0 | H15: 0 | I15: 0
C16: Level D | D16: =INDEX(Data!F$20:F$27,MATCH('Summer 2022 Top-up'!$P$3,Data!$A$20:$A$27,0)) ->  | E16: =INDEX(Data!G$20:G$27,MATCH('Summer 2022 Top-up'!$P$3,Data!$A$20:$A$27,0)) ->  | F16: =INDEX(Data!H$20:H$27,MATCH('Summer 2022 Top-up'!$P$3,Data!$A$20:$A$27,0)) ->  | G16: =INDEX(Data!I$20:I$27,MATCH('Summer 2022 Top-up'!$P$3,Data!$A$20:$A$27,0)) ->  | H16: 0 | I16: 0
C17: Level E | D17: =INDEX(Data!J$20:J$27,MATCH('Summer 2022 Top-up'!$P$3,Data!$A$20:$A$27,0)) ->  | E17: =INDEX(Data!K$20:K$27,MATCH('Summer 2022 Top-up'!$P$3,Data!$A$20:$A$27,0)) ->  | F17: =INDEX(Data!L$20:L$27,MATCH('Summer 2022 Top-up'!$P$3,Data!$A$20:$A$27,0)) ->  | G17: =INDEX(Data!M$20:M$27,MATCH('Summer 2022 Top-up'!$P$3,Data!$A$20:$A$27,0)) ->  | H17: =INDEX(Data!N$20:N$27,MATCH('Summer 2022 Top-up'!$P$3,Data!$A$20:$A$27,0)) ->  | I17: =INDEX(Data!O$20:O$27,MATCH('Summer 2022 Top-up'!$P$3,Data!$A$20:$A$27,0)) ->  | K17: Total FTE
C18: Level F | D18: =INDEX(Data!P$20:P$27,MATCH('Summer 2022 Top-up'!$P$3,Data!$A$20:$A$27,0)) ->  | E18: =INDEX(Data!Q$20:Q$27,MATCH('Summer 2022 Top-up'!$P$3,Data!$A$20:$A$27,0)) ->  | F18: =INDEX(Data!R$20:R$27,MATCH('Summer 2022 Top-up'!$P$3,Data!$A$20:$A$27,0)) ->  | G18: =INDEX(Data!S$20:S$27,MATCH('Summer 2022 Top-up'!$P$3,Data!$A$20:$A$27,0)) ->  | H18: =INDEX(Data!T$20:T$27,MATCH('Summer 2022 Top-up'!$P$3,Data!$A$20:$A$27,0)) ->  | I18: =INDEX(Data!U$20:U$27,MATCH('Summer 2022 Top-up'!$P$3,Data!$A$20:$A$27,0)) ->  | K18: =SUM(D13:I18)/B10 -> 
A21: Summer 2022 Top-up Funding - Coventry
A22: Actual | D22: Cat 1 | E22: Cat 2 | F22: Cat 3 | G22: Cat 4 | H22: Cat 5 | I22: Cat 6
C23: Level A | D23: =D13*('HN Framework Values'!D36/Data!$A$15) -> 0 | E23: =E13*('HN Framework Values'!E36/Data!$A$15) -> 0 | F23: =F13*('HN Framework Values'!F36/Data!$A$15) -> 0 | G23: =G13*('HN Framework Values'!G36/Data!$A$15) -> 0 | H23: 0 | I23: 0
C24: Level B | D24: =D14*('HN Framework Values'!D37/Data!$A$15) -> 0 | E24: =E14*('HN Framework Values'!E37/Data!$A$15) -> 0 | F24: =F14*('HN Framework Values'!F37/Data!$A$15) -> 0 | G24: =G14*('HN Framework Values'!G37/Data!$A$15) -> 0 | H24: 0 | I24: 0
C25: Level C | D25: =D15*('HN Framework Values'!D38/Data!$A$15) ->  | E25: =E15*('HN Framework Values'!E38/Data!$A$15) ->  | F25: =F15*('HN Framework Values'!F38/Data!$A$15) -> 0 | G25: =G15*('HN Framework Values'!G38/Data!$A$15) -> 0 | H25: 0 | I25: 0 | K25: Total Coventry Top-up
C26: Level D | D26: =D16*('HN Framework Values'!D39/Data!$A$15) ->  | E26: =E16*('HN Framework Values'!E39/Data!$A$15) ->  | F26: =F16*('HN Framework Values'!F39/Data!$A$15) ->  | G26: =G16*('HN Framework Values'!G39/Data!$A$15) ->  | H26: 0 | I26: 0
C27: Level E | D27: =D17*('HN Framework Values'!D40/Data!$A$15) ->  | E27: =E17*('HN Framework Values'!E40/Data!$A$15) ->  | F27: =F17*('HN Framework Values'!F40/Data!$A$15) ->  | G27: =G17*('HN Framework Values'!G40/Data!$A$15) ->  | H27: =H17*('HN Framework Values'!H40/Data!$A$15) ->  | I27: =I17*('HN Framework Values'!I40/Data!$A$15) -> 
C28: Level F | D28: =D18*('HN Framework Values'!D41/Data!$A$15) ->  | E28: =E18*('HN Framework Values'!E41/Data!$A$15) ->  | F28: =F18*('HN Framework Values'!F41/Data!$A$15) ->  | G28: =G18*('HN Framework Values'!G41/Data!$A$15) ->  | H28: =H18*('HN Framework Values'!H41/Data!$A$15) ->  | I28: =I18*('HN Framework Values'!I41/Data!$A$15) ->  | K28: =SUM(D23:I28) -> 
A31: Summer 2022 Funded days - Other LAs
A32: Actual | D32: Cat 1 | E32: Cat 2 | F32: Cat 3 | G32: Cat 4 | H32: Cat 5 | I32: Cat 6
C33: Level A | D33: 0 | E33: 0 | F33: 0 | G33: 0 | H33: 0 | I33: 0
C34: Level B | D34: 0 | E34: 0 | F34: 0 | G34: 0 | H34: 0 | I34: 0
C35: Level C | D35: =INDEX(Data!X$20:X$27,MATCH('Summer 2022 Top-up'!$P$3,Data!$A$20:$A$27,0)) ->  | E35: =INDEX(Data!Y$20:Y$27,MATCH('Summer 2022 Top-up'!$P$3,Data!$A$20:$A$27,0)) ->  | F35: 0 | G35: 0 | H35: 0 | I35: 0
C36: Level D | D36: =INDEX(Data!Z$20:Z$27,MATCH('Summer 2022 Top-up'!$P$3,Data!$A$20:$A$27,0)) ->  | E36: =INDEX(Data!AA$20:AA$27,MATCH('Summer 2022 Top-up'!$P$3,Data!$A$20:$A$27,0)) ->  | F36: =INDEX(Data!AB$20:AB$27,MATCH('Summer 2022 Top-up'!$P$3,Data!$A$20:$A$27,0)) ->  | G36: =INDEX(Data!AC$20:AC$27,MATCH('Summer 2022 Top-up'!$P$3,Data!$A$20:$A$27,0)) ->  | H36: 0 | I36: 0
C37: Level E | D37: =INDEX(Data!AD$20:AD$27,MATCH('Summer 2022 Top-up'!$P$3,Data!$A$20:$A$27,0)) ->  | E37: =INDEX(Data!AE$20:AE$27,MATCH('Summer 2022 Top-up'!$P$3,Data!$A$20:$A$27,0)) ->  | F37: =INDEX(Data!AF$20:AF$27,MATCH('Summer 2022 Top-up'!$P$3,Data!$A$20:$A$27,0)) ->  | G37: =INDEX(Data!AG$20:AG$27,MATCH('Summer 2022 Top-up'!$P$3,Data!$A$20:$A$27,0)) ->  | H37: =INDEX(Data!AH$20:AH$27,MATCH('Summer 2022 Top-up'!$P$3,Data!$A$20:$A$27,0)) ->  | I37: =INDEX(Data!AI$20:AI$27,MATCH('Summer 2022 Top-up'!$P$3,Data!$A$20:$A$27,0)) ->  | K37: Total FTE
C38: Level F | D38: =INDEX(Data!AJ$20:AJ$27,MATCH('Summer 2022 Top-up'!$P$3,Data!$A$20:$A$27,0)) ->  | E38: =INDEX(Data!AK$20:AK$27,MATCH('Summer 2022 Top-up'!$P$3,Data!$A$20:$A$27,0)) ->  | F38: =INDEX(Data!AL$20:AL$27,MATCH('Summer 2022 Top-up'!$P$3,Data!$A$20:$A$27,0)) ->  | G38: =INDEX(Data!AM$20:AM$27,MATCH('Summer 2022 Top-up'!$P$3,Data!$A$20:$A$27,0)) ->  | H38: =INDEX(Data!AN$20:AN$27,MATCH('Summer 2022 Top-up'!$P$3,Data!$A$20:$A$27,0)) ->  | I38: =INDEX(Data!AO$20:AO$27,MATCH('Summer 2022 Top-up'!$P$3,Data!$A$20:$A$27,0)) ->  | K38: =SUM(D33:I38)/B10 -> 
A41: Summer 2022 Top-up Funding - Other LAs
A42: Actual | D42: Cat 1 | E42: Cat 2 | F42: Cat 3 | G42: Cat 4 | H42: Cat 5 | I42: Cat 6
C43: Level A | D43: =D33*('HN Framework Values'!D36/Data!$A$15) -> 0 | E43: =E33*('HN Framework Values'!E36/Data!$A$15) -> 0 | F43: =F33*('HN Framework Values'!F36/Data!$A$15) -> 0 | G43: =G33*('HN Framework Values'!G36/Data!$A$15) -> 0 | H43: =H33*('HN Framework Values'!H36/Data!$A$15) -> 0 | I43: =I33*('HN Framework Values'!I36/Data!$A$15) -> 0
C44: Level B | D44: =D34*('HN Framework Values'!D37/Data!$A$15) -> 0 | E44: =E34*('HN Framework Values'!E37/Data!$A$15) -> 0 | F44: =F34*('HN Framework Values'!F37/Data!$A$15) -> 0 | G44: =G34*('HN Framework Values'!G37/Data!$A$15) -> 0 | H44: =H34*('HN Framework Values'!H37/Data!$A$15) -> 0 | I44: =I34*('HN Framework Values'!I37/Data!$A$15) -> 0
C45: Level C | D45: =D35*('HN Framework Values'!D38/Data!$A$15) ->  | E45: =E35*('HN Framework Values'!E38/Data!$A$15) ->  | F45: =F35*('HN Framework Values'!F38/Data!$A$15) -> 0 | G45: =G35*('HN Framework Values'!G38/Data!$A$15) -> 0 | H45: =H35*('HN Framework Values'!H38/Data!$A$15) -> 0 | I45: =I35*('HN Framework Values'!I38/Data!$A$15) -> 0 | K45: Total Other LA Top-up
C46: Level D | D46: =D36*('HN Framework Values'!D39/Data!$A$15) ->  | E46: =E36*('HN Framework Values'!E39/Data!$A$15) ->  | F46: =F36*('HN Framework Values'!F39/Data!$A$15) ->  | G46: =G36*('HN Framework Values'!G39/Data!$A$15) ->  | H46: =H36*('HN Framework Values'!H39/Data!$A$15) -> 0 | I46: =I36*('HN Framework Values'!I39/Data!$A$15) -> 0
C47: Level E | D47: =D37*('HN Framework Values'!D40/Data!$A$15) ->  | E47: =E37*('HN Framework Values'!E40/Data!$A$15) ->  | F47: =F37*('HN Framework Values'!F40/Data!$A$15) ->  | G47: =G37*('HN Framework Values'!G40/Data!$A$15) ->  | H47: =H37*('HN Framework Values'!H40/Data!$A$15) ->  | I47: =I37*('HN Framework Values'!I40/Data!$A$15) -> 
C48: Level F | D48: =D38*('HN Framework Values'!D41/Data!$A$15) ->  | E48: =E38*('HN Framework Values'!E41/Data!$A$15) ->  | F48: =F38*('HN Framework Values'!F41/Data!$A$15) ->  | G48: =G38*('HN Framework Values'!G41/Data!$A$15) ->  | H48: =H38*('HN Framework Values'!H41/Data!$A$15) ->  | I48: =I38*('HN Framework Values'!I41/Data!$A$15) ->  | K48: =SUM(D43:G48) -> 
A50: Total Summer 2022 Top-up Funding | K50: =K48+K28 ->  | Q50: =K50-INDEX(Data!AR20:AR27,MATCH('Summer 2022 Top-up'!P3,Data!A20:A27,0)) -> 
A54: Notes
A56: Top up funding is allocated to pupils based on their High Needs Banding and how many days they are on roll at your school.
A58: This data is based on the level of provision your school delivered in the 2022 summer term. Where the number of places at your school
A59: has changed we have scaled the indicative level of provision up or down as appropriate to reflect the changing position at the school -
A60: but we have not allowed this to increase above your number of comissioned places.
A62: This will be updated at the end of each term to reflect the actual number of Full Time Equivilant pupils that have been educated in this
A63: period. Your top-up funding budget will change accordingly.
A65: Other LA Top-up funding is not paid to you by Coventry City Council and you will need to invoice the relevant Local Authorities for this
A66: funding. If you need contact information for any other Local Authority please contact SEN Management Services on 024 7683 1614.

Sheet Autumn 2022 Top-up (hidden)
A1: ='Summary of Funding'!A1 -> Date Issued: 11th March 2022 | M1: ='Summary of Funding'!H1 -> Last Amended: 29/9/2022
A2: ='Summary of Funding'!A2 -> COVENTRY CITY COUNCIL
A3: ='Summary of Funding'!A3 -> 2022-23 Funding Allocations for Special Schools | P3: ID
A4: Autumn 2022 Top-up Funding
A6: =VLOOKUP(P3,Data!A4:AB11,2,FALSE)&" Special School" ->  | P6: Checks
A10: Total days in term: | B10: =Data!$A$32 -> 70
A11: Autumn 2022 Funded days - Coventry
A12: Indicative | D12: Cat 1 | E12: Cat 2 | F12: Cat 3 | G12: Cat 4 | H12: Cat 5 | I12: Cat 6
C13: Level A | D13: 0 | E13: 0 | F13: 0 | G13: 0 | H13: 0 | I13: 0
C14: Level B | D14: 0 | E14: 0 | F14: 0 | G14: 0 | H14: 0 | I14: 0
C15: Level C | D15: =INDEX(Data!$D$33:$D$40,MATCH('Summer 2022 Top-up'!$P$3,Data!$A$33:$A$40,0)) ->  | E15: =INDEX(Data!$E$33:$E$40,MATCH('Summer 2022 Top-up'!$P$3,Data!$A$33:$A$40,0)) ->  | F15: 0 | G15: 0 | H15: 0 | I15: 0
C16: Level D | D16: =INDEX(Data!F$33:F$40,MATCH('Autumn 2022 Top-up'!$P$3,Data!$A$33:$A$40,0)) ->  | E16: =INDEX(Data!G$33:G$40,MATCH('Autumn 2022 Top-up'!$P$3,Data!$A$33:$A$40,0)) ->  | F16: =INDEX(Data!H$33:H$40,MATCH('Autumn 2022 Top-up'!$P$3,Data!$A$33:$A$40,0)) ->  | G16: =INDEX(Data!I$33:I$40,MATCH('Autumn 2022 Top-up'!$P$3,Data!$A$33:$A$40,0)) ->  | H16: 0 | I16: 0
C17: Level E | D17: =INDEX(Data!J$33:J$40,MATCH('Autumn 2022 Top-up'!$P$3,Data!$A$33:$A$40,0)) ->  | E17: =INDEX(Data!K$33:K$40,MATCH('Autumn 2022 Top-up'!$P$3,Data!$A$33:$A$40,0)) ->  | F17: =INDEX(Data!L$33:L$40,MATCH('Autumn 2022 Top-up'!$P$3,Data!$A$33:$A$40,0)) ->  | G17: =INDEX(Data!M$33:M$40,MATCH('Autumn 2022 Top-up'!$P$3,Data!$A$33:$A$40,0)) ->  | H17: =INDEX(Data!N$33:N$40,MATCH('Autumn 2022 Top-up'!$P$3,Data!$A$33:$A$40,0)) ->  | I17: =INDEX(Data!O$33:O$40,MATCH('Autumn 2022 Top-up'!$P$3,Data!$A$33:$A$40,0)) ->  | K17: Total FTE
C18: Level F | D18: =INDEX(Data!P$33:P$40,MATCH('Autumn 2022 Top-up'!$P$3,Data!$A$33:$A$40,0)) ->  | E18: =INDEX(Data!Q$33:Q$40,MATCH('Autumn 2022 Top-up'!$P$3,Data!$A$33:$A$40,0)) ->  | F18: =INDEX(Data!R$33:R$40,MATCH('Autumn 2022 Top-up'!$P$3,Data!$A$33:$A$40,0)) ->  | G18: =INDEX(Data!S$33:S$40,MATCH('Autumn 2022 Top-up'!$P$3,Data!$A$33:$A$40,0)) ->  | H18: =INDEX(Data!T$33:T$40,MATCH('Autumn 2022 Top-up'!$P$3,Data!$A$33:$A$40,0)) ->  | I18: =INDEX(Data!U$33:U$40,MATCH('Autumn 2022 Top-up'!$P$3,Data!$A$33:$A$40,0)) ->  | K18: =SUM(D13:I18)/B10 -> 
A21: Autumn 2022 Top-up Funding - Coventry
A22: Indicative | D22: Cat 1 | E22: Cat 2 | F22: Cat 3 | G22: Cat 4 | H22: Cat 5 | I22: Cat 6
C23: Level A | D23: =D13*('HN Framework Values'!D36/Data!$A$15) -> 0 | E23: =E13*('HN Framework Values'!E36/Data!$A$15) -> 0 | F23: =F13*('HN Framework Values'!F36/Data!$A$15) -> 0 | G23: =G13*('HN Framework Values'!G36/Data!$A$15) -> 0 | H23: 0 | I23: 0
C24: Level B | D24: =D14*('HN Framework Values'!D37/Data!$A$15) -> 0 | E24: =E14*('HN Framework Values'!E37/Data!$A$15) -> 0 | F24: =F14*('HN Framework Values'!F37/Data!$A$15) -> 0 | G24: =G14*('HN Framework Values'!G37/Data!$A$15) -> 0 | H24: 0 | I24: 0
C25: Level C | D25: =D15*('HN Framework Values'!D38/Data!$A$15) ->  | E25: =E15*('HN Framework Values'!E38/Data!$A$15) ->  | F25: =F15*('HN Framework Values'!F38/Data!$A$15) -> 0 | G25: =G15*('HN Framework Values'!G38/Data!$A$15) -> 0 | H25: 0 | I25: 0 | K25: Total Coventry Top-up
C26: Level D | D26: =D16*('HN Framework Values'!D39/Data!$A$15) ->  | E26: =E16*('HN Framework Values'!E39/Data!$A$15) ->  | F26: =F16*('HN Framework Values'!F39/Data!$A$15) ->  | G26: =G16*('HN Framework Values'!G39/Data!$A$15) ->  | H26: 0 | I26: 0
C27: Level E | D27: =D17*('HN Framework Values'!D40/Data!$A$15) ->  | E27: =E17*('HN Framework Values'!E40/Data!$A$15) ->  | F27: =F17*('HN Framework Values'!F40/Data!$A$15) ->  | G27: =G17*('HN Framework Values'!G40/Data!$A$15) ->  | H27: =H17*('HN Framework Values'!H40/Data!$A$15) ->  | I27: =I17*('HN Framework Values'!I40/Data!$A$15) -> 
C28: Level F | D28: =D18*('HN Framework Values'!D41/Data!$A$15) ->  | E28: =E18*('HN Framework Values'!E41/Data!$A$15) ->  | F28: =F18*('HN Framework Values'!F41/Data!$A$15) ->  | G28: =G18*('HN Framework Values'!G41/Data!$A$15) ->  | H28: =H18*('HN Framework Values'!H41/Data!$A$15) ->  | I28: =I18*('HN Framework Values'!I41/Data!$A$15) ->  | K28: =SUM(D23:I28) -> 
A31: Autumn 2022 Funded days - Other LAs
A32: Indicative | D32: Cat 1 | E32: Cat 2 | F32: Cat 3 | G32: Cat 4 | H32: Cat 5 | I32: Cat 6
C33: Level A | D33: 0 | E33: 0 | F33: 0 | G33: 0 | H33: 0 | I33: 0
C34: Level B | D34: 0 | E34: 0 | F34: 0 | G34: 0 | H34: 0 | I34: 0
C35: Level C | D35: =INDEX(Data!X$33:X$40,MATCH('Autumn 2022 Top-up'!$P$3,Data!$A$33:$A$40,0)) ->  | E35: =INDEX(Data!Y$33:Y$40,MATCH('Autumn 2022 Top-up'!$P$3,Data!$A$33:$A$40,0)) ->  | F35: 0 | G35: 0 | H35: 0 | I35: 0
C36: Level D | D36: =INDEX(Data!Z$33:Z$40,MATCH('Autumn 2022 Top-up'!$P$3,Data!$A$33:$A$40,0)) ->  | E36: =INDEX(Data!AA$33:AA$40,MATCH('Autumn 2022 Top-up'!$P$3,Data!$A$33:$A$40,0)) ->  | F36: =INDEX(Data!AB$33:AB$40,MATCH('Autumn 2022 Top-up'!$P$3,Data!$A$33:$A$40,0)) ->  | G36: =INDEX(Data!AC$33:AC$40,MATCH('Autumn 2022 Top-up'!$P$3,Data!$A$33:$A$40,0)) ->  | H36: 0 | I36: 0
C37: Level E | D37: =INDEX(Data!AD$33:AD$40,MATCH('Autumn 2022 Top-up'!$P$3,Data!$A$33:$A$40,0)) ->  | E37: =INDEX(Data!AE$33:AE$40,MATCH('Autumn 2022 Top-up'!$P$3,Data!$A$33:$A$40,0)) ->  | F37: =INDEX(Data!AF$33:AF$40,MATCH('Autumn 2022 Top-up'!$P$3,Data!$A$33:$A$40,0)) ->  | G37: =INDEX(Data!AG$33:AG$40,MATCH('Autumn 2022 Top-up'!$P$3,Data!$A$33:$A$40,0)) ->  | H37: =INDEX(Data!AH$33:AH$40,MATCH('Autumn 2022 Top-up'!$P$3,Data!$A$33:$A$40,0)) ->  | I37: =INDEX(Data!AI$33:AI$40,MATCH('Autumn 2022 Top-up'!$P$3,Data!$A$33:$A$40,0)) ->  | K37: Total FTE
C38: Level F | D38: =INDEX(Data!AJ$33:AJ$40,MATCH('Autumn 2022 Top-up'!$P$3,Data!$A$33:$A$40,0)) ->  | E38: =INDEX(Data!AK$33:AK$40,MATCH('Autumn 2022 Top-up'!$P$3,Data!$A$33:$A$40,0)) ->  | F38: =INDEX(Data!AL$33:AL$40,MATCH('Autumn 2022 Top-up'!$P$3,Data!$A$33:$A$40,0)) ->  | G38: =INDEX(Data!AM$33:AM$40,MATCH('Autumn 2022 Top-up'!$P$3,Data!$A$33:$A$40,0)) ->  | H38: =INDEX(Data!AN$33:AN$40,MATCH('Autumn 2022 Top-up'!$P$3,Data!$A$33:$A$40,0)) ->  | I38: =INDEX(Data!AO$33:AO$40,MATCH('Autumn 2022 Top-up'!$P$3,Data!$A$33:$A$40,0)) ->  | K38: =SUM(D33:G38)/B10 -> 
A41: Autumn 2022 Top-up Funding - Other LAs
A42: Indicative | D42: Cat 1 | E42: Cat 2 | F42: Cat 3 | G42: Cat 4 | H42: Cat 5 | I42: Cat 6
C43: Level A | D43: =D33*('HN Framework Values'!D36/Data!$A$15) -> 0 | E43: =E33*('HN Framework Values'!E36/Data!$A$15) -> 0 | F43: =F33*('HN Framework Values'!F36/Data!$A$15) -> 0 | G43: =G33*('HN Framework Values'!G36/Data!$A$15) -> 0 | H43: =H33*('HN Framework Values'!H36/Data!$A$15) -> 0 | I43: =I33*('HN Framework Values'!I36/Data!$A$15) -> 0
C44: Level B | D44: =D34*('HN Framework Values'!D37/Data!$A$15) -> 0 | E44: =E34*('HN Framework Values'!E37/Data!$A$15) -> 0 | F44: =F34*('HN Framework Values'!F37/Data!$A$15) -> 0 | G44: =G34*('HN Framework Values'!G37/Data!$A$15) -> 0 | H44: =H34*('HN Framework Values'!H37/Data!$A$15) -> 0 | I44: =I34*('HN Framework Values'!I37/Data!$A$15) -> 0
C45: Level C | D45: =D35*('HN Framework Values'!D38/Data!$A$15) ->  | E45: =E35*('HN Framework Values'!E38/Data!$A$15) ->  | F45: =F35*('HN Framework Values'!F38/Data!$A$15) -> 0 | G45: =G35*('HN Framework Values'!G38/Data!$A$15) -> 0 | H45: =H35*('HN Framework Values'!H38/Data!$A$15) -> 0 | I45: =I35*('HN Framework Values'!I38/Data!$A$15) -> 0 | K45: Total Other LA Top-up
C46: Level D | D46: =D36*('HN Framework Values'!D39/Data!$A$15) ->  | E46: =E36*('HN Framework Values'!E39/Data!$A$15) ->  | F46: =F36*('HN Framework Values'!F39/Data!$A$15) ->  | G46: =G36*('HN Framework Values'!G39/Data!$A$15) ->  | H46: =H36*('HN Framework Values'!H39/Data!$A$15) -> 0 | I46: =I36*('HN Framework Values'!I39/Data!$A$15) -> 0
C47: Level E | D47: =D37*('HN Framework Values'!D40/Data!$A$15) ->  | E47: =E37*('HN Framework Values'!E40/Data!$A$15) ->  | F47: =F37*('HN Framework Values'!F40/Data!$A$15) ->  | G47: =G37*('HN Framework Values'!G40/Data!$A$15) ->  | H47: =H37*('HN Framework Values'!H40/Data!$A$15) ->  | I47: =I37*('HN Framework Values'!I40/Data!$A$15) -> 
C48: Level F | D48: =D38*('HN Framework Values'!D41/Data!$A$15) ->  | E48: =E38*('HN Framework Values'!E41/Data!$A$15) ->  | F48: =F38*('HN Framework Values'!F41/Data!$A$15) ->  | G48: =G38*('HN Framework Values'!G41/Data!$A$15) ->  | H48: =H38*('HN Framework Values'!H41/Data!$A$15) ->  | I48: =I38*('HN Framework Values'!I41/Data!$A$15) ->  | K48: =SUM(D43:G48) -> 
A50: Total INDICATIVE Autumn 2022 Top-up Funding | K50: =K48+K28 ->  | Q50: =K50-INDEX(Data!AR33:AR40,MATCH('Summer 2022 Top-up'!P3,Data!A20:A27,0)) -> 
A54: Notes
A56: Top up funding is allocated to pupils based on their High Needs Banding and how many days they are on roll at your school.
A58: This data is based on the level of provision your school delivered in the 2021 autumn term. Where the number of places at your school
A59: has changed we have scaled the indicative level of provision up or down as appropriate to reflect the changing position at the school -
A60: but we have not allowed this to increase above your number of comissioned places.
A62: This will be updated at the end of each term to reflect the actual number of Full Time Equivilant pupils that have been educated in this
A63: period. Your top-up funding budget will change accordingly.
A65: Other LA Top-up funding is not paid to you by Coventry City Council and you will need to invoice the relevant Local Authorities for this
A66: funding. If you need contact information for any other Local Authority please contact SEN Management Services on 024 7683 1614.

Sheet Spring 2023 Top-up (hidden)
A1: ='Summary of Funding'!A1 -> Date Issued: 11th March 2022 | M1: ='Summary of Funding'!H1 -> Last Amended: 29/9/2022
A2: ='Summary of Funding'!A2 -> COVENTRY CITY COUNCIL
A3: ='Summary of Funding'!A3 -> 2022-23 Funding Allocations for Special Schools | P3: ID
A4: Spring 2023 Top-up Funding
A6: =VLOOKUP(P3,Data!A4:AB11,2,FALSE)&" Special School" ->  | P6: Checks
A10: Total days in term: | B10: =Data!$A$45 -> 59
A11: Spring 2023 Funded days - Coventry
A12: Indicative | D12: Cat 1 | E12: Cat 2 | F12: Cat 3 | G12: Cat 4 | H12: Cat 5 | I12: Cat 6
C13: Level A | D13: 0 | E13: 0 | F13: 0 | G13: 0 | H13: 0 | I13: 0
C14: Level B | D14: 0 | E14: 0 | F14: 0 | G14: 0 | H14: 0 | I14: 0
C15: Level C | D15: =INDEX(Data!$D$46:$D$53,MATCH('Spring 2023 Top-up'!$P$3,Data!$A$46:$A$53,0)) ->  | E15: =INDEX(Data!$E$46:$E$53,MATCH('Spring 2023 Top-up'!$P$3,Data!$A$46:$A$53,0)) ->  | F15: 0 | G15: 0 | H15: 0 | I15: 0
C16: Level D | D16: =INDEX(Data!F$46:F$53,MATCH('Spring 2023 Top-up'!$P$3,Data!$A$46:$A$53,0)) ->  | E16: =INDEX(Data!G$46:G$53,MATCH('Spring 2023 Top-up'!$P$3,Data!$A$46:$A$53,0)) ->  | F16: =INDEX(Data!H$46:H$53,MATCH('Spring 2023 Top-up'!$P$3,Data!$A$46:$A$53,0)) ->  | G16: =INDEX(Data!I$46:I$53,MATCH('Spring 2023 Top-up'!$P$3,Data!$A$46:$A$53,0)) ->  | H16: 0 | I16: 0
C17: Level E | D17: =INDEX(Data!J$46:J$53,MATCH('Spring 2023 Top-up'!$P$3,Data!$A$46:$A$53,0)) ->  | E17: =INDEX(Data!K$46:K$53,MATCH('Spring 2023 Top-up'!$P$3,Data!$A$46:$A$53,0)) ->  | F17: =INDEX(Data!L$46:L$53,MATCH('Spring 2023 Top-up'!$P$3,Data!$A$46:$A$53,0)) ->  | G17: =INDEX(Data!M$46:M$53,MATCH('Spring 2023 Top-up'!$P$3,Data!$A$46:$A$53,0)) ->  | H17: =INDEX(Data!N$46:N$53,MATCH('Spring 2023 Top-up'!$P$3,Data!$A$46:$A$53,0)) ->  | I17: =INDEX(Data!O$46:O$53,MATCH('Spring 2023 Top-up'!$P$3,Data!$A$46:$A$53,0)) ->  | K17: Total FTE
C18: Level F | D18: =INDEX(Data!P$46:P$53,MATCH('Spring 2023 Top-up'!$P$3,Data!$A$46:$A$53,0)) ->  | E18: =INDEX(Data!Q$46:Q$53,MATCH('Spring 2023 Top-up'!$P$3,Data!$A$46:$A$53,0)) ->  | F18: =INDEX(Data!R$46:R$53,MATCH('Spring 2023 Top-up'!$P$3,Data!$A$46:$A$53,0)) ->  | G18: =INDEX(Data!S$46:S$53,MATCH('Spring 2023 Top-up'!$P$3,Data!$A$46:$A$53,0)) ->  | H18: =INDEX(Data!T$46:T$53,MATCH('Spring 2023 Top-up'!$P$3,Data!$A$46:$A$53,0)) ->  | I18: =INDEX(Data!U$46:U$53,MATCH('Spring 2023 Top-up'!$P$3,Data!$A$46:$A$53,0)) ->  | K18: =SUM(D13:I18)/B10 -> 
A21: Spring 2023 Top-up Funding - Coventry
A22: Indicative | D22: Cat 1 | E22: Cat 2 | F22: Cat 3 | G22: Cat 4 | H22: Cat 5 | I22: Cat 6
C23: Level A | D23: =D13*('HN Framework Values'!D36/Data!$A$15) -> 0 | E23: =E13*('HN Framework Values'!E36/Data!$A$15) -> 0 | F23: =F13*('HN Framework Values'!F36/Data!$A$15) -> 0 | G23: =G13*('HN Framework Values'!G36/Data!$A$15) -> 0 | H23: 0 | I23: 0
C24: Level B | D24: =D14*('HN Framework Values'!D37/Data!$A$15) -> 0 | E24: =E14*('HN Framework Values'!E37/Data!$A$15) -> 0 | F24: =F14*('HN Framework Values'!F37/Data!$A$15) -> 0 | G24: =G14*('HN Framework Values'!G37/Data!$A$15) -> 0 | H24: 0 | I24: 0
C25: Level C | D25: =D15*('HN Framework Values'!D38/Data!$A$15) ->  | E25: =E15*('HN Framework Values'!E38/Data!$A$15) ->  | F25: =F15*('HN Framework Values'!F38/Data!$A$15) -> 0 | G25: =G15*('HN Framework Values'!G38/Data!$A$15) -> 0 | H25: 0 | I25: 0 | K25: Total Coventry Top-up
C26: Level D | D26: =D16*('HN Framework Values'!D39/Data!$A$15) ->  | E26: =E16*('HN Framework Values'!E39/Data!$A$15) ->  | F26: =F16*('HN Framework Values'!F39/Data!$A$15) ->  | G26: =G16*('HN Framework Values'!G39/Data!$A$15) ->  | H26: 0 | I26: 0
C27: Level E | D27: =D17*('HN Framework Values'!D40/Data!$A$15) ->  | E27: =E17*('HN Framework Values'!E40/Data!$A$15) ->  | F27: =F17*('HN Framework Values'!F40/Data!$A$15) ->  | G27: =G17*('HN Framework Values'!G40/Data!$A$15) ->  | H27: =H17*('HN Framework Values'!H40/Data!$A$15) ->  | I27: =I17*('HN Framework Values'!I40/Data!$A$15) -> 
C28: Level F | D28: =D18*('HN Framework Values'!D41/Data!$A$15) ->  | E28: =E18*('HN Framework Values'!E41/Data!$A$15) ->  | F28: =F18*('HN Framework Values'!F41/Data!$A$15) ->  | G28: =G18*('HN Framework Values'!G41/Data!$A$15) ->  | H28: =H18*('HN Framework Values'!H41/Data!$A$15) ->  | I28: =I18*('HN Framework Values'!I41/Data!$A$15) ->  | K28: =SUM(D23:I28) -> 
A31: Spring 2023 Funded days - Other LAs
A32: Indicative | D32: Cat 1 | E32: Cat 2 | F32: Cat 3 | G32: Cat 4 | H32: Cat 5 | I32: Cat 6
C33: Level A | D33: 0 | E33: 0 | F33: 0 | G33: 0 | H33: 0 | I33: 0
C34: Level B | D34: 0 | E34: 0 | F34: 0 | G34: 0 | H34: 0 | I34: 0
C35: Level C | D35: =INDEX(Data!X$46:X$53,MATCH('Spring 2023 Top-up'!$P$3,Data!$A$46:$A$53,0)) ->  | E35: =INDEX(Data!Y$46:Y$53,MATCH('Spring 2023 Top-up'!$P$3,Data!$A$46:$A$53,0)) ->  | F35: 0 | G35: 0 | H35: 0 | I35: 0
C36: Level D | D36: =INDEX(Data!Z$46:Z$53,MATCH('Spring 2023 Top-up'!$P$3,Data!$A$46:$A$53,0)) ->  | E36: =INDEX(Data!AA$46:AA$53,MATCH('Spring 2023 Top-up'!$P$3,Data!$A$46:$A$53,0)) ->  | F36: =INDEX(Data!AB$46:AB$53,MATCH('Spring 2023 Top-up'!$P$3,Data!$A$46:$A$53,0)) ->  | G36: =INDEX(Data!AC$46:AC$53,MATCH('Spring 2023 Top-up'!$P$3,Data!$A$46:$A$53,0)) ->  | H36: 0 | I36: 0
C37: Level E | D37: =INDEX(Data!AD$46:AD$53,MATCH('Spring 2023 Top-up'!$P$3,Data!$A$46:$A$53,0)) ->  | E37: =INDEX(Data!AE$46:AE$53,MATCH('Spring 2023 Top-up'!$P$3,Data!$A$46:$A$53,0)) ->  | F37: =INDEX(Data!AF$46:AF$53,MATCH('Spring 2023 Top-up'!$P$3,Data!$A$46:$A$53,0)) ->  | G37: =INDEX(Data!AG$46:AG$53,MATCH('Spring 2023 Top-up'!$P$3,Data!$A$46:$A$53,0)) ->  | H37: =INDEX(Data!AH$46:AH$53,MATCH('Spring 2023 Top-up'!$P$3,Data!$A$46:$A$53,0)) ->  | I37: =INDEX(Data!AI$46:AI$53,MATCH('Spring 2023 Top-up'!$P$3,Data!$A$46:$A$53,0)) ->  | K37: Total FTE
C38: Level F | D38: =INDEX(Data!AJ$46:AJ$53,MATCH('Spring 2023 Top-up'!$P$3,Data!$A$46:$A$53,0)) ->  | E38: =INDEX(Data!AK$46:AK$53,MATCH('Spring 2023 Top-up'!$P$3,Data!$A$46:$A$53,0)) ->  | F38: =INDEX(Data!AL$46:AL$53,MATCH('Spring 2023 Top-up'!$P$3,Data!$A$46:$A$53,0)) ->  | G38: =INDEX(Data!AM$46:AM$53,MATCH('Spring 2023 Top-up'!$P$3,Data!$A$46:$A$53,0)) ->  | H38: =INDEX(Data!AN$46:AN$53,MATCH('Spring 2023 Top-up'!$P$3,Data!$A$46:$A$53,0)) ->  | I38: =INDEX(Data!AO$46:AO$53,MATCH('Spring 2023 Top-up'!$P$3,Data!$A$46:$A$53,0)) ->  | K38: =SUM(D33:I38)/B10 -> 
A41: Spring 2023 Top-up Funding - Other LAs
A42: Indicative | D42: Cat 1 | E42: Cat 2 | F42: Cat 3 | G42: Cat 4 | H42: Cat 5 | I42: Cat 6
C43: Level A | D43: =D33*('HN Framework Values'!D36/Data!$A$15) -> 0 | E43: =E33*('HN Framework Values'!E36/Data!$A$15) -> 0 | F43: =F33*('HN Framework Values'!F36/Data!$A$15) -> 0 | G43: =G33*('HN Framework Values'!G36/Data!$A$15) -> 0 | H43: =H33*('HN Framework Values'!H36/Data!$A$15) -> 0 | I43: =I33*('HN Framework Values'!I36/Data!$A$15) -> 0
C44: Level B | D44: =D34*('HN Framework Values'!D37/Data!$A$15) -> 0 | E44: =E34*('HN Framework Values'!E37/Data!$A$15) -> 0 | F44: =F34*('HN Framework Values'!F37/Data!$A$15) -> 0 | G44: =G34*('HN Framework Values'!G37/Data!$A$15) -> 0 | H44: =H34*('HN Framework Values'!H37/Data!$A$15) -> 0 | I44: =I34*('HN Framework Values'!I37/Data!$A$15) -> 0
C45: Level C | D45: =D35*('HN Framework Values'!D38/Data!$A$15) ->  | E45: =E35*('HN Framework Values'!E38/Data!$A$15) ->  | F45: =F35*('HN Framework Values'!F38/Data!$A$15) -> 0 | G45: =G35*('HN Framework Values'!G38/Data!$A$15) -> 0 | H45: =H35*('HN Framework Values'!H38/Data!$A$15) -> 0 | I45: =I35*('HN Framework Values'!I38/Data!$A$15) -> 0 | K45: Total Other LA Top-up
C46: Level D | D46: =D36*('HN Framework Values'!D39/Data!$A$15) ->  | E46: =E36*('HN Framework Values'!E39/Data!$A$15) ->  | F46: =F36*('HN Framework Values'!F39/Data!$A$15) ->  | G46: =G36*('HN Framework Values'!G39/Data!$A$15) ->  | H46: =H36*('HN Framework Values'!H39/Data!$A$15) -> 0 | I46: =I36*('HN Framework Values'!I39/Data!$A$15) -> 0
C47: Level E | D47: =D37*('HN Framework Values'!D40/Data!$A$15) ->  | E47: =E37*('HN Framework Values'!E40/Data!$A$15) ->  | F47: =F37*('HN Framework Values'!F40/Data!$A$15) ->  | G47: =G37*('HN Framework Values'!G40/Data!$A$15) ->  | H47: =H37*('HN Framework Values'!H40/Data!$A$15) ->  | I47: =I37*('HN Framework Values'!I40/Data!$A$15) -> 
C48: Level F | D48: =D38*('HN Framework Values'!D41/Data!$A$15) ->  | E48: =E38*('HN Framework Values'!E41/Data!$A$15) ->  | F48: =F38*('HN Framework Values'!F41/Data!$A$15) ->  | G48: =G38*('HN Framework Values'!G41/Data!$A$15) ->  | H48: =H38*('HN Framework Values'!H41/Data!$A$15) ->  | I48: =I38*('HN Framework Values'!I41/Data!$A$15) ->  | K48: =SUM(D43:I48) -> 
A50: Total INDICATIVE Spring 2023 Top-up Funding | K50: =K48+K28 ->  | Q50: =K50-INDEX(Data!AR46:AR53,MATCH('Summer 2022 Top-up'!P3,Data!A20:A27,0)) -> 
A54: Notes
A56: Top up funding is allocated to pupils based on their High Needs Banding and how many days they are on roll at your school.
A58: This data is based on the level of provision your school delivered in the 2022 spring term. Where the number of places at your school
A59: has changed we have scaled the indicative level of provision up or down as appropriate to reflect the changing position at the school -
A60: but we have not allowed this to increase above your number of comissioned places.
A62: This will be updated at the end of each term to reflect the actual number of Full Time Equivilant pupils that have been educated in this
A63: period. Your top-up funding budget will change accordingly.
A65: Other LA Top-up funding is not paid to you by Coventry City Council and you will need to invoice the relevant Local Authorities for this
A66: funding. If you need contact information for any other Local Authority please contact SEN Management Services on 024 7683 1614.

Sheet Data (hidden)
A1: 1 | B1: 2 | C1: 3 | D1: 4 | E1: 5 | F1: 6 | G1: 7 | H1: 8 | I1: 9 | J1: 10 | K1: 11 | L1: 12 | M1: 13 | N1: 14 | O1: 15 | P1: 16 | Q1: 17 | R1: 18 | S1: 19 | T1: 20 | U1: 21 | V1: 22 | W1: 23 | X1: 24 | Y1: 25 | Z1: 26 | AA1: 27 | AB1: 28 | AC1: 29 | AD1: 30 | AE1: 31 | AF1: 32 | AG1: 33 | AH1: 34 | AI1: 35 | AJ1: 36 | AK1: 37 | AL1: 38 | AM1: 39 | AN1: 40 | AO1: 41 | AP1: 42
C2: 2021-22 places* | F2: 2022-23 Places Information | O2: Place Led Funding | V2: Funding Rate Information | AO2: Other Funding Elements
A3: Ref # | B3: School Name | C3: TOTAL Apr - Jul PLACES | D3: TOTAL Aug PLACES | E3: TOTAL Sep - Mar PLACES | F3: Pre-16 Apr - Jul | G3: Pre-16 Aug | H3: Pre-16 Sept - Mar | I3: Post-16 Apr - Jul | J3: Post-16 Aug - Mar | K3: TOTAL Apr - Jul PLACES | L3: TOTAL Aug PLACES | M3: TOTAL Sep - Mar PLACES | O3: Pre-16 Apr - Jul | P3: Pre-16 Aug | Q3: Pre-16 Sept - Mar | R3: Post-16 Apr - Jul | S3: Post-16 Aug | T3: Post-16 Sept - Mar | V3: Band 1C | W3: Band 2C | X3: Band 1D | Y3: Band 2D | Z3: Band 3D | AA3: Band 4D | AB3: Band 1E | AC3: Band 2E | AD3: Band 3E | AE3: Band 4E | AF3: Band 5E | AG3: Band 6E | AH3: Band 1F | AI3: Band 2F | AJ3: Band 3F | AK3: Band 4F | AL3: Band 5F | AM3: Band 6F | AO3: 2021/22 Pupil Premium | AP3: TPG/TPECG
A4: 1 | B4: Castle Wood | C4: =[5]Data!K4 -> 156 | D4: =[5]Data!L4 -> 156 | E4: =[5]Data!M4 -> 160 | F4: 160 | G4: 160 | H4: 160 | I4: 0 | J4: 0 | K4: =F4+I4 -> 160 | L4: =G4+J4 -> 160 | M4: =H4+J4 -> 160 | O4: =F4*10000*4/12 -> 533333.3333 | P4: =G4*10000*1/12 -> 133333.3333 | Q4: =H4*10000*7/12 -> 933333.3333 | R4: =I4*10000*4/12 -> 0 | S4: =I4*10000*1/12 -> 0 | T4: =J4*10000*7/12 -> 0 | V4: =[6]Sheet1!B$28 -> 2477.901504 | W4: =[6]Sheet1!$C$28 -> 2973.486048 | X4: =[6]Sheet1!$B$29 -> 2973.486048 | Y4: =[6]Sheet1!$C$29 -> 4955.803008 | Z4: =[6]Sheet1!$D$29 -> 7433.71512 | AA4: =[6]Sheet1!$E$29 -> 7433.71512 | AB4: =[6]Sheet1!$B$30 -> 9911.616624 | AC4: =[6]Sheet1!$C$30 -> 9168.250416 | AD4: =[6]Sheet1!$D$30 -> 12389.51813 | AE4: =[6]Sheet1!$E$30 -> 12389.51813 | AF4: =[7]Sheet1!$F$30 -> 20395.44 | AG4: 0 | AH4: =[6]Sheet1!$B$31 -> 16106.38099 | AI4: =[6]Sheet1!$C$31 -> 14867.41963 | AJ4: =[6]Sheet1!$D$31 -> 14867.41963 | AK4: =[6]Sheet1!$E$31 -> 14867.41963 | AL4: =[6]Sheet1!$F$31 -> 40790.88 | AM4: 0 | AO4: =[8]Allocations!$V$62 -> 88960 | AP4: =[9]Sheet1!K2 -> 105600
A5: 2 | B5: Kingsbury | C5: =[5]Data!K5 -> 84 | D5: =[5]Data!L5 -> 84 | E5: =[5]Data!M5 -> 92 | F5: 92 | G5: 92 | H5: 100 | I5: 0 | J5: 0 | K5: 92 | L5: 92 | M5: 100 | O5: 306666.6667 | P5: 76666.66667 | Q5: 583333.3333 | R5: 0 | S5: 0 | T5: 0 | V5: =[6]Sheet1!B$28 -> 2477.901504 | W5: =[6]Sheet1!$C$28 -> 2973.486048 | X5: =[6]Sheet1!$B$29 -> 2973.486048 | Y5: =[6]Sheet1!$C$29 -> 4955.803008 | Z5: =[6]Sheet1!$D$29 -> 7433.71512 | AA5: =[6]Sheet1!$E$29 -> 7433.71512 | AB5: =[6]Sheet1!$B$30 -> 9911.616624 | AC5: =[6]Sheet1!$C$30 -> 9168.250416 | AD5: =[6]Sheet1!$D$30 -> 12389.51813 | AE5: =[6]Sheet1!$E$30 -> 12389.51813 | AF5: =[6]Sheet1!$F$30 -> 20395.44 | AG5: 0 | AH5: =[6]Sheet1!$B$31 -> 16106.38099 | AI5: =[6]Sheet1!$C$31 -> 14867.41963 | AJ5: =[6]Sheet1!$D$31 -> 14867.41963 | AK5: =[6]Sheet1!$E$31 -> 14867.41963 | AL5: =[6]Sheet1!$F$31 -> 40790.88 | AM5: 0 | AO5: 0 | AP5: =[9]Sheet1!K3 -> 60720
A6: 3 | B6: Riverbank | C6: =[5]Data!K6 -> 179 | D6: =[5]Data!L6 -> 179 | E6: =[5]Data!M6 -> 188 | F6: 168 | G6: 168 | H6: 180 | I6: 20 | J6: 20 | K6: 188 | L6: 188 | M6: 200 | O6: 560000 | P6: 140000 | Q6: 1050000 | R6: 66666.66667 | S6: 16666.66667 | T6: 116666.6667 | V6: =[6]Sheet1!B$28 -> 2477.901504 | W6: =[6]Sheet1!$C$28 -> 2973.486048 | X6: =[6]Sheet1!$B$29 -> 2973.486048 | Y6: =[6]Sheet1!$C$29 -> 4955.803008 | Z6: =[6]Sheet1!$D$29 -> 7433.71512 | AA6: =[6]Sheet1!$E$29 -> 7433.71512 | AB6: =[6]Sheet1!$B$30 -> 9911.616624 | AC6: =[6]Sheet1!$C$30 -> 9168.250416 | AD6: =[6]Sheet1!$D$30 -> 12389.51813 | AE6: =[6]Sheet1!$E$30 -> 12389.51813 | AF6: =[6]Sheet1!$F$30 -> 20395.44 | AG6: =[6]Sheet1!$G$30 -> 31882.8744 | AH6: =[6]Sheet1!$B$31 -> 16106.38099 | AI6: =[6]Sheet1!$C$31 -> 14867.41963 | AJ6: =[6]Sheet1!$D$31 -> 14867.41963 | AK6: =[6]Sheet1!$E$31 -> 14867.41963 | AL6: =[6]Sheet1!$F$31 -> 40790.88 | AM6: 0 | AO6: 0 | AP6: =[9]Sheet1!K4 -> 128700
A7: 4 | B7: Corley | C7: =[5]Data!K7 -> 122 | D7: =[5]Data!L7 -> 122 | E7: =[5]Data!M7 -> 129 | F7: 119 | G7: 119 | H7: 119 | I7: 10 | J7: 10 | K7: =F7+I7 -> 129 | L7: 129 | M7: =H7+J7 -> 129 | O7: 396666.6667 | P7: 99166.66667 | Q7: 694166.6667 | R7: 33333.33333 | S7: 8333.333333 | T7: 58333.33333 | V7: =[6]Sheet1!B$28 -> 2477.901504 | W7: =[6]Sheet1!$C$28 -> 2973.486048 | X7: =[6]Sheet1!$B$29 -> 2973.486048 | Y7: =[6]Sheet1!$C$29 -> 4955.803008 | Z7: =[6]Sheet1!$D$29 -> 7433.71512 | AA7: =[6]Sheet1!$E$29 -> 7433.71512 | AB7: =[6]Sheet1!$B$30 -> 9911.616624 | AC7: =[6]Sheet1!$C$30 -> 9168.250416 | AD7: =[6]Sheet1!$D$30 -> 12389.51813 | AE7: =[6]Sheet1!$E$30 -> 12389.51813 | AF7: =[6]Sheet1!$F$30 -> 20395.44 | AG7: 0 | AH7: =[6]Sheet1!$B$31 -> 16106.38099 | AI7: =[6]Sheet1!$C$31 -> 14867.41963 | AJ7: =[6]Sheet1!$D$31 -> 14867.41963 | AK7: =[6]Sheet1!$E$31 -> 14867.41963 | AL7: =[6]Sheet1!$F$31 -> 40790.88 | AM7: 0 | AO7: =[8]Allocations!$V$69 -> 60085 | AP7: =[9]Sheet1!K5 -> 85140
A8: 5 | B8: Tiverton | C8: =[5]Data!K8 -> 104 | D8: =[5]Data!L8 -> 104 | E8: =[5]Data!M8 -> 110 | F8: 112 | G8: 112 | H8: 112 | I8: 0 | J8: 0 | K8: 112 | L8: =G8+J8 -> 112 | M8: 112 | O8: 373333.3333 | P8: 93333.33333 | Q8: 653333.3333 | R8: 0 | S8: 0 | T8: 0 | V8: =[6]Sheet1!B$28 -> 2477.901504 | W8: =[6]Sheet1!$C$28 -> 2973.486048 | X8: =[6]Sheet1!$B$29 -> 2973.486048 | Y8: =[6]Sheet1!$C$29 -> 4955.803008 | Z8: =[6]Sheet1!$D$29 -> 7433.71512 | AA8: =[6]Sheet1!$E$29 -> 7433.71512 | AB8: =[6]Sheet1!$B$30 -> 9911.616624 | AC8: =[6]Sheet1!$C$30 -> 9168.250416 | AD8: =[6]Sheet1!$D$30 -> 12389.51813 | AE8: =[6]Sheet1!$E$30 -> 12389.51813 | AF8: =[6]Sheet1!$F$30 -> 20395.44 | AG8: 0 | AH8: =[6]Sheet1!$B$31 -> 16106.38099 | AI8: =[6]Sheet1!$C$31 -> 14867.41963 | AJ8: =[6]Sheet1!$D$31 -> 14867.41963 | AK8: =[6]Sheet1!$E$31 -> 14867.41963 | AL8: =[6]Sheet1!$F$31 -> 40790.88 | AM8: 0 | AO8: =[8]Allocations!$V$63 -> 55040 | AP8: =[9]Sheet1!K6 -> 72600
A9: 6 | B9: Baginton Fields | C9: =[5]Data!K9 -> 116 | D9: =[5]Data!L9 -> 116 | E9: =[5]Data!M9 -> 118 | F9: 80 | G9: 80 | H9: 80 | I9: 38 | J9: 38 | K9: 118 | L9: 118 | M9: 118 | O9: 266666.6667 | P9: 66666.66667 | Q9: 466666.6667 | R9: 126666.6667 | S9: 31666.66667 | T9: 221666.6667 | V9: =[6]Sheet1!B$28 -> 2477.901504 | W9: =[6]Sheet1!$C$28 -> 2973.486048 | X9: =[6]Sheet1!$B$29 -> 2973.486048 | Y9: =[6]Sheet1!$C$29 -> 4955.803008 | Z9: =[6]Sheet1!$D$29 -> 7433.71512 | AA9: =[6]Sheet1!$E$29 -> 7433.71512 | AB9: =[6]Sheet1!$B$30 -> 9911.616624 | AC9: =[6]Sheet1!$C$30 -> 9168.250416 | AD9: =[6]Sheet1!$D$30 -> 12389.51813 | AE9: =[6]Sheet1!$E$30 -> 12389.51813 | AF9: =[6]Sheet1!$F$30 -> 20395.44 | AG9: 0 | AH9: =[6]Sheet1!$B$31 -> 16106.38099 | AI9: =[6]Sheet1!$C$31 -> 14867.41963 | AJ9: =[6]Sheet1!$D$31 -> 14867.41963 | AK9: =[6]Sheet1!$E$31 -> 14867.41963 | AL9: =[6]Sheet1!$F$31 -> 40790.88 | AM9: 0 | AO9: =[8]Allocations!$V$70 -> 47720 | AP9: =[9]Sheet1!K7 -> 77880
A10: 7 | B10: Sherbourne Fields | C10: =[5]Data!K10 -> 200 | D10: =[5]Data!L10 -> 200 | E10: =[5]Data!M10 -> 220 | F10: 186 | G10: 186 | H10: 206 | I10: 34 | J10: 34 | K10: 220 | L10: 220 | M10: 240 | O10: 620000 | P10: 155000 | Q10: 1201666.667 | R10: 113333.3333 | S10: 28333.33333 | T10: 198333.3333 | V10: =[6]Sheet1!B$28 -> 2477.901504 | W10: =[6]Sheet1!$C$28 -> 2973.486048 | X10: =[6]Sheet1!$B$29 -> 2973.486048 | Y10: =[6]Sheet1!$C$29 -> 4955.803008 | Z10: =[6]Sheet1!$D$29 -> 7433.71512 | AA10: =[6]Sheet1!$E$29 -> 7433.71512 | AB10: =[6]Sheet1!$B$30 -> 9911.616624 | AC10: =[6]Sheet1!$C$30 -> 9168.250416 | AD10: =[6]Sheet1!$D$30 -> 12389.51813 | AE10: =[6]Sheet1!$E$30 -> 12389.51813 | AF10: =[6]Sheet1!$F$30 -> 20395.44 | AG10: 0 | AH10: =[6]Sheet1!$B$31 -> 16106.38099 | AI10: =[6]Sheet1!$C$31 -> 14867.41963 | AJ10: =[6]Sheet1!$D$31 -> 14867.41963 | AK10: =[6]Sheet1!$E$31 -> 14867.41963 | AL10: =[6]Sheet1!$F$31 -> 40790.88 | AM10: 0 | AO10: =[8]Allocations!$V$64+[8]Allocations!$V$71 -> 71840 | AP10: =[9]Sheet1!K8 -> 145200
A11: 8 | B11: Woodfield | C11: =[5]Data!K11 -> 152 | D11: =[5]Data!L11 -> 152 | E11: =[5]Data!M11 -> 155 | F11: 155 | G11: 155 | H11: 155 | I11: 0 | J11: 0 | K11: =F11+I11 -> 155 | L11: =G11+J11 -> 155 | M11: =H11+J11 -> 155 | O11: 516666.6667 | P11: 129166.6667 | Q11: 904166.6667 | R11: 0 | S11: 0 | T11: 0 | V11: =[6]Sheet1!B$28 -> 2477.901504 | W11: =[6]Sheet1!$C$28 -> 2973.486048 | X11: =[6]Sheet1!$B$29 -> 2973.486048 | Y11: =[6]Sheet1!$C$29 -> 4955.803008 | Z11: =[6]Sheet1!$D$29 -> 7433.71512 | AA11: =[6]Sheet1!$E$29 -> 7433.71512 | AB11: =[6]Sheet1!$B$30 -> 9911.616624 | AC11: =[6]Sheet1!$C$30 -> 9168.250416 | AD11: =[6]Sheet1!$D$30 -> 12389.51813 | AE11: =[6]Sheet1!$E$30 -> 12389.51813 | AF11: =[6]Sheet1!$F$30 -> 20395.44 | AG11: 0 | AH11: =[6]Sheet1!$B$31 -> 16106.38099 | AI11: =[6]Sheet1!$C$31 -> 14867.41963 | AJ11: =[6]Sheet1!$D$31 -> 14867.41963 | AK11: =[6]Sheet1!$E$31 -> 14867.41963 | AL11: =[6]Sheet1!$F$31 -> 40790.88 | AM11: 0 | AO11: =[8]Allocations!$V$65+[8]Allocations!$V$72 -> 125725 | AP11: =[9]Sheet1!K9 -> 102300
C12: =SUM(C4:C11) -> 1113 | D12: 1113 | E12: 1172 | F12: 1072 | G12: 1072 | H12: 1112 | I12: 102 | J12: 102 | K12: 1174 | L12: 1174 | M12: 1214 | O12: =SUM(O4:O11) -> 3573333.333 | P12: 893333.3333 | Q12: 6486666.667 | R12: 340000 | S12: 85000 | T12: 595000 | V12: =SUM(V4:V11) -> 19823.21203 | W12: 23787.88838 | X12: 23787.88838 | Y12: =SUM(Y4:Y11) -> 39646.42406 | Z12: =SUM(Z4:Z11) -> 59469.72096 | AA12: 59469.72096 | AB12: 79292.93299 | AC12: 73346.00333 | AD12: 99116.14502 | AE12: 99116.14502 | AF12: =SUM(AF4:AF11) -> 163163.52 | AG12: =SUM(AG4:AG11) -> 31882.8744 | AH12: =SUM(AH4:AH11) -> 128851.0479 | AI12: 118939.3571 | AJ12: 118939.3571 | AK12: 118939.3571 | AL12: 326327.04 | AM12: 0 | AO12: =SUM(AO4:AO11) -> 449370 | AP12: =SUM(AP4:AP11) -> 778140
AM14: =W5*66/197 -> 996.1932953
A15: =A19+A32+A45 -> 195 | D15: Coventry pupils | X15: Other LA Pupils
C16: Place Led | D16: Band 1C | E16: Band 2C | F16: Band 1D | G16: Band 2D | H16: Band 3D | I16: Band 4D | J16: Band 1E | K16: Band 2E | L16: Band 3E | M16: Band 4E | N16: Band 5E | O16: Band 6E | P16: Band 1F | Q16: Band 2F | R16: Band 3F | S16: Band 4F | T16: Band 5F | U16: Band 6F | V16: No. FTEs | W16: Coventry | X16: Band 1C | Y16: Band 2C | Z16: Band 1D | AA16: Band 2D | AB16: Band 3D | AC16: Band 4D | AD16: Band 1E | AE16: Band 2E | AF16: Band 3E | AG16: Band 4E | AH16: Band 5E | AI16: Band 6E | AJ16: Band 1F | AK16: Band 2F | AL16: Band 3F | AM16: Band 4F | AN16: Band 5F | AO16: Band 6F | AP16: No. FTEs | AQ16: Other LA | AR16: Total Top Up | AT16: Manual Check | AU16: Total | AV16: 21/22 | AW16: 21/22 | AX16: Budget Setting | AY16: 21/22 | AZ16: Additional
C17: Day Rate | D17: Day Units | E17: Day Units | F17: Day Units | G17: Day Units | H17: Day Units | I17: Day Units | J17: Day Units | K17: Day Units | L17: Day Units | M17: Day Units | N17: Day Units | O17: Day Units | P17: Day Units | Q17: Day Units | R17: Day Units | S17: Day Units | T17: Day Units | U17: Day Units | V17: Equivalency | W17: Funding £ | X17: Day Units | Y17: Day Units | Z17: Day Units | AA17: Day Units | AB17: Day Units | AC17: Day Units | AD17: Day Units | AE17: Day Units | AF17: Day Units | AG17: Day Units | AH17: Day Units | AI17: Day Units | AJ17: Day Units | AK17: Day Units | AL17: Day Units | AM17: Day Units | AN17: Day Units | AO17: Day Units | AP17: Equivalency | AQ17: Funding £ | AR17: Funding £ | AS17: No. FTE | AU17: Places | AV17: v4 FTE | AW17: Places | AY17: Term Days | AZ17: Place Days | BB17: Band 1C | BC17: Band 2C | BD17: Band 1D | BE17: Band 2D | BF17: Band 3D | BG17: Band 4D | BH17: Band 1E | BI17: Band 2E | BJ17: Band 3E | BK17: Band 4E | BL17: Band 5E | BM17: Band 6E | BN17: Band 1F | BO17: Band 2F | BP17: Band 3F | BQ17: Band 4F | BR17: Band 5F | BS17: Band 6F | BU17: Band 1C | BV17: Band 2C | BW17: Band 1D | BX17: Band 2D | BY17: Band 3D | BZ17: Band 4D | CA17: Band 1E | CB17: Band 2E | CC17: Band 3E | CD17: Band 4E | CE17: Band 5E | CF17: Band 6E | CG17: Band 1F | CH17: Band 2F | CI17: Band 3F | CJ17: Band 4F | CK17: Band 5F | CL17: Band 6F
B18: Summer Term 2022
A19: =[10]Sheet1!$A$3 -> 66 | B19: School | AX19: Manual check to provision report
A20: 1 | B20: Castle Wood | C20: =10000/$A$15 -> 51.28205128 | D20: =SUMIFS(SummerProvRep!$H:$H,SummerProvRep!$A:$A,Data!$A$20,SummerProvRep!$G:$G,"Coventry",SummerProvRep!$P:$P,Data!D$16) -> 0 | E20: =SUMIFS(SummerProvRep!$H:$H,SummerProvRep!$A:$A,Data!$A$20,SummerProvRep!$G:$G,"Coventry",SummerProvRep!$P:$P,Data!E$16) -> 0 | F20: =SUMIFS(SummerProvRep!$H:$H,SummerProvRep!$A:$A,Data!$A$20,SummerProvRep!$G:$G,"Coventry",SummerProvRep!$P:$P,Data!F$16) -> 0 | G20: =SUMIFS(SummerProvRep!$H:$H,SummerProvRep!$A:$A,Data!$A$20,SummerProvRep!$G:$G,"Coventry",SummerProvRep!$P:$P,Data!G$16) -> 0 | H20: =SUMIFS(SummerProvRep!$H:$H,SummerProvRep!$A:$A,Data!$A$20,SummerProvRep!$G:$G,"Coventry",SummerProvRep!$P:$P,Data!H$16) -> 0 | I20: =SUMIFS(SummerProvRep!$H:$H,SummerProvRep!$A:$A,Data!$A$20,SummerProvRep!$G:$G,"Coventry",SummerProvRep!$P:$P,Data!I$16) -> 66 | J20: =SUMIFS(SummerProvRep!$H:$H,SummerProvRep!$A:$A,Data!$A$20,SummerProvRep!$G:$G,"Coventry",SummerProvRep!$P:$P,Data!J$16) -> 5346 | K20: =SUMIFS(SummerProvRep!$H:$H,SummerProvRep!$A:$A,Data!$A$20,SummerProvRep!$G:$G,"Coventry",SummerProvRep!$P:$P,Data!K$16) -> 1449 | L20: =SUMIFS(SummerProvRep!$H:$H,SummerProvRep!$A:$A,Data!$A$20,SummerProvRep!$G:$G,"Coventry",SummerProvRep!$P:$P,Data!L$16) -> 0 | M20: =SUMIFS(SummerProvRep!$H:$H,SummerProvRep!$A:$A,Data!$A$20,SummerProvRep!$G:$G,"Coventry",SummerProvRep!$P:$P,Data!M$16) -> 330 | N20: =SUMIFS(SummerProvRep!$H:$H,SummerProvRep!$A:$A,Data!$A$20,SummerProvRep!$G:$G,"Coventry",SummerProvRep!$P:$P,Data!N$16) -> 462 | O20: =SUMIFS(SummerProvRep!$H:$H,SummerProvRep!$A:$A,Data!$A$20,SummerProvRep!$G:$G,"Coventry",SummerProvRep!$P:$P,Data!O$16) -> 0 | P20: =SUMIFS(SummerProvRep!$H:$H,SummerProvRep!$A:$A,Data!$A$20,SummerProvRep!$G:$G,"Coventry",SummerProvRep!$P:$P,Data!P$16) -> 1782 | Q20: =SUMIFS(SummerProvRep!$H:$H,SummerProvRep!$A:$A,Data!$A$20,SummerProvRep!$G:$G,"Coventry",SummerProvRep!$P:$P,Data!Q$16) -> 792 | R20: =SUMIFS(SummerProvRep!$H:$H,SummerProvRep!$A:$A,Data!$A$20,SummerProvRep!$G:$G,"Coventry",SummerProvRep!$P:$P,Data!R$16) -> 0 | S20: =SUMIFS(SummerProvRep!$H:$H,SummerProvRep!$A:$A,Data!$A$20,SummerProvRep!$G:$G,"Coventry",SummerProvRep!$P:$P,Data!S$16) -> 264 | T20: =SUMIFS(SummerProvRep!$H:$H,SummerProvRep!$A:$A,Data!$A$20,SummerProvRep!$G:$G,"Coventry",SummerProvRep!$P:$P,Data!T$16) -> 0 | U20: =SUMIFS(SummerProvRep!$H:$H,SummerProvRep!$A:$A,Data!$A$20,SummerProvRep!$G:$G,"Coventry",SummerProvRep!$P:$P,Data!U$16) -> 0 | V20: =SUM(D20:U20)/$A$19 -> 158.9545455 | W20: =SUMPRODUCT(D20:U20,$V$6:$AM$6)/$A$15 -> 639362.6813 | X20: =SUMIFS(SummerProvRep!$H:$H,SummerProvRep!$A:$A,Data!$A$20,SummerProvRep!$G:$G,"<>Coventry",SummerProvRep!$P:$P,Data!X$16) -> 0 | Y20: =SUMIFS(SummerProvRep!$H:$H,SummerProvRep!$A:$A,Data!$A$20,SummerProvRep!$G:$G,"<>Coventry",SummerProvRep!$P:$P,Data!Y$16) -> 0 | Z20: =SUMIFS(SummerProvRep!$H:$H,SummerProvRep!$A:$A,Data!$A$20,SummerProvRep!$G:$G,"<>Coventry",SummerProvRep!$P:$P,Data!Z$16) -> 0 | AA20: =SUMIFS(SummerProvRep!$H:$H,SummerProvRep!$A:$A,Data!$A$20,SummerProvRep!$G:$G,"<>Coventry",SummerProvRep!$P:$P,Data!AA$16) -> 0 | AB20: =SUMIFS(SummerProvRep!$H:$H,SummerProvRep!$A:$A,Data!$A$20,SummerProvRep!$G:$G,"<>Coventry",SummerProvRep!$P:$P,Data!AB$16) -> 0 | AC20: =SUMIFS(SummerProvRep!$H:$H,SummerProvRep!$A:$A,Data!$A$20,SummerProvRep!$G:$G,"<>Coventry",SummerProvRep!$P:$P,Data!AC$16) -> 0 | AD20: =SUMIFS(SummerProvRep!$H:$H,SummerProvRep!$A:$A,Data!$A$20,SummerProvRep!$G:$G,"<>Coventry",SummerProvRep!$P:$P,Data!AD$16) -> 66 | AE20: =SUMIFS(SummerProvRep!$H:$H,SummerProvRep!$A:$A,Data!$A$20,SummerProvRep!$G:$G,"<>Coventry",SummerProvRep!$P:$P,Data!AE$16) -> 0 | AF20: =SUMIFS(SummerProvRep!$H:$H,SummerProvRep!$A:$A,Data!$A$20,SummerProvRep!$G:$G,"<>Coventry",SummerProvRep!$P:$P,Data!AF$16) -> 0 | AG20: =SUMIFS(SummerProvRep!$H:$H,SummerProvRep!$A:$A,Data!$A$20,SummerProvRep!$G:$G,"<>Coventry",SummerProvRep!$P:$P,Data!AG$16) -> 0 | AH20: =SUMIFS(SummerProvRep!$H:$H,SummerProvRep!$A:$A,Data!$A$20,SummerProvRep!$G:$G,"<>Coventry",SummerProvRep!$P:$P,Data!AH$16) -> 0 | AI20: =SUMIFS(SummerProvRep!$H:$H,SummerProvRep!$A:$A,Data!$A$20,SummerProvRep!$G:$G,"<>Coventry",SummerProvRep!$P:$P,Data!AI$16) -> 0 | AJ20: =SUMIFS(SummerProvRep!$H:$H,SummerProvRep!$A:$A,Data!$A$20,SummerProvRep!$G:$G,"<>Coventry",SummerProvRep!$P:$P,Data!AJ$16) -> 0 | AK20: =SUMIFS(SummerProvRep!$H:$H,SummerProvRep!$A:$A,Data!$A$20,SummerProvRep!$G:$G,"<>Coventry",SummerProvRep!$P:$P,Data!AK$16) -> 0 | AL20: =SUMIFS(SummerProvRep!$H:$H,SummerProvRep!$A:$A,Data!$A$20,SummerProvRep!$G:$G,"<>Coventry",SummerProvRep!$P:$P,Data!AL$16) -> 0 | AM20: =SUMIFS(SummerProvRep!$H:$H,SummerProvRep!$A:$A,Data!$A$20,SummerProvRep!$G:$G,"<>Coventry",SummerProvRep!$P:$P,Data!AM$16) -> 0 | AN20: =SUMIFS(SummerProvRep!$H:$H,SummerProvRep!$A:$A,Data!$A$20,SummerProvRep!$G:$G,"<>Coventry",SummerProvRep!$P:$P,Data!AN$16) -> 0 | AO20: =SUMIFS(SummerProvRep!$H:$H,SummerProvRep!$A:$A,Data!$A$20,SummerProvRep!$G:$G,"<>Coventry",SummerProvRep!$P:$P,Data!AO$16) -> 0 | AP20: =SUM(X20:AO20)/$A$19 -> 1 | AQ20: =SUMPRODUCT(X20:AO20,$V$4:$AM$4)/$A$15 -> 3354.701011 | AR20: =W20+AQ20 -> 642717.3823 | AS20: =AP20+V20 -> 159.9545455 | AT20: =AS20-AU20 -> -0.04545454545 | AU20: =K4 -> 160 | AV20: =[11]Data!AR35 -> 156.8095238 | AW20: =[11]Data!$K$4 -> 156 | AX20: =AR20-SummerProvRep!I376 -> -0.08835298463
A21: 2 | B21: Kingsbury | C21: =10000/$A$15 -> 51.28205128 | D21: =SUMIFS(SummerProvRep!$H:$H,SummerProvRep!$A:$A,Data!$A$21,SummerProvRep!$G:$G,"Coventry",SummerProvRep!$P:$P,Data!D$16) -> 0 | E21: =SUMIFS(SummerProvRep!$H:$H,SummerProvRep!$A:$A,Data!$A$21,SummerProvRep!$G:$G,"Coventry",SummerProvRep!$P:$P,Data!E$16) -> 0 | F21: =SUMIFS(SummerProvRep!$H:$H,SummerProvRep!$A:$A,Data!$A$21,SummerProvRep!$G:$G,"Coventry",SummerProvRep!$P:$P,Data!F$16) -> 0 | G21: =SUMIFS(SummerProvRep!$H:$H,SummerProvRep!$A:$A,Data!$A$21,SummerProvRep!$G:$G,"Coventry",SummerProvRep!$P:$P,Data!G$16) -> 0 | H21: =SUMIFS(SummerProvRep!$H:$H,SummerProvRep!$A:$A,Data!$A$21,SummerProvRep!$G:$G,"Coventry",SummerProvRep!$P:$P,Data!H$16) -> 0 | I21: =SUMIFS(SummerProvRep!$H:$H,SummerProvRep!$A:$A,Data!$A$21,SummerProvRep!$G:$G,"Coventry",SummerProvRep!$P:$P,Data!I$16) -> 0 | J21: =SUMIFS(SummerProvRep!$H:$H,SummerProvRep!$A:$A,Data!$A$21,SummerProvRep!$G:$G,"Coventry",SummerProvRep!$P:$P,Data!J$16) -> 2826 | K21: =SUMIFS(SummerProvRep!$H:$H,SummerProvRep!$A:$A,Data!$A$21,SummerProvRep!$G:$G,"Coventry",SummerProvRep!$P:$P,Data!K$16) -> 768 | L21: =SUMIFS(SummerProvRep!$H:$H,SummerProvRep!$A:$A,Data!$A$21,SummerProvRep!$G:$G,"Coventry",SummerProvRep!$P:$P,Data!L$16) -> 0 | M21: =SUMIFS(SummerProvRep!$H:$H,SummerProvRep!$A:$A,Data!$A$21,SummerProvRep!$G:$G,"Coventry",SummerProvRep!$P:$P,Data!M$16) -> 0 | N21: =SUMIFS(SummerProvRep!$H:$H,SummerProvRep!$A:$A,Data!$A$21,SummerProvRep!$G:$G,"Coventry",SummerProvRep!$P:$P,Data!N$16) -> 204 | O21: =SUMIFS(SummerProvRep!$H:$H,SummerProvRep!$A:$A,Data!$A$21,SummerProvRep!$G:$G,"Coventry",SummerProvRep!$P:$P,Data!O$16) -> 0 | P21: =SUMIFS(SummerProvRep!$H:$H,SummerProvRep!$A:$A,Data!$A$21,SummerProvRep!$G:$G,"Coventry",SummerProvRep!$P:$P,Data!P$16) -> 1907 | Q21: =SUMIFS(SummerProvRep!$H:$H,SummerProvRep!$A:$A,Data!$A$21,SummerProvRep!$G:$G,"Coventry",SummerProvRep!$P:$P,Data!Q$16) -> 102 | R21: =SUMIFS(SummerProvRep!$H:$H,SummerProvRep!$A:$A,Data!$A$21,SummerProvRep!$G:$G,"Coventry",SummerProvRep!$P:$P,Data!R$16) -> 0 | S21: =SUMIFS(SummerProvRep!$H:$H,SummerProvRep!$A:$A,Data!$A$21,SummerProvRep!$G:$G,"Coventry",SummerProvRep!$P:$P,Data!S$16) -> 0 | T21: =SUMIFS(SummerProvRep!$H:$H,SummerProvRep!$A:$A,Data!$A$21,SummerProvRep!$G:$G,"Coventry",SummerProvRep!$P:$P,Data!T$16) -> 0 | U21: =SUMIFS(SummerProvRep!$H:$H,SummerProvRep!$A:$A,Data!$A$21,SummerProvRep!$G:$G,"Coventry",SummerProvRep!$P:$P,Data!U$16) -> 0 | V21: 87.98484848 | W21: 366376.718 | X21: =SUMIFS(SummerProvRep!$H:$H,SummerProvRep!$A:$A,Data!$A$21,SummerProvRep!$G:$G,"<>Coventry",SummerProvRep!$P:$P,Data!X$16) -> 0 | Y21: =SUMIFS(SummerProvRep!$H:$H,SummerProvRep!$A:$A,Data!$A$21,SummerProvRep!$G:$G,"<>Coventry",SummerProvRep!$P:$P,Data!Y$16) -> 0 | Z21: =SUMIFS(SummerProvRep!$H:$H,SummerProvRep!$A:$A,Data!$A$21,SummerProvRep!$G:$G,"<>Coventry",SummerProvRep!$P:$P,Data!Z$16) -> 0 | AA21: =SUMIFS(SummerProvRep!$H:$H,SummerProvRep!$A:$A,Data!$A$21,SummerProvRep!$G:$G,"<>Coventry",SummerProvRep!$P:$P,Data!AA$16) -> 0 | AB21: =SUMIFS(SummerProvRep!$H:$H,SummerProvRep!$A:$A,Data!$A$21,SummerProvRep!$G:$G,"<>Coventry",SummerProvRep!$P:$P,Data!AB$16) -> 0 | AC21: =SUMIFS(SummerProvRep!$H:$H,SummerProvRep!$A:$A,Data!$A$21,SummerProvRep!$G:$G,"<>Coventry",SummerProvRep!$P:$P,Data!AC$16) -> 0 | AD21: =SUMIFS(SummerProvRep!$H:$H,SummerProvRep!$A:$A,Data!$A$21,SummerProvRep!$G:$G,"<>Coventry",SummerProvRep!$P:$P,Data!AD$16) -> 66 | AE21: =SUMIFS(SummerProvRep!$H:$H,SummerProvRep!$A:$A,Data!$A$21,SummerProvRep!$G:$G,"<>Coventry",SummerProvRep!$P:$P,Data!AE$16) -> 66 | AF21: =SUMIFS(SummerProvRep!$H:$H,SummerProvRep!$A:$A,Data!$A$21,SummerProvRep!$G:$G,"<>Coventry",SummerProvRep!$P:$P,Data!AF$16) -> 0 | AG21: =SUMIFS(SummerProvRep!$H:$H,SummerProvRep!$A:$A,Data!$A$21,SummerProvRep!$G:$G,"<>Coventry",SummerProvRep!$P:$P,Data!AG$16) -> 0 | AH21: =SUMIFS(SummerProvRep!$H:$H,SummerProvRep!$A:$A,Data!$A$21,SummerProvRep!$G:$G,"<>Coventry",SummerProvRep!$P:$P,Data!AH$16) -> 0 | AI21: =SUMIFS(SummerProvRep!$H:$H,SummerProvRep!$A:$A,Data!$A$21,SummerProvRep!$G:$G,"<>Coventry",SummerProvRep!$P:$P,Data!AI$16) -> 0 | AJ21: =SUMIFS(SummerProvRep!$H:$H,SummerProvRep!$A:$A,Data!$A$21,SummerProvRep!$G:$G,"<>Coventry",SummerProvRep!$P:$P,Data!AJ$16) -> 132 | AK21: =SUMIFS(SummerProvRep!$H:$H,SummerProvRep!$A:$A,Data!$A$21,SummerProvRep!$G:$G,"<>Coventry",SummerProvRep!$P:$P,Data!AK$16) -> 0 | AL21: =SUMIFS(SummerProvRep!$H:$H,SummerProvRep!$A:$A,Data!$A$21,SummerProvRep!$G:$G,"<>Coventry",SummerProvRep!$P:$P,Data!AL$16) -> 0 | AM21: =SUMIFS(SummerProvRep!$H:$H,SummerProvRep!$A:$A,Data!$A$21,SummerProvRep!$G:$G,"<>Coventry",SummerProvRep!$P:$P,Data!AM$16) -> 0 | AN21: =SUMIFS(SummerProvRep!$H:$H,SummerProvRep!$A:$A,Data!$A$21,SummerProvRep!$G:$G,"<>Coventry",SummerProvRep!$P:$P,Data!AN$16) -> 0 | AO21: =SUMIFS(SummerProvRep!$H:$H,SummerProvRep!$A:$A,Data!$A$21,SummerProvRep!$G:$G,"<>Coventry",SummerProvRep!$P:$P,Data!AO$16) -> 0 | AP21: 4 | AQ21: 17360.58213 | AR21: =W21+AQ21 -> 383737.3001 | AS21: =AP21+V21 -> 91.98484848 | AT21: =AS21-AU21 -> -0.01515151515 | AU21: 92 | AV21: =[11]Data!AR36 -> 81.79365079 | AW21: =[11]Data!$K$5 -> 84 | AX21: =AR21-SummerProvRep!I712 -> -0.03810921038
A22: 3 | B22: Riverbank | C22: 51.28205128 | D22: =SUMIFS(SummerProvRep!$H:$H,SummerProvRep!$A:$A,Data!$A$22,SummerProvRep!$G:$G,"Coventry",SummerProvRep!$P:$P,Data!D$16) -> 0 | E22: =SUMIFS(SummerProvRep!$H:$H,SummerProvRep!$A:$A,Data!$A$22,SummerProvRep!$G:$G,"Coventry",SummerProvRep!$P:$P,Data!E$16) -> 0 | F22: =SUMIFS(SummerProvRep!$H:$H,SummerProvRep!$A:$A,Data!$A$22,SummerProvRep!$G:$G,"Coventry",SummerProvRep!$P:$P,Data!F$16) -> 924 | G22: =SUMIFS(SummerProvRep!$H:$H,SummerProvRep!$A:$A,Data!$A$22,SummerProvRep!$G:$G,"Coventry",SummerProvRep!$P:$P,Data!G$16) -> 1980 | H22: =SUMIFS(SummerProvRep!$H:$H,SummerProvRep!$A:$A,Data!$A$22,SummerProvRep!$G:$G,"Coventry",SummerProvRep!$P:$P,Data!H$16) -> 132 | I22: =SUMIFS(SummerProvRep!$H:$H,SummerProvRep!$A:$A,Data!$A$22,SummerProvRep!$G:$G,"Coventry",SummerProvRep!$P:$P,Data!I$16) -> 66 | J22: =SUMIFS(SummerProvRep!$H:$H,SummerProvRep!$A:$A,Data!$A$22,SummerProvRep!$G:$G,"Coventry",SummerProvRep!$P:$P,Data!J$16) -> 2868 | K22: =SUMIFS(SummerProvRep!$H:$H,SummerProvRep!$A:$A,Data!$A$22,SummerProvRep!$G:$G,"Coventry",SummerProvRep!$P:$P,Data!K$16) -> 3498 | L22: =SUMIFS(SummerProvRep!$H:$H,SummerProvRep!$A:$A,Data!$A$22,SummerProvRep!$G:$G,"Coventry",SummerProvRep!$P:$P,Data!L$16) -> 198 | M22: =SUMIFS(SummerProvRep!$H:$H,SummerProvRep!$A:$A,Data!$A$22,SummerProvRep!$G:$G,"Coventry",SummerProvRep!$P:$P,Data!M$16) -> 528 | N22: =SUMIFS(SummerProvRep!$H:$H,SummerProvRep!$A:$A,Data!$A$22,SummerProvRep!$G:$G,"Coventry",SummerProvRep!$P:$P,Data!N$16) -> 132 | O22: =SUMIFS(SummerProvRep!$H:$H,SummerProvRep!$A:$A,Data!$A$22,SummerProvRep!$G:$G,"Coventry",SummerProvRep!$P:$P,Data!O$16) -> 264 | P22: =SUMIFS(SummerProvRep!$H:$H,SummerProvRep!$A:$A,Data!$A$22,SummerProvRep!$G:$G,"Coventry",SummerProvRep!$P:$P,Data!P$16) -> 1452 | Q22: =SUMIFS(SummerProvRep!$H:$H,SummerProvRep!$A:$A,Data!$A$22,SummerProvRep!$G:$G,"Coventry",SummerProvRep!$P:$P,Data!Q$16) -> 198 | R22: =SUMIFS(SummerProvRep!$H:$H,SummerProvRep!$A:$A,Data!$A$22,SummerProvRep!$G:$G,"Coventry",SummerProvRep!$P:$P,Data!R$16) -> 0 | S22: =SUMIFS(SummerProvRep!$H:$H,SummerProvRep!$A:$A,Data!$A$22,SummerProvRep!$G:$G,"Coventry",SummerProvRep!$P:$P,Data!S$16) -> 66 | T22: =SUMIFS(SummerProvRep!$H:$H,SummerProvRep!$A:$A,Data!$A$22,SummerProvRep!$G:$G,"Coventry",SummerProvRep!$P:$P,Data!T$16) -> 0 | U22: =SUMIFS(SummerProvRep!$H:$H,SummerProvRep!$A:$A,Data!$A$22,SummerProvRep!$G:$G,"Coventry",SummerProvRep!$P:$P,Data!U$16) -> 0 | V22: 186.4545455 | W22: 625356.1752 | X22: =SUMIFS(SummerProvRep!$H:$H,SummerProvRep!$A:$A,Data!$A$22,SummerProvRep!$G:$G,"<>Coventry",SummerProvRep!$P:$P,Data!X$16) -> 0 | Y22: =SUMIFS(SummerProvRep!$H:$H,SummerProvRep!$A:$A,Data!$A$22,SummerProvRep!$G:$G,"<>Coventry",SummerProvRep!$P:$P,Data!Y$16) -> 0 | Z22: =SUMIFS(SummerProvRep!$H:$H,SummerProvRep!$A:$A,Data!$A$22,SummerProvRep!$G:$G,"<>Coventry",SummerProvRep!$P:$P,Data!Z$16) -> 0 | AA22: =SUMIFS(SummerProvRep!$H:$H,SummerProvRep!$A:$A,Data!$A$22,SummerProvRep!$G:$G,"<>Coventry",SummerProvRep!$P:$P,Data!AA$16) -> 0 | AB22: =SUMIFS(SummerProvRep!$H:$H,SummerProvRep!$A:$A,Data!$A$22,SummerProvRep!$G:$G,"<>Coventry",SummerProvRep!$P:$P,Data!AB$16) -> 0 | AC22: =SUMIFS(SummerProvRep!$H:$H,SummerProvRep!$A:$A,Data!$A$22,SummerProvRep!$G:$G,"<>Coventry",SummerProvRep!$P:$P,Data!AC$16) -> 0 | AD22: =SUMIFS(SummerProvRep!$H:$H,SummerProvRep!$A:$A,Data!$A$22,SummerProvRep!$G:$G,"<>Coventry",SummerProvRep!$P:$P,Data!AD$16) -> 0 | AE22: =SUMIFS(SummerProvRep!$H:$H,SummerProvRep!$A:$A,Data!$A$22,SummerProvRep!$G:$G,"<>Coventry",SummerProvRep!$P:$P,Data!AE$16) -> 0 | AF22: =SUMIFS(SummerProvRep!$H:$H,SummerProvRep!$A:$A,Data!$A$22,SummerProvRep!$G:$G,"<>Coventry",SummerProvRep!$P:$P,Data!AF$16) -> 0 | AG22: =SUMIFS(SummerProvRep!$H:$H,SummerProvRep!$A:$A,Data!$A$22,SummerProvRep!$G:$G,"<>Coventry",SummerProvRep!$P:$P,Data!AG$16) -> 0 | AH22: =SUMIFS(SummerProvRep!$H:$H,SummerProvRep!$A:$A,Data!$A$22,SummerProvRep!$G:$G,"<>Coventry",SummerProvRep!$P:$P,Data!AH$16) -> 0 | AI22: =SUMIFS(SummerProvRep!$H:$H,SummerProvRep!$A:$A,Data!$A$22,SummerProvRep!$G:$G,"<>Coventry",SummerProvRep!$P:$P,Data!AI$16) -> 0 | AJ22: =SUMIFS(SummerProvRep!$H:$H,SummerProvRep!$A:$A,Data!$A$22,SummerProvRep!$G:$G,"<>Coventry",SummerProvRep!$P:$P,Data!AJ$16) -> 0 | AK22: =SUMIFS(SummerProvRep!$H:$H,SummerProvRep!$A:$A,Data!$A$22,SummerProvRep!$G:$G,"<>Coventry",SummerProvRep!$P:$P,Data!AK$16) -> 0 | AL22: =SUMIFS(SummerProvRep!$H:$H,SummerProvRep!$A:$A,Data!$A$22,SummerProvRep!$G:$G,"<>Coventry",SummerProvRep!$P:$P,Data!AL$16) -> 0 | AM22: =SUMIFS(SummerProvRep!$H:$H,SummerProvRep!$A:$A,Data!$A$22,SummerProvRep!$G:$G,"<>Coventry",SummerProvRep!$P:$P,Data!AM$16) -> 0 | AN22: =SUMIFS(SummerProvRep!$H:$H,SummerProvRep!$A:$A,Data!$A$22,SummerProvRep!$G:$G,"<>Coventry",SummerProvRep!$P:$P,Data!AN$16) -> 0 | AO22: =SUMIFS(SummerProvRep!$H:$H,SummerProvRep!$A:$A,Data!$A$22,SummerProvRep!$G:$G,"<>Coventry",SummerProvRep!$P:$P,Data!AO$16) -> 0 | AP22: 0 | AQ22: 0 | AR22: 625356.1752 | AS22: 186.4545455 | AT22: -1.545454545 | AU22: 188 | AV22: =[11]Data!AR37 -> 173.9206349 | AW22: =[11]Data!$K$6 -> 179 | AX22: =AR22-SummerProvRep!I949 -> -0.02945378469
A23: 4 | B23: Corley | C23: 51.28205128 | D23: =SUMIFS(SummerProvRep!$H:$H,SummerProvRep!$A:$A,Data!$A$23,SummerProvRep!$G:$G,"Coventry",SummerProvRep!$P:$P,Data!D$16) -> 0 | E23: =SUMIFS(SummerProvRep!$H:$H,SummerProvRep!$A:$A,Data!$A$23,SummerProvRep!$G:$G,"Coventry",SummerProvRep!$P:$P,Data!E$16) -> 0 | F23: =SUMIFS(SummerProvRep!$H:$H,SummerProvRep!$A:$A,Data!$A$23,SummerProvRep!$G:$G,"Coventry",SummerProvRep!$P:$P,Data!F$16) -> 66 | G23: =SUMIFS(SummerProvRep!$H:$H,SummerProvRep!$A:$A,Data!$A$23,SummerProvRep!$G:$G,"Coventry",SummerProvRep!$P:$P,Data!G$16) -> 0 | H23: =SUMIFS(SummerProvRep!$H:$H,SummerProvRep!$A:$A,Data!$A$23,SummerProvRep!$G:$G,"Coventry",SummerProvRep!$P:$P,Data!H$16) -> 0 | I23: =SUMIFS(SummerProvRep!$H:$H,SummerProvRep!$A:$A,Data!$A$23,SummerProvRep!$G:$G,"Coventry",SummerProvRep!$P:$P,Data!I$16) -> 0 | J23: =SUMIFS(SummerProvRep!$H:$H,SummerProvRep!$A:$A,Data!$A$23,SummerProvRep!$G:$G,"Coventry",SummerProvRep!$P:$P,Data!J$16) -> 6706 | K23: =SUMIFS(SummerProvRep!$H:$H,SummerProvRep!$A:$A,Data!$A$23,SummerProvRep!$G:$G,"Coventry",SummerProvRep!$P:$P,Data!K$16) -> 0 | L23: =SUMIFS(SummerProvRep!$H:$H,SummerProvRep!$A:$A,Data!$A$23,SummerProvRep!$G:$G,"Coventry",SummerProvRep!$P:$P,Data!L$16) -> 594 | M23: =SUMIFS(SummerProvRep!$H:$H,SummerProvRep!$A:$A,Data!$A$23,SummerProvRep!$G:$G,"Coventry",SummerProvRep!$P:$P,Data!M$16) -> 0 | N23: =SUMIFS(SummerProvRep!$H:$H,SummerProvRep!$A:$A,Data!$A$23,SummerProvRep!$G:$G,"Coventry",SummerProvRep!$P:$P,Data!N$16) -> 264 | O23: =SUMIFS(SummerProvRep!$H:$H,SummerProvRep!$A:$A,Data!$A$23,SummerProvRep!$G:$G,"Coventry",SummerProvRep!$P:$P,Data!O$16) -> 0 | P23: =SUMIFS(SummerProvRep!$H:$H,SummerProvRep!$A:$A,Data!$A$23,SummerProvRep!$G:$G,"Coventry",SummerProvRep!$P:$P,Data!P$16) -> 1122 | Q23: =SUMIFS(SummerProvRep!$H:$H,SummerProvRep!$A:$A,Data!$A$23,SummerProvRep!$G:$G,"Coventry",SummerProvRep!$P:$P,Data!Q$16) -> 0 | R23: =SUMIFS(SummerProvRep!$H:$H,SummerProvRep!$A:$A,Data!$A$23,SummerProvRep!$G:$G,"Coventry",SummerProvRep!$P:$P,Data!R$16) -> 0 | S23: =SUMIFS(SummerProvRep!$H:$H,SummerProvRep!$A:$A,Data!$A$23,SummerProvRep!$G:$G,"Coventry",SummerProvRep!$P:$P,Data!S$16) -> 0 | T23: =SUMIFS(SummerProvRep!$H:$H,SummerProvRep!$A:$A,Data!$A$23,SummerProvRep!$G:$G,"Coventry",SummerProvRep!$P:$P,Data!T$16) -> 0 | U23: =SUMIFS(SummerProvRep!$H:$H,SummerProvRep!$A:$A,Data!$A$23,SummerProvRep!$G:$G,"Coventry",SummerProvRep!$P:$P,Data!U$16) -> 0 | V23: 132.6060606 | W23: 499890.6695 | X23: =SUMIFS(SummerProvRep!$H:$H,SummerProvRep!$A:$A,Data!$A$23,SummerProvRep!$G:$G,"<>Coventry",SummerProvRep!$P:$P,Data!X$16) -> 0 | Y23: =SUMIFS(SummerProvRep!$H:$H,SummerProvRep!$A:$A,Data!$A$23,SummerProvRep!$G:$G,"<>Coventry",SummerProvRep!$P:$P,Data!Y$16) -> 0 | Z23: =SUMIFS(SummerProvRep!$H:$H,SummerProvRep!$A:$A,Data!$A$23,SummerProvRep!$G:$G,"<>Coventry",SummerProvRep!$P:$P,Data!Z$16) -> 0 | AA23: =SUMIFS(SummerProvRep!$H:$H,SummerProvRep!$A:$A,Data!$A$23,SummerProvRep!$G:$G,"<>Coventry",SummerProvRep!$P:$P,Data!AA$16) -> 0 | AB23: =SUMIFS(SummerProvRep!$H:$H,SummerProvRep!$A:$A,Data!$A$23,SummerProvRep!$G:$G,"<>Coventry",SummerProvRep!$P:$P,Data!AB$16) -> 0 | AC23: =SUMIFS(SummerProvRep!$H:$H,SummerProvRep!$A:$A,Data!$A$23,SummerProvRep!$G:$G,"<>Coventry",SummerProvRep!$P:$P,Data!AC$16) -> 0 | AD23: =SUMIFS(SummerProvRep!$H:$H,SummerProvRep!$A:$A,Data!$A$23,SummerProvRep!$G:$G,"<>Coventry",SummerProvRep!$P:$P,Data!AD$16) -> 132 | AE23: =SUMIFS(SummerProvRep!$H:$H,SummerProvRep!$A:$A,Data!$A$23,SummerProvRep!$G:$G,"<>Coventry",SummerProvRep!$P:$P,Data!AE$16) -> 0 | AF23: =SUMIFS(SummerProvRep!$H:$H,SummerProvRep!$A:$A,Data!$A$23,SummerProvRep!$G:$G,"<>Coventry",SummerProvRep!$P:$P,Data!AF$16) -> 0 | AG23: =SUMIFS(SummerProvRep!$H:$H,SummerProvRep!$A:$A,Data!$A$23,SummerProvRep!$G:$G,"<>Coventry",SummerProvRep!$P:$P,Data!AG$16) -> 0 | AH23: =SUMIFS(SummerProvRep!$H:$H,SummerProvRep!$A:$A,Data!$A$23,SummerProvRep!$G:$G,"<>Coventry",SummerProvRep!$P:$P,Data!AH$16) -> 0 | AI23: =SUMIFS(SummerProvRep!$H:$H,SummerProvRep!$A:$A,Data!$A$23,SummerProvRep!$G:$G,"<>Coventry",SummerProvRep!$P:$P,Data!AI$16) -> 0 | AJ23: =SUMIFS(SummerProvRep!$H:$H,SummerProvRep!$A:$A,Data!$A$23,SummerProvRep!$G:$G,"<>Coventry",SummerProvRep!$P:$P,Data!AJ$16) -> 0 | AK23: =SUMIFS(SummerProvRep!$H:$H,SummerProvRep!$A:$A,Data!$A$23,SummerProvRep!$G:$G,"<>Coventry",SummerProvRep!$P:$P,Data!AK$16) -> 0 | AL23: =SUMIFS(SummerProvRep!$H:$H,SummerProvRep!$A:$A,Data!$A$23,SummerProvRep!$G:$G,"<>Coventry",SummerProvRep!$P:$P,Data!AL$16) -> 0 | AM23: =SUMIFS(SummerProvRep!$H:$H,SummerProvRep!$A:$A,Data!$A$23,SummerProvRep!$G:$G,"<>Coventry",SummerProvRep!$P:$P,Data!AM$16) -> 0 | AN23: =SUMIFS(SummerProvRep!$H:$H,SummerProvRep!$A:$A,Data!$A$23,SummerProvRep!$G:$G,"<>Coventry",SummerProvRep!$P:$P,Data!AN$16) -> 0 | AO23: =SUMIFS(SummerProvRep!$H:$H,SummerProvRep!$A:$A,Data!$A$23,SummerProvRep!$G:$G,"<>Coventry",SummerProvRep!$P:$P,Data!AO$16) -> 0 | AP23: 2 | AQ23: 6709.402022 | AR23: 506600.0716 | AS23: 134.6060606 | AT23: 5.606060606 | AU23: 129 | AV23: =[11]Data!AR38 -> 112.8095238 | AW23: =[11]Data!$K$7 -> 122 | AX23: =AR23-SummerProvRep!I561 -> -0.1197172514
A24: 5 | B24: Tiverton | C24: 51.28205128 | D24: =SUMIFS(SummerProvRep!$H:$H,SummerProvRep!$A:$A,Data!$A$24,SummerProvRep!$G:$G,"Coventry",SummerProvRep!$P:$P,Data!D$16) -> 0 | E24: =SUMIFS(SummerProvRep!$H:$H,SummerProvRep!$A:$A,Data!$A$24,SummerProvRep!$G:$G,"Coventry",SummerProvRep!$P:$P,Data!E$16) -> 0 | F24: =SUMIFS(SummerProvRep!$H:$H,SummerProvRep!$A:$A,Data!$A$24,SummerProvRep!$G:$G,"Coventry",SummerProvRep!$P:$P,Data!F$16) -> 0 | G24: =SUMIFS(SummerProvRep!$H:$H,SummerProvRep!$A:$A,Data!$A$24,SummerProvRep!$G:$G,"Coventry",SummerProvRep!$P:$P,Data!G$16) -> 0 | H24: =SUMIFS(SummerProvRep!$H:$H,SummerProvRep!$A:$A,Data!$A$24,SummerProvRep!$G:$G,"Coventry",SummerProvRep!$P:$P,Data!H$16) -> 0 | I24: =SUMIFS(SummerProvRep!$H:$H,SummerProvRep!$A:$A,Data!$A$24,SummerProvRep!$G:$G,"Coventry",SummerProvRep!$P:$P,Data!I$16) -> 0 | J24: =SUMIFS(SummerProvRep!$H:$H,SummerProvRep!$A:$A,Data!$A$24,SummerProvRep!$G:$G,"Coventry",SummerProvRep!$P:$P,Data!J$16) -> 3419 | K24: =SUMIFS(SummerProvRep!$H:$H,SummerProvRep!$A:$A,Data!$A$24,SummerProvRep!$G:$G,"Coventry",SummerProvRep!$P:$P,Data!K$16) -> 1320 | L24: =SUMIFS(SummerProvRep!$H:$H,SummerProvRep!$A:$A,Data!$A$24,SummerProvRep!$G:$G,"Coventry",SummerProvRep!$P:$P,Data!L$16) -> 66 | M24: =SUMIFS(SummerProvRep!$H:$H,SummerProvRep!$A:$A,Data!$A$24,SummerProvRep!$G:$G,"Coventry",SummerProvRep!$P:$P,Data!M$16) -> 462 | N24: =SUMIFS(SummerProvRep!$H:$H,SummerProvRep!$A:$A,Data!$A$24,SummerProvRep!$G:$G,"Coventry",SummerProvRep!$P:$P,Data!N$16) -> 191 | O24: =SUMIFS(SummerProvRep!$H:$H,SummerProvRep!$A:$A,Data!$A$24,SummerProvRep!$G:$G,"Coventry",SummerProvRep!$P:$P,Data!O$16) -> 0 | P24: =SUMIFS(SummerProvRep!$H:$H,SummerProvRep!$A:$A,Data!$A$24,SummerProvRep!$G:$G,"Coventry",SummerProvRep!$P:$P,Data!P$16) -> 783 | Q24: =SUMIFS(SummerProvRep!$H:$H,SummerProvRep!$A:$A,Data!$A$24,SummerProvRep!$G:$G,"Coventry",SummerProvRep!$P:$P,Data!Q$16) -> 462 | R24: =SUMIFS(SummerProvRep!$H:$H,SummerProvRep!$A:$A,Data!$A$24,SummerProvRep!$G:$G,"Coventry",SummerProvRep!$P:$P,Data!R$16) -> 0 | S24: =SUMIFS(SummerProvRep!$H:$H,SummerProvRep!$A:$A,Data!$A$24,SummerProvRep!$G:$G,"Coventry",SummerProvRep!$P:$P,Data!S$16) -> 330 | T24: =SUMIFS(SummerProvRep!$H:$H,SummerProvRep!$A:$A,Data!$A$24,SummerProvRep!$G:$G,"Coventry",SummerProvRep!$P:$P,Data!T$16) -> 97 | U24: =SUMIFS(SummerProvRep!$H:$H,SummerProvRep!$A:$A,Data!$A$24,SummerProvRep!$G:$G,"Coventry",SummerProvRep!$P:$P,Data!U$16) -> 0 | V24: 108.030303 | W24: 434718.515 | X24: =SUMIFS(SummerProvRep!$H:$H,SummerProvRep!$A:$A,Data!$A$24,SummerProvRep!$G:$G,"<>Coventry",SummerProvRep!$P:$P,Data!X$16) -> 0 | Y24: =SUMIFS(SummerProvRep!$H:$H,SummerProvRep!$A:$A,Data!$A$24,SummerProvRep!$G:$G,"<>Coventry",SummerProvRep!$P:$P,Data!Y$16) -> 0 | Z24: =SUMIFS(SummerProvRep!$H:$H,SummerProvRep!$A:$A,Data!$A$24,SummerProvRep!$G:$G,"<>Coventry",SummerProvRep!$P:$P,Data!Z$16) -> 0 | AA24: =SUMIFS(SummerProvRep!$H:$H,SummerProvRep!$A:$A,Data!$A$24,SummerProvRep!$G:$G,"<>Coventry",SummerProvRep!$P:$P,Data!AA$16) -> 0 | AB24: =SUMIFS(SummerProvRep!$H:$H,SummerProvRep!$A:$A,Data!$A$24,SummerProvRep!$G:$G,"<>Coventry",SummerProvRep!$P:$P,Data!AB$16) -> 0 | AC24: =SUMIFS(SummerProvRep!$H:$H,SummerProvRep!$A:$A,Data!$A$24,SummerProvRep!$G:$G,"<>Coventry",SummerProvRep!$P:$P,Data!AC$16) -> 0 | AD24: =SUMIFS(SummerProvRep!$H:$H,SummerProvRep!$A:$A,Data!$A$24,SummerProvRep!$G:$G,"<>Coventry",SummerProvRep!$P:$P,Data!AD$16) -> 66 | AE24: =SUMIFS(SummerProvRep!$H:$H,SummerProvRep!$A:$A,Data!$A$24,SummerProvRep!$G:$G,"<>Coventry",SummerProvRep!$P:$P,Data!AE$16) -> 0 | AF24: =SUMIFS(SummerProvRep!$H:$H,SummerProvRep!$A:$A,Data!$A$24,SummerProvRep!$G:$G,"<>Coventry",SummerProvRep!$P:$P,Data!AF$16) -> 0 | AG24: =SUMIFS(SummerProvRep!$H:$H,SummerProvRep!$A:$A,Data!$A$24,SummerProvRep!$G:$G,"<>Coventry",SummerProvRep!$P:$P,Data!AG$16) -> 0 | AH24: =SUMIFS(SummerProvRep!$H:$H,SummerProvRep!$A:$A,Data!$A$24,SummerProvRep!$G:$G,"<>Coventry",SummerProvRep!$P:$P,Data!AH$16) -> 0 | AI24: =SUMIFS(SummerProvRep!$H:$H,SummerProvRep!$A:$A,Data!$A$24,SummerProvRep!$G:$G,"<>Coventry",SummerProvRep!$P:$P,Data!AI$16) -> 0 | AJ24: =SUMIFS(SummerProvRep!$H:$H,SummerProvRep!$A:$A,Data!$A$24,SummerProvRep!$G:$G,"<>Coventry",SummerProvRep!$P:$P,Data!AJ$16) -> 66 | AK24: =SUMIFS(SummerProvRep!$H:$H,SummerProvRep!$A:$A,Data!$A$24,SummerProvRep!$G:$G,"<>Coventry",SummerProvRep!$P:$P,Data!AK$16) -> 0 | AL24: =SUMIFS(SummerProvRep!$H:$H,SummerProvRep!$A:$A,Data!$A$24,SummerProvRep!$G:$G,"<>Coventry",SummerProvRep!$P:$P,Data!AL$16) -> 0 | AM24: =SUMIFS(SummerProvRep!$H:$H,SummerProvRep!$A:$A,Data!$A$24,SummerProvRep!$G:$G,"<>Coventry",SummerProvRep!$P:$P,Data!AM$16) -> 0 | AN24: =SUMIFS(SummerProvRep!$H:$H,SummerProvRep!$A:$A,Data!$A$24,SummerProvRep!$G:$G,"<>Coventry",SummerProvRep!$P:$P,Data!AN$16) -> 0 | AO24: =SUMIFS(SummerProvRep!$H:$H,SummerProvRep!$A:$A,Data!$A$24,SummerProvRep!$G:$G,"<>Coventry",SummerProvRep!$P:$P,Data!AO$16) -> 0 | AP24: 2 | AQ24: 8806.091501 | AR24: 443524.6065 | AS24: 110.030303 | AT24: -1.96969697 | AU24: 112 | AV24: =[11]Data!AR39 -> 105 | AW24: =[11]Data!$K$8 -> 104 | AX24: =AR24-SummerProvRep!I1377 -> -0.05976361019
A25: 6 | B25: Baginton Fields | C25: 51.28205128 | D25: =SUMIFS(SummerProvRep!$H:$H,SummerProvRep!$A:$A,Data!$A$25,SummerProvRep!$G:$G,"Coventry",SummerProvRep!$P:$P,Data!D$16) -> 0 | E25: =SUMIFS(SummerProvRep!$H:$H,SummerProvRep!$A:$A,Data!$A$25,SummerProvRep!$G:$G,"Coventry",SummerProvRep!$P:$P,Data!E$16) -> 0 | F25: =SUMIFS(SummerProvRep!$H:$H,SummerProvRep!$A:$A,Data!$A$25,SummerProvRep!$G:$G,"Coventry",SummerProvRep!$P:$P,Data!F$16) -> 0 | G25: =SUMIFS(SummerProvRep!$H:$H,SummerProvRep!$A:$A,Data!$A$25,SummerProvRep!$G:$G,"Coventry",SummerProvRep!$P:$P,Data!G$16) -> 66 | H25: =SUMIFS(SummerProvRep!$H:$H,SummerProvRep!$A:$A,Data!$A$25,SummerProvRep!$G:$G,"Coventry",SummerProvRep!$P:$P,Data!H$16) -> 0 | I25: =SUMIFS(SummerProvRep!$H:$H,SummerProvRep!$A:$A,Data!$A$25,SummerProvRep!$G:$G,"Coventry",SummerProvRep!$P:$P,Data!I$16) -> 0 | J25: =SUMIFS(SummerProvRep!$H:$H,SummerProvRep!$A:$A,Data!$A$25,SummerProvRep!$G:$G,"Coventry",SummerProvRep!$P:$P,Data!J$16) -> 1386 | K25: =SUMIFS(SummerProvRep!$H:$H,SummerProvRep!$A:$A,Data!$A$25,SummerProvRep!$G:$G,"Coventry",SummerProvRep!$P:$P,Data!K$16) -> 2508 | L25: =SUMIFS(SummerProvRep!$H:$H,SummerProvRep!$A:$A,Data!$A$25,SummerProvRep!$G:$G,"Coventry",SummerProvRep!$P:$P,Data!L$16) -> 132 | M25: =SUMIFS(SummerProvRep!$H:$H,SummerProvRep!$A:$A,Data!$A$25,SummerProvRep!$G:$G,"Coventry",SummerProvRep!$P:$P,Data!M$16) -> 66 | N25: =SUMIFS(SummerProvRep!$H:$H,SummerProvRep!$A:$A,Data!$A$25,SummerProvRep!$G:$G,"Coventry",SummerProvRep!$P:$P,Data!N$16) -> 390 | O25: =SUMIFS(SummerProvRep!$H:$H,SummerProvRep!$A:$A,Data!$A$25,SummerProvRep!$G:$G,"Coventry",SummerProvRep!$P:$P,Data!O$16) -> 0 | P25: =SUMIFS(SummerProvRep!$H:$H,SummerProvRep!$A:$A,Data!$A$25,SummerProvRep!$G:$G,"Coventry",SummerProvRep!$P:$P,Data!P$16) -> 1854 | Q25: =SUMIFS(SummerProvRep!$H:$H,SummerProvRep!$A:$A,Data!$A$25,SummerProvRep!$G:$G,"Coventry",SummerProvRep!$P:$P,Data!Q$16) -> 792 | R25: =SUMIFS(SummerProvRep!$H:$H,SummerProvRep!$A:$A,Data!$A$25,SummerProvRep!$G:$G,"Coventry",SummerProvRep!$P:$P,Data!R$16) -> 66 | S25: =SUMIFS(SummerProvRep!$H:$H,SummerProvRep!$A:$A,Data!$A$25,SummerProvRep!$G:$G,"Coventry",SummerProvRep!$P:$P,Data!S$16) -> 132 | T25: =SUMIFS(SummerProvRep!$H:$H,SummerProvRep!$A:$A,Data!$A$25,SummerProvRep!$G:$G,"Coventry",SummerProvRep!$P:$P,Data!T$16) -> 66 | U25: =SUMIFS(SummerProvRep!$H:$H,SummerProvRep!$A:$A,Data!$A$25,SummerProvRep!$G:$G,"Coventry",SummerProvRep!$P:$P,Data!U$16) -> 0 | V25: 113 | W25: 485836.2859 | X25: =SUMIFS(SummerProvRep!$H:$H,SummerProvRep!$A:$A,Data!$A$25,SummerProvRep!$G:$G,"<>Coventry",SummerProvRep!$P:$P,Data!X$16) -> 0 | Y25: =SUMIFS(SummerProvRep!$H:$H,SummerProvRep!$A:$A,Data!$A$25,SummerProvRep!$G:$G,"<>Coventry",SummerProvRep!$P:$P,Data!Y$16) -> 0 | Z25: =SUMIFS(SummerProvRep!$H:$H,SummerProvRep!$A:$A,Data!$A$25,SummerProvRep!$G:$G,"<>Coventry",SummerProvRep!$P:$P,Data!Z$16) -> 0 | AA25: =SUMIFS(SummerProvRep!$H:$H,SummerProvRep!$A:$A,Data!$A$25,SummerProvRep!$G:$G,"<>Coventry",SummerProvRep!$P:$P,Data!AA$16) -> 0 | AB25: =SUMIFS(SummerProvRep!$H:$H,SummerProvRep!$A:$A,Data!$A$25,SummerProvRep!$G:$G,"<>Coventry",SummerProvRep!$P:$P,Data!AB$16) -> 0 | AC25: =SUMIFS(SummerProvRep!$H:$H,SummerProvRep!$A:$A,Data!$A$25,SummerProvRep!$G:$G,"<>Coventry",SummerProvRep!$P:$P,Data!AC$16) -> 0 | AD25: =SUMIFS(SummerProvRep!$H:$H,SummerProvRep!$A:$A,Data!$A$25,SummerProvRep!$G:$G,"<>Coventry",SummerProvRep!$P:$P,Data!AD$16) -> 0 | AE25: =SUMIFS(SummerProvRep!$H:$H,SummerProvRep!$A:$A,Data!$A$25,SummerProvRep!$G:$G,"<>Coventry",SummerProvRep!$P:$P,Data!AE$16) -> 66 | AF25: =SUMIFS(SummerProvRep!$H:$H,SummerProvRep!$A:$A,Data!$A$25,SummerProvRep!$G:$G,"<>Coventry",SummerProvRep!$P:$P,Data!AF$16) -> 0 | AG25: =SUMIFS(SummerProvRep!$H:$H,SummerProvRep!$A:$A,Data!$A$25,SummerProvRep!$G:$G,"<>Coventry",SummerProvRep!$P:$P,Data!AG$16) -> 0 | AH25: =SUMIFS(SummerProvRep!$H:$H,SummerProvRep!$A:$A,Data!$A$25,SummerProvRep!$G:$G,"<>Coventry",SummerProvRep!$P:$P,Data!AH$16) -> 0 | AI25: =SUMIFS(SummerProvRep!$H:$H,SummerProvRep!$A:$A,Data!$A$25,SummerProvRep!$G:$G,"<>Coventry",SummerProvRep!$P:$P,Data!AI$16) -> 0 | AJ25: =SUMIFS(SummerProvRep!$H:$H,SummerProvRep!$A:$A,Data!$A$25,SummerProvRep!$G:$G,"<>Coventry",SummerProvRep!$P:$P,Data!AJ$16) -> 0 | AK25: =SUMIFS(SummerProvRep!$H:$H,SummerProvRep!$A:$A,Data!$A$25,SummerProvRep!$G:$G,"<>Coventry",SummerProvRep!$P:$P,Data!AK$16) -> 0 | AL25: =SUMIFS(SummerProvRep!$H:$H,SummerProvRep!$A:$A,Data!$A$25,SummerProvRep!$G:$G,"<>Coventry",SummerProvRep!$P:$P,Data!AL$16) -> 0 | AM25: =SUMIFS(SummerProvRep!$H:$H,SummerProvRep!$A:$A,Data!$A$25,SummerProvRep!$G:$G,"<>Coventry",SummerProvRep!$P:$P,Data!AM$16) -> 0 | AN25: =SUMIFS(SummerProvRep!$H:$H,SummerProvRep!$A:$A,Data!$A$25,SummerProvRep!$G:$G,"<>Coventry",SummerProvRep!$P:$P,Data!AN$16) -> 0 | AO25: =SUMIFS(SummerProvRep!$H:$H,SummerProvRep!$A:$A,Data!$A$25,SummerProvRep!$G:$G,"<>Coventry",SummerProvRep!$P:$P,Data!AO$16) -> 0 | AP25: 1 | AQ25: 3103.100141 | AR25: 488939.386 | AS25: 114 | AT25: -4 | AU25: 118 | AV25: =[11]Data!AR40 -> 113.015873 | AW25: =[11]Data!$K$9 -> 116 | AX25: =AR25-SummerProvRep!I166 -> -0.01182375388
A26: 7 | B26: Sherbourne Fields | C26: 51.28205128 | D26: =SUMIFS(SummerProvRep!$H:$H,SummerProvRep!$A:$A,Data!$A$26,SummerProvRep!$G:$G,"Coventry",SummerProvRep!$P:$P,Data!D$16) -> 0 | E26: =SUMIFS(SummerProvRep!$H:$H,SummerProvRep!$A:$A,Data!$A$26,SummerProvRep!$G:$G,"Coventry",SummerProvRep!$P:$P,Data!E$16) -> 0 | F26: =SUMIFS(SummerProvRep!$H:$H,SummerProvRep!$A:$A,Data!$A$26,SummerProvRep!$G:$G,"Coventry",SummerProvRep!$P:$P,Data!F$16) -> 66 | G26: =SUMIFS(SummerProvRep!$H:$H,SummerProvRep!$A:$A,Data!$A$26,SummerProvRep!$G:$G,"Coventry",SummerProvRep!$P:$P,Data!G$16) -> 198 | H26: =SUMIFS(SummerProvRep!$H:$H,SummerProvRep!$A:$A,Data!$A$26,SummerProvRep!$G:$G,"Coventry",SummerProvRep!$P:$P,Data!H$16) -> 0 | I26: =SUMIFS(SummerProvRep!$H:$H,SummerProvRep!$A:$A,Data!$A$26,SummerProvRep!$G:$G,"Coventry",SummerProvRep!$P:$P,Data!I$16) -> 132 | J26: =SUMIFS(SummerProvRep!$H:$H,SummerProvRep!$A:$A,Data!$A$26,SummerProvRep!$G:$G,"Coventry",SummerProvRep!$P:$P,Data!J$16) -> 3828 | K26: =SUMIFS(SummerProvRep!$H:$H,SummerProvRep!$A:$A,Data!$A$26,SummerProvRep!$G:$G,"Coventry",SummerProvRep!$P:$P,Data!K$16) -> 3630 | L26: =SUMIFS(SummerProvRep!$H:$H,SummerProvRep!$A:$A,Data!$A$26,SummerProvRep!$G:$G,"Coventry",SummerProvRep!$P:$P,Data!L$16) -> 0 | M26: =SUMIFS(SummerProvRep!$H:$H,SummerProvRep!$A:$A,Data!$A$26,SummerProvRep!$G:$G,"Coventry",SummerProvRep!$P:$P,Data!M$16) -> 1930 | N26: =SUMIFS(SummerProvRep!$H:$H,SummerProvRep!$A:$A,Data!$A$26,SummerProvRep!$G:$G,"Coventry",SummerProvRep!$P:$P,Data!N$16) -> 198 | O26: =SUMIFS(SummerProvRep!$H:$H,SummerProvRep!$A:$A,Data!$A$26,SummerProvRep!$G:$G,"Coventry",SummerProvRep!$P:$P,Data!O$16) -> 0 | P26: =SUMIFS(SummerProvRep!$H:$H,SummerProvRep!$A:$A,Data!$A$26,SummerProvRep!$G:$G,"Coventry",SummerProvRep!$P:$P,Data!P$16) -> 1584 | Q26: =SUMIFS(SummerProvRep!$H:$H,SummerProvRep!$A:$A,Data!$A$26,SummerProvRep!$G:$G,"Coventry",SummerProvRep!$P:$P,Data!Q$16) -> 1254 | R26: =SUMIFS(SummerProvRep!$H:$H,SummerProvRep!$A:$A,Data!$A$26,SummerProvRep!$G:$G,"Coventry",SummerProvRep!$P:$P,Data!R$16) -> 132 | S26: =SUMIFS(SummerProvRep!$H:$H,SummerProvRep!$A:$A,Data!$A$26,SummerProvRep!$G:$G,"Coventry",SummerProvRep!$P:$P,Data!S$16) -> 1188 | T26: =SUMIFS(SummerProvRep!$H:$H,SummerProvRep!$A:$A,Data!$A$26,SummerProvRep!$G:$G,"Coventry",SummerProvRep!$P:$P,Data!T$16) -> 0 | U26: =SUMIFS(SummerProvRep!$H:$H,SummerProvRep!$A:$A,Data!$A$26,SummerProvRep!$G:$G,"Coventry",SummerProvRep!$P:$P,Data!U$16) -> 0 | V26: 214.2424242 | W26: 846730.6649 | X26: =SUMIFS(SummerProvRep!$H:$H,SummerProvRep!$A:$A,Data!$A$26,SummerProvRep!$G:$G,"<>Coventry",SummerProvRep!$P:$P,Data!X$16) -> 0 | Y26: =SUMIFS(SummerProvRep!$H:$H,SummerProvRep!$A:$A,Data!$A$26,SummerProvRep!$G:$G,"<>Coventry",SummerProvRep!$P:$P,Data!Y$16) -> 0 | Z26: =SUMIFS(SummerProvRep!$H:$H,SummerProvRep!$A:$A,Data!$A$26,SummerProvRep!$G:$G,"<>Coventry",SummerProvRep!$P:$P,Data!Z$16) -> 0 | AA26: =SUMIFS(SummerProvRep!$H:$H,SummerProvRep!$A:$A,Data!$A$26,SummerProvRep!$G:$G,"<>Coventry",SummerProvRep!$P:$P,Data!AA$16) -> 0 | AB26: =SUMIFS(SummerProvRep!$H:$H,SummerProvRep!$A:$A,Data!$A$26,SummerProvRep!$G:$G,"<>Coventry",SummerProvRep!$P:$P,Data!AB$16) -> 0 | AC26: =SUMIFS(SummerProvRep!$H:$H,SummerProvRep!$A:$A,Data!$A$26,SummerProvRep!$G:$G,"<>Coventry",SummerProvRep!$P:$P,Data!AC$16) -> 0 | AD26: =SUMIFS(SummerProvRep!$H:$H,SummerProvRep!$A:$A,Data!$A$26,SummerProvRep!$G:$G,"<>Coventry",SummerProvRep!$P:$P,Data!AD$16) -> 66 | AE26: =SUMIFS(SummerProvRep!$H:$H,SummerProvRep!$A:$A,Data!$A$26,SummerProvRep!$G:$G,"<>Coventry",SummerProvRep!$P:$P,Data!AE$16) -> 0 | AF26: =SUMIFS(SummerProvRep!$H:$H,SummerProvRep!$A:$A,Data!$A$26,SummerProvRep!$G:$G,"<>Coventry",SummerProvRep!$P:$P,Data!AF$16) -> 0 | AG26: =SUMIFS(SummerProvRep!$H:$H,SummerProvRep!$A:$A,Data!$A$26,SummerProvRep!$G:$G,"<>Coventry",SummerProvRep!$P:$P,Data!AG$16) -> 66 | AH26: =SUMIFS(SummerProvRep!$H:$H,SummerProvRep!$A:$A,Data!$A$26,SummerProvRep!$G:$G,"<>Coventry",SummerProvRep!$P:$P,Data!AH$16) -> 0 | AI26: =SUMIFS(SummerProvRep!$H:$H,SummerProvRep!$A:$A,Data!$A$26,SummerProvRep!$G:$G,"<>Coventry",SummerProvRep!$P:$P,Data!AI$16) -> 0 | AJ26: =SUMIFS(SummerProvRep!$H:$H,SummerProvRep!$A:$A,Data!$A$26,SummerProvRep!$G:$G,"<>Coventry",SummerProvRep!$P:$P,Data!AJ$16) -> 0 | AK26: =SUMIFS(SummerProvRep!$H:$H,SummerProvRep!$A:$A,Data!$A$26,SummerProvRep!$G:$G,"<>Coventry",SummerProvRep!$P:$P,Data!AK$16) -> 66 | AL26: =SUMIFS(SummerProvRep!$H:$H,SummerProvRep!$A:$A,Data!$A$26,SummerProvRep!$G:$G,"<>Coventry",SummerProvRep!$P:$P,Data!AL$16) -> 0 | AM26: =SUMIFS(SummerProvRep!$H:$H,SummerProvRep!$A:$A,Data!$A$26,SummerProvRep!$G:$G,"<>Coventry",SummerProvRep!$P:$P,Data!AM$16) -> 66 | AN26: =SUMIFS(SummerProvRep!$H:$H,SummerProvRep!$A:$A,Data!$A$26,SummerProvRep!$G:$G,"<>Coventry",SummerProvRep!$P:$P,Data!AN$16) -> 0 | AO26: =SUMIFS(SummerProvRep!$H:$H,SummerProvRep!$A:$A,Data!$A$26,SummerProvRep!$G:$G,"<>Coventry",SummerProvRep!$P:$P,Data!AO$16) -> 0 | AP26: 4 | AQ26: 17612.17582 | AR26: 864342.8407 | AS26: 218.2424242 | AT26: -1.757575758 | AU26: 220 | AV26: =[11]Data!AR41 -> 198.3650794 | AW26: =[11]Data!$K$10 -> 200 | AX26: =AR26-SummerProvRep!I1218 -> -0.07746904634
A27: 8 | B27: Woodfield | C27: =10000/$A$15 -> 51.28205128 | D27: =SUMIFS(SummerProvRep!$H:$H,SummerProvRep!$A:$A,Data!$A$27,SummerProvRep!$G:$G,"Coventry",SummerProvRep!$P:$P,Data!D$16) -> 0 | E27: =SUMIFS(SummerProvRep!$H:$H,SummerProvRep!$A:$A,Data!$A$27,SummerProvRep!$G:$G,"Coventry",SummerProvRep!$P:$P,Data!E$16) -> 0 | F27: =SUMIFS(SummerProvRep!$H:$H,SummerProvRep!$A:$A,Data!$A$27,SummerProvRep!$G:$G,"Coventry",SummerProvRep!$P:$P,Data!F$16) -> 66 | G27: =SUMIFS(SummerProvRep!$H:$H,SummerProvRep!$A:$A,Data!$A$27,SummerProvRep!$G:$G,"Coventry",SummerProvRep!$P:$P,Data!G$16) -> 0 | H27: =SUMIFS(SummerProvRep!$H:$H,SummerProvRep!$A:$A,Data!$A$27,SummerProvRep!$G:$G,"Coventry",SummerProvRep!$P:$P,Data!H$16) -> 0 | I27: =SUMIFS(SummerProvRep!$H:$H,SummerProvRep!$A:$A,Data!$A$27,SummerProvRep!$G:$G,"Coventry",SummerProvRep!$P:$P,Data!I$16) -> 0 | J27: =SUMIFS(SummerProvRep!$H:$H,SummerProvRep!$A:$A,Data!$A$27,SummerProvRep!$G:$G,"Coventry",SummerProvRep!$P:$P,Data!J$16) -> 66 | K27: =SUMIFS(SummerProvRep!$H:$H,SummerProvRep!$A:$A,Data!$A$27,SummerProvRep!$G:$G,"Coventry",SummerProvRep!$P:$P,Data!K$16) -> 0 | L27: =SUMIFS(SummerProvRep!$H:$H,SummerProvRep!$A:$A,Data!$A$27,SummerProvRep!$G:$G,"Coventry",SummerProvRep!$P:$P,Data!L$16) -> 6580 | M27: =SUMIFS(SummerProvRep!$H:$H,SummerProvRep!$A:$A,Data!$A$27,SummerProvRep!$G:$G,"Coventry",SummerProvRep!$P:$P,Data!M$16) -> 0 | N27: =SUMIFS(SummerProvRep!$H:$H,SummerProvRep!$A:$A,Data!$A$27,SummerProvRep!$G:$G,"Coventry",SummerProvRep!$P:$P,Data!N$16) -> 857 | O27: =SUMIFS(SummerProvRep!$H:$H,SummerProvRep!$A:$A,Data!$A$27,SummerProvRep!$G:$G,"Coventry",SummerProvRep!$P:$P,Data!O$16) -> 0 | P27: =SUMIFS(SummerProvRep!$H:$H,SummerProvRep!$A:$A,Data!$A$27,SummerProvRep!$G:$G,"Coventry",SummerProvRep!$P:$P,Data!P$16) -> 0 | Q27: =SUMIFS(SummerProvRep!$H:$H,SummerProvRep!$A:$A,Data!$A$27,SummerProvRep!$G:$G,"Coventry",SummerProvRep!$P:$P,Data!Q$16) -> 0 | R27: =SUMIFS(SummerProvRep!$H:$H,SummerProvRep!$A:$A,Data!$A$27,SummerProvRep!$G:$G,"Coventry",SummerProvRep!$P:$P,Data!R$16) -> 1988 | S27: =SUMIFS(SummerProvRep!$H:$H,SummerProvRep!$A:$A,Data!$A$27,SummerProvRep!$G:$G,"Coventry",SummerProvRep!$P:$P,Data!S$16) -> 0 | T27: =SUMIFS(SummerProvRep!$H:$H,SummerProvRep!$A:$A,Data!$A$27,SummerProvRep!$G:$G,"Coventry",SummerProvRep!$P:$P,Data!T$16) -> 204 | U27: =SUMIFS(SummerProvRep!$H:$H,SummerProvRep!$A:$A,Data!$A$27,SummerProvRep!$G:$G,"Coventry",SummerProvRep!$P:$P,Data!U$16) -> 0 | V27: 147.8939394 | W27: 706308.2456 | X27: =SUMIFS(SummerProvRep!$H:$H,SummerProvRep!$A:$A,Data!$A$27,SummerProvRep!$G:$G,"<>Coventry",SummerProvRep!$P:$P,Data!X$16) -> 0 | Y27: =SUMIFS(SummerProvRep!$H:$H,SummerProvRep!$A:$A,Data!$A$27,SummerProvRep!$G:$G,"<>Coventry",SummerProvRep!$P:$P,Data!Y$16) -> 0 | Z27: =SUMIFS(SummerProvRep!$H:$H,SummerProvRep!$A:$A,Data!$A$27,SummerProvRep!$G:$G,"<>Coventry",SummerProvRep!$P:$P,Data!Z$16) -> 0 | AA27: =SUMIFS(SummerProvRep!$H:$H,SummerProvRep!$A:$A,Data!$A$27,SummerProvRep!$G:$G,"<>Coventry",SummerProvRep!$P:$P,Data!AA$16) -> 0 | AB27: =SUMIFS(SummerProvRep!$H:$H,SummerProvRep!$A:$A,Data!$A$27,SummerProvRep!$G:$G,"<>Coventry",SummerProvRep!$P:$P,Data!AB$16) -> 0 | AC27: =SUMIFS(SummerProvRep!$H:$H,SummerProvRep!$A:$A,Data!$A$27,SummerProvRep!$G:$G,"<>Coventry",SummerProvRep!$P:$P,Data!AC$16) -> 0 | AD27: =SUMIFS(SummerProvRep!$H:$H,SummerProvRep!$A:$A,Data!$A$27,SummerProvRep!$G:$G,"<>Coventry",SummerProvRep!$P:$P,Data!AD$16) -> 0 | AE27: =SUMIFS(SummerProvRep!$H:$H,SummerProvRep!$A:$A,Data!$A$27,SummerProvRep!$G:$G,"<>Coventry",SummerProvRep!$P:$P,Data!AE$16) -> 0 | AF27: =SUMIFS(SummerProvRep!$H:$H,SummerProvRep!$A:$A,Data!$A$27,SummerProvRep!$G:$G,"<>Coventry",SummerProvRep!$P:$P,Data!AF$16) -> 66 | AG27: =SUMIFS(SummerProvRep!$H:$H,SummerProvRep!$A:$A,Data!$A$27,SummerProvRep!$G:$G,"<>Coventry",SummerProvRep!$P:$P,Data!AG$16) -> 0 | AH27: =SUMIFS(SummerProvRep!$H:$H,SummerProvRep!$A:$A,Data!$A$27,SummerProvRep!$G:$G,"<>Coventry",SummerProvRep!$P:$P,Data!AH$16) -> 0 | AI27: =SUMIFS(SummerProvRep!$H:$H,SummerProvRep!$A:$A,Data!$A$27,SummerProvRep!$G:$G,"<>Coventry",SummerProvRep!$P:$P,Data!AI$16) -> 0 | AJ27: =SUMIFS(SummerProvRep!$H:$H,SummerProvRep!$A:$A,Data!$A$27,SummerProvRep!$G:$G,"<>Coventry",SummerProvRep!$P:$P,Data!AJ$16) -> 0 | AK27: =SUMIFS(SummerProvRep!$H:$H,SummerProvRep!$A:$A,Data!$A$27,SummerProvRep!$G:$G,"<>Coventry",SummerProvRep!$P:$P,Data!AK$16) -> 0 | AL27: =SUMIFS(SummerProvRep!$H:$H,SummerProvRep!$A:$A,Data!$A$27,SummerProvRep!$G:$G,"<>Coventry",SummerProvRep!$P:$P,Data!AL$16) -> 0 | AM27: =SUMIFS(SummerProvRep!$H:$H,SummerProvRep!$A:$A,Data!$A$27,SummerProvRep!$G:$G,"<>Coventry",SummerProvRep!$P:$P,Data!AM$16) -> 0 | AN27: =SUMIFS(SummerProvRep!$H:$H,SummerProvRep!$A:$A,Data!$A$27,SummerProvRep!$G:$G,"<>Coventry",SummerProvRep!$P:$P,Data!AN$16) -> 0 | AO27: =SUMIFS(SummerProvRep!$H:$H,SummerProvRep!$A:$A,Data!$A$27,SummerProvRep!$G:$G,"<>Coventry",SummerProvRep!$P:$P,Data!AO$16) -> 0 | AP27: 1 | AQ27: 4193.375366 | AR27: 710501.6209 | AS27: =AP27+V27 -> 148.8939394 | AT27: -6.106060606 | AU27: 155 | AV27: =[11]Data!AR42 -> 148.2063492 | AW27: =[11]Data!$K$11 -> 152 | AX27: =AR27-SummerProvRep!I1594 -> -0.07003355888
AR28: =SUM(AR20:AR27) -> 4665719.383
B31: Autumn Term 2022
A32: =[10]Sheet1!$C$3 -> 70 | B32: School | AY32: 71
A33: 1 | B33: Castle Wood | C33: =10000/$A$15 -> 51.28205128 | D33: =SUMIFS(AutumnProvRep!$H:$H,AutumnProvRep!$A:$A,Data!$A$20,AutumnProvRep!$G:$G,"Coventry",AutumnProvRep!$P:$P,Data!D$16)/$AY$32*$A$32 -> 0 | E33: =SUMIFS(AutumnProvRep!$H:$H,AutumnProvRep!$A:$A,Data!$A$20,AutumnProvRep!$G:$G,"Coventry",AutumnProvRep!$P:$P,Data!E$16)/$AY$32*$A$32 -> 0 | F33: =SUMIFS(AutumnProvRep!$H:$H,AutumnProvRep!$A:$A,Data!$A$20,AutumnProvRep!$G:$G,"Coventry",AutumnProvRep!$P:$P,Data!F$16)/$AY$32*$A$32 -> 0 | G33: =SUMIFS(AutumnProvRep!$H:$H,AutumnProvRep!$A:$A,Data!$A$20,AutumnProvRep!$G:$G,"Coventry",AutumnProvRep!$P:$P,Data!G$16)/$AY$32*$A$32 -> 0 | H33: =SUMIFS(AutumnProvRep!$H:$H,AutumnProvRep!$A:$A,Data!$A$20,AutumnProvRep!$G:$G,"Coventry",AutumnProvRep!$P:$P,Data!H$16)/$AY$32*$A$32 -> 0 | I33: =SUMIFS(AutumnProvRep!$H:$H,AutumnProvRep!$A:$A,Data!$A$20,AutumnProvRep!$G:$G,"Coventry",AutumnProvRep!$P:$P,Data!I$16)/$AY$32*$A$32 -> 70 | J33: =SUMIFS(AutumnProvRep!$H:$H,AutumnProvRep!$A:$A,Data!$A$20,AutumnProvRep!$G:$G,"Coventry",AutumnProvRep!$P:$P,Data!J$16)/$AY$32*$A$32 -> 5810 | K33: =SUMIFS(AutumnProvRep!$H:$H,AutumnProvRep!$A:$A,Data!$A$20,AutumnProvRep!$G:$G,"Coventry",AutumnProvRep!$P:$P,Data!K$16)/$AY$32*$A$32 -> 1470 | L33: =SUMIFS(AutumnProvRep!$H:$H,AutumnProvRep!$A:$A,Data!$A$20,AutumnProvRep!$G:$G,"Coventry",AutumnProvRep!$P:$P,Data!L$16)/$AY$32*$A$32 -> 0 | M33: =SUMIFS(AutumnProvRep!$H:$H,AutumnProvRep!$A:$A,Data!$A$20,AutumnProvRep!$G:$G,"Coventry",AutumnProvRep!$P:$P,Data!M$16)/$AY$32*$A$32 -> 350 | N33: =SUMIFS(AutumnProvRep!$H:$H,AutumnProvRep!$A:$A,Data!$A$20,AutumnProvRep!$G:$G,"Coventry",AutumnProvRep!$P:$P,Data!N$16)/$AY$32*$A$32 -> 424.9295775 | O33: =SUMIFS(AutumnProvRep!$H:$H,AutumnProvRep!$A:$A,Data!$A$20,AutumnProvRep!$G:$G,"Coventry",AutumnProvRep!$P:$P,Data!O$16)/$AY$32*$A$32 -> 0 | P33: =SUMIFS(AutumnProvRep!$H:$H,AutumnProvRep!$A:$A,Data!$A$20,AutumnProvRep!$G:$G,"Coventry",AutumnProvRep!$P:$P,Data!P$16)/$AY$32*$A$32 -> 1808.169014 | Q33: =SUMIFS(AutumnProvRep!$H:$H,AutumnProvRep!$A:$A,Data!$A$20,AutumnProvRep!$G:$G,"Coventry",AutumnProvRep!$P:$P,Data!Q$16)/$AY$32*$A$32 -> 840 | R33: =SUMIFS(AutumnProvRep!$H:$H,AutumnProvRep!$A:$A,Data!$A$20,AutumnProvRep!$G:$G,"Coventry",AutumnProvRep!$P:$P,Data!R$16)/$AY$32*$A$32 -> 0 | S33: =SUMIFS(AutumnProvRep!$H:$H,AutumnProvRep!$A:$A,Data!$A$20,AutumnProvRep!$G:$G,"Coventry",AutumnProvRep!$P:$P,Data!S$16)/$AY$32*$A$32 -> 299.7183099 | T33: =SUMIFS(AutumnProvRep!$H:$H,AutumnProvRep!$A:$A,Data!$A$20,AutumnProvRep!$G:$G,"Coventry",AutumnProvRep!$P:$P,Data!T$16)/$AY$32*$A$32 -> 0 | U33: =SUMIFS(AutumnProvRep!$H:$H,AutumnProvRep!$A:$A,Data!$A$20,AutumnProvRep!$G:$G,"Coventry",AutumnProvRep!$P:$P,Data!U$16)/$AY$32*$A$32 -> 0 | V33: =SUM(D33:U33)/$A$32 -> 158.1830986 | W33: =SUMPRODUCT(D33:U33,$V$6:$AM$6)/$A$15 -> 670024.9601 | X33: =SUMIFS(AutumnProvRep!$H:$H,AutumnProvRep!$A:$A,Data!$A$20,AutumnProvRep!$G:$G,"<>Coventry",AutumnProvRep!$P:$P,Data!X$16)/$AY$32*$A$32 -> 0 | Y33: =SUMIFS(AutumnProvRep!$H:$H,AutumnProvRep!$A:$A,Data!$A$20,AutumnProvRep!$G:$G,"<>Coventry",AutumnProvRep!$P:$P,Data!Y$16)/$AY$32*$A$32 -> 0 | Z33: =SUMIFS(AutumnProvRep!$H:$H,AutumnProvRep!$A:$A,Data!$A$20,AutumnProvRep!$G:$G,"<>Coventry",AutumnProvRep!$P:$P,Data!Z$16)/$AY$32*$A$32 -> 0 | AA33: =SUMIFS(AutumnProvRep!$H:$H,AutumnProvRep!$A:$A,Data!$A$20,AutumnProvRep!$G:$G,"<>Coventry",AutumnProvRep!$P:$P,Data!AA$16)/$AY$32*$A$32 -> 0 | AB33: =SUMIFS(AutumnProvRep!$H:$H,AutumnProvRep!$A:$A,Data!$A$20,AutumnProvRep!$G:$G,"<>Coventry",AutumnProvRep!$P:$P,Data!AB$16)/$AY$32*$A$32 -> 0 | AC33: =SUMIFS(AutumnProvRep!$H:$H,AutumnProvRep!$A:$A,Data!$A$20,AutumnProvRep!$G:$G,"<>Coventry",AutumnProvRep!$P:$P,Data!AC$16)/$AY$32*$A$32 -> 0 | AD33: =SUMIFS(AutumnProvRep!$H:$H,AutumnProvRep!$A:$A,Data!$A$20,AutumnProvRep!$G:$G,"<>Coventry",AutumnProvRep!$P:$P,Data!AD$16)/$AY$32*$A$32 -> 70 | AE33: =SUMIFS(AutumnProvRep!$H:$H,AutumnProvRep!$A:$A,Data!$A$20,AutumnProvRep!$G:$G,"<>Coventry",AutumnProvRep!$P:$P,Data!AE$16)/$AY$32*$A$32 -> 0 | AF33: =SUMIFS(AutumnProvRep!$H:$H,AutumnProvRep!$A:$A,Data!$A$20,AutumnProvRep!$G:$G,"<>Coventry",AutumnProvRep!$P:$P,Data!AF$16)/$AY$32*$A$32 -> 0 | AG33: =SUMIFS(AutumnProvRep!$H:$H,AutumnProvRep!$A:$A,Data!$A$20,AutumnProvRep!$G:$G,"<>Coventry",AutumnProvRep!$P:$P,Data!AG$16)/$AY$32*$A$32 -> 0 | AH33: =SUMIFS(AutumnProvRep!$H:$H,AutumnProvRep!$A:$A,Data!$A$20,AutumnProvRep!$G:$G,"<>Coventry",AutumnProvRep!$P:$P,Data!AH$16)/$AY$32*$A$32 -> 0 | AI33: =SUMIFS(AutumnProvRep!$H:$H,AutumnProvRep!$A:$A,Data!$A$20,AutumnProvRep!$G:$G,"<>Coventry",AutumnProvRep!$P:$P,Data!AI$16)/$AY$32*$A$32 -> 0 | AJ33: =SUMIFS(AutumnProvRep!$H:$H,AutumnProvRep!$A:$A,Data!$A$20,AutumnProvRep!$G:$G,"<>Coventry",AutumnProvRep!$P:$P,Data!AJ$16)/$AY$32*$A$32 -> 0 | AK33: =SUMIFS(AutumnProvRep!$H:$H,AutumnProvRep!$A:$A,Data!$A$20,AutumnProvRep!$G:$G,"<>Coventry",AutumnProvRep!$P:$P,Data!AK$16)/$AY$32*$A$32 -> 0 | AL33: =SUMIFS(AutumnProvRep!$H:$H,AutumnProvRep!$A:$A,Data!$A$20,AutumnProvRep!$G:$G,"<>Coventry",AutumnProvRep!$P:$P,Data!AL$16)/$AY$32*$A$32 -> 0 | AM33: =SUMIFS(AutumnProvRep!$H:$H,AutumnProvRep!$A:$A,Data!$A$20,AutumnProvRep!$G:$G,"<>Coventry",AutumnProvRep!$P:$P,Data!AM$16)/$AY$32*$A$32 -> 0 | AN33: =SUMIFS(AutumnProvRep!$H:$H,AutumnProvRep!$A:$A,Data!$A$20,AutumnProvRep!$G:$G,"<>Coventry",AutumnProvRep!$P:$P,Data!AN$16)/$AY$32*$A$32 -> 0 | AO33: =SUMIFS(AutumnProvRep!$H:$H,AutumnProvRep!$A:$A,Data!$A$20,AutumnProvRep!$G:$G,"<>Coventry",AutumnProvRep!$P:$P,Data!AO$16)/$AY$32*$A$32 -> 0 | AP33: =SUM(X33:AO33)/$A$32 -> 1 | AQ33: =SUMPRODUCT(X33:AO33,$V$4:$AM$4)/$A$15 -> 3558.016224 | AR33: =W33+AQ33 -> 673582.9763 | AS33: =AP33+V33 -> 159.1830986 | AT33: =AS33-AU33 -> -0.8169014085 | AU33: =M4 -> 160 | AV33: =[11]Data!AR47 -> 159.1830986 | AW33: =[11]Data!$M$4 -> 160
A34: 2 | B34: Kingsbury | C34: =10000/$A$15 -> 51.28205128 | D34: =SUMIFS(AutumnProvRep!$H:$H,AutumnProvRep!$A:$A,Data!$A$21,AutumnProvRep!$G:$G,"Coventry",AutumnProvRep!$P:$P,Data!D$16)/$AY$32*$A$32 -> 0 | E34: =SUMIFS(AutumnProvRep!$H:$H,AutumnProvRep!$A:$A,Data!$A$21,AutumnProvRep!$G:$G,"Coventry",AutumnProvRep!$P:$P,Data!E$16)/$AY$32*$A$32 -> 0 | F34: =BW34+SUMIFS(AutumnProvRep!$H:$H,AutumnProvRep!$A:$A,Data!$A$21,AutumnProvRep!$G:$G,"Coventry",AutumnProvRep!$P:$P,Data!F$16)/$AY$32*$A$32 -> 75.0528169 | G34: =BX34+SUMIFS(AutumnProvRep!$H:$H,AutumnProvRep!$A:$A,Data!$A$21,AutumnProvRep!$G:$G,"Coventry",AutumnProvRep!$P:$P,Data!G$16)/$AY$32*$A$32 -> 75.0528169 | H34: =BY34+SUMIFS(AutumnProvRep!$H:$H,AutumnProvRep!$A:$A,Data!$A$21,AutumnProvRep!$G:$G,"Coventry",AutumnProvRep!$P:$P,Data!H$16)/$AY$32*$A$32 -> 0 | I34: =BZ34+SUMIFS(AutumnProvRep!$H:$H,AutumnProvRep!$A:$A,Data!$A$21,AutumnProvRep!$G:$G,"Coventry",AutumnProvRep!$P:$P,Data!I$16)/$AY$32*$A$32 -> 0 | J34: =CA34+SUMIFS(AutumnProvRep!$H:$H,AutumnProvRep!$A:$A,Data!$A$21,AutumnProvRep!$G:$G,"Coventry",AutumnProvRep!$P:$P,Data!J$16)/$AY$32*$A$32 -> 3780.124975 | K34: =CB34+SUMIFS(AutumnProvRep!$H:$H,AutumnProvRep!$A:$A,Data!$A$21,AutumnProvRep!$G:$G,"Coventry",AutumnProvRep!$P:$P,Data!K$16)/$AY$32*$A$32 -> 1072.938157 | L34: =CC34+SUMIFS(AutumnProvRep!$H:$H,AutumnProvRep!$A:$A,Data!$A$21,AutumnProvRep!$G:$G,"Coventry",AutumnProvRep!$P:$P,Data!L$16)/$AY$32*$A$32 -> 0 | M34: =CD34+SUMIFS(AutumnProvRep!$H:$H,AutumnProvRep!$A:$A,Data!$A$21,AutumnProvRep!$G:$G,"Coventry",AutumnProvRep!$P:$P,Data!M$16)/$AY$32*$A$32 -> 0 | N34: =CE34+SUMIFS(AutumnProvRep!$H:$H,AutumnProvRep!$A:$A,Data!$A$21,AutumnProvRep!$G:$G,"Coventry",AutumnProvRep!$P:$P,Data!N$16)/$AY$32*$A$32 -> 237.8434338 | O34: =CF34+SUMIFS(AutumnProvRep!$H:$H,AutumnProvRep!$A:$A,Data!$A$21,AutumnProvRep!$G:$G,"Coventry",AutumnProvRep!$P:$P,Data!O$16)/$AY$32*$A$32 -> 0 | P34: =CG34+SUMIFS(AutumnProvRep!$H:$H,AutumnProvRep!$A:$A,Data!$A$21,AutumnProvRep!$G:$G,"Coventry",AutumnProvRep!$P:$P,Data!P$16)/$AY$32*$A$32 -> 1289.639952 | Q34: =CH34+SUMIFS(AutumnProvRep!$H:$H,AutumnProvRep!$A:$A,Data!$A$21,AutumnProvRep!$G:$G,"Coventry",AutumnProvRep!$P:$P,Data!Q$16)/$AY$32*$A$32 -> 75.0528169 | R34: =CI34+SUMIFS(AutumnProvRep!$H:$H,AutumnProvRep!$A:$A,Data!$A$21,AutumnProvRep!$G:$G,"Coventry",AutumnProvRep!$P:$P,Data!R$16)/$AY$32*$A$32 -> 0 | S34: =CJ34+SUMIFS(AutumnProvRep!$H:$H,AutumnProvRep!$A:$A,Data!$A$21,AutumnProvRep!$G:$G,"Coventry",AutumnProvRep!$P:$P,Data!S$16)/$AY$32*$A$32 -> 0 | T34: =CK34+SUMIFS(AutumnProvRep!$H:$H,AutumnProvRep!$A:$A,Data!$A$21,AutumnProvRep!$G:$G,"Coventry",AutumnProvRep!$P:$P,Data!T$16)/$AY$32*$A$32 -> 38.05494941 | U34: =SUMIFS(AutumnProvRep!$H:$H,AutumnProvRep!$A:$A,Data!$A$21,AutumnProvRep!$G:$G,"Coventry",AutumnProvRep!$P:$P,Data!U$16)/$AY$32*$A$32 -> 0 | V34: =SUM(D34:U34)/$A$32 -> 94.91085598 | W34: 390716.5191 | X34: =SUMIFS(AutumnProvRep!$H:$H,AutumnProvRep!$A:$A,Data!$A$21,AutumnProvRep!$G:$G,"<>Coventry",AutumnProvRep!$P:$P,Data!X$16)/$AY$32*$A$32 -> 0 | Y34: =SUMIFS(AutumnProvRep!$H:$H,AutumnProvRep!$A:$A,Data!$A$21,AutumnProvRep!$G:$G,"<>Coventry",AutumnProvRep!$P:$P,Data!Y$16)/$AY$32*$A$32 -> 0 | Z34: =SUMIFS(AutumnProvRep!$H:$H,AutumnProvRep!$A:$A,Data!$A$21,AutumnProvRep!$G:$G,"<>Coventry",AutumnProvRep!$P:$P,Data!Z$16)/$AY$32*$A$32 -> 0 | AA34: =SUMIFS(AutumnProvRep!$H:$H,AutumnProvRep!$A:$A,Data!$A$21,AutumnProvRep!$G:$G,"<>Coventry",AutumnProvRep!$P:$P,Data!AA$16)/$AY$32*$A$32 -> 0 | AB34: =SUMIFS(AutumnProvRep!$H:$H,AutumnProvRep!$A:$A,Data!$A$21,AutumnProvRep!$G:$G,"<>Coventry",AutumnProvRep!$P:$P,Data!AB$16)/$AY$32*$A$32 -> 0 | AC34: =SUMIFS(AutumnProvRep!$H:$H,AutumnProvRep!$A:$A,Data!$A$21,AutumnProvRep!$G:$G,"<>Coventry",AutumnProvRep!$P:$P,Data!AC$16)/$AY$32*$A$32 -> 0 | AD34: =SUMIFS(AutumnProvRep!$H:$H,AutumnProvRep!$A:$A,Data!$A$21,AutumnProvRep!$G:$G,"<>Coventry",AutumnProvRep!$P:$P,Data!AD$16)/$AY$32*$A$32 -> 0 | AE34: =SUMIFS(AutumnProvRep!$H:$H,AutumnProvRep!$A:$A,Data!$A$21,AutumnProvRep!$G:$G,"<>Coventry",AutumnProvRep!$P:$P,Data!AE$16)/$AY$32*$A$32 -> 70 | AF34: =SUMIFS(AutumnProvRep!$H:$H,AutumnProvRep!$A:$A,Data!$A$21,AutumnProvRep!$G:$G,"<>Coventry",AutumnProvRep!$P:$P,Data!AF$16)/$AY$32*$A$32 -> 0 | AG34: =SUMIFS(AutumnProvRep!$H:$H,AutumnProvRep!$A:$A,Data!$A$21,AutumnProvRep!$G:$G,"<>Coventry",AutumnProvRep!$P:$P,Data!AG$16)/$AY$32*$A$32 -> 0 | AH34: =SUMIFS(AutumnProvRep!$H:$H,AutumnProvRep!$A:$A,Data!$A$21,AutumnProvRep!$G:$G,"<>Coventry",AutumnProvRep!$P:$P,Data!AH$16)/$AY$32*$A$32 -> 0 | AI34: =SUMIFS(AutumnProvRep!$H:$H,AutumnProvRep!$A:$A,Data!$A$21,AutumnProvRep!$G:$G,"<>Coventry",AutumnProvRep!$P:$P,Data!AI$16)/$AY$32*$A$32 -> 0 | AJ34: =SUMIFS(AutumnProvRep!$H:$H,AutumnProvRep!$A:$A,Data!$A$21,AutumnProvRep!$G:$G,"<>Coventry",AutumnProvRep!$P:$P,Data!AJ$16)/$AY$32*$A$32 -> 70 | AK34: =SUMIFS(AutumnProvRep!$H:$H,AutumnProvRep!$A:$A,Data!$A$21,AutumnProvRep!$G:$G,"<>Coventry",AutumnProvRep!$P:$P,Data!AK$16)/$AY$32*$A$32 -> 0 | AL34: =SUMIFS(AutumnProvRep!$H:$H,AutumnProvRep!$A:$A,Data!$A$21,AutumnProvRep!$G:$G,"<>Coventry",AutumnProvRep!$P:$P,Data!AL$16)/$AY$32*$A$32 -> 0 | AM34: =SUMIFS(AutumnProvRep!$H:$H,AutumnProvRep!$A:$A,Data!$A$21,AutumnProvRep!$G:$G,"<>Coventry",AutumnProvRep!$P:$P,Data!AM$16)/$AY$32*$A$32 -> 0 | AN34: =SUMIFS(AutumnProvRep!$H:$H,AutumnProvRep!$A:$A,Data!$A$21,AutumnProvRep!$G:$G,"<>Coventry",AutumnProvRep!$P:$P,Data!AN$16)/$AY$32*$A$32 -> 0 | AO34: =SUMIFS(AutumnProvRep!$H:$H,AutumnProvRep!$A:$A,Data!$A$21,AutumnProvRep!$G:$G,"<>Coventry",AutumnProvRep!$P:$P,Data!AO$16)/$AY$32*$A$32 -> 0 | AP34: =SUM(X34:AO34)/$A$32 -> 2 | AQ34: 9072.944608 | AR34: =W34+AQ34 -> 399789.4637 | AS34: =AP34+V34 -> 96.91085598 | AT34: -3.089144019 | AU34: 100 | AV34: =[11]Data!AR48 -> 90.52112676 | AW34: =[11]Data!$M$5 -> 92 | AZ34: =(AU34-AV34)*$A$32 -> 663.5211268 | BA34: =AS34*$A$32 -> 6783.759919 | BB34: =$AZ$35/$BA$35*D34 -> 0 | BC34: =$AZ$35/$BA$35*E34 -> 0 | BD34: =$AZ$35/$BA$35*F34 -> 5.417544882 | BE34: =$AZ$35/$BA$35*G34 -> 5.417544882 | BF34: =$AZ$35/$BA$35*H34 -> 0 | BG34: =$AZ$35/$BA$35*I34 -> 0 | BH34: =$AZ$35/$BA$35*J34 -> 272.8611338 | BI34: =$AZ$35/$BA$35*K34 -> 77.44800078 | BJ34: =$AZ$35/$BA$35*L34 -> 0 | BK34: =$AZ$35/$BA$35*M34 -> 0 | BL34: =$AZ$35/$BA$35*N34 -> 17.16827603 | BM34: =$AZ$35/$BA$35*O34 -> 0 | BN34: =$AZ$35/$BA$35*P34 -> 93.09020783 | BO34: =$AZ$35/$BA$35*Q34 -> 5.417544882 | BP34: =$AZ$35/$BA$35*R34 -> 0 | BQ34: =$AZ$35/$BA$35*S34 -> 0 | BR34: =$AZ$35/$BA$35*T34 -> 2.746924166 | BS34: =$AZ$35/$BA$35*U34 -> 0 | BU34: 0 | BV34: 0 | BW34: 5.052816901 | BX34: 5.052816901 | BY34: 0 | BZ34: 0 | CA34: 254.4911724 | CB34: 72.23393176 | CC34: 0 | CD34: 0 | CE34: 16.01244793 | CF34: 0 | CG34: 86.82305098 | CH34: 5.052816901 | CI34: 0 | CJ34: 0 | CK34: 2.561991668 | CL34: 0
A35: 3 | B35: RiverBank | C35: 51.28205128 | D35: =BU35+SUMIFS(AutumnProvRep!$H:$H,AutumnProvRep!$A:$A,Data!$A$22,AutumnProvRep!$G:$G,"Coventry",AutumnProvRep!$P:$P,Data!D$16)/$AY$32*$A$32 -> 0 | E35: =BV35+SUMIFS(AutumnProvRep!$H:$H,AutumnProvRep!$A:$A,Data!$A$22,AutumnProvRep!$G:$G,"Coventry",AutumnProvRep!$P:$P,Data!E$16)/$AY$32*$A$32 -> 0 | F35: =BW35+SUMIFS(AutumnProvRep!$H:$H,AutumnProvRep!$A:$A,Data!$A$22,AutumnProvRep!$G:$G,"Coventry",AutumnProvRep!$P:$P,Data!F$16)/$AY$32*$A$32 -> 1056.242884 | G35: =BX35+SUMIFS(AutumnProvRep!$H:$H,AutumnProvRep!$A:$A,Data!$A$22,AutumnProvRep!$G:$G,"Coventry",AutumnProvRep!$P:$P,Data!G$16)/$AY$32*$A$32 -> 2187.931689 | H35: =BY35+SUMIFS(AutumnProvRep!$H:$H,AutumnProvRep!$A:$A,Data!$A$22,AutumnProvRep!$G:$G,"Coventry",AutumnProvRep!$P:$P,Data!H$16)/$AY$32*$A$32 -> 150.8918406 | I35: =BZ35+SUMIFS(AutumnProvRep!$H:$H,AutumnProvRep!$A:$A,Data!$A$22,AutumnProvRep!$G:$G,"Coventry",AutumnProvRep!$P:$P,Data!I$16)/$AY$32*$A$32 -> 75.4459203 | J35: =CA35+SUMIFS(AutumnProvRep!$H:$H,AutumnProvRep!$A:$A,Data!$A$22,AutumnProvRep!$G:$G,"Coventry",AutumnProvRep!$P:$P,Data!J$16)/$AY$32*$A$32 -> 3319.620493 | K35: =CB35+SUMIFS(AutumnProvRep!$H:$H,AutumnProvRep!$A:$A,Data!$A$22,AutumnProvRep!$G:$G,"Coventry",AutumnProvRep!$P:$P,Data!K$16)/$AY$32*$A$32 -> 3947.628083 | L35: =CC35+SUMIFS(AutumnProvRep!$H:$H,AutumnProvRep!$A:$A,Data!$A$22,AutumnProvRep!$G:$G,"Coventry",AutumnProvRep!$P:$P,Data!L$16)/$AY$32*$A$32 -> 226.3377609 | M35: =CD35+SUMIFS(AutumnProvRep!$H:$H,AutumnProvRep!$A:$A,Data!$A$22,AutumnProvRep!$G:$G,"Coventry",AutumnProvRep!$P:$P,Data!M$16)/$AY$32*$A$32 -> 603.5673624 | N35: =CE35+SUMIFS(AutumnProvRep!$H:$H,AutumnProvRep!$A:$A,Data!$A$22,AutumnProvRep!$G:$G,"Coventry",AutumnProvRep!$P:$P,Data!N$16)/$AY$32*$A$32 -> 112.6375712 | O35: =CF35+SUMIFS(AutumnProvRep!$H:$H,AutumnProvRep!$A:$A,Data!$A$22,AutumnProvRep!$G:$G,"Coventry",AutumnProvRep!$P:$P,Data!O$16)/$AY$32*$A$32 -> 301.7836812 | P35: =CG35+SUMIFS(AutumnProvRep!$H:$H,AutumnProvRep!$A:$A,Data!$A$22,AutumnProvRep!$G:$G,"Coventry",AutumnProvRep!$P:$P,Data!P$16)/$AY$32*$A$32 -> 1640.683112 | Q35: =CH35+SUMIFS(AutumnProvRep!$H:$H,AutumnProvRep!$A:$A,Data!$A$22,AutumnProvRep!$G:$G,"Coventry",AutumnProvRep!$P:$P,Data!Q$16)/$AY$32*$A$32 -> 301.7836812 | R35: =CI35+SUMIFS(AutumnProvRep!$H:$H,AutumnProvRep!$A:$A,Data!$A$22,AutumnProvRep!$G:$G,"Coventry",AutumnProvRep!$P:$P,Data!R$16)/$AY$32*$A$32 -> 0 | S35: =CJ35+SUMIFS(AutumnProvRep!$H:$H,AutumnProvRep!$A:$A,Data!$A$22,AutumnProvRep!$G:$G,"Coventry",AutumnProvRep!$P:$P,Data!S$16)/$AY$32*$A$32 -> 75.4459203 | T35: =CK35+SUMIFS(AutumnProvRep!$H:$H,AutumnProvRep!$A:$A,Data!$A$22,AutumnProvRep!$G:$G,"Coventry",AutumnProvRep!$P:$P,Data!T$16)/$AY$32*$A$32 -> 0 | U35: =CL35+SUMIFS(AutumnProvRep!$H:$H,AutumnProvRep!$A:$A,Data!$A$22,AutumnProvRep!$G:$G,"Coventry",AutumnProvRep!$P:$P,Data!U$16)/$AY$32*$A$32 -> 0 | V35: 200 | W35: 712804.6539 | X35: =SUMIFS(AutumnProvRep!$H:$H,AutumnProvRep!$A:$A,Data!$A$22,AutumnProvRep!$G:$G,"<>Coventry",AutumnProvRep!$P:$P,Data!X$16)/$AY$32*$A$32 -> 0 | Y35: =SUMIFS(AutumnProvRep!$H:$H,AutumnProvRep!$A:$A,Data!$A$22,AutumnProvRep!$G:$G,"<>Coventry",AutumnProvRep!$P:$P,Data!Y$16)/$AY$32*$A$32 -> 0 | Z35: =SUMIFS(AutumnProvRep!$H:$H,AutumnProvRep!$A:$A,Data!$A$22,AutumnProvRep!$G:$G,"<>Coventry",AutumnProvRep!$P:$P,Data!Z$16)/$AY$32*$A$32 -> 0 | AA35: =SUMIFS(AutumnProvRep!$H:$H,AutumnProvRep!$A:$A,Data!$A$22,AutumnProvRep!$G:$G,"<>Coventry",AutumnProvRep!$P:$P,Data!AA$16)/$AY$32*$A$32 -> 0 | AB35: =SUMIFS(AutumnProvRep!$H:$H,AutumnProvRep!$A:$A,Data!$A$22,AutumnProvRep!$G:$G,"<>Coventry",AutumnProvRep!$P:$P,Data!AB$16)/$AY$32*$A$32 -> 0 | AC35: =SUMIFS(AutumnProvRep!$H:$H,AutumnProvRep!$A:$A,Data!$A$22,AutumnProvRep!$G:$G,"<>Coventry",AutumnProvRep!$P:$P,Data!AC$16)/$AY$32*$A$32 -> 0 | AD35: =SUMIFS(AutumnProvRep!$H:$H,AutumnProvRep!$A:$A,Data!$A$22,AutumnProvRep!$G:$G,"<>Coventry",AutumnProvRep!$P:$P,Data!AD$16)/$AY$32*$A$32 -> 0 | AE35: =SUMIFS(AutumnProvRep!$H:$H,AutumnProvRep!$A:$A,Data!$A$22,AutumnProvRep!$G:$G,"<>Coventry",AutumnProvRep!$P:$P,Data!AE$16)/$AY$32*$A$32 -> 0 | AF35: =SUMIFS(AutumnProvRep!$H:$H,AutumnProvRep!$A:$A,Data!$A$22,AutumnProvRep!$G:$G,"<>Coventry",AutumnProvRep!$P:$P,Data!AF$16)/$AY$32*$A$32 -> 0 | AG35: =SUMIFS(AutumnProvRep!$H:$H,AutumnProvRep!$A:$A,Data!$A$22,AutumnProvRep!$G:$G,"<>Coventry",AutumnProvRep!$P:$P,Data!AG$16)/$AY$32*$A$32 -> 0 | AH35: =SUMIFS(AutumnProvRep!$H:$H,AutumnProvRep!$A:$A,Data!$A$22,AutumnProvRep!$G:$G,"<>Coventry",AutumnProvRep!$P:$P,Data!AH$16)/$AY$32*$A$32 -> 0 | AI35: =SUMIFS(AutumnProvRep!$H:$H,AutumnProvRep!$A:$A,Data!$A$22,AutumnProvRep!$G:$G,"<>Coventry",AutumnProvRep!$P:$P,Data!AI$16)/$AY$32*$A$32 -> 0 | AJ35: =SUMIFS(AutumnProvRep!$H:$H,AutumnProvRep!$A:$A,Data!$A$22,AutumnProvRep!$G:$G,"<>Coventry",AutumnProvRep!$P:$P,Data!AJ$16)/$AY$32*$A$32 -> 0 | AK35: =SUMIFS(AutumnProvRep!$H:$H,AutumnProvRep!$A:$A,Data!$A$22,AutumnProvRep!$G:$G,"<>Coventry",AutumnProvRep!$P:$P,Data!AK$16)/$AY$32*$A$32 -> 0 | AL35: =SUMIFS(AutumnProvRep!$H:$H,AutumnProvRep!$A:$A,Data!$A$22,AutumnProvRep!$G:$G,"<>Coventry",AutumnProvRep!$P:$P,Data!AL$16)/$AY$32*$A$32 -> 0 | AM35: =SUMIFS(AutumnProvRep!$H:$H,AutumnProvRep!$A:$A,Data!$A$22,AutumnProvRep!$G:$G,"<>Coventry",AutumnProvRep!$P:$P,Data!AM$16)/$AY$32*$A$32 -> 0 | AN35: =SUMIFS(AutumnProvRep!$H:$H,AutumnProvRep!$A:$A,Data!$A$22,AutumnProvRep!$G:$G,"<>Coventry",AutumnProvRep!$P:$P,Data!AN$16)/$AY$32*$A$32 -> 0 | AO35: =SUMIFS(AutumnProvRep!$H:$H,AutumnProvRep!$A:$A,Data!$A$22,AutumnProvRep!$G:$G,"<>Coventry",AutumnProvRep!$P:$P,Data!AO$16)/$AY$32*$A$32 -> 0 | AP35: 0 | AQ35: 0 | AR35: 712804.6539 | AS35: 200 | AT35: 0 | AU35: 200 | AV35: =[11]Data!AR49 -> 185.5633803 | AW35: =[11]Data!$M$6 -> 188 | AZ35: =(AU35-AV35)*$A$32 -> 1010.56338 | BA35: =AS35*$A$32 -> 14000 | BB35: =$AZ$35/$BA$35*D35 -> 0 | BC35: =$AZ$35/$BA$35*E35 -> 0 | BD35: 76.24288425 | BE35: 157.9316888 | BF35: 10.89184061 | BG35: 5.445920304 | BH35: 239.6204934 | BI35: 284.9520272 | BJ35: 16.33776091 | BK35: 43.56736243 | BL35: 8.130528904 | BM35: 21.78368121 | BN35: 118.4295908 | BO35: 21.78368121 | BP35: 0 | BQ35: 5.445920304 | BR35: 0 | BS35: 0 | BU35: 0 | BV35: 0 | BW35: 76.24288425 | BX35: 157.9316888 | BY35: 10.89184061 | BZ35: 5.445920304 | CA35: 239.6204934 | CB35: 284.9520272 | CC35: 16.33776091 | CD35: 43.56736243 | CE35: 8.130528904 | CF35: 21.78368121 | CG35: 118.4295908 | CH35: 21.78368121 | CI35: 0 | CJ35: 5.445920304 | CK35: 0 | CL35: 0
A36: 4 | B36: Corley | C36: 51.28205128 | D36: =BU36+SUMIFS(AutumnProvRep!$H:$H,AutumnProvRep!$A:$A,Data!$A$23,AutumnProvRep!$G:$G,"Coventry",AutumnProvRep!$P:$P,Data!D$16)/$AY$32*$A$32 -> 0 | E36: =BV36+SUMIFS(AutumnProvRep!$H:$H,AutumnProvRep!$A:$A,Data!$A$23,AutumnProvRep!$G:$G,"Coventry",AutumnProvRep!$P:$P,Data!E$16)/$AY$32*$A$32 -> 0 | F36: =BW36+SUMIFS(AutumnProvRep!$H:$H,AutumnProvRep!$A:$A,Data!$A$23,AutumnProvRep!$G:$G,"Coventry",AutumnProvRep!$P:$P,Data!F$16)/$AY$32*$A$32 -> 67.3738966 | G36: =BX36+SUMIFS(AutumnProvRep!$H:$H,AutumnProvRep!$A:$A,Data!$A$23,AutumnProvRep!$G:$G,"Coventry",AutumnProvRep!$P:$P,Data!G$16)/$AY$32*$A$32 -> 0 | H36: =BY36+SUMIFS(AutumnProvRep!$H:$H,AutumnProvRep!$A:$A,Data!$A$23,AutumnProvRep!$G:$G,"Coventry",AutumnProvRep!$P:$P,Data!H$16)/$AY$32*$A$32 -> 0 | I36: =BZ36+SUMIFS(AutumnProvRep!$H:$H,AutumnProvRep!$A:$A,Data!$A$23,AutumnProvRep!$G:$G,"Coventry",AutumnProvRep!$P:$P,Data!I$16)/$AY$32*$A$32 -> 0 | J36: =CA36+SUMIFS(AutumnProvRep!$H:$H,AutumnProvRep!$A:$A,Data!$A$23,AutumnProvRep!$G:$G,"Coventry",AutumnProvRep!$P:$P,Data!J$16)/$AY$32*$A$32 -> 6833.2314 | K36: =CB36+SUMIFS(AutumnProvRep!$H:$H,AutumnProvRep!$A:$A,Data!$A$23,AutumnProvRep!$G:$G,"Coventry",AutumnProvRep!$P:$P,Data!K$16)/$AY$32*$A$32 -> 0 | L36: =CC36+SUMIFS(AutumnProvRep!$H:$H,AutumnProvRep!$A:$A,Data!$A$23,AutumnProvRep!$G:$G,"Coventry",AutumnProvRep!$P:$P,Data!L$16)/$AY$32*$A$32 -> 606.3650694 | M36: =CD36+SUMIFS(AutumnProvRep!$H:$H,AutumnProvRep!$A:$A,Data!$A$23,AutumnProvRep!$G:$G,"Coventry",AutumnProvRep!$P:$P,Data!M$16)/$AY$32*$A$32 -> 0 | N36: =CE36+SUMIFS(AutumnProvRep!$H:$H,AutumnProvRep!$A:$A,Data!$A$23,AutumnProvRep!$G:$G,"Coventry",AutumnProvRep!$P:$P,Data!N$16)/$AY$32*$A$32 -> 202.1216898 | O36: =CF36+SUMIFS(AutumnProvRep!$H:$H,AutumnProvRep!$A:$A,Data!$A$23,AutumnProvRep!$G:$G,"Coventry",AutumnProvRep!$P:$P,Data!O$16)/$AY$32*$A$32 -> 0 | P36: =CG36+SUMIFS(AutumnProvRep!$H:$H,AutumnProvRep!$A:$A,Data!$A$23,AutumnProvRep!$G:$G,"Coventry",AutumnProvRep!$P:$P,Data!P$16)/$AY$32*$A$32 -> 1186.160151 | Q36: =CH36+SUMIFS(AutumnProvRep!$H:$H,AutumnProvRep!$A:$A,Data!$A$23,AutumnProvRep!$G:$G,"Coventry",AutumnProvRep!$P:$P,Data!Q$16)/$AY$32*$A$32 -> 0 | R36: =CI36+SUMIFS(AutumnProvRep!$H:$H,AutumnProvRep!$A:$A,Data!$A$23,AutumnProvRep!$G:$G,"Coventry",AutumnProvRep!$P:$P,Data!R$16)/$AY$32*$A$32 -> 0 | S36: =CJ36+SUMIFS(AutumnProvRep!$H:$H,AutumnProvRep!$A:$A,Data!$A$23,AutumnProvRep!$G:$G,"Coventry",AutumnProvRep!$P:$P,Data!S$16)/$AY$32*$A$32 -> 0 | T36: =CK36+SUMIFS(AutumnProvRep!$H:$H,AutumnProvRep!$A:$A,Data!$A$23,AutumnProvRep!$G:$G,"Coventry",AutumnProvRep!$P:$P,Data!T$16)/$AY$32*$A$32 -> 0 | U36: =CL36+SUMIFS(AutumnProvRep!$H:$H,AutumnProvRep!$A:$A,Data!$A$23,AutumnProvRep!$G:$G,"Coventry",AutumnProvRep!$P:$P,Data!U$16)/$AY$32*$A$32 -> 0 | V36: 127.0750315 | W36: 505991.7149 | X36: =SUMIFS(AutumnProvRep!$H:$H,AutumnProvRep!$A:$A,Data!$A$23,AutumnProvRep!$G:$G,"<>Coventry",AutumnProvRep!$P:$P,Data!X$16)/$AY$32*$A$32 -> 0 | Y36: =SUMIFS(AutumnProvRep!$H:$H,AutumnProvRep!$A:$A,Data!$A$23,AutumnProvRep!$G:$G,"<>Coventry",AutumnProvRep!$P:$P,Data!Y$16)/$AY$32*$A$32 -> 0 | Z36: =SUMIFS(AutumnProvRep!$H:$H,AutumnProvRep!$A:$A,Data!$A$23,AutumnProvRep!$G:$G,"<>Coventry",AutumnProvRep!$P:$P,Data!Z$16)/$AY$32*$A$32 -> 0 | AA36: =SUMIFS(AutumnProvRep!$H:$H,AutumnProvRep!$A:$A,Data!$A$23,AutumnProvRep!$G:$G,"<>Coventry",AutumnProvRep!$P:$P,Data!AA$16)/$AY$32*$A$32 -> 0 | AB36: =SUMIFS(AutumnProvRep!$H:$H,AutumnProvRep!$A:$A,Data!$A$23,AutumnProvRep!$G:$G,"<>Coventry",AutumnProvRep!$P:$P,Data!AB$16)/$AY$32*$A$32 -> 0 | AC36: =SUMIFS(AutumnProvRep!$H:$H,AutumnProvRep!$A:$A,Data!$A$23,AutumnProvRep!$G:$G,"<>Coventry",AutumnProvRep!$P:$P,Data!AC$16)/$AY$32*$A$32 -> 0 | AD36: =SUMIFS(AutumnProvRep!$H:$H,AutumnProvRep!$A:$A,Data!$A$23,AutumnProvRep!$G:$G,"<>Coventry",AutumnProvRep!$P:$P,Data!AD$16)/$AY$32*$A$32 -> 140 | AE36: =SUMIFS(AutumnProvRep!$H:$H,AutumnProvRep!$A:$A,Data!$A$23,AutumnProvRep!$G:$G,"<>Coventry",AutumnProvRep!$P:$P,Data!AE$16)/$AY$32*$A$32 -> 0 | AF36: =SUMIFS(AutumnProvRep!$H:$H,AutumnProvRep!$A:$A,Data!$A$23,AutumnProvRep!$G:$G,"<>Coventry",AutumnProvRep!$P:$P,Data!AF$16)/$AY$32*$A$32 -> 0 | AG36: =SUMIFS(AutumnProvRep!$H:$H,AutumnProvRep!$A:$A,Data!$A$23,AutumnProvRep!$G:$G,"<>Coventry",AutumnProvRep!$P:$P,Data!AG$16)/$AY$32*$A$32 -> 0 | AH36: =SUMIFS(AutumnProvRep!$H:$H,AutumnProvRep!$A:$A,Data!$A$23,AutumnProvRep!$G:$G,"<>Coventry",AutumnProvRep!$P:$P,Data!AH$16)/$AY$32*$A$32 -> 0 | AI36: =SUMIFS(AutumnProvRep!$H:$H,AutumnProvRep!$A:$A,Data!$A$23,AutumnProvRep!$G:$G,"<>Coventry",AutumnProvRep!$P:$P,Data!AI$16)/$AY$32*$A$32 -> 0 | AJ36: =SUMIFS(AutumnProvRep!$H:$H,AutumnProvRep!$A:$A,Data!$A$23,AutumnProvRep!$G:$G,"<>Coventry",AutumnProvRep!$P:$P,Data!AJ$16)/$AY$32*$A$32 -> 0 | AK36: =SUMIFS(AutumnProvRep!$H:$H,AutumnProvRep!$A:$A,Data!$A$23,AutumnProvRep!$G:$G,"<>Coventry",AutumnProvRep!$P:$P,Data!AK$16)/$AY$32*$A$32 -> 0 | AL36: =SUMIFS(AutumnProvRep!$H:$H,AutumnProvRep!$A:$A,Data!$A$23,AutumnProvRep!$G:$G,"<>Coventry",AutumnProvRep!$P:$P,Data!AL$16)/$AY$32*$A$32 -> 0 | AM36: =SUMIFS(AutumnProvRep!$H:$H,AutumnProvRep!$A:$A,Data!$A$23,AutumnProvRep!$G:$G,"<>Coventry",AutumnProvRep!$P:$P,Data!AM$16)/$AY$32*$A$32 -> 0 | AN36: =SUMIFS(AutumnProvRep!$H:$H,AutumnProvRep!$A:$A,Data!$A$23,AutumnProvRep!$G:$G,"<>Coventry",AutumnProvRep!$P:$P,Data!AN$16)/$AY$32*$A$32 -> 0 | AO36: =SUMIFS(AutumnProvRep!$H:$H,AutumnProvRep!$A:$A,Data!$A$23,AutumnProvRep!$G:$G,"<>Coventry",AutumnProvRep!$P:$P,Data!AO$16)/$AY$32*$A$32 -> 0 | AP36: 2 | AQ36: 7116.032448 | AR36: 513107.7474 | AS36: 129.0750315 | AT36: 0.07503152585 | AU36: 129 | AV36: =[11]Data!AR50 -> 134.028169 | AW36: =[11]Data!$M$7 -> 129 | AZ36: =(AU36-AV36)*$A$32 -> -351.971831 | BA36: =AS36*$A$32 -> 9035.252207 | BB36: =$AZ$36/$BA$36*D36 -> 0 | BC36: =$AZ$36/$BA$36*E36 -> 0 | BD36: -2.624576847 | BE36: 0 | BF36: 0 | BG36: 0 | BH36: -266.1912376 | BI36: 0 | BJ36: -23.62119162 | BK36: 0 | BL36: -7.87373054 | BM36: 0 | BN36: -46.20733885 | BO36: 0 | BP36: 0 | BQ36: 0 | BR36: 0 | BS36: 0 | BU36: 0 | BV36: 0 | BW36: -2.626103405 | BX36: 0 | BY36: 0 | BZ36: 0 | CA36: -266.346065 | CB36: 0 | CC36: -23.63493064 | CD36: 0 | CE36: -7.878310214 | CF36: 0 | CG36: -46.23421487 | CH36: 0 | CI36: 0 | CJ36: 0 | CK36: 0 | CL36: 0
A37: 5 | B37: Tiverton | C37: 51.28205128 | D37: =BU37+SUMIFS(AutumnProvRep!$H:$H,AutumnProvRep!$A:$A,Data!$A$24,AutumnProvRep!$G:$G,"Coventry",AutumnProvRep!$P:$P,Data!D$16)/$AY$32*$A$32 -> 0 | E37: =BV37+SUMIFS(AutumnProvRep!$H:$H,AutumnProvRep!$A:$A,Data!$A$24,AutumnProvRep!$G:$G,"Coventry",AutumnProvRep!$P:$P,Data!E$16)/$AY$32*$A$32 -> 0 | F37: =BW37+SUMIFS(AutumnProvRep!$H:$H,AutumnProvRep!$A:$A,Data!$A$24,AutumnProvRep!$G:$G,"Coventry",AutumnProvRep!$P:$P,Data!F$16)/$AY$32*$A$32 -> 0 | G37: =BX37+SUMIFS(AutumnProvRep!$H:$H,AutumnProvRep!$A:$A,Data!$A$24,AutumnProvRep!$G:$G,"Coventry",AutumnProvRep!$P:$P,Data!G$16)/$AY$32*$A$32 -> 0 | H37: =BY37+SUMIFS(AutumnProvRep!$H:$H,AutumnProvRep!$A:$A,Data!$A$24,AutumnProvRep!$G:$G,"Coventry",AutumnProvRep!$P:$P,Data!H$16)/$AY$32*$A$32 -> 0 | I37: =BZ37+SUMIFS(AutumnProvRep!$H:$H,AutumnProvRep!$A:$A,Data!$A$24,AutumnProvRep!$G:$G,"Coventry",AutumnProvRep!$P:$P,Data!I$16)/$AY$32*$A$32 -> 0 | J37: =CA37+SUMIFS(AutumnProvRep!$H:$H,AutumnProvRep!$A:$A,Data!$A$24,AutumnProvRep!$G:$G,"Coventry",AutumnProvRep!$P:$P,Data!J$16)/$AY$32*$A$32 -> 3616.091954 | K37: =CB37+SUMIFS(AutumnProvRep!$H:$H,AutumnProvRep!$A:$A,Data!$A$24,AutumnProvRep!$G:$G,"Coventry",AutumnProvRep!$P:$P,Data!K$16)/$AY$32*$A$32 -> 1381.078691 | L37: =CC37+SUMIFS(AutumnProvRep!$H:$H,AutumnProvRep!$A:$A,Data!$A$24,AutumnProvRep!$G:$G,"Coventry",AutumnProvRep!$P:$P,Data!L$16)/$AY$32*$A$32 -> 69.05393457 | M37: =CD37+SUMIFS(AutumnProvRep!$H:$H,AutumnProvRep!$A:$A,Data!$A$24,AutumnProvRep!$G:$G,"Coventry",AutumnProvRep!$P:$P,Data!M$16)/$AY$32*$A$32 -> 483.377542 | N37: =CE37+SUMIFS(AutumnProvRep!$H:$H,AutumnProvRep!$A:$A,Data!$A$24,AutumnProvRep!$G:$G,"Coventry",AutumnProvRep!$P:$P,Data!N$16)/$AY$32*$A$32 -> 138.1078691 | O37: =CF37+SUMIFS(AutumnProvRep!$H:$H,AutumnProvRep!$A:$A,Data!$A$24,AutumnProvRep!$G:$G,"Coventry",AutumnProvRep!$P:$P,Data!O$16)/$AY$32*$A$32 -> 0 | P37: =CG37+SUMIFS(AutumnProvRep!$H:$H,AutumnProvRep!$A:$A,Data!$A$24,AutumnProvRep!$G:$G,"Coventry",AutumnProvRep!$P:$P,Data!P$16)/$AY$32*$A$32 -> 966.755084 | Q37: =CH37+SUMIFS(AutumnProvRep!$H:$H,AutumnProvRep!$A:$A,Data!$A$24,AutumnProvRep!$G:$G,"Coventry",AutumnProvRep!$P:$P,Data!Q$16)/$AY$32*$A$32 -> 552.4314766 | R37: =CI37+SUMIFS(AutumnProvRep!$H:$H,AutumnProvRep!$A:$A,Data!$A$24,AutumnProvRep!$G:$G,"Coventry",AutumnProvRep!$P:$P,Data!R$16)/$AY$32*$A$32 -> 0 | S37: =CJ37+SUMIFS(AutumnProvRep!$H:$H,AutumnProvRep!$A:$A,Data!$A$24,AutumnProvRep!$G:$G,"Coventry",AutumnProvRep!$P:$P,Data!S$16)/$AY$32*$A$32 -> 345.2696729 | T37: =CK37+SUMIFS(AutumnProvRep!$H:$H,AutumnProvRep!$A:$A,Data!$A$24,AutumnProvRep!$G:$G,"Coventry",AutumnProvRep!$P:$P,Data!T$16)/$AY$32*$A$32 -> 24.31476569 | U37: =CL37+SUMIFS(AutumnProvRep!$H:$H,AutumnProvRep!$A:$A,Data!$A$24,AutumnProvRep!$G:$G,"Coventry",AutumnProvRep!$P:$P,Data!U$16)/$AY$32*$A$32 -> 0 | V37: 108.2354427 | W37: 451660.3541 | X37: =SUMIFS(AutumnProvRep!$H:$H,AutumnProvRep!$A:$A,Data!$A$24,AutumnProvRep!$G:$G,"<>Coventry",AutumnProvRep!$P:$P,Data!X$16)/$AY$32*$A$32 -> 0 | Y37: =SUMIFS(AutumnProvRep!$H:$H,AutumnProvRep!$A:$A,Data!$A$24,AutumnProvRep!$G:$G,"<>Coventry",AutumnProvRep!$P:$P,Data!Y$16)/$AY$32*$A$32 -> 0 | Z37: =SUMIFS(AutumnProvRep!$H:$H,AutumnProvRep!$A:$A,Data!$A$24,AutumnProvRep!$G:$G,"<>Coventry",AutumnProvRep!$P:$P,Data!Z$16)/$AY$32*$A$32 -> 0 | AA37: =SUMIFS(AutumnProvRep!$H:$H,AutumnProvRep!$A:$A,Data!$A$24,AutumnProvRep!$G:$G,"<>Coventry",AutumnProvRep!$P:$P,Data!AA$16)/$AY$32*$A$32 -> 0 | AB37: =SUMIFS(AutumnProvRep!$H:$H,AutumnProvRep!$A:$A,Data!$A$24,AutumnProvRep!$G:$G,"<>Coventry",AutumnProvRep!$P:$P,Data!AB$16)/$AY$32*$A$32 -> 0 | AC37: =SUMIFS(AutumnProvRep!$H:$H,AutumnProvRep!$A:$A,Data!$A$24,AutumnProvRep!$G:$G,"<>Coventry",AutumnProvRep!$P:$P,Data!AC$16)/$AY$32*$A$32 -> 0 | AD37: =SUMIFS(AutumnProvRep!$H:$H,AutumnProvRep!$A:$A,Data!$A$24,AutumnProvRep!$G:$G,"<>Coventry",AutumnProvRep!$P:$P,Data!AD$16)/$AY$32*$A$32 -> 70 | AE37: =SUMIFS(AutumnProvRep!$H:$H,AutumnProvRep!$A:$A,Data!$A$24,AutumnProvRep!$G:$G,"<>Coventry",AutumnProvRep!$P:$P,Data!AE$16)/$AY$32*$A$32 -> 0 | AF37: =SUMIFS(AutumnProvRep!$H:$H,AutumnProvRep!$A:$A,Data!$A$24,AutumnProvRep!$G:$G,"<>Coventry",AutumnProvRep!$P:$P,Data!AF$16)/$AY$32*$A$32 -> 0 | AG37: =SUMIFS(AutumnProvRep!$H:$H,AutumnProvRep!$A:$A,Data!$A$24,AutumnProvRep!$G:$G,"<>Coventry",AutumnProvRep!$P:$P,Data!AG$16)/$AY$32*$A$32 -> 0 | AH37: =SUMIFS(AutumnProvRep!$H:$H,AutumnProvRep!$A:$A,Data!$A$24,AutumnProvRep!$G:$G,"<>Coventry",AutumnProvRep!$P:$P,Data!AH$16)/$AY$32*$A$32 -> 0 | AI37: =SUMIFS(AutumnProvRep!$H:$H,AutumnProvRep!$A:$A,Data!$A$24,AutumnProvRep!$G:$G,"<>Coventry",AutumnProvRep!$P:$P,Data!AI$16)/$AY$32*$A$32 -> 0 | AJ37: =SUMIFS(AutumnProvRep!$H:$H,AutumnProvRep!$A:$A,Data!$A$24,AutumnProvRep!$G:$G,"<>Coventry",AutumnProvRep!$P:$P,Data!AJ$16)/$AY$32*$A$32 -> 0 | AK37: =SUMIFS(AutumnProvRep!$H:$H,AutumnProvRep!$A:$A,Data!$A$24,AutumnProvRep!$G:$G,"<>Coventry",AutumnProvRep!$P:$P,Data!AK$16)/$AY$32*$A$32 -> 55.21126761 | AL37: =SUMIFS(AutumnProvRep!$H:$H,AutumnProvRep!$A:$A,Data!$A$24,AutumnProvRep!$G:$G,"<>Coventry",AutumnProvRep!$P:$P,Data!AL$16)/$AY$32*$A$32 -> 0 | AM37: =SUMIFS(AutumnProvRep!$H:$H,AutumnProvRep!$A:$A,Data!$A$24,AutumnProvRep!$G:$G,"<>Coventry",AutumnProvRep!$P:$P,Data!AM$16)/$AY$32*$A$32 -> 0 | AN37: =SUMIFS(AutumnProvRep!$H:$H,AutumnProvRep!$A:$A,Data!$A$24,AutumnProvRep!$G:$G,"<>Coventry",AutumnProvRep!$P:$P,Data!AN$16)/$AY$32*$A$32 -> 0 | AO37: =SUMIFS(AutumnProvRep!$H:$H,AutumnProvRep!$A:$A,Data!$A$24,AutumnProvRep!$G:$G,"<>Coventry",AutumnProvRep!$P:$P,Data!AO$16)/$AY$32*$A$32 -> 0 | AP37: 1.788732394 | AQ37: 7767.498706 | AR37: 459427.8528 | AS37: 110.0241751 | AT37: -1.975824887 | AU37: 112 | AV37: =[11]Data!AR51 -> 111.5070423 | AW37: =[11]Data!$M$8 -> 110 | AZ37: =(AU37-AV37)*$A$32 -> 34.50704225 | BA37: =AS37*$A$32 -> 7701.692258 | BB37: =$AZ$37/$BA$37*D37 -> 0 | BC37: =$AZ$37/$BA$37*E37 -> 0 | BD37: 0 | BE37: 0 | BF37: 0 | BG37: 0 | BH37: 16.20171693 | BI37: 6.187853158 | BJ37: 0.3093926579 | BK37: 2.165748605 | BL37: 0.6187853158 | BM37: 0 | BN37: 4.331497211 | BO37: 2.475141263 | BP37: 0 | BQ37: 1.54696329 | BR37: 0.1089410767 | BS37: 0 | BU37: 0 | BV37: 0 | BW37: 0 | BX37: 0 | BY37: 0 | BZ37: 0 | CA37: -49.54184879 | CB37: -18.92130858 | CC37: -0.9460654288 | CD37: -6.622458002 | CE37: -1.892130858 | CF37: 0 | CG37: -13.244916 | CH37: -7.568523431 | CI37: 0 | CJ37: -4.730327144 | CK37: -0.3331216299 | CL37: 0
A38: 6 | B38: Baginton Fields | C38: 51.28205128 | D38: =SUMIFS(AutumnProvRep!$H:$H,AutumnProvRep!$A:$A,Data!$A$25,AutumnProvRep!$G:$G,"Coventry",AutumnProvRep!$P:$P,Data!D$16)/$AY$32*$A$32 -> 0 | E38: =SUMIFS(AutumnProvRep!$H:$H,AutumnProvRep!$A:$A,Data!$A$25,AutumnProvRep!$G:$G,"Coventry",AutumnProvRep!$P:$P,Data!E$16)/$AY$32*$A$32 -> 0 | F38: =SUMIFS(AutumnProvRep!$H:$H,AutumnProvRep!$A:$A,Data!$A$25,AutumnProvRep!$G:$G,"Coventry",AutumnProvRep!$P:$P,Data!F$16)/$AY$32*$A$32 -> 0 | G38: =SUMIFS(AutumnProvRep!$H:$H,AutumnProvRep!$A:$A,Data!$A$25,AutumnProvRep!$G:$G,"Coventry",AutumnProvRep!$P:$P,Data!G$16)/$AY$32*$A$32 -> 70 | H38: =SUMIFS(AutumnProvRep!$H:$H,AutumnProvRep!$A:$A,Data!$A$25,AutumnProvRep!$G:$G,"Coventry",AutumnProvRep!$P:$P,Data!H$16)/$AY$32*$A$32 -> 0 | I38: =SUMIFS(AutumnProvRep!$H:$H,AutumnProvRep!$A:$A,Data!$A$25,AutumnProvRep!$G:$G,"Coventry",AutumnProvRep!$P:$P,Data!I$16)/$AY$32*$A$32 -> 0 | J38: =SUMIFS(AutumnProvRep!$H:$H,AutumnProvRep!$A:$A,Data!$A$25,AutumnProvRep!$G:$G,"Coventry",AutumnProvRep!$P:$P,Data!J$16)/$AY$32*$A$32 -> 1505.492958 | K38: =SUMIFS(AutumnProvRep!$H:$H,AutumnProvRep!$A:$A,Data!$A$25,AutumnProvRep!$G:$G,"Coventry",AutumnProvRep!$P:$P,Data!K$16)/$AY$32*$A$32 -> 2730 | L38: =SUMIFS(AutumnProvRep!$H:$H,AutumnProvRep!$A:$A,Data!$A$25,AutumnProvRep!$G:$G,"Coventry",AutumnProvRep!$P:$P,Data!L$16)/$AY$32*$A$32 -> 140 | M38: =SUMIFS(AutumnProvRep!$H:$H,AutumnProvRep!$A:$A,Data!$A$25,AutumnProvRep!$G:$G,"Coventry",AutumnProvRep!$P:$P,Data!M$16)/$AY$32*$A$32 -> 0 | N38: =SUMIFS(AutumnProvRep!$H:$H,AutumnProvRep!$A:$A,Data!$A$25,AutumnProvRep!$G:$G,"Coventry",AutumnProvRep!$P:$P,Data!N$16)/$AY$32*$A$32 -> 327.3239437 | O38: =SUMIFS(AutumnProvRep!$H:$H,AutumnProvRep!$A:$A,Data!$A$25,AutumnProvRep!$G:$G,"Coventry",AutumnProvRep!$P:$P,Data!O$16)/$AY$32*$A$32 -> 0 | P38: =SUMIFS(AutumnProvRep!$H:$H,AutumnProvRep!$A:$A,Data!$A$25,AutumnProvRep!$G:$G,"Coventry",AutumnProvRep!$P:$P,Data!P$16)/$AY$32*$A$32 -> 2122.676056 | Q38: =SUMIFS(AutumnProvRep!$H:$H,AutumnProvRep!$A:$A,Data!$A$25,AutumnProvRep!$G:$G,"Coventry",AutumnProvRep!$P:$P,Data!Q$16)/$AY$32*$A$32 -> 840 | R38: =SUMIFS(AutumnProvRep!$H:$H,AutumnProvRep!$A:$A,Data!$A$25,AutumnProvRep!$G:$G,"Coventry",AutumnProvRep!$P:$P,Data!R$16)/$AY$32*$A$32 -> 70 | S38: =SUMIFS(AutumnProvRep!$H:$H,AutumnProvRep!$A:$A,Data!$A$25,AutumnProvRep!$G:$G,"Coventry",AutumnProvRep!$P:$P,Data!S$16)/$AY$32*$A$32 -> 140 | T38: =SUMIFS(AutumnProvRep!$H:$H,AutumnProvRep!$A:$A,Data!$A$25,AutumnProvRep!$G:$G,"Coventry",AutumnProvRep!$P:$P,Data!T$16)/$AY$32*$A$32 -> 70 | U38: =SUMIFS(AutumnProvRep!$H:$H,AutumnProvRep!$A:$A,Data!$A$25,AutumnProvRep!$G:$G,"Coventry",AutumnProvRep!$P:$P,Data!U$16)/$AY$32*$A$32 -> 0 | V38: 114.5070423 | W38: 519811.9424 | X38: =SUMIFS(AutumnProvRep!$H:$H,AutumnProvRep!$A:$A,Data!$A$25,AutumnProvRep!$G:$G,"<>Coventry",AutumnProvRep!$P:$P,Data!X$16)/$AY$32*$A$32 -> 0 | Y38: =SUMIFS(AutumnProvRep!$H:$H,AutumnProvRep!$A:$A,Data!$A$25,AutumnProvRep!$G:$G,"<>Coventry",AutumnProvRep!$P:$P,Data!Y$16)/$AY$32*$A$32 -> 0 | Z38: =SUMIFS(AutumnProvRep!$H:$H,AutumnProvRep!$A:$A,Data!$A$25,AutumnProvRep!$G:$G,"<>Coventry",AutumnProvRep!$P:$P,Data!Z$16)/$AY$32*$A$32 -> 0 | AA38: =SUMIFS(AutumnProvRep!$H:$H,AutumnProvRep!$A:$A,Data!$A$25,AutumnProvRep!$G:$G,"<>Coventry",AutumnProvRep!$P:$P,Data!AA$16)/$AY$32*$A$32 -> 0 | AB38: =SUMIFS(AutumnProvRep!$H:$H,AutumnProvRep!$A:$A,Data!$A$25,AutumnProvRep!$G:$G,"<>Coventry",AutumnProvRep!$P:$P,Data!AB$16)/$AY$32*$A$32 -> 0 | AC38: =SUMIFS(AutumnProvRep!$H:$H,AutumnProvRep!$A:$A,Data!$A$25,AutumnProvRep!$G:$G,"<>Coventry",AutumnProvRep!$P:$P,Data!AC$16)/$AY$32*$A$32 -> 0 | AD38: =SUMIFS(AutumnProvRep!$H:$H,AutumnProvRep!$A:$A,Data!$A$25,AutumnProvRep!$G:$G,"<>Coventry",AutumnProvRep!$P:$P,Data!AD$16)/$AY$32*$A$32 -> 0 | AE38: =SUMIFS(AutumnProvRep!$H:$H,AutumnProvRep!$A:$A,Data!$A$25,AutumnProvRep!$G:$G,"<>Coventry",AutumnProvRep!$P:$P,Data!AE$16)/$AY$32*$A$32 -> 70 | AF38: =SUMIFS(AutumnProvRep!$H:$H,AutumnProvRep!$A:$A,Data!$A$25,AutumnProvRep!$G:$G,"<>Coventry",AutumnProvRep!$P:$P,Data!AF$16)/$AY$32*$A$32 -> 0 | AG38: =SUMIFS(AutumnProvRep!$H:$H,AutumnProvRep!$A:$A,Data!$A$25,AutumnProvRep!$G:$G,"<>Coventry",AutumnProvRep!$P:$P,Data!AG$16)/$AY$32*$A$32 -> 0 | AH38: =SUMIFS(AutumnProvRep!$H:$H,AutumnProvRep!$A:$A,Data!$A$25,AutumnProvRep!$G:$G,"<>Coventry",AutumnProvRep!$P:$P,Data!AH$16)/$AY$32*$A$32 -> 0 | AI38: =SUMIFS(AutumnProvRep!$H:$H,AutumnProvRep!$A:$A,Data!$A$25,AutumnProvRep!$G:$G,"<>Coventry",AutumnProvRep!$P:$P,Data!AI$16)/$AY$32*$A$32 -> 0 | AJ38: =SUMIFS(AutumnProvRep!$H:$H,AutumnProvRep!$A:$A,Data!$A$25,AutumnProvRep!$G:$G,"<>Coventry",AutumnProvRep!$P:$P,Data!AJ$16)/$AY$32*$A$32 -> 0 | AK38: =SUMIFS(AutumnProvRep!$H:$H,AutumnProvRep!$A:$A,Data!$A$25,AutumnProvRep!$G:$G,"<>Coventry",AutumnProvRep!$P:$P,Data!AK$16)/$AY$32*$A$32 -> 0 | AL38: =SUMIFS(AutumnProvRep!$H:$H,AutumnProvRep!$A:$A,Data!$A$25,AutumnProvRep!$G:$G,"<>Coventry",AutumnProvRep!$P:$P,Data!AL$16)/$AY$32*$A$32 -> 0 | AM38: =SUMIFS(AutumnProvRep!$H:$H,AutumnProvRep!$A:$A,Data!$A$25,AutumnProvRep!$G:$G,"<>Coventry",AutumnProvRep!$P:$P,Data!AM$16)/$AY$32*$A$32 -> 0 | AN38: =SUMIFS(AutumnProvRep!$H:$H,AutumnProvRep!$A:$A,Data!$A$25,AutumnProvRep!$G:$G,"<>Coventry",AutumnProvRep!$P:$P,Data!AN$16)/$AY$32*$A$32 -> 0 | AO38: =SUMIFS(AutumnProvRep!$H:$H,AutumnProvRep!$A:$A,Data!$A$25,AutumnProvRep!$G:$G,"<>Coventry",AutumnProvRep!$P:$P,Data!AO$16)/$AY$32*$A$32 -> 0 | AP38: 1 | AQ38: 3291.166816 | AR38: 523103.1092 | AS38: 115.5070423 | AT38: -2.492957746 | AU38: 118 | AV38: =[11]Data!AR52 -> 115.5070423 | AW38: =[11]Data!$M$9 -> 118
A39: 7 | B39: Sherbourne Fields | C39: 51.28205128 | D39: =SUMIFS(AutumnProvRep!$H:$H,AutumnProvRep!$A:$A,Data!$A$26,AutumnProvRep!$G:$G,"Coventry",AutumnProvRep!$P:$P,Data!D$16)/$AY$32*$A$32 -> 0 | E39: =SUMIFS(AutumnProvRep!$H:$H,AutumnProvRep!$A:$A,Data!$A$26,AutumnProvRep!$G:$G,"Coventry",AutumnProvRep!$P:$P,Data!E$16)/$AY$32*$A$32 -> 0 | F39: =BW39+SUMIFS(AutumnProvRep!$H:$H,AutumnProvRep!$A:$A,Data!$A$26,AutumnProvRep!$G:$G,"Coventry",AutumnProvRep!$P:$P,Data!F$16)/$AY$32*$A$32 -> 76.88071918 | G39: =BX39+SUMIFS(AutumnProvRep!$H:$H,AutumnProvRep!$A:$A,Data!$A$26,AutumnProvRep!$G:$G,"Coventry",AutumnProvRep!$P:$P,Data!G$16)/$AY$32*$A$32 -> 230.6421576 | H39: =BY39+SUMIFS(AutumnProvRep!$H:$H,AutumnProvRep!$A:$A,Data!$A$26,AutumnProvRep!$G:$G,"Coventry",AutumnProvRep!$P:$P,Data!H$16)/$AY$32*$A$32 -> 0 | I39: =BZ39+SUMIFS(AutumnProvRep!$H:$H,AutumnProvRep!$A:$A,Data!$A$26,AutumnProvRep!$G:$G,"Coventry",AutumnProvRep!$P:$P,Data!I$16)/$AY$32*$A$32 -> 153.7614384 | J39: =CA39+SUMIFS(AutumnProvRep!$H:$H,AutumnProvRep!$A:$A,Data!$A$26,AutumnProvRep!$G:$G,"Coventry",AutumnProvRep!$P:$P,Data!J$16)/$AY$32*$A$32 -> 4394.112091 | K39: =CB39+SUMIFS(AutumnProvRep!$H:$H,AutumnProvRep!$A:$A,Data!$A$26,AutumnProvRep!$G:$G,"Coventry",AutumnProvRep!$P:$P,Data!K$16)/$AY$32*$A$32 -> 4294.492004 | L39: =CC39+SUMIFS(AutumnProvRep!$H:$H,AutumnProvRep!$A:$A,Data!$A$26,AutumnProvRep!$G:$G,"Coventry",AutumnProvRep!$P:$P,Data!L$16)/$AY$32*$A$32 -> 0 | M39: =CD39+SUMIFS(AutumnProvRep!$H:$H,AutumnProvRep!$A:$A,Data!$A$26,AutumnProvRep!$G:$G,"Coventry",AutumnProvRep!$P:$P,Data!M$16)/$AY$32*$A$32 -> 2306.421576 | N39: =CE39+SUMIFS(AutumnProvRep!$H:$H,AutumnProvRep!$A:$A,Data!$A$26,AutumnProvRep!$G:$G,"Coventry",AutumnProvRep!$P:$P,Data!N$16)/$AY$32*$A$32 -> 230.6421576 | O39: =CF39+SUMIFS(AutumnProvRep!$H:$H,AutumnProvRep!$A:$A,Data!$A$26,AutumnProvRep!$G:$G,"Coventry",AutumnProvRep!$P:$P,Data!O$16)/$AY$32*$A$32 -> 0 | P39: =CG39+SUMIFS(AutumnProvRep!$H:$H,AutumnProvRep!$A:$A,Data!$A$26,AutumnProvRep!$G:$G,"Coventry",AutumnProvRep!$P:$P,Data!P$16)/$AY$32*$A$32 -> 1851.634223 | Q39: =CH39+SUMIFS(AutumnProvRep!$H:$H,AutumnProvRep!$A:$A,Data!$A$26,AutumnProvRep!$G:$G,"Coventry",AutumnProvRep!$P:$P,Data!Q$16)/$AY$32*$A$32 -> 1570.099195 | R39: =CI39+SUMIFS(AutumnProvRep!$H:$H,AutumnProvRep!$A:$A,Data!$A$26,AutumnProvRep!$G:$G,"Coventry",AutumnProvRep!$P:$P,Data!R$16)/$AY$32*$A$32 -> 153.7614384 | S39: =CJ39+SUMIFS(AutumnProvRep!$H:$H,AutumnProvRep!$A:$A,Data!$A$26,AutumnProvRep!$G:$G,"Coventry",AutumnProvRep!$P:$P,Data!S$16)/$AY$32*$A$32 -> 1383.852945 | T39: =CK39+SUMIFS(AutumnProvRep!$H:$H,AutumnProvRep!$A:$A,Data!$A$26,AutumnProvRep!$G:$G,"Coventry",AutumnProvRep!$P:$P,Data!T$16)/$AY$32*$A$32 -> 0 | U39: =SUMIFS(AutumnProvRep!$H:$H,AutumnProvRep!$A:$A,Data!$A$26,AutumnProvRep!$G:$G,"Coventry",AutumnProvRep!$P:$P,Data!U$16)/$AY$32*$A$32 -> 0 | V39: 237.8042849 | W39: 998700.9253 | X39: =SUMIFS(AutumnProvRep!$H:$H,AutumnProvRep!$A:$A,Data!$A$26,AutumnProvRep!$G:$G,"<>Coventry",AutumnProvRep!$P:$P,Data!X$16)/$AY$32*$A$32 -> 0 | Y39: =SUMIFS(AutumnProvRep!$H:$H,AutumnProvRep!$A:$A,Data!$A$26,AutumnProvRep!$G:$G,"<>Coventry",AutumnProvRep!$P:$P,Data!Y$16)/$AY$32*$A$32 -> 0 | Z39: =SUMIFS(AutumnProvRep!$H:$H,AutumnProvRep!$A:$A,Data!$A$26,AutumnProvRep!$G:$G,"<>Coventry",AutumnProvRep!$P:$P,Data!Z$16)/$AY$32*$A$32 -> 0 | AA39: =SUMIFS(AutumnProvRep!$H:$H,AutumnProvRep!$A:$A,Data!$A$26,AutumnProvRep!$G:$G,"<>Coventry",AutumnProvRep!$P:$P,Data!AA$16)/$AY$32*$A$32 -> 0 | AB39: =SUMIFS(AutumnProvRep!$H:$H,AutumnProvRep!$A:$A,Data!$A$26,AutumnProvRep!$G:$G,"<>Coventry",AutumnProvRep!$P:$P,Data!AB$16)/$AY$32*$A$32 -> 0 | AC39: =SUMIFS(AutumnProvRep!$H:$H,AutumnProvRep!$A:$A,Data!$A$26,AutumnProvRep!$G:$G,"<>Coventry",AutumnProvRep!$P:$P,Data!AC$16)/$AY$32*$A$32 -> 0 | AD39: =SUMIFS(AutumnProvRep!$H:$H,AutumnProvRep!$A:$A,Data!$A$26,AutumnProvRep!$G:$G,"<>Coventry",AutumnProvRep!$P:$P,Data!AD$16)/$AY$32*$A$32 -> 70 | AE39: =SUMIFS(AutumnProvRep!$H:$H,AutumnProvRep!$A:$A,Data!$A$26,AutumnProvRep!$G:$G,"<>Coventry",AutumnProvRep!$P:$P,Data!AE$16)/$AY$32*$A$32 -> 0 | AF39: =SUMIFS(AutumnProvRep!$H:$H,AutumnProvRep!$A:$A,Data!$A$26,AutumnProvRep!$G:$G,"<>Coventry",AutumnProvRep!$P:$P,Data!AF$16)/$AY$32*$A$32 -> 0 | AG39: =SUMIFS(AutumnProvRep!$H:$H,AutumnProvRep!$A:$A,Data!$A$26,AutumnProvRep!$G:$G,"<>Coventry",AutumnProvRep!$P:$P,Data!AG$16)/$AY$32*$A$32 -> 0 | AH39: =SUMIFS(AutumnProvRep!$H:$H,AutumnProvRep!$A:$A,Data!$A$26,AutumnProvRep!$G:$G,"<>Coventry",AutumnProvRep!$P:$P,Data!AH$16)/$AY$32*$A$32 -> 0 | AI39: =SUMIFS(AutumnProvRep!$H:$H,AutumnProvRep!$A:$A,Data!$A$26,AutumnProvRep!$G:$G,"<>Coventry",AutumnProvRep!$P:$P,Data!AI$16)/$AY$32*$A$32 -> 0 | AJ39: =SUMIFS(AutumnProvRep!$H:$H,AutumnProvRep!$A:$A,Data!$A$26,AutumnProvRep!$G:$G,"<>Coventry",AutumnProvRep!$P:$P,Data!AJ$16)/$AY$32*$A$32 -> 0 | AK39: =SUMIFS(AutumnProvRep!$H:$H,AutumnProvRep!$A:$A,Data!$A$26,AutumnProvRep!$G:$G,"<>Coventry",AutumnProvRep!$P:$P,Data!AK$16)/$AY$32*$A$32 -> 0 | AL39: =SUMIFS(AutumnProvRep!$H:$H,AutumnProvRep!$A:$A,Data!$A$26,AutumnProvRep!$G:$G,"<>Coventry",AutumnProvRep!$P:$P,Data!AL$16)/$AY$32*$A$32 -> 0 | AM39: =SUMIFS(AutumnProvRep!$H:$H,AutumnProvRep!$A:$A,Data!$A$26,AutumnProvRep!$G:$G,"<>Coventry",AutumnProvRep!$P:$P,Data!AM$16)/$AY$32*$A$32 -> 70 | AN39: =SUMIFS(AutumnProvRep!$H:$H,AutumnProvRep!$A:$A,Data!$A$26,AutumnProvRep!$G:$G,"<>Coventry",AutumnProvRep!$P:$P,Data!AN$16)/$AY$32*$A$32 -> 0 | AO39: =SUMIFS(AutumnProvRep!$H:$H,AutumnProvRep!$A:$A,Data!$A$26,AutumnProvRep!$G:$G,"<>Coventry",AutumnProvRep!$P:$P,Data!AO$16)/$AY$32*$A$32 -> 0 | AP39: 2 | AQ39: 8895.038656 | AR39: 1007595.964 | AS39: 239.8042849 | AT39: -0.1957150852 | AU39: 240 | AV39: =[11]Data!AR53 -> 218.5211268 | AW39: =[11]Data!$M$10 -> 220 | AZ39: =(AU39-AV39)*$A$32 -> 1503.521127 | BA39: =AS39*$A$32 -> 16786.29994 | BB39: =$AZ$39/$BA$39*D39 -> 0 | BC39: =$AZ$39/$BA$39*E39 -> 0 | BD39: 6.886078881 | BE39: 20.65823664 | BF39: 0 | BG39: 13.77215776 | BH39: 393.5733535 | BI39: 384.6505471 | BJ39: 0 | BK39: 206.5823664 | BL39: 20.65823664 | BM39: 0 | BN39: 165.8478153 | BO39: 140.6311884 | BP39: 13.77215776 | BQ39: 123.9494199 | BR39: 0 | BS39: 0 | BU39: 0 | BV39: 0 | BW39: 6.880719185 | BX39: 20.64215755 | BY39: 0 | BZ39: 13.76143837 | CA39: 393.2670204 | CB39: 384.351159 | CC39: 0 | CD39: 206.4215755 | CE39: 20.64215755 | CF39: 0 | CG39: 165.7187297 | CH39: 140.5217298 | CI39: 13.76143837 | CJ39: 123.8529453 | CK39: 0 | CL39: 0
A40: 8 | B40: Woodfield | C40: =10000/$A$15 -> 51.28205128 | D40: =SUMIFS(AutumnProvRep!$H:$H,AutumnProvRep!$A:$A,Data!$A$27,AutumnProvRep!$G:$G,"Coventry",AutumnProvRep!$P:$P,Data!D$16)/$AY$32*$A$32 -> 0 | E40: =SUMIFS(AutumnProvRep!$H:$H,AutumnProvRep!$A:$A,Data!$A$27,AutumnProvRep!$G:$G,"Coventry",AutumnProvRep!$P:$P,Data!E$16)/$AY$32*$A$32 -> 0 | F40: =SUMIFS(AutumnProvRep!$H:$H,AutumnProvRep!$A:$A,Data!$A$27,AutumnProvRep!$G:$G,"Coventry",AutumnProvRep!$P:$P,Data!F$16)/$AY$32*$A$32 -> 70 | G40: =SUMIFS(AutumnProvRep!$H:$H,AutumnProvRep!$A:$A,Data!$A$27,AutumnProvRep!$G:$G,"Coventry",AutumnProvRep!$P:$P,Data!G$16)/$AY$32*$A$32 -> 0 | H40: =SUMIFS(AutumnProvRep!$H:$H,AutumnProvRep!$A:$A,Data!$A$27,AutumnProvRep!$G:$G,"Coventry",AutumnProvRep!$P:$P,Data!H$16)/$AY$32*$A$32 -> 0 | I40: =SUMIFS(AutumnProvRep!$H:$H,AutumnProvRep!$A:$A,Data!$A$27,AutumnProvRep!$G:$G,"Coventry",AutumnProvRep!$P:$P,Data!I$16)/$AY$32*$A$32 -> 0 | J40: =SUMIFS(AutumnProvRep!$H:$H,AutumnProvRep!$A:$A,Data!$A$27,AutumnProvRep!$G:$G,"Coventry",AutumnProvRep!$P:$P,Data!J$16)/$AY$32*$A$32 -> 70 | K40: =SUMIFS(AutumnProvRep!$H:$H,AutumnProvRep!$A:$A,Data!$A$27,AutumnProvRep!$G:$G,"Coventry",AutumnProvRep!$P:$P,Data!K$16)/$AY$32*$A$32 -> 0 | L40: =SUMIFS(AutumnProvRep!$H:$H,AutumnProvRep!$A:$A,Data!$A$27,AutumnProvRep!$G:$G,"Coventry",AutumnProvRep!$P:$P,Data!L$16)/$AY$32*$A$32 -> 6843.239437 | M40: =SUMIFS(AutumnProvRep!$H:$H,AutumnProvRep!$A:$A,Data!$A$27,AutumnProvRep!$G:$G,"Coventry",AutumnProvRep!$P:$P,Data!M$16)/$AY$32*$A$32 -> 0 | N40: =SUMIFS(AutumnProvRep!$H:$H,AutumnProvRep!$A:$A,Data!$A$27,AutumnProvRep!$G:$G,"Coventry",AutumnProvRep!$P:$P,Data!N$16)/$AY$32*$A$32 -> 980.9859155 | O40: =SUMIFS(AutumnProvRep!$H:$H,AutumnProvRep!$A:$A,Data!$A$27,AutumnProvRep!$G:$G,"Coventry",AutumnProvRep!$P:$P,Data!O$16)/$AY$32*$A$32 -> 0 | P40: =SUMIFS(AutumnProvRep!$H:$H,AutumnProvRep!$A:$A,Data!$A$27,AutumnProvRep!$G:$G,"Coventry",AutumnProvRep!$P:$P,Data!P$16)/$AY$32*$A$32 -> 0 | Q40: =SUMIFS(AutumnProvRep!$H:$H,AutumnProvRep!$A:$A,Data!$A$27,AutumnProvRep!$G:$G,"Coventry",AutumnProvRep!$P:$P,Data!Q$16)/$AY$32*$A$32 -> 0 | R40: =SUMIFS(AutumnProvRep!$H:$H,AutumnProvRep!$A:$A,Data!$A$27,AutumnProvRep!$G:$G,"Coventry",AutumnProvRep!$P:$P,Data!R$16)/$AY$32*$A$32 -> 1819.014085 | S40: =SUMIFS(AutumnProvRep!$H:$H,AutumnProvRep!$A:$A,Data!$A$27,AutumnProvRep!$G:$G,"Coventry",AutumnProvRep!$P:$P,Data!S$16)/$AY$32*$A$32 -> 0 | T40: =SUMIFS(AutumnProvRep!$H:$H,AutumnProvRep!$A:$A,Data!$A$27,AutumnProvRep!$G:$G,"Coventry",AutumnProvRep!$P:$P,Data!T$16)/$AY$32*$A$32 -> 210 | U40: =SUMIFS(AutumnProvRep!$H:$H,AutumnProvRep!$A:$A,Data!$A$27,AutumnProvRep!$G:$G,"Coventry",AutumnProvRep!$P:$P,Data!U$16)/$AY$32*$A$32 -> 0 | V40: 142.7605634 | W40: 724636.7494 | X40: =SUMIFS(AutumnProvRep!$H:$H,AutumnProvRep!$A:$A,Data!$A$27,AutumnProvRep!$G:$G,"<>Coventry",AutumnProvRep!$P:$P,Data!X$16)/$AY$32*$A$32 -> 0 | Y40: =SUMIFS(AutumnProvRep!$H:$H,AutumnProvRep!$A:$A,Data!$A$27,AutumnProvRep!$G:$G,"<>Coventry",AutumnProvRep!$P:$P,Data!Y$16)/$AY$32*$A$32 -> 0 | Z40: =SUMIFS(AutumnProvRep!$H:$H,AutumnProvRep!$A:$A,Data!$A$27,AutumnProvRep!$G:$G,"<>Coventry",AutumnProvRep!$P:$P,Data!Z$16)/$AY$32*$A$32 -> 0 | AA40: =SUMIFS(AutumnProvRep!$H:$H,AutumnProvRep!$A:$A,Data!$A$27,AutumnProvRep!$G:$G,"<>Coventry",AutumnProvRep!$P:$P,Data!AA$16)/$AY$32*$A$32 -> 0 | AB40: =SUMIFS(AutumnProvRep!$H:$H,AutumnProvRep!$A:$A,Data!$A$27,AutumnProvRep!$G:$G,"<>Coventry",AutumnProvRep!$P:$P,Data!AB$16)/$AY$32*$A$32 -> 0 | AC40: =SUMIFS(AutumnProvRep!$H:$H,AutumnProvRep!$A:$A,Data!$A$27,AutumnProvRep!$G:$G,"<>Coventry",AutumnProvRep!$P:$P,Data!AC$16)/$AY$32*$A$32 -> 0 | AD40: =SUMIFS(AutumnProvRep!$H:$H,AutumnProvRep!$A:$A,Data!$A$27,AutumnProvRep!$G:$G,"<>Coventry",AutumnProvRep!$P:$P,Data!AD$16)/$AY$32*$A$32 -> 0 | AE40: =SUMIFS(AutumnProvRep!$H:$H,AutumnProvRep!$A:$A,Data!$A$27,AutumnProvRep!$G:$G,"<>Coventry",AutumnProvRep!$P:$P,Data!AE$16)/$AY$32*$A$32 -> 0 | AF40: =SUMIFS(AutumnProvRep!$H:$H,AutumnProvRep!$A:$A,Data!$A$27,AutumnProvRep!$G:$G,"<>Coventry",AutumnProvRep!$P:$P,Data!AF$16)/$AY$32*$A$32 -> 0 | AG40: =SUMIFS(AutumnProvRep!$H:$H,AutumnProvRep!$A:$A,Data!$A$27,AutumnProvRep!$G:$G,"<>Coventry",AutumnProvRep!$P:$P,Data!AG$16)/$AY$32*$A$32 -> 0 | AH40: =SUMIFS(AutumnProvRep!$H:$H,AutumnProvRep!$A:$A,Data!$A$27,AutumnProvRep!$G:$G,"<>Coventry",AutumnProvRep!$P:$P,Data!AH$16)/$AY$32*$A$32 -> 0 | AI40: =SUMIFS(AutumnProvRep!$H:$H,AutumnProvRep!$A:$A,Data!$A$27,AutumnProvRep!$G:$G,"<>Coventry",AutumnProvRep!$P:$P,Data!AI$16)/$AY$32*$A$32 -> 0 | AJ40: =SUMIFS(AutumnProvRep!$H:$H,AutumnProvRep!$A:$A,Data!$A$27,AutumnProvRep!$G:$G,"<>Coventry",AutumnProvRep!$P:$P,Data!AJ$16)/$AY$32*$A$32 -> 0 | AK40: =SUMIFS(AutumnProvRep!$H:$H,AutumnProvRep!$A:$A,Data!$A$27,AutumnProvRep!$G:$G,"<>Coventry",AutumnProvRep!$P:$P,Data!AK$16)/$AY$32*$A$32 -> 0 | AL40: =SUMIFS(AutumnProvRep!$H:$H,AutumnProvRep!$A:$A,Data!$A$27,AutumnProvRep!$G:$G,"<>Coventry",AutumnProvRep!$P:$P,Data!AL$16)/$AY$32*$A$32 -> 65.07042254 | AM40: =SUMIFS(AutumnProvRep!$H:$H,AutumnProvRep!$A:$A,Data!$A$27,AutumnProvRep!$G:$G,"<>Coventry",AutumnProvRep!$P:$P,Data!AM$16)/$AY$32*$A$32 -> 0 | AN40: =SUMIFS(AutumnProvRep!$H:$H,AutumnProvRep!$A:$A,Data!$A$27,AutumnProvRep!$G:$G,"<>Coventry",AutumnProvRep!$P:$P,Data!AN$16)/$AY$32*$A$32 -> 0 | AO40: =SUMIFS(AutumnProvRep!$H:$H,AutumnProvRep!$A:$A,Data!$A$27,AutumnProvRep!$G:$G,"<>Coventry",AutumnProvRep!$P:$P,Data!AO$16)/$AY$32*$A$32 -> 0 | AP40: 0.9295774648 | AQ40: 4961.175782 | AR40: 729597.9252 | AS40: 143.6901408 | AT40: -11.30985915 | AU40: 155 | AV40: =[11]Data!AR54 -> 143.6901408 | AW40: =[11]Data!$M$11 -> 155
AR41: =SUM(AR33:AR40) -> 5019009.693
B44: Spring Term 2023
A45: =[10]Sheet1!$E$3 -> 59 | B45: School | AY45: 58
A46: 1 | B46: Castle Wood | C46: =10000/$A$15 -> 51.28205128 | D46: =SUMIFS(SpringProvRep!$H:$H,SpringProvRep!$A:$A,Data!$A$20,SpringProvRep!$G:$G,"Coventry",SpringProvRep!$P:$P,Data!D$16)/$AY$45*$A$45 -> 0 | E46: =SUMIFS(SpringProvRep!$H:$H,SpringProvRep!$A:$A,Data!$A$20,SpringProvRep!$G:$G,"Coventry",SpringProvRep!$P:$P,Data!E$16)/$AY$45*$A$45 -> 0 | F46: =SUMIFS(SpringProvRep!$H:$H,SpringProvRep!$A:$A,Data!$A$20,SpringProvRep!$G:$G,"Coventry",SpringProvRep!$P:$P,Data!F$16)/$AY$45*$A$45 -> 0 | G46: =SUMIFS(SpringProvRep!$H:$H,SpringProvRep!$A:$A,Data!$A$20,SpringProvRep!$G:$G,"Coventry",SpringProvRep!$P:$P,Data!G$16)/$AY$45*$A$45 -> 0 | H46: =SUMIFS(SpringProvRep!$H:$H,SpringProvRep!$A:$A,Data!$A$20,SpringProvRep!$G:$G,"Coventry",SpringProvRep!$P:$P,Data!H$16)/$AY$45*$A$45 -> 0 | I46: =SUMIFS(SpringProvRep!$H:$H,SpringProvRep!$A:$A,Data!$A$20,SpringProvRep!$G:$G,"Coventry",SpringProvRep!$P:$P,Data!I$16)/$AY$45*$A$45 -> 59 | J46: =SUMIFS(SpringProvRep!$H:$H,SpringProvRep!$A:$A,Data!$A$20,SpringProvRep!$G:$G,"Coventry",SpringProvRep!$P:$P,Data!J$16)/$AY$45*$A$45 -> 4848.172414 | K46: =SUMIFS(SpringProvRep!$H:$H,SpringProvRep!$A:$A,Data!$A$20,SpringProvRep!$G:$G,"Coventry",SpringProvRep!$P:$P,Data!K$16)/$AY$45*$A$45 -> 1239 | L46: =SUMIFS(SpringProvRep!$H:$H,SpringProvRep!$A:$A,Data!$A$20,SpringProvRep!$G:$G,"Coventry",SpringProvRep!$P:$P,Data!L$16)/$AY$45*$A$45 -> 0 | M46: =SUMIFS(SpringProvRep!$H:$H,SpringProvRep!$A:$A,Data!$A$20,SpringProvRep!$G:$G,"Coventry",SpringProvRep!$P:$P,Data!M$16)/$AY$45*$A$45 -> 295 | N46: =SUMIFS(SpringProvRep!$H:$H,SpringProvRep!$A:$A,Data!$A$20,SpringProvRep!$G:$G,"Coventry",SpringProvRep!$P:$P,Data!N$16)/$AY$45*$A$45 -> 413 | O46: =SUMIFS(SpringProvRep!$H:$H,SpringProvRep!$A:$A,Data!$A$20,SpringProvRep!$G:$G,"Coventry",SpringProvRep!$P:$P,Data!O$16)/$AY$45*$A$45 -> 0 | P46: =SUMIFS(SpringProvRep!$H:$H,SpringProvRep!$A:$A,Data!$A$20,SpringProvRep!$G:$G,"Coventry",SpringProvRep!$P:$P,Data!P$16)/$AY$45*$A$45 -> 1523.827586 | Q46: =SUMIFS(SpringProvRep!$H:$H,SpringProvRep!$A:$A,Data!$A$20,SpringProvRep!$G:$G,"Coventry",SpringProvRep!$P:$P,Data!Q$16)/$AY$45*$A$45 -> 708 | R46: =SUMIFS(SpringProvRep!$H:$H,SpringProvRep!$A:$A,Data!$A$20,SpringProvRep!$G:$G,"Coventry",SpringProvRep!$P:$P,Data!R$16)/$AY$45*$A$45 -> 0 | S46: =SUMIFS(SpringProvRep!$H:$H,SpringProvRep!$A:$A,Data!$A$20,SpringProvRep!$G:$G,"Coventry",SpringProvRep!$P:$P,Data!S$16)/$AY$45*$A$45 -> 295 | T46: =SUMIFS(SpringProvRep!$H:$H,SpringProvRep!$A:$A,Data!$A$20,SpringProvRep!$G:$G,"Coventry",SpringProvRep!$P:$P,Data!T$16)/$AY$45*$A$45 -> 0 | U46: =SUMIFS(SpringProvRep!$H:$H,SpringProvRep!$A:$A,Data!$A$20,SpringProvRep!$G:$G,"Coventry",SpringProvRep!$P:$P,Data!U$16)/$AY$45*$A$45 -> 0 | V46: =SUM(D46:U46)/$A$45 -> 159 | W46: =SUMPRODUCT(D46:U46,$V$6:$AM$6)/$A$15 -> 571204.4712 | X46: =SUMIFS(SpringProvRep!$H:$H,SpringProvRep!$A:$A,Data!$A$20,SpringProvRep!$G:$G,"<>Coventry",SpringProvRep!$P:$P,Data!X$16)/$AY$45*$A$45 -> 0 | Y46: =SUMIFS(SpringProvRep!$H:$H,SpringProvRep!$A:$A,Data!$A$20,SpringProvRep!$G:$G,"<>Coventry",SpringProvRep!$P:$P,Data!Y$16)/$AY$45*$A$45 -> 0 | Z46: =SUMIFS(SpringProvRep!$H:$H,SpringProvRep!$A:$A,Data!$A$20,SpringProvRep!$G:$G,"<>Coventry",SpringProvRep!$P:$P,Data!Z$16)/$AY$45*$A$45 -> 0 | AA46: =SUMIFS(SpringProvRep!$H:$H,SpringProvRep!$A:$A,Data!$A$20,SpringProvRep!$G:$G,"<>Coventry",SpringProvRep!$P:$P,Data!AA$16)/$AY$45*$A$45 -> 0 | AB46: =SUMIFS(SpringProvRep!$H:$H,SpringProvRep!$A:$A,Data!$A$20,SpringProvRep!$G:$G,"<>Coventry",SpringProvRep!$P:$P,Data!AB$16)/$AY$45*$A$45 -> 0 | AC46: =SUMIFS(SpringProvRep!$H:$H,SpringProvRep!$A:$A,Data!$A$20,SpringProvRep!$G:$G,"<>Coventry",SpringProvRep!$P:$P,Data!AC$16)/$AY$45*$A$45 -> 0 | AD46: =SUMIFS(SpringProvRep!$H:$H,SpringProvRep!$A:$A,Data!$A$20,SpringProvRep!$G:$G,"<>Coventry",SpringProvRep!$P:$P,Data!AD$16)/$AY$45*$A$45 -> 59 | AE46: =SUMIFS(SpringProvRep!$H:$H,SpringProvRep!$A:$A,Data!$A$20,SpringProvRep!$G:$G,"<>Coventry",SpringProvRep!$P:$P,Data!AE$16)/$AY$45*$A$45 -> 0 | AF46: =SUMIFS(SpringProvRep!$H:$H,SpringProvRep!$A:$A,Data!$A$20,SpringProvRep!$G:$G,"<>Coventry",SpringProvRep!$P:$P,Data!AF$16)/$AY$45*$A$45 -> 0 | AG46: =SUMIFS(SpringProvRep!$H:$H,SpringProvRep!$A:$A,Data!$A$20,SpringProvRep!$G:$G,"<>Coventry",SpringProvRep!$P:$P,Data!AG$16)/$AY$45*$A$45 -> 0 | AH46: =SUMIFS(SpringProvRep!$H:$H,SpringProvRep!$A:$A,Data!$A$20,SpringProvRep!$G:$G,"<>Coventry",SpringProvRep!$P:$P,Data!AH$16)/$AY$45*$A$45 -> 0 | AI46: =SUMIFS(SpringProvRep!$H:$H,SpringProvRep!$A:$A,Data!$A$20,SpringProvRep!$G:$G,"<>Coventry",SpringProvRep!$P:$P,Data!AI$16)/$AY$45*$A$45 -> 0 | AJ46: =SUMIFS(SpringProvRep!$H:$H,SpringProvRep!$A:$A,Data!$A$20,SpringProvRep!$G:$G,"<>Coventry",SpringProvRep!$P:$P,Data!AJ$16)/$AY$45*$A$45 -> 0 | AK46: =SUMIFS(SpringProvRep!$H:$H,SpringProvRep!$A:$A,Data!$A$20,SpringProvRep!$G:$G,"<>Coventry",SpringProvRep!$P:$P,Data!AK$16)/$AY$45*$A$45 -> 0 | AL46: =SUMIFS(SpringProvRep!$H:$H,SpringProvRep!$A:$A,Data!$A$20,SpringProvRep!$G:$G,"<>Coventry",SpringProvRep!$P:$P,Data!AL$16)/$AY$45*$A$45 -> 0 | AM46: =SUMIFS(SpringProvRep!$H:$H,SpringProvRep!$A:$A,Data!$A$20,SpringProvRep!$G:$G,"<>Coventry",SpringProvRep!$P:$P,Data!AM$16)/$AY$45*$A$45 -> 0 | AN46: =SUMIFS(SpringProvRep!$H:$H,SpringProvRep!$A:$A,Data!$A$20,SpringProvRep!$G:$G,"<>Coventry",SpringProvRep!$P:$P,Data!AN$16)/$AY$45*$A$45 -> 0 | AO46: =SUMIFS(SpringProvRep!$H:$H,SpringProvRep!$A:$A,Data!$A$20,SpringProvRep!$G:$G,"<>Coventry",SpringProvRep!$P:$P,Data!AO$16)/$AY$45*$A$45 -> 0 | AP46: =SUM(X46:AO46)/$A$45 -> 1 | AQ46: =SUMPRODUCT(X46:AO46,$V$4:$AM$4)/$A$15 -> 2998.899389 | AR46: =W46+AQ46 -> 574203.3706 | AS46: =AP46+V46 -> 160 | AT46: =AS46-AU46 -> 0 | AU46: =AU33 -> 160 | AV46: =[11]Data!$AR59 -> 160 | AW46: =[11]Data!$M$4 -> 160
A47: 2 | B47: Kingsbury | C47: =10000/$A$15 -> 51.28205128 | D47: =SUMIFS(SpringProvRep!$H:$H,SpringProvRep!$A:$A,Data!$A$21,SpringProvRep!$G:$G,"Coventry",SpringProvRep!$P:$P,Data!D$16)/$AY$45*$A$45 -> 0 | E47: =SUMIFS(SpringProvRep!$H:$H,SpringProvRep!$A:$A,Data!$A$21,SpringProvRep!$G:$G,"Coventry",SpringProvRep!$P:$P,Data!E$16)/$AY$45*$A$45 -> 0 | F47: =BW47+SUMIFS(SpringProvRep!$H:$H,SpringProvRep!$A:$A,Data!$A$21,SpringProvRep!$G:$G,"Coventry",SpringProvRep!$P:$P,Data!F$16)/$AY$45*$A$45 -> 62.835 | G47: =BX47+SUMIFS(SpringProvRep!$H:$H,SpringProvRep!$A:$A,Data!$A$21,SpringProvRep!$G:$G,"Coventry",SpringProvRep!$P:$P,Data!G$16)/$AY$45*$A$45 -> 36.83431034 | H47: =BY47+SUMIFS(SpringProvRep!$H:$H,SpringProvRep!$A:$A,Data!$A$21,SpringProvRep!$G:$G,"Coventry",SpringProvRep!$P:$P,Data!H$16)/$AY$45*$A$45 -> 0 | I47: =BZ47+SUMIFS(SpringProvRep!$H:$H,SpringProvRep!$A:$A,Data!$A$21,SpringProvRep!$G:$G,"Coventry",SpringProvRep!$P:$P,Data!I$16)/$AY$45*$A$45 -> 0 | J47: =CA47+SUMIFS(SpringProvRep!$H:$H,SpringProvRep!$A:$A,Data!$A$21,SpringProvRep!$G:$G,"Coventry",SpringProvRep!$P:$P,Data!J$16)/$AY$45*$A$45 -> 3141.75 | K47: =CB47+SUMIFS(SpringProvRep!$H:$H,SpringProvRep!$A:$A,Data!$A$21,SpringProvRep!$G:$G,"Coventry",SpringProvRep!$P:$P,Data!K$16)/$AY$45*$A$45 -> 905.6906897 | L47: =CC47+SUMIFS(SpringProvRep!$H:$H,SpringProvRep!$A:$A,Data!$A$21,SpringProvRep!$G:$G,"Coventry",SpringProvRep!$P:$P,Data!L$16)/$AY$45*$A$45 -> 0 | M47: =CD47+SUMIFS(SpringProvRep!$H:$H,SpringProvRep!$A:$A,Data!$A$21,SpringProvRep!$G:$G,"Coventry",SpringProvRep!$P:$P,Data!M$16)/$AY$45*$A$45 -> 0 | N47: =CE47+SUMIFS(SpringProvRep!$H:$H,SpringProvRep!$A:$A,Data!$A$21,SpringProvRep!$G:$G,"Coventry",SpringProvRep!$P:$P,Data!N$16)/$AY$45*$A$45 -> 277.3406897 | O47: =CF47+SUMIFS(SpringProvRep!$H:$H,SpringProvRep!$A:$A,Data!$A$21,SpringProvRep!$G:$G,"Coventry",SpringProvRep!$P:$P,Data!O$16)/$AY$45*$A$45 -> 0 | P47: =CG47+SUMIFS(SpringProvRep!$H:$H,SpringProvRep!$A:$A,Data!$A$21,SpringProvRep!$G:$G,"Coventry",SpringProvRep!$P:$P,Data!P$16)/$AY$45*$A$45 -> 1003.193276 | Q47: =CH47+SUMIFS(SpringProvRep!$H:$H,SpringProvRep!$A:$A,Data!$A$21,SpringProvRep!$G:$G,"Coventry",SpringProvRep!$P:$P,Data!Q$16)/$AY$45*$A$45 -> 62.835 | R47: =CI47+SUMIFS(SpringProvRep!$H:$H,SpringProvRep!$A:$A,Data!$A$21,SpringProvRep!$G:$G,"Coventry",SpringProvRep!$P:$P,Data!R$16)/$AY$45*$A$45 -> 0 | S47: =CJ47+SUMIFS(SpringProvRep!$H:$H,SpringProvRep!$A:$A,Data!$A$21,SpringProvRep!$G:$G,"Coventry",SpringProvRep!$P:$P,Data!S$16)/$AY$45*$A$45 -> 0 | T47: =CK47+SUMIFS(SpringProvRep!$H:$H,SpringProvRep!$A:$A,Data!$A$21,SpringProvRep!$G:$G,"Coventry",SpringProvRep!$P:$P,Data!T$16)/$AY$45*$A$45 -> 0 | U47: =SUMIFS(SpringProvRep!$H:$H,SpringProvRep!$A:$A,Data!$A$21,SpringProvRep!$G:$G,"Coventry",SpringProvRep!$P:$P,Data!U$16)/$AY$45*$A$45 -> 0 | V47: =SUM(D47:U47)/$A$45 -> 93.05896552 | W47: 320827.1588 | X47: =SUMIFS(SpringProvRep!$H:$H,SpringProvRep!$A:$A,Data!$A$21,SpringProvRep!$G:$G,"<>Coventry",SpringProvRep!$P:$P,Data!X$16)/$AY$45*$A$45 -> 0 | Y47: =SUMIFS(SpringProvRep!$H:$H,SpringProvRep!$A:$A,Data!$A$21,SpringProvRep!$G:$G,"<>Coventry",SpringProvRep!$P:$P,Data!Y$16)/$AY$45*$A$45 -> 0 | Z47: =SUMIFS(SpringProvRep!$H:$H,SpringProvRep!$A:$A,Data!$A$21,SpringProvRep!$G:$G,"<>Coventry",SpringProvRep!$P:$P,Data!Z$16)/$AY$45*$A$45 -> 0 | AA47: =SUMIFS(SpringProvRep!$H:$H,SpringProvRep!$A:$A,Data!$A$21,SpringProvRep!$G:$G,"<>Coventry",SpringProvRep!$P:$P,Data!AA$16)/$AY$45*$A$45 -> 0 | AB47: =SUMIFS(SpringProvRep!$H:$H,SpringProvRep!$A:$A,Data!$A$21,SpringProvRep!$G:$G,"<>Coventry",SpringProvRep!$P:$P,Data!AB$16)/$AY$45*$A$45 -> 0 | AC47: =SUMIFS(SpringProvRep!$H:$H,SpringProvRep!$A:$A,Data!$A$21,SpringProvRep!$G:$G,"<>Coventry",SpringProvRep!$P:$P,Data!AC$16)/$AY$45*$A$45 -> 0 | AD47: =SUMIFS(SpringProvRep!$H:$H,SpringProvRep!$A:$A,Data!$A$21,SpringProvRep!$G:$G,"<>Coventry",SpringProvRep!$P:$P,Data!AD$16)/$AY$45*$A$45 -> 59 | AE47: =SUMIFS(SpringProvRep!$H:$H,SpringProvRep!$A:$A,Data!$A$21,SpringProvRep!$G:$G,"<>Coventry",SpringProvRep!$P:$P,Data!AE$16)/$AY$45*$A$45 -> 59 | AF47: =SUMIFS(SpringProvRep!$H:$H,SpringProvRep!$A:$A,Data!$A$21,SpringProvRep!$G:$G,"<>Coventry",SpringProvRep!$P:$P,Data!AF$16)/$AY$45*$A$45 -> 0 | AG47: =SUMIFS(SpringProvRep!$H:$H,SpringProvRep!$A:$A,Data!$A$21,SpringProvRep!$G:$G,"<>Coventry",SpringProvRep!$P:$P,Data!AG$16)/$AY$45*$A$45 -> 0 | AH47: =SUMIFS(SpringProvRep!$H:$H,SpringProvRep!$A:$A,Data!$A$21,SpringProvRep!$G:$G,"<>Coventry",SpringProvRep!$P:$P,Data!AH$16)/$AY$45*$A$45 -> 0 | AI47: =SUMIFS(SpringProvRep!$H:$H,SpringProvRep!$A:$A,Data!$A$21,SpringProvRep!$G:$G,"<>Coventry",SpringProvRep!$P:$P,Data!AI$16)/$AY$45*$A$45 -> 0 | AJ47: =SUMIFS(SpringProvRep!$H:$H,SpringProvRep!$A:$A,Data!$A$21,SpringProvRep!$G:$G,"<>Coventry",SpringProvRep!$P:$P,Data!AJ$16)/$AY$45*$A$45 -> 118 | AK47: =SUMIFS(SpringProvRep!$H:$H,SpringProvRep!$A:$A,Data!$A$21,SpringProvRep!$G:$G,"<>Coventry",SpringProvRep!$P:$P,Data!AK$16)/$AY$45*$A$45 -> 0 | AL47: =SUMIFS(SpringProvRep!$H:$H,SpringProvRep!$A:$A,Data!$A$21,SpringProvRep!$G:$G,"<>Coventry",SpringProvRep!$P:$P,Data!AL$16)/$AY$45*$A$45 -> 0 | AM47: =SUMIFS(SpringProvRep!$H:$H,SpringProvRep!$A:$A,Data!$A$21,SpringProvRep!$G:$G,"<>Coventry",SpringProvRep!$P:$P,Data!AM$16)/$AY$45*$A$45 -> 0 | AN47: =SUMIFS(SpringProvRep!$H:$H,SpringProvRep!$A:$A,Data!$A$21,SpringProvRep!$G:$G,"<>Coventry",SpringProvRep!$P:$P,Data!AN$16)/$AY$45*$A$45 -> 0 | AO47: =SUMIFS(SpringProvRep!$H:$H,SpringProvRep!$A:$A,Data!$A$21,SpringProvRep!$G:$G,"<>Coventry",SpringProvRep!$P:$P,Data!AO$16)/$AY$45*$A$45 -> 0 | AP47: =SUM(X47:AO47)/$A$45 -> 4 | AQ47: 15519.30827 | AR47: =W47+AQ47 -> 336346.4671 | AS47: =AP47+V47 -> 97.05896552 | AT47: -2.941034483 | AU47: =AU34 -> 100 | AV47: =[11]Data!$AR60 -> 91.37931034 | AW47: =[11]Data!$M$5 -> 92 | AZ47: =(AU47-AV47)*$A$45 -> 508.6206897 | BA47: =AS47*$A$45 -> 5726.478966 | BB47: =$AZ$48/$BA$48*D47 -> 0 | BC47: =$AZ$48/$BA$48*E47 -> 0 | BD47: =$AZ$48/$BA$48*F47 -> 4.084275 | BE47: =$AZ$48/$BA$48*G47 -> 2.394230172 | BF47: =$AZ$48/$BA$48*H47 -> 0 | BG47: =$AZ$48/$BA$48*I47 -> 0 | BH47: =$AZ$48/$BA$48*J47 -> 204.21375 | BI47: =$AZ$48/$BA$48*K47 -> 58.86989483 | BJ47: =$AZ$48/$BA$48*L47 -> 0 | BK47: =$AZ$48/$BA$48*M47 -> 0 | BL47: =$AZ$48/$BA$48*N47 -> 18.02714483 | BM47: =$AZ$48/$BA$48*O47 -> 0 | BN47: =$AZ$48/$BA$48*P47 -> 65.20756293 | BO47: =$AZ$48/$BA$48*Q47 -> 4.084275 | BP47: =$AZ$48/$BA$48*R47 -> 0 | BQ47: =$AZ$48/$BA$48*S47 -> 0 | BR47: =$AZ$48/$BA$48*T47 -> 0 | BS47: =$AZ$48/$BA$48*U47 -> 0 | BU47: 0 | BV47: 0 | BW47: 3.835 | BX47: 2.248103448 | BY47: 0 | BZ47: 0 | CA47: 191.75 | CB47: 55.27689655 | CC47: 0 | CD47: 0 | CE47: 16.92689655 | CF47: 0 | CG47: 61.22775862 | CH47: 3.835 | CI47: 0 | CJ47: 0 | CK47: 0 | CL47: 0
A48: 3 | B48: RiverBank | C48: 51.28205128 | D48: =BU48+SUMIFS(SpringProvRep!$H:$H,SpringProvRep!$A:$A,Data!$A$22,SpringProvRep!$G:$G,"Coventry",SpringProvRep!$P:$P,Data!D$16)/$AY$45*$A$45 -> 0 | E48: =BV48+SUMIFS(SpringProvRep!$H:$H,SpringProvRep!$A:$A,Data!$A$22,SpringProvRep!$G:$G,"Coventry",SpringProvRep!$P:$P,Data!E$16)/$AY$45*$A$45 -> 0 | F48: =BW48+SUMIFS(SpringProvRep!$H:$H,SpringProvRep!$A:$A,Data!$A$22,SpringProvRep!$G:$G,"Coventry",SpringProvRep!$P:$P,Data!F$16)/$AY$45*$A$45 -> 883.4224599 | G48: =BX48+SUMIFS(SpringProvRep!$H:$H,SpringProvRep!$A:$A,Data!$A$22,SpringProvRep!$G:$G,"Coventry",SpringProvRep!$P:$P,Data!G$16)/$AY$45*$A$45 -> 1829.946524 | H48: =BY48+SUMIFS(SpringProvRep!$H:$H,SpringProvRep!$A:$A,Data!$A$22,SpringProvRep!$G:$G,"Coventry",SpringProvRep!$P:$P,Data!H$16)/$AY$45*$A$45 -> 126.2032086 | I48: =BZ48+SUMIFS(SpringProvRep!$H:$H,SpringProvRep!$A:$A,Data!$A$22,SpringProvRep!$G:$G,"Coventry",SpringProvRep!$P:$P,Data!I$16)/$AY$45*$A$45 -> 63.10160428 | J48: =CA48+SUMIFS(SpringProvRep!$H:$H,SpringProvRep!$A:$A,Data!$A$22,SpringProvRep!$G:$G,"Coventry",SpringProvRep!$P:$P,Data!J$16)/$AY$45*$A$45 -> 2776.470588 | K48: =CB48+SUMIFS(SpringProvRep!$H:$H,SpringProvRep!$A:$A,Data!$A$22,SpringProvRep!$G:$G,"Coventry",SpringProvRep!$P:$P,Data!K$16)/$AY$45*$A$45 -> 3344.385027 | L48: =CC48+SUMIFS(SpringProvRep!$H:$H,SpringProvRep!$A:$A,Data!$A$22,SpringProvRep!$G:$G,"Coventry",SpringProvRep!$P:$P,Data!L$16)/$AY$45*$A$45 -> 189.3048128 | M48: =CD48+SUMIFS(SpringProvRep!$H:$H,SpringProvRep!$A:$A,Data!$A$22,SpringProvRep!$G:$G,"Coventry",SpringProvRep!$P:$P,Data!M$16)/$AY$45*$A$45 -> 504.8128342 | N48: =CE48+SUMIFS(SpringProvRep!$H:$H,SpringProvRep!$A:$A,Data!$A$22,SpringProvRep!$G:$G,"Coventry",SpringProvRep!$P:$P,Data!N$16)/$AY$45*$A$45 -> 126.2032086 | O48: =CF48+SUMIFS(SpringProvRep!$H:$H,SpringProvRep!$A:$A,Data!$A$22,SpringProvRep!$G:$G,"Coventry",SpringProvRep!$P:$P,Data!O$16)/$AY$45*$A$45 -> 252.4064171 | P48: =CG48+SUMIFS(SpringProvRep!$H:$H,SpringProvRep!$A:$A,Data!$A$22,SpringProvRep!$G:$G,"Coventry",SpringProvRep!$P:$P,Data!P$16)/$AY$45*$A$45 -> 1388.235294 | Q48: =CH48+SUMIFS(SpringProvRep!$H:$H,SpringProvRep!$A:$A,Data!$A$22,SpringProvRep!$G:$G,"Coventry",SpringProvRep!$P:$P,Data!Q$16)/$AY$45*$A$45 -> 252.4064171 | R48: =CI48+SUMIFS(SpringProvRep!$H:$H,SpringProvRep!$A:$A,Data!$A$22,SpringProvRep!$G:$G,"Coventry",SpringProvRep!$P:$P,Data!R$16)/$AY$45*$A$45 -> 0 | S48: =CJ48+SUMIFS(SpringProvRep!$H:$H,SpringProvRep!$A:$A,Data!$A$22,SpringProvRep!$G:$G,"Coventry",SpringProvRep!$P:$P,Data!S$16)/$AY$45*$A$45 -> 63.10160428 | T48: =CK48+SUMIFS(SpringProvRep!$H:$H,SpringProvRep!$A:$A,Data!$A$22,SpringProvRep!$G:$G,"Coventry",SpringProvRep!$P:$P,Data!T$16)/$AY$45*$A$45 -> 0 | U48: =CL48+SUMIFS(SpringProvRep!$H:$H,SpringProvRep!$A:$A,Data!$A$22,SpringProvRep!$G:$G,"Coventry",SpringProvRep!$P:$P,Data!U$16)/$AY$45*$A$45 -> 0 | V48: 200 | W48: 602850.463 | X48: =SUMIFS(SpringProvRep!$H:$H,SpringProvRep!$A:$A,Data!$A$22,SpringProvRep!$G:$G,"<>Coventry",SpringProvRep!$P:$P,Data!X$16)/$AY$45*$A$45 -> 0 | Y48: =SUMIFS(SpringProvRep!$H:$H,SpringProvRep!$A:$A,Data!$A$22,SpringProvRep!$G:$G,"<>Coventry",SpringProvRep!$P:$P,Data!Y$16)/$AY$45*$A$45 -> 0 | Z48: =SUMIFS(SpringProvRep!$H:$H,SpringProvRep!$A:$A,Data!$A$22,SpringProvRep!$G:$G,"<>Coventry",SpringProvRep!$P:$P,Data!Z$16)/$AY$45*$A$45 -> 0 | AA48: =SUMIFS(SpringProvRep!$H:$H,SpringProvRep!$A:$A,Data!$A$22,SpringProvRep!$G:$G,"<>Coventry",SpringProvRep!$P:$P,Data!AA$16)/$AY$45*$A$45 -> 0 | AB48: =SUMIFS(SpringProvRep!$H:$H,SpringProvRep!$A:$A,Data!$A$22,SpringProvRep!$G:$G,"<>Coventry",SpringProvRep!$P:$P,Data!AB$16)/$AY$45*$A$45 -> 0 | AC48: =SUMIFS(SpringProvRep!$H:$H,SpringProvRep!$A:$A,Data!$A$22,SpringProvRep!$G:$G,"<>Coventry",SpringProvRep!$P:$P,Data!AC$16)/$AY$45*$A$45 -> 0 | AD48: =SUMIFS(SpringProvRep!$H:$H,SpringProvRep!$A:$A,Data!$A$22,SpringProvRep!$G:$G,"<>Coventry",SpringProvRep!$P:$P,Data!AD$16)/$AY$45*$A$45 -> 0 | AE48: =SUMIFS(SpringProvRep!$H:$H,SpringProvRep!$A:$A,Data!$A$22,SpringProvRep!$G:$G,"<>Coventry",SpringProvRep!$P:$P,Data!AE$16)/$AY$45*$A$45 -> 0 | AF48: =SUMIFS(SpringProvRep!$H:$H,SpringProvRep!$A:$A,Data!$A$22,SpringProvRep!$G:$G,"<>Coventry",SpringProvRep!$P:$P,Data!AF$16)/$AY$45*$A$45 -> 0 | AG48: =SUMIFS(SpringProvRep!$H:$H,SpringProvRep!$A:$A,Data!$A$22,SpringProvRep!$G:$G,"<>Coventry",SpringProvRep!$P:$P,Data!AG$16)/$AY$45*$A$45 -> 0 | AH48: =SUMIFS(SpringProvRep!$H:$H,SpringProvRep!$A:$A,Data!$A$22,SpringProvRep!$G:$G,"<>Coventry",SpringProvRep!$P:$P,Data!AH$16)/$AY$45*$A$45 -> 0 | AI48: =SUMIFS(SpringProvRep!$H:$H,SpringProvRep!$A:$A,Data!$A$22,SpringProvRep!$G:$G,"<>Coventry",SpringProvRep!$P:$P,Data!AI$16)/$AY$45*$A$45 -> 0 | AJ48: =SUMIFS(SpringProvRep!$H:$H,SpringProvRep!$A:$A,Data!$A$22,SpringProvRep!$G:$G,"<>Coventry",SpringProvRep!$P:$P,Data!AJ$16)/$AY$45*$A$45 -> 0 | AK48: =SUMIFS(SpringProvRep!$H:$H,SpringProvRep!$A:$A,Data!$A$22,SpringProvRep!$G:$G,"<>Coventry",SpringProvRep!$P:$P,Data!AK$16)/$AY$45*$A$45 -> 0 | AL48: =SUMIFS(SpringProvRep!$H:$H,SpringProvRep!$A:$A,Data!$A$22,SpringProvRep!$G:$G,"<>Coventry",SpringProvRep!$P:$P,Data!AL$16)/$AY$45*$A$45 -> 0 | AM48: =SUMIFS(SpringProvRep!$H:$H,SpringProvRep!$A:$A,Data!$A$22,SpringProvRep!$G:$G,"<>Coventry",SpringProvRep!$P:$P,Data!AM$16)/$AY$45*$A$45 -> 0 | AN48: =SUMIFS(SpringProvRep!$H:$H,SpringProvRep!$A:$A,Data!$A$22,SpringProvRep!$G:$G,"<>Coventry",SpringProvRep!$P:$P,Data!AN$16)/$AY$45*$A$45 -> 0 | AO48: =SUMIFS(SpringProvRep!$H:$H,SpringProvRep!$A:$A,Data!$A$22,SpringProvRep!$G:$G,"<>Coventry",SpringProvRep!$P:$P,Data!AO$16)/$AY$45*$A$45 -> 0 | AP48: 0 | AQ48: 0 | AR48: 602850.463 | AS48: 200 | AT48: 0 | AU48: 200 | AV48: =[11]Data!$AR61 -> 187 | AW48: =[11]Data!$M$6 -> 188 | AZ48: =(AU48-AV48)*$A$45 -> 767 | BA48: =AS48*$A$45 -> 11800 | BB48: =$AZ$48/$BA$48*D48 -> 0 | BC48: =$AZ$48/$BA$48*E48 -> 0 | BD48: 57.42245989 | BE48: 118.9465241 | BF48: 8.203208556 | BG48: 4.101604278 | BH48: 180.4705882 | BI48: 217.3850267 | BJ48: 12.30481283 | BK48: 32.81283422 | BL48: 8.203208556 | BM48: 16.40641711 | BN48: 90.23529412 | BO48: 16.40641711 | BP48: 0 | BQ48: 4.101604278 | BR48: 0 | BS48: 0 | BU48: 0 | BV48: 0 | BW48: 57.42245989 | BX48: 118.9465241 | BY48: 8.203208556 | BZ48: 4.101604278 | CA48: 180.4705882 | CB48: 217.3850267 | CC48: 12.30481283 | CD48: 32.81283422 | CE48: 8.203208556 | CF48: 16.40641711 | CG48: 90.23529412 | CH48: 16.40641711 | CI48: 0 | CJ48: 4.101604278 | CK48: 0 | CL48: 0
A49: 4 | B49: Corley | C49: 51.28205128 | D49: =BU49+SUMIFS(SpringProvRep!$H:$H,SpringProvRep!$A:$A,Data!$A$23,SpringProvRep!$G:$G,"Coventry",SpringProvRep!$P:$P,Data!D$16)/$AY$45*$A$45 -> 0 | E49: =BV49+SUMIFS(SpringProvRep!$H:$H,SpringProvRep!$A:$A,Data!$A$23,SpringProvRep!$G:$G,"Coventry",SpringProvRep!$P:$P,Data!E$16)/$AY$45*$A$45 -> 0 | F49: =BW49+SUMIFS(SpringProvRep!$H:$H,SpringProvRep!$A:$A,Data!$A$23,SpringProvRep!$G:$G,"Coventry",SpringProvRep!$P:$P,Data!F$16)/$AY$45*$A$45 -> 56.06273813 | G49: =BX49+SUMIFS(SpringProvRep!$H:$H,SpringProvRep!$A:$A,Data!$A$23,SpringProvRep!$G:$G,"Coventry",SpringProvRep!$P:$P,Data!G$16)/$AY$45*$A$45 -> 0 | H49: =BY49+SUMIFS(SpringProvRep!$H:$H,SpringProvRep!$A:$A,Data!$A$23,SpringProvRep!$G:$G,"Coventry",SpringProvRep!$P:$P,Data!H$16)/$AY$45*$A$45 -> 0 | I49: =BZ49+SUMIFS(SpringProvRep!$H:$H,SpringProvRep!$A:$A,Data!$A$23,SpringProvRep!$G:$G,"Coventry",SpringProvRep!$P:$P,Data!I$16)/$AY$45*$A$45 -> 0 | J49: =CA49+SUMIFS(SpringProvRep!$H:$H,SpringProvRep!$A:$A,Data!$A$23,SpringProvRep!$G:$G,"Coventry",SpringProvRep!$P:$P,Data!J$16)/$AY$45*$A$45 -> 5760.929642 | K49: =CB49+SUMIFS(SpringProvRep!$H:$H,SpringProvRep!$A:$A,Data!$A$23,SpringProvRep!$G:$G,"Coventry",SpringProvRep!$P:$P,Data!K$16)/$AY$45*$A$45 -> 0 | L49: =CC49+SUMIFS(SpringProvRep!$H:$H,SpringProvRep!$A:$A,Data!$A$23,SpringProvRep!$G:$G,"Coventry",SpringProvRep!$P:$P,Data!L$16)/$AY$45*$A$45 -> 504.5646431 | M49: =CD49+SUMIFS(SpringProvRep!$H:$H,SpringProvRep!$A:$A,Data!$A$23,SpringProvRep!$G:$G,"Coventry",SpringProvRep!$P:$P,Data!M$16)/$AY$45*$A$45 -> 0 | N49: =CE49+SUMIFS(SpringProvRep!$H:$H,SpringProvRep!$A:$A,Data!$A$23,SpringProvRep!$G:$G,"Coventry",SpringProvRep!$P:$P,Data!N$16)/$AY$45*$A$45 -> 181.7205994 | O49: =CF49+SUMIFS(SpringProvRep!$H:$H,SpringProvRep!$A:$A,Data!$A$23,SpringProvRep!$G:$G,"Coventry",SpringProvRep!$P:$P,Data!O$16)/$AY$45*$A$45 -> 0 | P49: =CG49+SUMIFS(SpringProvRep!$H:$H,SpringProvRep!$A:$A,Data!$A$23,SpringProvRep!$G:$G,"Coventry",SpringProvRep!$P:$P,Data!P$16)/$AY$45*$A$45 -> 995.5969012 | Q49: =CH49+SUMIFS(SpringProvRep!$H:$H,SpringProvRep!$A:$A,Data!$A$23,SpringProvRep!$G:$G,"Coventry",SpringProvRep!$P:$P,Data!Q$16)/$AY$45*$A$45 -> 0 | R49: =CI49+SUMIFS(SpringProvRep!$H:$H,SpringProvRep!$A:$A,Data!$A$23,SpringProvRep!$G:$G,"Coventry",SpringProvRep!$P:$P,Data!R$16)/$AY$45*$A$45 -> 0 | S49: =CJ49+SUMIFS(SpringProvRep!$H:$H,SpringProvRep!$A:$A,Data!$A$23,SpringProvRep!$G:$G,"Coventry",SpringProvRep!$P:$P,Data!S$16)/$AY$45*$A$45 -> 0 | T49: =CK49+SUMIFS(SpringProvRep!$H:$H,SpringProvRep!$A:$A,Data!$A$23,SpringProvRep!$G:$G,"Coventry",SpringProvRep!$P:$P,Data!T$16)/$AY$45*$A$45 -> 0 | U49: =CL49+SUMIFS(SpringProvRep!$H:$H,SpringProvRep!$A:$A,Data!$A$23,SpringProvRep!$G:$G,"Coventry",SpringProvRep!$P:$P,Data!U$16)/$AY$45*$A$45 -> 0 | V49: 127.0995682 | W49: 426973.7188 | X49: =SUMIFS(SpringProvRep!$H:$H,SpringProvRep!$A:$A,Data!$A$23,SpringProvRep!$G:$G,"<>Coventry",SpringProvRep!$P:$P,Data!X$16)/$AY$45*$A$45 -> 0 | Y49: =SUMIFS(SpringProvRep!$H:$H,SpringProvRep!$A:$A,Data!$A$23,SpringProvRep!$G:$G,"<>Coventry",SpringProvRep!$P:$P,Data!Y$16)/$AY$45*$A$45 -> 0 | Z49: =SUMIFS(SpringProvRep!$H:$H,SpringProvRep!$A:$A,Data!$A$23,SpringProvRep!$G:$G,"<>Coventry",SpringProvRep!$P:$P,Data!Z$16)/$AY$45*$A$45 -> 0 | AA49: =SUMIFS(SpringProvRep!$H:$H,SpringProvRep!$A:$A,Data!$A$23,SpringProvRep!$G:$G,"<>Coventry",SpringProvRep!$P:$P,Data!AA$16)/$AY$45*$A$45 -> 0 | AB49: =SUMIFS(SpringProvRep!$H:$H,SpringProvRep!$A:$A,Data!$A$23,SpringProvRep!$G:$G,"<>Coventry",SpringProvRep!$P:$P,Data!AB$16)/$AY$45*$A$45 -> 0 | AC49: =SUMIFS(SpringProvRep!$H:$H,SpringProvRep!$A:$A,Data!$A$23,SpringProvRep!$G:$G,"<>Coventry",SpringProvRep!$P:$P,Data!AC$16)/$AY$45*$A$45 -> 0 | AD49: =SUMIFS(SpringProvRep!$H:$H,SpringProvRep!$A:$A,Data!$A$23,SpringProvRep!$G:$G,"<>Coventry",SpringProvRep!$P:$P,Data!AD$16)/$AY$45*$A$45 -> 118 | AE49: =SUMIFS(SpringProvRep!$H:$H,SpringProvRep!$A:$A,Data!$A$23,SpringProvRep!$G:$G,"<>Coventry",SpringProvRep!$P:$P,Data!AE$16)/$AY$45*$A$45 -> 0 | AF49: =SUMIFS(SpringProvRep!$H:$H,SpringProvRep!$A:$A,Data!$A$23,SpringProvRep!$G:$G,"<>Coventry",SpringProvRep!$P:$P,Data!AF$16)/$AY$45*$A$45 -> 0 | AG49: =SUMIFS(SpringProvRep!$H:$H,SpringProvRep!$A:$A,Data!$A$23,SpringProvRep!$G:$G,"<>Coventry",SpringProvRep!$P:$P,Data!AG$16)/$AY$45*$A$45 -> 0 | AH49: =SUMIFS(SpringProvRep!$H:$H,SpringProvRep!$A:$A,Data!$A$23,SpringProvRep!$G:$G,"<>Coventry",SpringProvRep!$P:$P,Data!AH$16)/$AY$45*$A$45 -> 0 | AI49: =SUMIFS(SpringProvRep!$H:$H,SpringProvRep!$A:$A,Data!$A$23,SpringProvRep!$G:$G,"<>Coventry",SpringProvRep!$P:$P,Data!AI$16)/$AY$45*$A$45 -> 0 | AJ49: =SUMIFS(SpringProvRep!$H:$H,SpringProvRep!$A:$A,Data!$A$23,SpringProvRep!$G:$G,"<>Coventry",SpringProvRep!$P:$P,Data!AJ$16)/$AY$45*$A$45 -> 0 | AK49: =SUMIFS(SpringProvRep!$H:$H,SpringProvRep!$A:$A,Data!$A$23,SpringProvRep!$G:$G,"<>Coventry",SpringProvRep!$P:$P,Data!AK$16)/$AY$45*$A$45 -> 0 | AL49: =SUMIFS(SpringProvRep!$H:$H,SpringProvRep!$A:$A,Data!$A$23,SpringProvRep!$G:$G,"<>Coventry",SpringProvRep!$P:$P,Data!AL$16)/$AY$45*$A$45 -> 0 | AM49: =SUMIFS(SpringProvRep!$H:$H,SpringProvRep!$A:$A,Data!$A$23,SpringProvRep!$G:$G,"<>Coventry",SpringProvRep!$P:$P,Data!AM$16)/$AY$45*$A$45 -> 0 | AN49: =SUMIFS(SpringProvRep!$H:$H,SpringProvRep!$A:$A,Data!$A$23,SpringProvRep!$G:$G,"<>Coventry",SpringProvRep!$P:$P,Data!AN$16)/$AY$45*$A$45 -> 0 | AO49: =SUMIFS(SpringProvRep!$H:$H,SpringProvRep!$A:$A,Data!$A$23,SpringProvRep!$G:$G,"<>Coventry",SpringProvRep!$P:$P,Data!AO$16)/$AY$45*$A$45 -> 0 | AP49: 2 | AQ49: 5997.798778 | AR49: 432971.5175 | AS49: 129.0995682 | AT49: 0.09956819914 | AU49: 129 | AV49: =[11]Data!$AR62 -> 135.7586207 | AW49: =[11]Data!$M$7 -> 129 | AZ49: =(AU49-AV49)*$A$45 -> -398.7586207 | BA49: =AS49*$A$45 -> 7616.874524 | BB49: =$AZ$49/$BA$49*D49 -> 0 | BC49: =$AZ$49/$BA$49*E49 -> 0 | BD49: -2.934996508 | BE49: 0 | BF49: 0 | BG49: 0 | BH49: -301.5961929 | BI49: 0 | BJ49: -26.41496857 | BK49: 0 | BL49: -9.513436956 | BM49: 0 | BN49: -52.12148971 | BO49: 0 | BP49: 0 | BQ49: 0 | BR49: 0 | BS49: 0 | BU49: 0 | BV49: 0 | BW49: -2.937261875 | BX49: 0 | BY49: 0 | BZ49: 0 | CA49: -301.8289788 | CB49: 0 | CC49: -26.43535687 | CD49: 0 | CE49: -9.520779869 | CF49: 0 | CG49: -52.1617195 | CH49: 0 | CI49: 0 | CJ49: 0 | CK49: 0 | CL49: 0
A50: 5 | B50: Tiverton | C50: 51.28205128 | D50: =BU50+SUMIFS(SpringProvRep!$H:$H,SpringProvRep!$A:$A,Data!$A$24,SpringProvRep!$G:$G,"Coventry",SpringProvRep!$P:$P,Data!D$16)/$AY$45*$A$45 -> 0 | E50: =BV50+SUMIFS(SpringProvRep!$H:$H,SpringProvRep!$A:$A,Data!$A$24,SpringProvRep!$G:$G,"Coventry",SpringProvRep!$P:$P,Data!E$16)/$AY$45*$A$45 -> 0 | F50: =BW50+SUMIFS(SpringProvRep!$H:$H,SpringProvRep!$A:$A,Data!$A$24,SpringProvRep!$G:$G,"Coventry",SpringProvRep!$P:$P,Data!F$16)/$AY$45*$A$45 -> 0 | G50: =BX50+SUMIFS(SpringProvRep!$H:$H,SpringProvRep!$A:$A,Data!$A$24,SpringProvRep!$G:$G,"Coventry",SpringProvRep!$P:$P,Data!G$16)/$AY$45*$A$45 -> 0 | H50: =BY50+SUMIFS(SpringProvRep!$H:$H,SpringProvRep!$A:$A,Data!$A$24,SpringProvRep!$G:$G,"Coventry",SpringProvRep!$P:$P,Data!H$16)/$AY$45*$A$45 -> 0 | I50: =BZ50+SUMIFS(SpringProvRep!$H:$H,SpringProvRep!$A:$A,Data!$A$24,SpringProvRep!$G:$G,"Coventry",SpringProvRep!$P:$P,Data!I$16)/$AY$45*$A$45 -> 0 | J50: =CA50+SUMIFS(SpringProvRep!$H:$H,SpringProvRep!$A:$A,Data!$A$24,SpringProvRep!$G:$G,"Coventry",SpringProvRep!$P:$P,Data!J$16)/$AY$45*$A$45 -> 3138.080919 | K50: =CB50+SUMIFS(SpringProvRep!$H:$H,SpringProvRep!$A:$A,Data!$A$24,SpringProvRep!$G:$G,"Coventry",SpringProvRep!$P:$P,Data!K$16)/$AY$45*$A$45 -> 1188.046301 | L50: =CC50+SUMIFS(SpringProvRep!$H:$H,SpringProvRep!$A:$A,Data!$A$24,SpringProvRep!$G:$G,"Coventry",SpringProvRep!$P:$P,Data!L$16)/$AY$45*$A$45 -> 59.40231504 | M50: =CD50+SUMIFS(SpringProvRep!$H:$H,SpringProvRep!$A:$A,Data!$A$24,SpringProvRep!$G:$G,"Coventry",SpringProvRep!$P:$P,Data!M$16)/$AY$45*$A$45 -> 415.8162053 | N50: =CE50+SUMIFS(SpringProvRep!$H:$H,SpringProvRep!$A:$A,Data!$A$24,SpringProvRep!$G:$G,"Coventry",SpringProvRep!$P:$P,Data!N$16)/$AY$45*$A$45 -> 134.1672978 | O50: =CF50+SUMIFS(SpringProvRep!$H:$H,SpringProvRep!$A:$A,Data!$A$24,SpringProvRep!$G:$G,"Coventry",SpringProvRep!$P:$P,Data!O$16)/$AY$45*$A$45 -> 0 | P50: =CG50+SUMIFS(SpringProvRep!$H:$H,SpringProvRep!$A:$A,Data!$A$24,SpringProvRep!$G:$G,"Coventry",SpringProvRep!$P:$P,Data!P$16)/$AY$45*$A$45 -> 807.0521423 | Q50: =CH50+SUMIFS(SpringProvRep!$H:$H,SpringProvRep!$A:$A,Data!$A$24,SpringProvRep!$G:$G,"Coventry",SpringProvRep!$P:$P,Data!Q$16)/$AY$45*$A$45 -> 449.6140742 | R50: =CI50+SUMIFS(SpringProvRep!$H:$H,SpringProvRep!$A:$A,Data!$A$24,SpringProvRep!$G:$G,"Coventry",SpringProvRep!$P:$P,Data!R$16)/$AY$45*$A$45 -> 0 | S50: =CJ50+SUMIFS(SpringProvRep!$H:$H,SpringProvRep!$A:$A,Data!$A$24,SpringProvRep!$G:$G,"Coventry",SpringProvRep!$P:$P,Data!S$16)/$AY$45*$A$45 -> 297.0115752 | T50: =CK50+SUMIFS(SpringProvRep!$H:$H,SpringProvRep!$A:$A,Data!$A$24,SpringProvRep!$G:$G,"Coventry",SpringProvRep!$P:$P,Data!T$16)/$AY$45*$A$45 -> 59.40231504 | U50: =CL50+SUMIFS(SpringProvRep!$H:$H,SpringProvRep!$A:$A,Data!$A$24,SpringProvRep!$G:$G,"Coventry",SpringProvRep!$P:$P,Data!U$16)/$AY$45*$A$45 -> 0 | V50: 110.9931041 | W50: 395600.2532 | X50: =SUMIFS(SpringProvRep!$H:$H,SpringProvRep!$A:$A,Data!$A$24,SpringProvRep!$G:$G,"<>Coventry",SpringProvRep!$P:$P,Data!X$16)/$AY$45*$A$45 -> 0 | Y50: =SUMIFS(SpringProvRep!$H:$H,SpringProvRep!$A:$A,Data!$A$24,SpringProvRep!$G:$G,"<>Coventry",SpringProvRep!$P:$P,Data!Y$16)/$AY$45*$A$45 -> 0 | Z50: =SUMIFS(SpringProvRep!$H:$H,SpringProvRep!$A:$A,Data!$A$24,SpringProvRep!$G:$G,"<>Coventry",SpringProvRep!$P:$P,Data!Z$16)/$AY$45*$A$45 -> 0 | AA50: =SUMIFS(SpringProvRep!$H:$H,SpringProvRep!$A:$A,Data!$A$24,SpringProvRep!$G:$G,"<>Coventry",SpringProvRep!$P:$P,Data!AA$16)/$AY$45*$A$45 -> 0 | AB50: =SUMIFS(SpringProvRep!$H:$H,SpringProvRep!$A:$A,Data!$A$24,SpringProvRep!$G:$G,"<>Coventry",SpringProvRep!$P:$P,Data!AB$16)/$AY$45*$A$45 -> 0 | AC50: =SUMIFS(SpringProvRep!$H:$H,SpringProvRep!$A:$A,Data!$A$24,SpringProvRep!$G:$G,"<>Coventry",SpringProvRep!$P:$P,Data!AC$16)/$AY$45*$A$45 -> 0 | AD50: =SUMIFS(SpringProvRep!$H:$H,SpringProvRep!$A:$A,Data!$A$24,SpringProvRep!$G:$G,"<>Coventry",SpringProvRep!$P:$P,Data!AD$16)/$AY$45*$A$45 -> 59 | AE50: =SUMIFS(SpringProvRep!$H:$H,SpringProvRep!$A:$A,Data!$A$24,SpringProvRep!$G:$G,"<>Coventry",SpringProvRep!$P:$P,Data!AE$16)/$AY$45*$A$45 -> 0 | AF50: =SUMIFS(SpringProvRep!$H:$H,SpringProvRep!$A:$A,Data!$A$24,SpringProvRep!$G:$G,"<>Coventry",SpringProvRep!$P:$P,Data!AF$16)/$AY$45*$A$45 -> 0 | AG50: =SUMIFS(SpringProvRep!$H:$H,SpringProvRep!$A:$A,Data!$A$24,SpringProvRep!$G:$G,"<>Coventry",SpringProvRep!$P:$P,Data!AG$16)/$AY$45*$A$45 -> 0 | AH50: =SUMIFS(SpringProvRep!$H:$H,SpringProvRep!$A:$A,Data!$A$24,SpringProvRep!$G:$G,"<>Coventry",SpringProvRep!$P:$P,Data!AH$16)/$AY$45*$A$45 -> 0 | AI50: =SUMIFS(SpringProvRep!$H:$H,SpringProvRep!$A:$A,Data!$A$24,SpringProvRep!$G:$G,"<>Coventry",SpringProvRep!$P:$P,Data!AI$16)/$AY$45*$A$45 -> 0 | AJ50: =SUMIFS(SpringProvRep!$H:$H,SpringProvRep!$A:$A,Data!$A$24,SpringProvRep!$G:$G,"<>Coventry",SpringProvRep!$P:$P,Data!AJ$16)/$AY$45*$A$45 -> 0 | AK50: =SUMIFS(SpringProvRep!$H:$H,SpringProvRep!$A:$A,Data!$A$24,SpringProvRep!$G:$G,"<>Coventry",SpringProvRep!$P:$P,Data!AK$16)/$AY$45*$A$45 -> 0 | AL50: =SUMIFS(SpringProvRep!$H:$H,SpringProvRep!$A:$A,Data!$A$24,SpringProvRep!$G:$G,"<>Coventry",SpringProvRep!$P:$P,Data!AL$16)/$AY$45*$A$45 -> 0 | AM50: =SUMIFS(SpringProvRep!$H:$H,SpringProvRep!$A:$A,Data!$A$24,SpringProvRep!$G:$G,"<>Coventry",SpringProvRep!$P:$P,Data!AM$16)/$AY$45*$A$45 -> 0 | AN50: =SUMIFS(SpringProvRep!$H:$H,SpringProvRep!$A:$A,Data!$A$24,SpringProvRep!$G:$G,"<>Coventry",SpringProvRep!$P:$P,Data!AN$16)/$AY$45*$A$45 -> 0 | AO50: =SUMIFS(SpringProvRep!$H:$H,SpringProvRep!$A:$A,Data!$A$24,SpringProvRep!$G:$G,"<>Coventry",SpringProvRep!$P:$P,Data!AO$16)/$AY$45*$A$45 -> 0 | AP50: 1 | AQ50: 2998.899389 | AR50: 398599.1526 | AS50: 111.9931041 | AT50: -0.006895852151 | AU50: 112 | AV50: =[11]Data!$AR63 -> 111.2413793 | AW50: =[11]Data!$M$8 -> 110 | AZ50: =(AU50-AV50)*$A$45 -> 44.75862069 | BA50: 6607.593145 | BB50: =$AZ$50/$BA$50*D50 -> 0 | BC50: =$AZ$50/$BA$50*E50 -> 0 | BD50: 0 | BE50: 0 | BF50: 0 | BG50: 0 | BH50: 21.25678299 | BI50: 8.047607136 | BJ50: 0.4023803568 | BK50: 2.816662498 | BL50: 0.908824599 | BM50: 0 | BN50: 5.466822779 | BO50: 3.045603045 | BP50: 0 | BQ50: 2.011901784 | BR50: 0.4023803568 | BS50: 0 | BU50: 0 | BV50: 0 | BW50: 0 | BX50: 0 | BY50: 0 | BZ50: 0 | CA50: 21.25333269 | CB50: 8.046300888 | CC50: 0.4023150444 | CD50: 2.816205311 | CE50: 0.9086770831 | CF50: 0 | CG50: 5.465935431 | CH50: 3.045108698 | CI50: 0 | CJ50: 2.011575222 | CK50: 0.4023150444 | CL50: 0
A51: 6 | B51: Baginton Fields | C51: 51.28205128 | D51: =SUMIFS(SpringProvRep!$H:$H,SpringProvRep!$A:$A,Data!$A$25,SpringProvRep!$G:$G,"Coventry",SpringProvRep!$P:$P,Data!D$16)/$AY$45*$A$45 -> 0 | E51: =SUMIFS(SpringProvRep!$H:$H,SpringProvRep!$A:$A,Data!$A$25,SpringProvRep!$G:$G,"Coventry",SpringProvRep!$P:$P,Data!E$16)/$AY$45*$A$45 -> 0 | F51: =SUMIFS(SpringProvRep!$H:$H,SpringProvRep!$A:$A,Data!$A$25,SpringProvRep!$G:$G,"Coventry",SpringProvRep!$P:$P,Data!F$16)/$AY$45*$A$45 -> 0 | G51: =SUMIFS(SpringProvRep!$H:$H,SpringProvRep!$A:$A,Data!$A$25,SpringProvRep!$G:$G,"Coventry",SpringProvRep!$P:$P,Data!G$16)/$AY$45*$A$45 -> 59 | H51: =SUMIFS(SpringProvRep!$H:$H,SpringProvRep!$A:$A,Data!$A$25,SpringProvRep!$G:$G,"Coventry",SpringProvRep!$P:$P,Data!H$16)/$AY$45*$A$45 -> 0 | I51: =SUMIFS(SpringProvRep!$H:$H,SpringProvRep!$A:$A,Data!$A$25,SpringProvRep!$G:$G,"Coventry",SpringProvRep!$P:$P,Data!I$16)/$AY$45*$A$45 -> 0 | J51: =SUMIFS(SpringProvRep!$H:$H,SpringProvRep!$A:$A,Data!$A$25,SpringProvRep!$G:$G,"Coventry",SpringProvRep!$P:$P,Data!J$16)/$AY$45*$A$45 -> 1239 | K51: =SUMIFS(SpringProvRep!$H:$H,SpringProvRep!$A:$A,Data!$A$25,SpringProvRep!$G:$G,"Coventry",SpringProvRep!$P:$P,Data!K$16)/$AY$45*$A$45 -> 2281.672414 | L51: =SUMIFS(SpringProvRep!$H:$H,SpringProvRep!$A:$A,Data!$A$25,SpringProvRep!$G:$G,"Coventry",SpringProvRep!$P:$P,Data!L$16)/$AY$45*$A$45 -> 118 | M51: =SUMIFS(SpringProvRep!$H:$H,SpringProvRep!$A:$A,Data!$A$25,SpringProvRep!$G:$G,"Coventry",SpringProvRep!$P:$P,Data!M$16)/$AY$45*$A$45 -> 0 | N51: =SUMIFS(SpringProvRep!$H:$H,SpringProvRep!$A:$A,Data!$A$25,SpringProvRep!$G:$G,"Coventry",SpringProvRep!$P:$P,Data!N$16)/$AY$45*$A$45 -> 295 | O51: =SUMIFS(SpringProvRep!$H:$H,SpringProvRep!$A:$A,Data!$A$25,SpringProvRep!$G:$G,"Coventry",SpringProvRep!$P:$P,Data!O$16)/$AY$45*$A$45 -> 0 | P51: =SUMIFS(SpringProvRep!$H:$H,SpringProvRep!$A:$A,Data!$A$25,SpringProvRep!$G:$G,"Coventry",SpringProvRep!$P:$P,Data!P$16)/$AY$45*$A$45 -> 1711 | Q51: =SUMIFS(SpringProvRep!$H:$H,SpringProvRep!$A:$A,Data!$A$25,SpringProvRep!$G:$G,"Coventry",SpringProvRep!$P:$P,Data!Q$16)/$AY$45*$A$45 -> 708 | R51: =SUMIFS(SpringProvRep!$H:$H,SpringProvRep!$A:$A,Data!$A$25,SpringProvRep!$G:$G,"Coventry",SpringProvRep!$P:$P,Data!R$16)/$AY$45*$A$45 -> 59 | S51: =SUMIFS(SpringProvRep!$H:$H,SpringProvRep!$A:$A,Data!$A$25,SpringProvRep!$G:$G,"Coventry",SpringProvRep!$P:$P,Data!S$16)/$AY$45*$A$45 -> 118 | T51: =SUMIFS(SpringProvRep!$H:$H,SpringProvRep!$A:$A,Data!$A$25,SpringProvRep!$G:$G,"Coventry",SpringProvRep!$P:$P,Data!T$16)/$AY$45*$A$45 -> 59 | U51: =SUMIFS(SpringProvRep!$H:$H,SpringProvRep!$A:$A,Data!$A$25,SpringProvRep!$G:$G,"Coventry",SpringProvRep!$P:$P,Data!U$16)/$AY$45*$A$45 -> 0 | V51: 112.6724138 | W51: 431245.0951 | X51: =SUMIFS(SpringProvRep!$H:$H,SpringProvRep!$A:$A,Data!$A$25,SpringProvRep!$G:$G,"<>Coventry",SpringProvRep!$P:$P,Data!X$16)/$AY$45*$A$45 -> 0 | Y51: =SUMIFS(SpringProvRep!$H:$H,SpringProvRep!$A:$A,Data!$A$25,SpringProvRep!$G:$G,"<>Coventry",SpringProvRep!$P:$P,Data!Y$16)/$AY$45*$A$45 -> 0 | Z51: =SUMIFS(SpringProvRep!$H:$H,SpringProvRep!$A:$A,Data!$A$25,SpringProvRep!$G:$G,"<>Coventry",SpringProvRep!$P:$P,Data!Z$16)/$AY$45*$A$45 -> 0 | AA51: =SUMIFS(SpringProvRep!$H:$H,SpringProvRep!$A:$A,Data!$A$25,SpringProvRep!$G:$G,"<>Coventry",SpringProvRep!$P:$P,Data!AA$16)/$AY$45*$A$45 -> 0 | AB51: =SUMIFS(SpringProvRep!$H:$H,SpringProvRep!$A:$A,Data!$A$25,SpringProvRep!$G:$G,"<>Coventry",SpringProvRep!$P:$P,Data!AB$16)/$AY$45*$A$45 -> 0 | AC51: =SUMIFS(SpringProvRep!$H:$H,SpringProvRep!$A:$A,Data!$A$25,SpringProvRep!$G:$G,"<>Coventry",SpringProvRep!$P:$P,Data!AC$16)/$AY$45*$A$45 -> 0 | AD51: =SUMIFS(SpringProvRep!$H:$H,SpringProvRep!$A:$A,Data!$A$25,SpringProvRep!$G:$G,"<>Coventry",SpringProvRep!$P:$P,Data!AD$16)/$AY$45*$A$45 -> 0 | AE51: =SUMIFS(SpringProvRep!$H:$H,SpringProvRep!$A:$A,Data!$A$25,SpringProvRep!$G:$G,"<>Coventry",SpringProvRep!$P:$P,Data!AE$16)/$AY$45*$A$45 -> 59 | AF51: =SUMIFS(SpringProvRep!$H:$H,SpringProvRep!$A:$A,Data!$A$25,SpringProvRep!$G:$G,"<>Coventry",SpringProvRep!$P:$P,Data!AF$16)/$AY$45*$A$45 -> 0 | AG51: =SUMIFS(SpringProvRep!$H:$H,SpringProvRep!$A:$A,Data!$A$25,SpringProvRep!$G:$G,"<>Coventry",SpringProvRep!$P:$P,Data!AG$16)/$AY$45*$A$45 -> 0 | AH51: =SUMIFS(SpringProvRep!$H:$H,SpringProvRep!$A:$A,Data!$A$25,SpringProvRep!$G:$G,"<>Coventry",SpringProvRep!$P:$P,Data!AH$16)/$AY$45*$A$45 -> 0 | AI51: =SUMIFS(SpringProvRep!$H:$H,SpringProvRep!$A:$A,Data!$A$25,SpringProvRep!$G:$G,"<>Coventry",SpringProvRep!$P:$P,Data!AI$16)/$AY$45*$A$45 -> 0 | AJ51: =SUMIFS(SpringProvRep!$H:$H,SpringProvRep!$A:$A,Data!$A$25,SpringProvRep!$G:$G,"<>Coventry",SpringProvRep!$P:$P,Data!AJ$16)/$AY$45*$A$45 -> 0 | AK51: =SUMIFS(SpringProvRep!$H:$H,SpringProvRep!$A:$A,Data!$A$25,SpringProvRep!$G:$G,"<>Coventry",SpringProvRep!$P:$P,Data!AK$16)/$AY$45*$A$45 -> 0 | AL51: =SUMIFS(SpringProvRep!$H:$H,SpringProvRep!$A:$A,Data!$A$25,SpringProvRep!$G:$G,"<>Coventry",SpringProvRep!$P:$P,Data!AL$16)/$AY$45*$A$45 -> 0 | AM51: =SUMIFS(SpringProvRep!$H:$H,SpringProvRep!$A:$A,Data!$A$25,SpringProvRep!$G:$G,"<>Coventry",SpringProvRep!$P:$P,Data!AM$16)/$AY$45*$A$45 -> 0 | AN51: =SUMIFS(SpringProvRep!$H:$H,SpringProvRep!$A:$A,Data!$A$25,SpringProvRep!$G:$G,"<>Coventry",SpringProvRep!$P:$P,Data!AN$16)/$AY$45*$A$45 -> 0 | AO51: =SUMIFS(SpringProvRep!$H:$H,SpringProvRep!$A:$A,Data!$A$25,SpringProvRep!$G:$G,"<>Coventry",SpringProvRep!$P:$P,Data!AO$16)/$AY$45*$A$45 -> 0 | AP51: 1 | AQ51: 2773.983459 | AR51: 434019.0785 | AS51: 113.6724138 | AT51: -4.327586207 | AU51: 118 | AV51: =[11]Data!$AR64 -> 113.6724138 | AW51: =[11]Data!$M$9 -> 118
A52: 7 | B52: Sherbourne Fields | C52: 51.28205128 | D52: =SUMIFS(SpringProvRep!$H:$H,SpringProvRep!$A:$A,Data!$A$26,SpringProvRep!$G:$G,"Coventry",SpringProvRep!$P:$P,Data!D$16)/$AY$45*$A$45 -> 0 | E52: =SUMIFS(SpringProvRep!$H:$H,SpringProvRep!$A:$A,Data!$A$26,SpringProvRep!$G:$G,"Coventry",SpringProvRep!$P:$P,Data!E$16)/$AY$45*$A$45 -> 0 | F52: =BW52+SUMIFS(SpringProvRep!$H:$H,SpringProvRep!$A:$A,Data!$A$23,SpringProvRep!$G:$G,"Coventry",SpringProvRep!$P:$P,Data!F$16)/$AY$45*$A$45 -> 64.95487675 | G52: =BX52+SUMIFS(SpringProvRep!$H:$H,SpringProvRep!$A:$A,Data!$A$26,SpringProvRep!$G:$G,"Coventry",SpringProvRep!$P:$P,Data!G$16)/$AY$45*$A$45 -> 194.8646302 | H52: =BY52+SUMIFS(SpringProvRep!$H:$H,SpringProvRep!$A:$A,Data!$A$26,SpringProvRep!$G:$G,"Coventry",SpringProvRep!$P:$P,Data!H$16)/$AY$45*$A$45 -> 0 | I52: =BZ52+SUMIFS(SpringProvRep!$H:$H,SpringProvRep!$A:$A,Data!$A$26,SpringProvRep!$G:$G,"Coventry",SpringProvRep!$P:$P,Data!I$16)/$AY$45*$A$45 -> 129.9097535 | J52: =CA52+SUMIFS(SpringProvRep!$H:$H,SpringProvRep!$A:$A,Data!$A$26,SpringProvRep!$G:$G,"Coventry",SpringProvRep!$P:$P,Data!J$16)/$AY$45*$A$45 -> 3767.382851 | K52: =CB52+SUMIFS(SpringProvRep!$H:$H,SpringProvRep!$A:$A,Data!$A$26,SpringProvRep!$G:$G,"Coventry",SpringProvRep!$P:$P,Data!K$16)/$AY$45*$A$45 -> 3572.518221 | L52: =CC52+SUMIFS(SpringProvRep!$H:$H,SpringProvRep!$A:$A,Data!$A$26,SpringProvRep!$G:$G,"Coventry",SpringProvRep!$P:$P,Data!L$16)/$AY$45*$A$45 -> 0 | M52: =CD52+SUMIFS(SpringProvRep!$H:$H,SpringProvRep!$A:$A,Data!$A$26,SpringProvRep!$G:$G,"Coventry",SpringProvRep!$P:$P,Data!M$16)/$AY$45*$A$45 -> 1883.691426 | N52: =CE52+SUMIFS(SpringProvRep!$H:$H,SpringProvRep!$A:$A,Data!$A$26,SpringProvRep!$G:$G,"Coventry",SpringProvRep!$P:$P,Data!N$16)/$AY$45*$A$45 -> 194.8646302 | O52: =CF52+SUMIFS(SpringProvRep!$H:$H,SpringProvRep!$A:$A,Data!$A$26,SpringProvRep!$G:$G,"Coventry",SpringProvRep!$P:$P,Data!O$16)/$AY$45*$A$45 -> 0 | P52: =CG52+SUMIFS(SpringProvRep!$H:$H,SpringProvRep!$A:$A,Data!$A$26,SpringProvRep!$G:$G,"Coventry",SpringProvRep!$P:$P,Data!P$16)/$AY$45*$A$45 -> 1558.917042 | Q52: =CH52+SUMIFS(SpringProvRep!$H:$H,SpringProvRep!$A:$A,Data!$A$26,SpringProvRep!$G:$G,"Coventry",SpringProvRep!$P:$P,Data!Q$16)/$AY$45*$A$45 -> 1234.142658 | R52: =CI52+SUMIFS(SpringProvRep!$H:$H,SpringProvRep!$A:$A,Data!$A$26,SpringProvRep!$G:$G,"Coventry",SpringProvRep!$P:$P,Data!R$16)/$AY$45*$A$45 -> 129.9097535 | S52: =CJ52+SUMIFS(SpringProvRep!$H:$H,SpringProvRep!$A:$A,Data!$A$26,SpringProvRep!$G:$G,"Coventry",SpringProvRep!$P:$P,Data!S$16)/$AY$45*$A$45 -> 1169.187781 | T52: =CK52+SUMIFS(SpringProvRep!$H:$H,SpringProvRep!$A:$A,Data!$A$26,SpringProvRep!$G:$G,"Coventry",SpringProvRep!$P:$P,Data!T$16)/$AY$45*$A$45 -> 0 | U52: =SUMIFS(SpringProvRep!$H:$H,SpringProvRep!$A:$A,Data!$A$26,SpringProvRep!$G:$G,"Coventry",SpringProvRep!$P:$P,Data!U$16)/$AY$45*$A$45 -> 0 | V52: 235.5990445 | W52: 832322.0366 | X52: =SUMIFS(SpringProvRep!$H:$H,SpringProvRep!$A:$A,Data!$A$26,SpringProvRep!$G:$G,"<>Coventry",SpringProvRep!$P:$P,Data!X$16)/$AY$45*$A$45 -> 0 | Y52: =SUMIFS(SpringProvRep!$H:$H,SpringProvRep!$A:$A,Data!$A$26,SpringProvRep!$G:$G,"<>Coventry",SpringProvRep!$P:$P,Data!Y$16)/$AY$45*$A$45 -> 0 | Z52: =SUMIFS(SpringProvRep!$H:$H,SpringProvRep!$A:$A,Data!$A$26,SpringProvRep!$G:$G,"<>Coventry",SpringProvRep!$P:$P,Data!Z$16)/$AY$45*$A$45 -> 0 | AA52: =SUMIFS(SpringProvRep!$H:$H,SpringProvRep!$A:$A,Data!$A$26,SpringProvRep!$G:$G,"<>Coventry",SpringProvRep!$P:$P,Data!AA$16)/$AY$45*$A$45 -> 0 | AB52: =SUMIFS(SpringProvRep!$H:$H,SpringProvRep!$A:$A,Data!$A$26,SpringProvRep!$G:$G,"<>Coventry",SpringProvRep!$P:$P,Data!AB$16)/$AY$45*$A$45 -> 0 | AC52: =SUMIFS(SpringProvRep!$H:$H,SpringProvRep!$A:$A,Data!$A$26,SpringProvRep!$G:$G,"<>Coventry",SpringProvRep!$P:$P,Data!AC$16)/$AY$45*$A$45 -> 0 | AD52: =SUMIFS(SpringProvRep!$H:$H,SpringProvRep!$A:$A,Data!$A$26,SpringProvRep!$G:$G,"<>Coventry",SpringProvRep!$P:$P,Data!AD$16)/$AY$45*$A$45 -> 59 | AE52: =SUMIFS(SpringProvRep!$H:$H,SpringProvRep!$A:$A,Data!$A$26,SpringProvRep!$G:$G,"<>Coventry",SpringProvRep!$P:$P,Data!AE$16)/$AY$45*$A$45 -> 0 | AF52: =SUMIFS(SpringProvRep!$H:$H,SpringProvRep!$A:$A,Data!$A$26,SpringProvRep!$G:$G,"<>Coventry",SpringProvRep!$P:$P,Data!AF$16)/$AY$45*$A$45 -> 0 | AG52: =SUMIFS(SpringProvRep!$H:$H,SpringProvRep!$A:$A,Data!$A$26,SpringProvRep!$G:$G,"<>Coventry",SpringProvRep!$P:$P,Data!AG$16)/$AY$45*$A$45 -> 59 | AH52: =SUMIFS(SpringProvRep!$H:$H,SpringProvRep!$A:$A,Data!$A$26,SpringProvRep!$G:$G,"<>Coventry",SpringProvRep!$P:$P,Data!AH$16)/$AY$45*$A$45 -> 0 | AI52: =SUMIFS(SpringProvRep!$H:$H,SpringProvRep!$A:$A,Data!$A$26,SpringProvRep!$G:$G,"<>Coventry",SpringProvRep!$P:$P,Data!AI$16)/$AY$45*$A$45 -> 0 | AJ52: =SUMIFS(SpringProvRep!$H:$H,SpringProvRep!$A:$A,Data!$A$26,SpringProvRep!$G:$G,"<>Coventry",SpringProvRep!$P:$P,Data!AJ$16)/$AY$45*$A$45 -> 0 | AK52: =SUMIFS(SpringProvRep!$H:$H,SpringProvRep!$A:$A,Data!$A$26,SpringProvRep!$G:$G,"<>Coventry",SpringProvRep!$P:$P,Data!AK$16)/$AY$45*$A$45 -> 59 | AL52: =SUMIFS(SpringProvRep!$H:$H,SpringProvRep!$A:$A,Data!$A$26,SpringProvRep!$G:$G,"<>Coventry",SpringProvRep!$P:$P,Data!AL$16)/$AY$45*$A$45 -> 0 | AM52: =SUMIFS(SpringProvRep!$H:$H,SpringProvRep!$A:$A,Data!$A$26,SpringProvRep!$G:$G,"<>Coventry",SpringProvRep!$P:$P,Data!AM$16)/$AY$45*$A$45 -> 59 | AN52: =SUMIFS(SpringProvRep!$H:$H,SpringProvRep!$A:$A,Data!$A$26,SpringProvRep!$G:$G,"<>Coventry",SpringProvRep!$P:$P,Data!AN$16)/$AY$45*$A$45 -> 0 | AO52: =SUMIFS(SpringProvRep!$H:$H,SpringProvRep!$A:$A,Data!$A$26,SpringProvRep!$G:$G,"<>Coventry",SpringProvRep!$P:$P,Data!AO$16)/$AY$45*$A$45 -> 0 | AP52: 4 | AQ52: 15744.21778 | AR52: 848066.2544 | AS52: =AP52+V52 -> 239.5990445 | AT52: -0.4009555274 | AU52: 240 | AV52: =[11]Data!$AR65 -> 218 | AW52: =[11]Data!$M$10 -> 220 | AZ52: =(AU52-AV52)*$A$45 -> 1298 | BA52: =AS52*$A$45 -> 14136.34362 | BB52: =$AZ$52/$BA$52*D52 -> 0 | BC52: =$AZ$52/$BA$52*E52 -> 0 | BD52: 5.964161049 | BE52: 17.89248315 | BF52: 0 | BG52: 11.9283221 | BH52: 345.9213408 | BI52: 328.0288577 | BJ52: 0 | BK52: 172.9606704 | BL52: 17.89248315 | BM52: 0 | BN52: 143.1398652 | BO52: 113.3190599 | BP52: 11.9283221 | BQ52: 107.3548989 | BR52: 0 | BS52: 0 | BU52: 0 | BV52: 0 | BW52: 5.954876747 | BX52: 17.86463024 | BY52: 0 | BZ52: 11.90975349 | CA52: 345.3828513 | CB52: 327.5182211 | CC52: 0 | CD52: 172.6914257 | CE52: 17.86463024 | CF52: 0 | CG52: 142.9170419 | CH52: 113.1426582 | CI52: 11.90975349 | CJ52: 107.1877814 | CK52: 0 | CL52: 0
A53: 8 | B53: Woodfield | C53: =10000/$A$15 -> 51.28205128 | D53: =SUMIFS(SpringProvRep!$H:$H,SpringProvRep!$A:$A,Data!$A$27,SpringProvRep!$G:$G,"Coventry",SpringProvRep!$P:$P,Data!D$16)/$AY$45*$A$45 -> 0 | E53: =SUMIFS(SpringProvRep!$H:$H,SpringProvRep!$A:$A,Data!$A$27,SpringProvRep!$G:$G,"Coventry",SpringProvRep!$P:$P,Data!E$16)/$AY$45*$A$45 -> 0 | F53: =SUMIFS(SpringProvRep!$H:$H,SpringProvRep!$A:$A,Data!$A$27,SpringProvRep!$G:$G,"Coventry",SpringProvRep!$P:$P,Data!F$16)/$AY$45*$A$45 -> 59 | G53: =SUMIFS(SpringProvRep!$H:$H,SpringProvRep!$A:$A,Data!$A$27,SpringProvRep!$G:$G,"Coventry",SpringProvRep!$P:$P,Data!G$16)/$AY$45*$A$45 -> 0 | H53: =SUMIFS(SpringProvRep!$H:$H,SpringProvRep!$A:$A,Data!$A$27,SpringProvRep!$G:$G,"Coventry",SpringProvRep!$P:$P,Data!H$16)/$AY$45*$A$45 -> 0 | I53: =SUMIFS(SpringProvRep!$H:$H,SpringProvRep!$A:$A,Data!$A$27,SpringProvRep!$G:$G,"Coventry",SpringProvRep!$P:$P,Data!I$16)/$AY$45*$A$45 -> 0 | J53: =SUMIFS(SpringProvRep!$H:$H,SpringProvRep!$A:$A,Data!$A$27,SpringProvRep!$G:$G,"Coventry",SpringProvRep!$P:$P,Data!J$16)/$AY$45*$A$45 -> 59 | K53: =SUMIFS(SpringProvRep!$H:$H,SpringProvRep!$A:$A,Data!$A$27,SpringProvRep!$G:$G,"Coventry",SpringProvRep!$P:$P,Data!K$16)/$AY$45*$A$45 -> 0 | L53: =SUMIFS(SpringProvRep!$H:$H,SpringProvRep!$A:$A,Data!$A$27,SpringProvRep!$G:$G,"Coventry",SpringProvRep!$P:$P,Data!L$16)/$AY$45*$A$45 -> 6007.827586 | M53: =SUMIFS(SpringProvRep!$H:$H,SpringProvRep!$A:$A,Data!$A$27,SpringProvRep!$G:$G,"Coventry",SpringProvRep!$P:$P,Data!M$16)/$AY$45*$A$45 -> 0 | N53: =SUMIFS(SpringProvRep!$H:$H,SpringProvRep!$A:$A,Data!$A$27,SpringProvRep!$G:$G,"Coventry",SpringProvRep!$P:$P,Data!N$16)/$AY$45*$A$45 -> 714.1034483 | O53: =SUMIFS(SpringProvRep!$H:$H,SpringProvRep!$A:$A,Data!$A$27,SpringProvRep!$G:$G,"Coventry",SpringProvRep!$P:$P,Data!O$16)/$AY$45*$A$45 -> 0 | P53: =SUMIFS(SpringProvRep!$H:$H,SpringProvRep!$A:$A,Data!$A$27,SpringProvRep!$G:$G,"Coventry",SpringProvRep!$P:$P,Data!P$16)/$AY$45*$A$45 -> 0 | Q53: =SUMIFS(SpringProvRep!$H:$H,SpringProvRep!$A:$A,Data!$A$27,SpringProvRep!$G:$G,"Coventry",SpringProvRep!$P:$P,Data!Q$16)/$AY$45*$A$45 -> 0 | R53: =SUMIFS(SpringProvRep!$H:$H,SpringProvRep!$A:$A,Data!$A$27,SpringProvRep!$G:$G,"Coventry",SpringProvRep!$P:$P,Data!R$16)/$AY$45*$A$45 -> 1652 | S53: =SUMIFS(SpringProvRep!$H:$H,SpringProvRep!$A:$A,Data!$A$27,SpringProvRep!$G:$G,"Coventry",SpringProvRep!$P:$P,Data!S$16)/$AY$45*$A$45 -> 0 | T53: =SUMIFS(SpringProvRep!$H:$H,SpringProvRep!$A:$A,Data!$A$27,SpringProvRep!$G:$G,"Coventry",SpringProvRep!$P:$P,Data!T$16)/$AY$45*$A$45 -> 118 | U53: =SUMIFS(SpringProvRep!$H:$H,SpringProvRep!$A:$A,Data!$A$27,SpringProvRep!$G:$G,"Coventry",SpringProvRep!$P:$P,Data!U$16)/$AY$45*$A$45 -> 0 | V53: 145.9310345 | W53: 610938.7946 | X53: =SUMIFS(SpringProvRep!$H:$H,SpringProvRep!$A:$A,Data!$A$27,SpringProvRep!$G:$G,"<>Coventry",SpringProvRep!$P:$P,Data!X$16)/$AY$45*$A$45 -> 0 | Y53: =SUMIFS(SpringProvRep!$H:$H,SpringProvRep!$A:$A,Data!$A$27,SpringProvRep!$G:$G,"<>Coventry",SpringProvRep!$P:$P,Data!Y$16)/$AY$45*$A$45 -> 0 | Z53: =SUMIFS(SpringProvRep!$H:$H,SpringProvRep!$A:$A,Data!$A$27,SpringProvRep!$G:$G,"<>Coventry",SpringProvRep!$P:$P,Data!Z$16)/$AY$45*$A$45 -> 0 | AA53: =SUMIFS(SpringProvRep!$H:$H,SpringProvRep!$A:$A,Data!$A$27,SpringProvRep!$G:$G,"<>Coventry",SpringProvRep!$P:$P,Data!AA$16)/$AY$45*$A$45 -> 0 | AB53: =SUMIFS(SpringProvRep!$H:$H,SpringProvRep!$A:$A,Data!$A$27,SpringProvRep!$G:$G,"<>Coventry",SpringProvRep!$P:$P,Data!AB$16)/$AY$45*$A$45 -> 0 | AC53: =SUMIFS(SpringProvRep!$H:$H,SpringProvRep!$A:$A,Data!$A$27,SpringProvRep!$G:$G,"<>Coventry",SpringProvRep!$P:$P,Data!AC$16)/$AY$45*$A$45 -> 0 | AD53: =SUMIFS(SpringProvRep!$H:$H,SpringProvRep!$A:$A,Data!$A$27,SpringProvRep!$G:$G,"<>Coventry",SpringProvRep!$P:$P,Data!AD$16)/$AY$45*$A$45 -> 0 | AE53: =SUMIFS(SpringProvRep!$H:$H,SpringProvRep!$A:$A,Data!$A$27,SpringProvRep!$G:$G,"<>Coventry",SpringProvRep!$P:$P,Data!AE$16)/$AY$45*$A$45 -> 0 | AF53: =SUMIFS(SpringProvRep!$H:$H,SpringProvRep!$A:$A,Data!$A$27,SpringProvRep!$G:$G,"<>Coventry",SpringProvRep!$P:$P,Data!AF$16)/$AY$45*$A$45 -> 0 | AG53: =SUMIFS(SpringProvRep!$H:$H,SpringProvRep!$A:$A,Data!$A$27,SpringProvRep!$G:$G,"<>Coventry",SpringProvRep!$P:$P,Data!AG$16)/$AY$45*$A$45 -> 0 | AH53: =SUMIFS(SpringProvRep!$H:$H,SpringProvRep!$A:$A,Data!$A$27,SpringProvRep!$G:$G,"<>Coventry",SpringProvRep!$P:$P,Data!AH$16)/$AY$45*$A$45 -> 0 | AI53: =SUMIFS(SpringProvRep!$H:$H,SpringProvRep!$A:$A,Data!$A$27,SpringProvRep!$G:$G,"<>Coventry",SpringProvRep!$P:$P,Data!AI$16)/$AY$45*$A$45 -> 0 | AJ53: =SUMIFS(SpringProvRep!$H:$H,SpringProvRep!$A:$A,Data!$A$27,SpringProvRep!$G:$G,"<>Coventry",SpringProvRep!$P:$P,Data!AJ$16)/$AY$45*$A$45 -> 0 | AK53: =SUMIFS(SpringProvRep!$H:$H,SpringProvRep!$A:$A,Data!$A$27,SpringProvRep!$G:$G,"<>Coventry",SpringProvRep!$P:$P,Data!AK$16)/$AY$45*$A$45 -> 0 | AL53: =SUMIFS(SpringProvRep!$H:$H,SpringProvRep!$A:$A,Data!$A$27,SpringProvRep!$G:$G,"<>Coventry",SpringProvRep!$P:$P,Data!AL$16)/$AY$45*$A$45 -> 0 | AM53: =SUMIFS(SpringProvRep!$H:$H,SpringProvRep!$A:$A,Data!$A$27,SpringProvRep!$G:$G,"<>Coventry",SpringProvRep!$P:$P,Data!AM$16)/$AY$45*$A$45 -> 0 | AN53: =SUMIFS(SpringProvRep!$H:$H,SpringProvRep!$A:$A,Data!$A$27,SpringProvRep!$G:$G,"<>Coventry",SpringProvRep!$P:$P,Data!AN$16)/$AY$45*$A$45 -> 0 | AO53: =SUMIFS(SpringProvRep!$H:$H,SpringProvRep!$A:$A,Data!$A$27,SpringProvRep!$G:$G,"<>Coventry",SpringProvRep!$P:$P,Data!AO$16)/$AY$45*$A$45 -> 0 | AP53: 0 | AQ53: 0 | AR53: 610938.7946 | AS53: 145.9310345 | AT53: -9.068965517 | AU53: 155 | AV53: =[11]Data!$AR66 -> 145.9310345 | AW53: =[11]Data!$M$11 -> 155
AR54: =SUM(AR46:AR53) -> 4237995.098
B57: Full Year 2022/23
B58: School
A59: 1 | B59: Castle Wood | C59: =10000/$A$15 -> 51.28205128 | D59: =D20+D33+D46 -> 0 | E59: 0 | F59: 0 | G59: 0 | H59: 0 | I59: 195 | J59: 16004.17241 | K59: 4158 | L59: 0 | M59: 975 | N59: 1299.929577 | O59: 0 | P59: 5113.9966 | Q59: 2340 | R59: 0 | S59: 858.7183099 | T59: 0 | U59: 0 | V59: =SUM(D59:U59)/$A$15 -> 158.6913687 | W59: =W20+W33+W46 -> 1880592.113 | X59: 0 | Y59: 0 | Z59: 0 | AA59: 0 | AB59: 0 | AC59: 0 | AD59: 195 | AE59: 0 | AF59: 0 | AG59: 0 | AH59: 0 | AI59: 0 | AJ59: 0 | AK59: 0 | AL59: 0 | AM59: 0 | AN59: 0 | AO59: 0 | AP59: =SUM(X59:AO59)/$A$15 -> 1 | AQ59: =AQ20+AQ33+AQ46 -> 9911.616624 | AR59: =AR20+AR33+AR46 -> 1890503.729 | AS59: =AP59+V59 -> 159.6913687
A60: 2 | B60: Kingsbury | C60: =10000/$A$15 -> 51.28205128 | D60: =D21+D34+D47 -> 0 | E60: 0 | F60: 137.8878169 | G60: 111.8871272 | H60: 0 | I60: 0 | J60: 9747.874975 | K60: 2746.628847 | L60: 0 | M60: 0 | N60: 719.1841235 | O60: 0 | P60: 4199.833228 | Q60: 239.8878169 | R60: 0 | S60: 0 | T60: 38.05494941 | U60: 0 | V60: =SUM(D60:U60)/$A$15 -> 92.00635325 | W60: =W21+W34+W47 -> 1077920.396 | X60: 0 | Y60: 0 | Z60: 0 | AA60: 0 | AB60: 0 | AC60: 0 | AD60: 125 | AE60: 195 | AF60: 0 | AG60: 0 | AH60: 0 | AI60: 0 | AJ60: 320 | AK60: 0 | AL60: 0 | AM60: 0 | AN60: 0 | AO60: 0 | AP60: =SUM(X60:AO60)/$A$15 -> 3.282051282 | AQ60: 41952.83501 | AR60: 1119873.231 | AS60: =AP60+V60 -> 95.28840453
A61: 3 | B61: RiverBank | C61: 51.28205128 | D61: =D22+D35+D48 -> 0 | E61: 0 | F61: 2863.665344 | G61: 5997.878213 | H61: 409.0950492 | I61: 204.5475246 | J61: 8964.091082 | K61: 10790.01311 | L61: 613.6425737 | M61: 1636.380197 | N61: 370.8407797 | O61: 818.1900983 | P61: 4480.918406 | Q61: 752.1900983 | R61: 0 | S61: 204.5475246 | T61: 0 | U61: 0 | V61: 195.4153846 | W61: =W22+W35+W48 -> 1941011.292 | X61: 0 | Y61: 0 | Z61: 0 | AA61: 0 | AB61: 0 | AC61: 0 | AD61: 0 | AE61: 0 | AF61: 0 | AG61: 0 | AH61: 0 | AI61: 0 | AJ61: 0 | AK61: 0 | AL61: 0 | AM61: 0 | AN61: 0 | AO61: 0 | AP61: 0 | AQ61: 0 | AR61: 1941011.292 | AS61: 195.4153846
A62: 4 | B62: Corley | C62: 51.28205128 | D62: =D23+D36+D49 -> 0 | E62: 0 | F62: 189.4366347 | G62: 0 | H62: 0 | I62: 0 | J62: 19300.16104 | K62: 0 | L62: 1704.929712 | M62: 0 | N62: 647.8422892 | O62: 0 | P62: 3303.757053 | Q62: 0 | R62: 0 | S62: 0 | T62: 0 | U62: 0 | V62: 128.9544961 | W62: =W23+W36+W49 -> 1432856.103 | X62: =X23+X36+X49 -> 0 | Y62: 0 | Z62: 0 | AA62: 0 | AB62: 0 | AC62: 0 | AD62: 390 | AE62: 0 | AF62: 0 | AG62: 0 | AH62: 0 | AI62: 0 | AJ62: 0 | AK62: 0 | AL62: 0 | AM62: 0 | AN62: 0 | AO62: 0 | AP62: 2 | AQ62: 19823.23325 | AR62: 1452679.336 | AS62: 130.9544961
A63: 5 | B63: Tiverton | C63: 51.28205128 | D63: =D24+D37+D50 -> 0 | E63: 0 | F63: 0 | G63: 0 | H63: 0 | I63: 0 | J63: 10173.17287 | K63: 3889.124992 | L63: 194.4562496 | M63: 1361.193747 | N63: 463.2751669 | O63: 0 | P63: 2556.807226 | Q63: 1464.045551 | R63: 0 | S63: 972.2812481 | T63: 180.7170807 | U63: 0 | V63: 109.0003802 | W63: =W24+W37+W50 -> 1281979.122 | X63: 0 | Y63: 0 | Z63: 0 | AA63: 0 | AB63: 0 | AC63: 0 | AD63: 195 | AE63: 0 | AF63: 0 | AG63: 0 | AH63: 0 | AI63: 0 | AJ63: 66 | AK63: 55.21126761 | AL63: 0 | AM63: 0 | AN63: 0 | AO63: 0 | AP63: 1.621596244 | AQ63: 19572.4896 | AR63: 1301551.612 | AS63: 110.6219764
A64: 6 | B64: Baginton Fields | C64: 51.28205128 | D64: =D25+D38+D51 -> 0 | E64: 0 | F64: 0 | G64: 195 | H64: 0 | I64: 0 | J64: 4130.492958 | K64: 7519.672414 | L64: 390 | M64: 66 | N64: 1012.323944 | O64: 0 | P64: 5687.676056 | Q64: 2340 | R64: 195 | S64: 390 | T64: 195 | U64: 0 | V64: 113.4418737 | W64: =W25+W38+W51 -> 1436893.323 | X64: 0 | Y64: 0 | Z64: 0 | AA64: 0 | AB64: 0 | AC64: 0 | AD64: 0 | AE64: 195 | AF64: 0 | AG64: 0 | AH64: 0 | AI64: 0 | AJ64: 0 | AK64: 0 | AL64: 0 | AM64: 0 | AN64: 0 | AO64: 0 | AP64: 1 | AQ64: 9168.250416 | AR64: 1446061.574 | AS64: 114.4418737
A65: 7 | B65: Sherbourne Fields | C65: 51.28205128 | D65: =D26+D39+D52 -> 0 | E65: 0 | F65: 207.8355959 | G65: 623.5067878 | H65: 0 | I65: 415.6711919 | J65: =J26+J39+J52 -> 11989.49494 | K65: 11497.01023 | L65: 0 | M65: 6120.113001 | N65: 623.5067878 | O65: 0 | P65: 4994.551265 | Q65: 4058.241853 | R65: 415.6711919 | S65: 3741.040727 | T65: 0 | U65: 0 | V65: 229.1622747 | W65: =W26+W39+W52 -> 2677753.627 | X65: 0 | Y65: 0 | Z65: 0 | AA65: 0 | AB65: 0 | AC65: 0 | AD65: 195 | AE65: 0 | AF65: 0 | AG65: 125 | AH65: 0 | AI65: 0 | AJ65: 0 | AK65: 125 | AL65: 0 | AM65: 195 | AN65: 0 | AO65: 0 | AP65: 3.282051282 | AQ65: 42251.43226 | AR65: 2720005.059 | AS65: 232.444326
A66: 8 | B66: Woodfield | C66: =10000/$A$15 -> 51.28205128 | D66: =D27+D40+D53 -> 0 | E66: 0 | F66: 195 | G66: 0 | H66: 0 | I66: 0 | J66: 195 | K66: 0 | L66: 19431.06702 | M66: 0 | N66: 2552.089364 | O66: 0 | P66: 0 | Q66: 0 | R66: 5459.014085 | S66: 0 | T66: 532 | U66: 0 | V66: 145.4572845 | W66: =W27+W40+W53 -> 2041883.79 | X66: 0 | Y66: 0 | Z66: 0 | AA66: 0 | AB66: 0 | AC66: 0 | AD66: 0 | AE66: 0 | AF66: 66 | AG66: 0 | AH66: 0 | AI66: 0 | AJ66: 0 | AK66: 0 | AL66: 65.07042254 | AM66: 0 | AN66: 0 | AO66: 0 | AP66: 0.672156013 | AQ66: 9154.551148 | AR66: 2051038.341 | AS66: 146.1294405
AR67: =SUM(AR59:AR66) -> 13922724.17
B69: TOTALS | C69: Place Led | D69: Coventry | E69: Other LA | F69: Total
B70: School | C70: Funding | D70: Top-up | E70: Top-up | F70: Funding
B71: Castle Wood | C71: =(K4*4/12+L4*1/12+M4*7/12)*10000 -> 1600000 | D71: =W59 -> 1880592.113 | E71: =AQ59 -> 9911.616624 | F71: =SUM(C71:E71) -> 3490503.729
B72: Kingsbury | C72: 966666.6667 | D72: =W60 -> 1077920.396 | E72: 41952.83501 | F72: =SUM(C72:E72) -> 2086539.898
B73: RiverBank | C73: 1950000 | D73: 1941011.292 | E73: 0 | F73: 3891011.292
B74: Corley | C74: 1290000 | D74: 1432856.103 | E74: 19823.23325 | F74: 2742679.336
B75: Tiverton | C75: 1120000 | D75: 1281979.122 | E75: 19572.4896 | F75: 2421551.612
B76: Baginton Fields | C76: =(K9*4/12+L9*1/12+M9*7/12)*10000 -> 1180000 | D76: 1436893.323 | E76: 9168.250416 | F76: 2626061.574
B77: Sherbourne Fields | C77: 2316666.667 | D77: =W65 -> 2677753.627 | E77: 42251.43226 | F77: =SUM(C77:E77) -> 5036671.726
B78: Woodfield | C78: 1550000 | D78: 2041883.79 | E78: 9154.551148 | F78: 3601038.341
C79: =SUM(C71:C78) -> 11973333.33 | D79: =SUM(D71:D78) -> 13770889.77 | E79: =SUM(E71:E78) -> 151834.4083 | F79: =SUM(F71:F78) -> 25896057.51

Sheet SummerProvRep (hidden)
B1: Funding Report for Period 01/04/2022 to 25/07/2022 | C1: No of Days in Year 195
A2: =IF(LEFT(J2,2)="BF",6,IF(LEFT(J2,2)="CW",1,IF(LEFT(J2,2)="CO",4,IF(LEFT(J2,2)="TS",2,IF(LEFT(J2,2)="RB",3,IF(LEFT(J2,2)="SF",7,IF(LEFT(J2,2)="TV",5,IF(LEFT(J2,2)="WF",8,"")))))))) ->  | B2: Report for Baginton Fields School | P2: =IF(ISBLANK(A2),"",CONCATENATE($J$50," ",RIGHT(J2,2))) -> Band
B3: Count of Students in Each Band | P3: Band
C4: Cat 1 | D4: Cat 2 | E4: Cat 3 | F4: Cat 4 | G4: Cat 5 | H4: Total | P4: Band
B5: Band D | C5: 0 | D5: 1 | E5: 0 | F5: 0 | G5: 0 | H5: 1 | P5: Band
B6: Band E | C6: 21 | D6: 39 | E6: 2 | F6: 1 | G6: 6 | H6: 69 | P6: Band
B7: Band F | C7: 29 | D7: 12 | E7: 1 | F7: 2 | G7: 1 | H7: 45 | P7: Band
B8: Total | C8: 50 | D8: 52 | E8: 3 | F8: 3 | G8: 7 | H8: 114 | P8: Band
P9: Band
P10: Band
B11: Sum of Open Days in Each Band | P11: Band
C12: Cat 1 | D12: Cat 2 | E12: Cat 3 | F12: Cat 4 | G12: Cat 5 | H12: Total | P12: Band
B13: Band D | C13: 0 | D13: 66 | E13: 0 | F13: 0 | G13: 0 | H13: 66 | P13: Band
B14: Band E | C14: 1386 | D14: 2574 | E14: 132 | F14: 66 | G14: 390 | H14: 4548 | P14: Band
B15: Band F | C15: 1854 | D15: 792 | E15: 66 | F15: 132 | G15: 66 | H15: 2910 | P15: Band
B16: Total | C16: 3240 | D16: 3432 | E16: 198 | F16: 198 | G16: 456 | H16: 7524 | P16: Band
P17: Band
P18: =IF(ISBLANK(A18),"",CONCATENATE($J$50," ",RIGHT(J18,2))) -> Band
P19: =IF(ISBLANK(A19),"",CONCATENATE($J$50," ",RIGHT(J19,2))) -> Band
B20: High Needs Top-Up_Rates for each Band | P20: Band
P21: Band
C22: BF | P22: Band
B23: Report for Baginton Fields School | P23: Band
B24: Coventry High Needs Top-Up_Funding by Band | P24: Band
C25: Cat 1 | D25: Cat 2 | E25: Cat 3 | F25: Cat 4 | G25: Cat 5 | H25: Total | P25: Band
B26: Band D | C26: 0 | D26: 1677.347692 | E26: 0 | F26: 0 | G26: 0 | H26: 1677.347692 | P26: Band
B27: Band E | C27: 70448.74523 | D27: 117917.8 | E27: 8386.752 | F27: 4193.376 | G27: 40790.88 | H27: 241737.5532 | P27: Band
B28: Band F | C28: 153134.5052 | D28: 60384.59815 | E28: 5032.049846 | F28: 10064.09969 | G28: 13806.144 | H28: 242421.3969 | P28: Band
B29: Total | C29: 223583.2505 | D29: 179979.7458 | E29: 13418.80185 | F29: 14257.47569 | G29: 54597.024 | H29: 485836.2978 | P29: Band
P30: Band
P31: Band
B32: Other LA High Needs Top-Up_Funding for Each Band | P32: Band
C33: Cat 1 | D33: Cat 2 | E33: Cat 3 | F33: Cat 4 | G33: Cat 5 | H33: Total | P33: Band
B34: Band D | C34: 0 | D34: 0 | E34: 0 | F34: 0 | G34: 0 | H34: 0 | P34: Band
B35: Band E | C35: 0 | D35: 3103.1 | E35: 0 | F35: 0 | G35: 0 | H35: 3103.1 | P35: Band
B36: Band F | C36: 0 | D36: 0 | E36: 0 | F36: 0 | G36: 0 | H36: 0 | P36: Band
B37: Total | C37: 0 | D37: 3103.1 | E37: 0 | F37: 0 | G37: 0 | H37: 3103.1 | P37: Band
P38: Band
P39: Band
B40: Total High Needs Top-Up_Funding for Each Band | P40: Band
C41: Cat 1 | D41: Cat 2 | E41: Cat 3 | F41: Cat 4 | G41: Cat 5 | H41: Total | P41: Band
B42: Band D | C42: 0 | D42: 1677.347692 | E42: 0 | F42: 0 | G42: 0 | H42: 1677.347692 | P42: Band
B43: Band E | C43: 70448.74523 | D43: 121020.9 | E43: 8386.752 | F43: 4193.376 | G43: 40790.88 | H43: 244840.6532 | P43: Band
B44: Band F | C44: 153134.5052 | D44: 60384.59815 | E44: 5032.049846 | F44: 10064.09969 | G44: 13806.144 | H44: 242421.3969 | P44: Band
B45: Total | C45: 223583.2505 | D45: 183082.8458 | E45: 13418.80185 | F45: 14257.47569 | G45: 54597.024 | H45: 488939.3978 | P45: Band
P46: Band
P47: Band
B48: Baginton Fields School. List of Pupils who were registered for funding between 01/04/2022 and 25/07/2022 | P48: Band
B49: Start and end dates shown only if different to the above specified period limits | P49: Band
B50: Name | C50: NCY | D50: UPN | E50: start date | F50: end date | G50: Funding LA | H50: Funded Days | I50: Top Up Amount | J50: Band | K50: FTE | P50: =IF(ISBLANK(A50),"",CONCATENATE($J$50," ",RIGHT(J50,2))) -> Band nd
A51: =IF(LEFT(J51,2)="BF",6,IF(LEFT(J51,2)="CW",1,IF(LEFT(J51,2)="CO",4,IF(LEFT(J51,2)="TS",2,IF(LEFT(J51,2)="RB",3,IF(LEFT(J51,2)="SF",7,IF(LEFT(J51,2)="TV",5,IF(LEFT(J51,2)="WF",8,"")))))))) -> 6 | B51: Collinson, Catherine j. | C51: 7 | D51: J331214114002 | E51: 2022-04-01 | G51: Coventry | H51: 66 | I51: 3103.1 | J51: BF2E | K51: 1 | P51: =IF(ISBLANK(A51),"",CONCATENATE($J$50," ",RIGHT(J51,2))) -> Band 2E
A52: =IF(LEFT(J52,2)="BF",6,IF(LEFT(J52,2)="CW",1,IF(LEFT(J52,2)="CO",4,IF(LEFT(J52,2)="TS",2,IF(LEFT(J52,2)="RB",3,IF(LEFT(J52,2)="SF",7,IF(LEFT(J52,2)="TV",5,IF(LEFT(J52,2)="WF",8,"")))))))) -> 6 | B52: Skvortsov-Kirsteine, Jessica | C52: 7 | D52: B331340813020 | E52: 2022-04-01 | G52: Coventry | H52: 66 | I52: 3103.1 | J52: BF2E | K52: 1 | P52: Band 2E
A53: 6 | B53: Molad, Marwan A. | C53: 7 | D53: Q331201513019 | E53: 2022-04-01 | G53: Coventry | H53: 66 | I53: 3103.1 | J53: BF2E | K53: 1 | P53: Band 2E
A54: 6 | B54: Islam, Mohammed Sami S. | C54: 7 | D54: B331702414001 | E54: 2022-04-01 | G54: Coventry | H54: 66 | I54: 5451.390154 | J54: BF1F | K54: 1 | P54: Band 1F
A55: 6 | B55: Gul, Annum | C55: 7 | D55: M331701713003 | E55: 2022-04-01 | G55: Coventry | H55: 66 | I55: 5032.049846 | J55: BF2F | K55: 1 | P55: Band 2F
A56: 6 | B56: Gibson, Libby G. | C56: 7 | D56: K331100712259 | E56: 2022-04-01 | G56: Coventry | H56: 66 | I56: 5451.390154 | J56: BF1F | K56: 1 | P56: Band 1F
A57: 6 | B57: McGowan, Lucas C. | C57: 7 | D57: W331342314010 | E57: 2022-04-01 | G57: Coventry | H57: 66 | I57: 3103.1 | J57: BF2E | K57: 1 | P57: Band 2E
A58: 6 | B58: Braithwaite, Lacey P. | C58: 7 | D58: V331330214003 | E58: 2022-04-01 | G58: Coventry | H58: 66 | I58: 6903.072 | J58: BF5E | K58: 1 | P58: Band 5E
A59: 6 | B59: Woodward, Cody R. | C59: 7 | D59: M331211814023 | E59: 2022-04-01 | G59: Coventry | H59: 66 | I59: 3103.1 | J59: BF2E | K59: 1 | P59: Band 2E
A60: 6 | B60: Urch, Sophia G. | C60: 7 | D60: B331212214038 | E60: 2022-04-01 | G60: Coventry | H60: 66 | I60: 3103.1 | J60: BF2E | K60: 1 | P60: Band 2E
A61: 6 | B61: Gleeson, Reece R. | C61: 7 | D61: U331213113033 | E61: 2022-04-01 | G61: Coventry | H61: 66 | I61: 3354.702154 | J61: BF1E | K61: 1 | P61: Band 1E
A62: 6 | B62: Ahmed, Hana H. | C62: 7 | D62: L331702414007 | E62: 2022-04-01 | G62: Coventry | H62: 66 | I62: 3354.702154 | J62: BF1E | K62: 1 | P62: Band 1E
A63: 6 | B63: Ali, Azhar | C63: 7 | D63: B331214114005 | E63: 2022-04-01 | G63: Coventry | H63: 66 | I63: 5451.390154 | J63: BF1F | K63: 1 | P63: Band 1F
A64: 6 | B64: Hyde, Brody J. | C64: 7 | D64: M331214113061 | E64: 2022-04-01 | G64: Coventry | H64: 66 | I64: 3354.702154 | J64: BF1E | K64: 1 | P64: Band 1E
A65: 6 | B65: Madu, Great I. | C65: 7 | D65: M331701719011 | E65: 2022-04-01 | G65: Coventry | H65: 66 | I65: 5032.049846 | J65: BF4F | K65: 1 | P65: Band 4F
A66: 6 | B66: Cooney, Charlotte B. | C66: 8 | D66: A331702412006 | E66: 2022-04-01 | G66: Coventry | H66: 66 | I66: 5032.049846 | J66: BF2F | K66: 1 | P66: Band 2F
A67: 6 | B67: Chidube, Maurice I. | C67: 8 | D67: J331214913014 | E67: 2022-04-01 | G67: Coventry | H67: 66 | I67: 3103.1 | J67: BF2E | K67: 1 | P67: Band 2E
A68: 6 | B68: Teensa, Raul S. | C68: 8 | D68: N331212412052 | E68: 2022-04-01 | G68: Coventry | H68: 66 | I68: 3103.1 | J68: BF2E | K68: 1 | P68: Band 2E
A69: 6 | B69: Zeno, Eryk | C69: 8 | D69: J331343513046 | E69: 2022-04-01 | G69: Coventry | H69: 66 | I69: 5451.390154 | J69: BF1F | K69: 1 | P69: Band 1F
A70: 6 | B70: Carty, Loveonhe D. | C70: 8 | D70: L331343813008 | E70: 2022-04-01 | G70: Coventry | H70: 66 | I70: 3103.1 | J70: BF2E | K70: 1 | P70: Band 2E
A71: 6 | B71: Karamat, Safiullah | C71: 8 | D71: V331201512013 | E71: 2022-04-01 | G71: Coventry | H71: 66 | I71: 6903.072 | J71: BF5E | K71: 1 | P71: Band 5E
A72: 6 | B72: Astolfi, Franco P. | C72: 8 | D72: Y331701713002 | E72: 2022-04-01 | G72: Coventry | H72: 66 | I72: 6903.072 | J72: BF5E | K72: 1 | P72: Band 5E
A73: 6 | B73: GRYSZKIENAS, Santiago A. | C73: 8 | D73: L331212112059 | E73: 2022-04-01 | G73: Coventry | H73: 66 | I73: 3354.702154 | J73: BF1E | K73: 1 | P73: Band 1E
A74: 6 | B74: Bush, Matthew P. | C74: 8 | D74: A331341813003 | E74: 2022-04-01 | G74: Coventry | H74: 66 | I74: 1677.347692 | J74: BF2D | K74: 1 | P74: Band 2D
A75: 6 | B75: Mack, Paige D. | C75: 8 | D75: L331214312064 | E75: 2022-04-01 | G75: Coventry | H75: 66 | I75: 3103.1 | J75: BF2E | K75: 1 | P75: Band 2E
A76: 6 | B76: McKinlay, Maddox E. | C76: 8 | D76: Y331100711270 | E76: 2022-04-01 | G76: Coventry | H76: 66 | I76: 5451.390154 | J76: BF1F | K76: 1 | P76: Band 1F
A77: 6 | B77: Mula, Elliot J. | C77: 8 | D77: H331330213012 | E77: 2022-04-01 | F77: 2022-04-08 | G77: Coventry | H77: 6 | I77: 495.5809231 | J77: BF1F | K77: 1 | P77: Band 1F
A78: 6 | B78: Mula, Elliot J. | C78: 8 | D78: H331330213012 | E78: 2022-04-01 | G78: Coventry | H78: 60 | I78: 6275.52 | J78: BF5E | K78: 1 | P78: Band 5E
A79: 6 | B79: Molad, MOHAMAD | C79: 8 | D79: M331201512016 | E79: 2022-04-01 | G79: Coventry | H79: 66 | I79: 3103.1 | J79: BF2E | K79: 1 | P79: Band 2E
A80: 6 | B80: Akhtar, Shumena | C80: 8 | D80: F331214112083 | E80: 2022-04-01 | G80: Coventry | H80: 66 | I80: 3354.702154 | J80: BF1E | K80: 1 | P80: Band 1E
A81: 6 | B81: Hudson, Elise A. | C81: 9 | D81: N331300611029 | E81: 2022-04-01 | G81: Warwickshire | H81: 66 | I81: 3103.1 | J81: BF2E | K81: 1 | P81: Band 2E
A82: 6 | B82: Moseley, Holly | C82: 9 | D82: U331702411001 | E82: 2022-04-01 | G82: Coventry | H82: 66 | I82: 5032.049846 | J82: BF2F | K82: 1 | P82: Band 2F
A83: 6 | B83: Abu Baker, Daniel | C83: 9 | D83: P331700911004 | E83: 2022-04-01 | G83: Coventry | H83: 66 | I83: 6903.072 | J83: BF5E | K83: 1 | P83: Band 5E
A84: 6 | B84: Padan, Rohan S. | C84: 9 | D84: W331341411043 | E84: 2022-04-01 | G84: Coventry | H84: 66 | I84: 3103.1 | J84: BF2E | K84: 1 | P84: Band 2E
A85: 6 | B85: Jones, Ellis D. | C85: 9 | D85: L937262612011 | E85: 2022-04-01 | G85: Coventry | H85: 66 | I85: 3354.702154 | J85: BF1E | K85: 1 | P85: Band 1E
A86: 6 | B86: Ray, Jasmine | C86: 9 | D86: R331214111023 | E86: 2022-04-01 | G86: Coventry | H86: 66 | I86: 3103.1 | J86: BF2E | K86: 1 | P86: Band 2E
A87: 6 | B87: Sahota, Joydeep | C87: 9 | D87: Y331214612092 | E87: 2022-04-01 | G87: Coventry | H87: 66 | I87: 3354.702154 | J87: BF1E | K87: 1 | P87: Band 1E
A88: 6 | B88: Mullin, Harley J. | C88: 9 | D88: B331214112061 | E88: 2022-04-01 | G88: Coventry | H88: 66 | I88: 3354.702154 | J88: BF1E | K88: 1 | P88: Band 1E
A89: 6 | B89: Beauchamp, Morgan T. | C89: 9 | D89: H331300712002 | E89: 2022-04-01 | G89: Coventry | H89: 66 | I89: 3103.1 | J89: BF2E | K89: 1 | P89: Band 2E
A90: 6 | B90: Khapane, Yugandhar | C90: 9 | D90: N331700612005 | E90: 2022-04-01 | G90: Coventry | H90: 66 | I90: 5451.390154 | J90: BF1F | K90: 1 | P90: Band 1F
A91: 6 | B91: Norman, William K. | C91: 9 | D91: G331702418018 | E91: 2022-04-01 | G91: Coventry | H91: 66 | I91: 5451.390154 | J91: BF1F | K91: 1 | P91: Band 1F
A92: 6 | B92: Jose, Aannet | C92: 9 | D92: J331701717005 | E92: 2022-04-01 | G92: Coventry | H92: 66 | I92: 3354.702154 | J92: BF1E | K92: 1 | P92: Band 1E
A93: 6 | B93: Ali, Ifza | C93: 10 | D93: Z331700611003 | E93: 2022-04-01 | G93: Coventry | H93: 66 | I93: 3103.1 | J93: BF2E | K93: 1 | P93: Band 2E
A94: 6 | B94: ADEMAKINWA, Kikiola O. | C94: 10 | D94: A331702411005 | E94: 2022-04-01 | G94: Coventry | H94: 66 | I94: 5451.390154 | J94: BF1F | K94: 1 | P94: Band 1F
A95: 6 | B95: KASONGO, Tony S. | C95: 10 | D95: R331215610002 | E95: 2022-04-01 | G95: Coventry | H95: 66 | I95: 5451.390154 | J95: BF1F | K95: 1 | P95: Band 1F
A96: 6 | B96: MALANGU, Sharon B. | C96: 10 | D96: C331343811047 | E96: 2022-04-01 | G96: Coventry | H96: 66 | I96: 5451.390154 | J96: BF1F | K96: 1 | P96: Band 1F
A97: 6 | B97: Kunasingam, Harryshan | C97: 10 | D97: L331100709018 | E97: 2022-04-01 | G97: Coventry | H97: 66 | I97: 5451.390154 | J97: BF1F | K97: 1 | P97: Band 1F
A98: 6 | B98: Rama, Elbion | C98: 10 | D98: L331702411004 | E98: 2022-04-01 | G98: Coventry | H98: 66 | I98: 5451.390154 | J98: BF1F | K98: 1 | P98: Band 1F
A99: 6 | B99: EKALAKALA, Eliezer | C99: 10 | D99: E331701710003 | E99: 2022-04-01 | G99: Coventry | H99: 66 | I99: 3103.1 | J99: BF2E | K99: 1 | P99: Band 2E
A100: 6 | B100: Walters, Casadie-Rae J. | C100: 10 | D100: Q331341811022 | E100: 2022-04-01 | G100: Coventry | H100: 66 | I100: 3354.702154 | J100: BF1E | K100: 1 | P100: Band 1E
A101: 6 | B101: Cain, Chanel | C101: 10 | D101: Y331214210011 | E101: 2022-04-01 | G101: Coventry | H101: 66 | I101: 3103.1 | J101: BF2E | K101: 1 | P101: Band 2E
A102: 6 | B102: Suleiman, Mohammad | C102: 10 | D102: T331110715006 | E102: 2022-04-01 | G102: Coventry | H102: 66 | I102: 5451.390154 | J102: BF1F | K102: 1 | P102: Band 1F
A103: 6 | B103: Singh, Navbir | C103: 10 | D103: K331400418026 | E103: 2022-04-01 | G103: Coventry | H103: 66 | I103: 5451.390154 | J103: BF1F | K103: 1 | P103: Band 1F
A104: 6 | B104: Stokes, Bradley P. | C104: 10 | D104: R312201611091 | E104: 2022-04-01 | G104: Coventry | H104: 66 | I104: 3103.1 | J104: BF2E | K104: 1 | P104: Band 2E
A105: 6 | B105: Hatem, Ahmed B. | C105: 10 | D105: A856721714003 | E105: 2022-04-01 | G105: Coventry | H105: 66 | I105: 5451.390154 | J105: BF1F | K105: 1 | P105: Band 1F
A106: 6 | B106: Biyasi, Hala | C106: 10 | D106: D331701920001 | E106: 2022-04-01 | G106: Coventry | H106: 66 | I106: 3103.1 | J106: BF2E | K106: 1 | P106: Band 2E
A107: 6 | B107: Mohammed-Said, Dia-Adin A. | C107: 10 | D107: P331701921001 | E107: 2022-04-01 | G107: Coventry | H107: 66 | I107: 4193.376 | J107: BF4E | K107: 1 | P107: Band 4E
A108: 6 | B108: Ginova-Pearson, Denisa A. | C108: 11 | D108: B331213610031 | E108: 2022-04-01 | G108: Coventry | H108: 66 | I108: 3103.1 | J108: BF2E | K108: 1 | P108: Band 2E
A109: 6 | B109: Kazmi, Aleeza | C109: 11 | D109: W331701708004 | E109: 2022-04-01 | G109: Coventry | H109: 66 | I109: 5032.049846 | J109: BF2F | K109: 1 | P109: Band 2F
A110: 6 | B110: Munir, Aisha | C110: 11 | D110: R331702409006 | E110: 2022-04-01 | G110: Coventry | H110: 66 | I110: 3103.1 | J110: BF2E | K110: 1 | P110: Band 2E
A111: 6 | B111: Bhatti, Aman | C111: 11 | D111: J331702409009 | E111: 2022-04-01 | G111: Coventry | H111: 66 | I111: 5032.049846 | J111: BF2F | K111: 1 | P111: Band 2F
A112: 6 | B112: Leese, Noah | C112: 11 | D112: Y331343709002 | E112: 2022-04-01 | G112: Coventry | H112: 66 | I112: 5451.390154 | J112: BF1F | K112: 1 | P112: Band 1F
A113: 6 | B113: Hughes, Dylan J. | C113: 11 | D113: F331343810048 | E113: 2022-04-01 | G113: Coventry | H113: 66 | I113: 3103.1 | J113: BF2E | K113: 1 | P113: Band 2E
A114: 6 | B114: Younis, Mohammed E. | C114: 11 | D114: D331701709002 | E114: 2022-04-01 | G114: Coventry | H114: 66 | I114: 5451.390154 | J114: BF1F | K114: 1 | P114: Band 1F
A115: 6 | B115: Moseley, Thomas | C115: 11 | D115: E331202109018 | E115: 2022-04-01 | G115: Coventry | H115: 66 | I115: 3354.702154 | J115: BF1E | K115: 1 | P115: =IF(ISBLANK(A115),"",CONCATENATE($J$50," ",RIGHT(J115,2))) -> Band 1E
A116: =IF(LEFT(J116,2)="BF",6,IF(LEFT(J116,2)="CW",1,IF(LEFT(J116,2)="CO",4,IF(LEFT(J116,2)="TS",2,IF(LEFT(J116,2)="RB",3,IF(LEFT(J116,2)="SF",7,IF(LEFT(J116,2)="TV",5,IF(LEFT(J116,2)="WF",8,"")))))))) -> 6 | B116: Abdullah, Nasif | C116: 11 | D116: D331214509052 | E116: 2022-04-01 | G116: Coventry | H116: 66 | I116: 5032.049846 | J116: BF2F | K116: 1 | P116: Band 2F
A117: 6 | B117: Wain, Aiden T. | C117: 11 | D117: N331343509055 | E117: 2022-04-01 | G117: Coventry | H117: 66 | I117: 3354.702154 | J117: BF1E | K117: 1 | P117: Band 1E
A118: 6 | B118: Christian, Riquelme N. | C118: 11 | D118: K331300810023 | E118: 2022-04-01 | G118: Coventry | H118: 66 | I118: 3354.702154 | J118: BF1E | K118: 1 | P118: Band 1E
A119: 6 | B119: Cockerill, William | C119: 11 | D119: R331341109030 | E119: 2022-04-01 | G119: Coventry | H119: 66 | I119: 3103.1 | J119: BF2E | K119: 1 | P119: Band 2E
A120: 6 | B120: Tankala, Daniel B. | C120: 11 | D120: K331214509137 | E120: 2022-04-01 | G120: Coventry | H120: 66 | I120: 13806.144 | J120: BF5F | K120: 1 | P120: Band 5F
A121: 6 | B121: Efrem Tekle, Feelmona E. | C121: 11 | D121: M331300810034 | E121: 2022-04-01 | G121: Coventry | H121: 66 | I121: 3103.1 | J121: BF2E | K121: 1 | P121: Band 2E
A122: 6 | B122: Smith, Katie-Jayne | C122: 11 | D122: K936296309021 | E122: 2022-04-01 | G122: Coventry | H122: 66 | I122: 5451.390154 | J122: BF1F | K122: 1 | P122: Band 1F
A123: 6 | B123: Voicu, Alexandru V. | C123: 11 | D123: N937702017001 | E123: 2022-04-01 | G123: Coventry | H123: 66 | I123: 5032.049846 | J123: BF2F | K123: 1 | P123: Band 2F
A124: 6 | B124: Didiu, Cosmin | C124: 11 | D124: F331701918001 | E124: 2022-04-01 | G124: Coventry | H124: 66 | I124: 3103.1 | J124: BF2E | K124: 1 | P124: Band 2E
A125: 6 | B125: Jadeszko, Gabriel | C125: 11 | D125: V331701918002 | E125: 2022-04-01 | G125: Coventry | H125: 66 | I125: 3103.1 | J125: BF2E | K125: 1 | P125: Band 2E
A126: 6 | B126: Hatem, Ibraheem B. | C126: 11 | D126: Q856700314010 | E126: 2022-04-01 | G126: Coventry | H126: 66 | I126: 5032.049846 | J126: BF2F | K126: 1 | P126: Band 2F
A127: 6 | B127: Okorie, Michael | C127: 11 | D127: F331701919002 | E127: 2022-04-01 | G127: Coventry | H127: 66 | I127: 5032.049846 | J127: BF2F | K127: 1 | P127: Band 2F
A128: 6 | B128: ESSEKU-OTOO, Nadia A. | C128: 11 | D128: R307700710005 | E128: 2022-04-01 | G128: Coventry | H128: 66 | I128: 3354.702154 | J128: BF1E | K128: 1 | P128: Band 1E
A129: 6 | B129: Russell, William J. | C129: 12 | D129: Y331700609001 | E129: 2022-04-01 | G129: Coventry | H129: 66 | I129: 5451.390154 | J129: BF1F | K129: 1 | P129: Band 1F
A130: 6 | B130: Grantham-Buchanan, Dani V. | C130: 12 | D130: K331213809004 | E130: 2022-04-01 | G130: Coventry | H130: 66 | I130: 3103.1 | J130: BF2E | K130: 1 | P130: Band 2E
A131: 6 | B131: Ekalakala, Beni T. | C131: 12 | D131: D331343708043 | E131: 2022-04-01 | G131: Coventry | H131: 66 | I131: 3354.702154 | J131: BF1E | K131: 1 | P131: Band 1E
A132: 6 | B132: Clifton, Amy E. | C132: 12 | D132: C331215608046 | E132: 2022-04-01 | G132: Coventry | H132: 66 | I132: 3103.1 | J132: BF2E | K132: 1 | P132: Band 2E
A133: 6 | B133: Mubele, Quincey | C133: 12 | D133: W331212908067 | E133: 2022-04-01 | G133: Coventry | H133: 66 | I133: 3354.702154 | J133: BF1E | K133: 1 | P133: Band 1E
A134: 6 | B134: Kirkby, Olivia | C134: 12 | D134: T331343708044 | E134: 2022-04-01 | G134: Coventry | H134: 66 | I134: 3354.702154 | J134: BF1E | K134: 1 | P134: Band 1E
A135: 6 | B135: Riley, Kirk S. | C135: 12 | D135: Q336204110010 | E135: 2022-04-01 | G135: Coventry | H135: 66 | I135: 3103.1 | J135: BF2E | K135: 1 | P135: Band 2E
A136: 6 | B136: Newport, Brandon A. | C136: 12 | D136: K331702408001 | E136: 2022-04-01 | G136: Coventry | H136: 66 | I136: 5451.390154 | J136: BF1F | K136: 1 | P136: Band 1F
A137: 6 | B137: Hussain, Shafee | C137: 13 | D137: W331343707016 | E137: 2022-04-01 | G137: Coventry | H137: 66 | I137: 6903.072 | J137: BF5E | K137: 1 | P137: Band 5E
A138: 6 | B138: Cooper, Dixie | C138: 13 | D138: K331701705002 | E138: 2022-04-01 | G138: Coventry | H138: 66 | I138: 5032.049846 | J138: BF2F | K138: 1 | P138: Band 2F
A139: 6 | B139: Sadler, Lewis C. | C139: 13 | D139: M331343707030 | E139: 2022-04-01 | G139: Coventry | H139: 66 | I139: 4193.376 | J139: BF3E | K139: 1 | P139: Band 3E
A140: 6 | B140: Miguel, Emmanuel | C140: 13 | D140: Z331702408002 | E140: 2022-04-01 | G140: Coventry | H140: 66 | I140: 5451.390154 | J140: BF1F | K140: 1 | P140: Band 1F
A141: 6 | B141: McLaughlin, CHARLIE S. | C141: 13 | D141: G331701707002 | E141: 2022-04-01 | G141: Coventry | H141: 66 | I141: 5451.390154 | J141: BF1F | K141: 1 | P141: Band 1F
A142: 6 | B142: Mackley, Connor K. | C142: 13 | D142: M331200808036 | E142: 2022-04-01 | G142: Coventry | H142: 66 | I142: 3103.1 | J142: BF2E | K142: 1 | P142: Band 2E
A143: 6 | B143: Miah, Tahim M. | C143: 13 | D143: Z331215607014 | E143: 2022-04-01 | G143: Coventry | H143: 66 | I143: 5451.390154 | J143: BF1F | K143: 1 | P143: Band 1F
A144: 6 | B144: Rawlinson, Jack M. | C144: 13 | D144: B331300908036 | E144: 2022-04-01 | G144: Coventry | H144: 66 | I144: 3354.702154 | J144: BF1E | K144: 1 | P144: Band 1E
A145: 6 | B145: Raja, Mohammed Qasim Q. | C145: 13 | D145: F331214107040 | E145: 2022-04-01 | G145: Coventry | H145: 66 | I145: 3354.702154 | J145: BF1E | K145: 1 | P145: Band 1E
A146: 6 | B146: Edginton, ADAM M. | C146: 13 | D146: W331214207015 | E146: 2022-04-01 | G146: Coventry | H146: 66 | I146: 3103.1 | J146: BF2E | K146: 1 | P146: Band 2E
A147: 6 | B147: Akhtar, Kerrum | C147: 13 | D147: D331202307051 | E147: 2022-04-01 | G147: Coventry | H147: 66 | I147: 3103.1 | J147: BF2E | K147: 1 | P147: Band 2E
A148: 6 | B148: James, Kieran | C148: 13 | D148: M331214208057 | E148: 2022-04-01 | G148: Coventry | H148: 66 | I148: 4193.376 | J148: BF3E | K148: 1 | P148: Band 3E
A149: 6 | B149: Daniels, Cameron J. | C149: 13 | D149: R331300708004 | E149: 2022-04-01 | G149: Coventry | H149: 66 | I149: 3103.1 | J149: BF2E | K149: 1 | P149: Band 2E
A150: 6 | B150: Ben Othman, Shahd B. | C150: 13 | D150: T331701708002 | E150: 2022-04-01 | G150: Coventry | H150: 66 | I150: 3354.702154 | J150: BF1E | K150: 1 | P150: Band 1E
A151: 6 | B151: Madu, Promise | C151: 13 | D151: R331701919001 | E151: 2022-04-01 | G151: Coventry | H151: 66 | I151: 5451.390154 | J151: BF1F | K151: 1 | P151: Band 1F
A152: 6 | B152: Magandi, Phillip K. | C152: 14 | D152: V331215606020 | E152: 2022-04-01 | G152: Coventry | H152: 66 | I152: 5451.390154 | J152: BF1F | K152: 1 | P152: Band 1F
A153: 6 | B153: Quartey-Papafio, Joel | C153: 14 | D153: E331701807003 | E153: 2022-04-01 | G153: Coventry | H153: 66 | I153: 5451.390154 | J153: BF1F | K153: 1 | P153: Band 1F
A154: 6 | B154: Patel, Kishan | C154: 14 | D154: H331215606028 | E154: 2022-04-01 | G154: Coventry | H154: 66 | I154: 5451.390154 | J154: BF1F | K154: 1 | P154: Band 1F
A155: 6 | B155: Iqbal, Hamzah | C155: 14 | D155: Z331215606013 | E155: 2022-04-01 | G155: Coventry | H155: 66 | I155: 3103.1 | J155: BF2E | K155: 1 | P155: Band 2E
A156: 6 | B156: Bansal, Amrit | C156: 14 | D156: X331213206002 | E156: 2022-04-01 | G156: Coventry | H156: 66 | I156: 5032.049846 | J156: BF4F | K156: 1 | P156: Band 4F
A157: 6 | B157: Nkurunziza, Shadia | C157: 14 | D157: K331701706003 | E157: 2022-04-01 | G157: Coventry | H157: 66 | I157: 3103.1 | J157: BF2E | K157: 1 | P157: Band 2E
A158: 6 | B158: De Souza, Amadou | C158: 14 | D158: W331701706002 | E158: 2022-04-01 | G158: Coventry | H158: 66 | I158: 5032.049846 | J158: BF3F | K158: 1 | P158: Band 3F
A159: 6 | B159: Downes, Justin T. | C159: 14 | D159: Q331701806001 | E159: 2022-04-01 | G159: Coventry | H159: 66 | I159: 3103.1 | J159: BF2E | K159: 1 | P159: Band 2E
A160: 6 | B160: Ali, Waqas | C160: 14 | D160: A331215606004 | E160: 2022-04-01 | G160: Coventry | H160: 66 | I160: 5451.390154 | J160: BF1F | K160: 1 | P160: Band 1F
A161: 6 | B161: Talib, Amaan | C161: 14 | D161: U331212106041 | E161: 2022-04-01 | G161: Coventry | H161: 66 | I161: 3103.1 | J161: BF2E | K161: 1 | P161: Band 2E
A162: 6 | B162: HURAN, Najma | C162: 14 | D162: V856237006026 | E162: 2022-04-01 | G162: Coventry | H162: 66 | I162: 5032.049846 | J162: BF2F | K162: 1 | P162: Band 2F
A163: 6 | B163: Batchelor, Ajay | C163: 14 | D163: E331701806002 | E163: 2022-04-01 | G163: Coventry | H163: 66 | I163: 3103.1 | J163: BF2E | K163: 1 | P163: Band 2E
A164: 6 | B164: Frasineanu, Antonio J. | C164: 14 | D164: Q331702413001 | E164: 2022-04-01 | G164: Coventry | H164: 66 | I164: 5032.049846 | J164: BF2F | K164: 1 | P164: Band 2F
A165: 6 | B165: Sureshkumar, Pravin | C165: 14 | D165: C307216107003 | E165: 2022-04-01 | G165: Coventry | H165: 66 | I165: 3354.702154 | J165: BF1E | K165: 1 | P165: Band 1E
B166: Baginton Fields School | C166: Period: | D166: 2022-04-01 | E166: to | F166: 2022-07-25 | G166: No of Pupils: 114 | H166: Cost for Period: | I166: 488939.3978 | P166: Band
B167: Report for Castle Wood School | P167: Band
B168: Count of Students in Each Band | P168: Band
C169: Cat 1 | D169: Cat 2 | E169: Cat 4 | F169: Cat 5 | G169: Total | P169: Band
B170: Band D | C170: 0 | D170: 0 | E170: 1 | F170: 0 | G170: 1 | P170: Band
B171: Band E | C171: 82 | D171: 22 | E171: 5 | F171: 7 | G171: 116 | P171: Band
B172: Band F | C172: 27 | D172: 12 | E172: 4 | F172: 0 | G172: 43 | P172: Band
B173: Total | C173: 109 | D173: 34 | E173: 10 | F173: 7 | G173: 160 | P173: Band
P174: Band
P175: Band
B176: Sum of Open Days in Each Band | P176: Band
C177: Cat 1 | D177: Cat 2 | E177: Cat 4 | F177: Cat 5 | G177: Total | P177: Band
B178: Band D | C178: 0 | D178: 0 | E178: 66 | F178: 0 | G178: 66 | P178: Band
B179: Band E | C179: 5412 | D179: 1449 | E179: 330 | F179: 462 | G179: 7653 | P179: =IF(ISBLANK(A179),"",CONCATENATE($J$50," ",RIGHT(J179,2))) -> Band
A180: =IF(LEFT(J180,2)="BF",6,IF(LEFT(J180,2)="CW",1,IF(LEFT(J180,2)="CO",4,IF(LEFT(J180,2)="TS",2,IF(LEFT(J180,2)="RB",3,IF(LEFT(J180,2)="SF",7,IF(LEFT(J180,2)="TV",5,IF(LEFT(J180,2)="WF",8,"")))))))) ->  | B180: Band F | C180: 1782 | D180: 792 | E180: 264 | F180: 0 | G180: 2838 | P180: Band
B181: Total | C181: 7194 | D181: 2241 | E181: 660 | F181: 462 | G181: 10557 | P181: Band
P182: Band
P183: Band
P184: Band
B185: High Needs Top-Up_Rates for each Band | P185: Band
P186: Band
C187: CW | P187: Band
B188: Report for Castle Wood School | P188: Band
B189: Coventry High Needs Top-Up_Funding by Band | P189: Band
C190: Cat 1 | D190: Cat 2 | E190: Cat 4 | F190: Cat 5 | G190: Total | P190: Band
B191: Band D | C191: 0 | D191: 0 | E191: 2516.028308 | F191: 0 | G191: 2516.028308 | P191: Band
B192: Band E | C192: 271730.8745 | D192: 68127.15 | E192: 20966.88 | F192: 48321.504 | G192: 409146.4085 | P192: Band
B193: Band F | C193: 147187.5342 | D193: 60384.59815 | E193: 20128.19938 | F193: 0 | G193: 227700.3317 | P193: Band
B194: Total | C194: 418918.4086 | D194: 128511.7482 | E194: 43611.10769 | F194: 48321.504 | G194: 639362.7685 | P194: Band
P195: Band
P196: Band
B197: Other LA High Needs Top-Up_Funding for Each Band | P197: Band
C198: Cat 1 | D198: Cat 2 | E198: Cat 4 | F198: Cat 5 | G198: Total | P198: Band
B199: Band D | C199: 0 | D199: 0 | E199: 0 | F199: 0 | G199: 0 | P199: Band
B200: Band E | C200: 3354.702154 | D200: 0 | E200: 0 | F200: 0 | G200: 3354.702154 | P200: Band
... 1476 more rows

Sheet AutumnProvRep (hidden)
B1: Funding Report for Period 01/09/2021 to 31/12/2021 | C1: No of Days in Year 192
A2: =IF(LEFT(J2,2)="BF",6,IF(LEFT(J2,2)="CW",1,IF(LEFT(J2,2)="CO",4,IF(LEFT(J2,2)="TS",2,IF(LEFT(J2,2)="RB",3,IF(LEFT(J2,2)="SF",7,IF(LEFT(J2,2)="TV",5,IF(LEFT(J2,2)="WF",8,"")))))))) ->  | B2: Report for Baginton Fields School | P2: =IF(ISBLANK(A2),"",CONCATENATE($J$50," ",RIGHT(J2,2))) -> Band
B3: Count of Students in Each Band | P3: Band
C4: Cat 1 | D4: Cat 2 | E4: Cat 3 | F4: Cat 4 | G4: Cat 5 | H4: Total | P4: Band
B5: Band D | C5: 0 | D5: 1 | E5: 0 | F5: 0 | G5: 0 | H5: 1 | P5: Band
B6: Band E | C6: 22 | D6: 40 | E6: 2 | F6: 0 | G6: 5 | H6: 69 | P6: Band
B7: Band F | C7: 31 | D7: 12 | E7: 1 | F7: 2 | G7: 1 | H7: 47 | P7: Band
B8: Total | C8: 53 | D8: 53 | E8: 3 | F8: 2 | G8: 6 | H8: 116 | P8: Band
P9: Band
P10: Band
B11: Sum of Open Days in Each Band | P11: Band
C12: Cat 1 | D12: Cat 2 | E12: Cat 3 | F12: Cat 4 | G12: Cat 5 | H12: Total | P12: Band
B13: Band D | C13: 0 | D13: 71 | E13: 0 | F13: 0 | G13: 0 | H13: 71 | P13: Band
B14: Band E | C14: 1527 | D14: 2840 | E14: 142 | F14: 0 | G14: 332 | H14: 4841 | P14: Band
B15: Band F | C15: 2153 | D15: 852 | E15: 71 | F15: 142 | G15: 71 | H15: 3289 | P15: Band
B16: Total | C16: 3680 | D16: 3763 | E16: 213 | F16: 142 | G16: 403 | H16: 8201 | P16: Band
P17: Band
P18: =IF(ISBLANK(A18),"",CONCATENATE($J$50," ",RIGHT(J18,2))) -> Band
P19: =IF(ISBLANK(A19),"",CONCATENATE($J$50," ",RIGHT(J19,2))) -> Band
B20: High Needs Top-Up_Rates for each Band | P20: Band
P21: Band
C22: BF | P22: Band
B23: Report for Baginton Fields School | P23: Band
B24: Coventry High Needs Top-Up_Funding by Band | P24: Band
C25: Cat 1 | D25: Cat 2 | E25: Cat 3 | F25: Cat 4 | G25: Cat 5 | H25: Total | P25: Band
B26: Band D | C26: 0 | D26: 1762.129475 | E26: 0 | F26: 0 | G26: 0 | H26: 1762.129475 | P26: Band
B27: Band E | C27: 75796.46727 | D27: 127137.8476 | E27: 8810.654919 | F27: 0 | G27: 33910.6875 | H27: 245655.6573 | P27: Band
B28: Band F | C28: 173663.0523 | D28: 63436.70636 | E28: 5286.392197 | F28: 10572.78439 | G28: 14503.96875 | H28: 267462.904 | P28: Band
B29: Total | C29: 249459.5195 | D29: 192336.6834 | E29: 14097.04712 | F29: 10572.78439 | G29: 48414.65625 | H29: 514880.6907 | P29: Band
P30: Band
P31: Band
B32: Other LA High Needs Top-Up_Funding for Each Band | P32: Band
C33: Cat 1 | D33: Cat 2 | E33: Cat 3 | F33: Cat 4 | G33: Cat 5 | H33: Total | P33: Band
B34: Band D | C34: 0 | D34: 0 | E34: 0 | F34: 0 | G34: 0 | H34: 0 | P34: Band
B35: Band E | C35: 0 | D35: 3259.944809 | E35: 0 | F35: 0 | G35: 0 | H35: 3259.944809 | P35: Band
B36: Band F | C36: 0 | D36: 0 | E36: 0 | F36: 0 | G36: 0 | H36: 0 | P36: Band
B37: Total | C37: 0 | D37: 3259.944809 | E37: 0 | F37: 0 | G37: 0 | H37: 3259.944809 | P37: Band
P38: Band
P39: Band
B40: Total High Needs Top-Up_Funding for Each Band | P40: Band
C41: Cat 1 | D41: Cat 2 | E41: Cat 3 | F41: Cat 4 | G41: Cat 5 | H41: Total | P41: Band
B42: Band D | C42: 0 | D42: 1762.129475 | E42: 0 | F42: 0 | G42: 0 | H42: 1762.129475 | P42: Band
B43: Band E | C43: 75796.46727 | D43: 130397.7924 | E43: 8810.654919 | F43: 0 | G43: 33910.6875 | H43: 248915.6021 | P43: Band
B44: Band F | C44: 173663.0523 | D44: 63436.70636 | E44: 5286.392197 | F44: 10572.78439 | G44: 14503.96875 | H44: 267462.904 | P44: Band
B45: Total | C45: 249459.5195 | D45: 195596.6282 | E45: 14097.04712 | F45: 10572.78439 | G45: 48414.65625 | H45: 518140.6355 | P45: Band
P46: Band
P47: Band
B48: Baginton Fields School. List of Pupils who were registered for funding between 01/09/2021 and 31/12/2021 | P48: Band
B49: Start and end dates shown only if different to the above specified period limits | P49: Band
B50: Name | C50: NCY | D50: UPN | E50: start date | F50: end date | G50: Funding LA | H50: Funded Days | I50: Top Up Amount | J50: Band | K50: FTE | P50: =IF(ISBLANK(A50),"",CONCATENATE($J$50," ",RIGHT(J50,2))) -> Band nd
A51: =IF(LEFT(J51,2)="BF",6,IF(LEFT(J51,2)="CW",1,IF(LEFT(J51,2)="CO",4,IF(LEFT(J51,2)="TS",2,IF(LEFT(J51,2)="RB",3,IF(LEFT(J51,2)="SF",7,IF(LEFT(J51,2)="TV",5,IF(LEFT(J51,2)="WF",8,"")))))))) -> 6 | B51: Collinson, Catherine j. | C51: 7 | D51: J331214114002 | E51: 2021-09-01 | F51: 2021-12-17 | G51: Coventry | H51: 71 | I51: 3259.944809 | J51: BF2E | K51: 1 | P51: =IF(ISBLANK(A51),"",CONCATENATE($J$50," ",RIGHT(J51,2))) -> Band 2E
A52: =IF(LEFT(J52,2)="BF",6,IF(LEFT(J52,2)="CW",1,IF(LEFT(J52,2)="CO",4,IF(LEFT(J52,2)="TS",2,IF(LEFT(J52,2)="RB",3,IF(LEFT(J52,2)="SF",7,IF(LEFT(J52,2)="TV",5,IF(LEFT(J52,2)="WF",8,"")))))))) -> 6 | B52: Skvortsov-Kirsteine, Jessica | C52: 7 | D52: B331340813020 | E52: 2021-09-01 | F52: 2021-12-17 | G52: Coventry | H52: 71 | I52: 3259.944809 | J52: BF2E | K52: 1 | P52: Band 2E
A53: 6 | B53: Molad, Marwan A. | C53: 7 | D53: Q331201513019 | E53: 2021-09-01 | F53: 2021-12-17 | G53: Coventry | H53: 71 | I53: 3259.944809 | J53: BF2E | K53: 1 | P53: Band 2E
A54: 6 | B54: Islam, Mohammed Sami S. | C54: 7 | D54: B331702414001 | E54: 2021-09-01 | F54: 2021-12-17 | G54: Coventry | H54: 71 | I54: 5726.928337 | J54: BF1F | K54: 1 | P54: Band 1F
A55: 6 | B55: Gul, Annum | C55: 7 | D55: M331701713003 | E55: 2021-09-01 | F55: 2021-12-17 | G55: Coventry | H55: 71 | I55: 5286.392197 | J55: BF2F | K55: 1 | P55: Band 2F
A56: 6 | B56: Gibson, Libby G. | C56: 7 | D56: K331100712259 | E56: 2021-09-01 | F56: 2021-12-17 | G56: Coventry | H56: 71 | I56: 5726.928337 | J56: BF1F | K56: 1 | P56: Band 1F
A57: 6 | B57: McGowan, Lucas C. | C57: 7 | D57: W331342314010 | E57: 2021-09-01 | F57: 2021-12-17 | G57: Coventry | H57: 71 | I57: 3259.944809 | J57: BF2E | K57: 1 | P57: Band 2E
A58: 6 | B58: Braithwaite, Lacey P. | C58: 7 | D58: V331330214003 | E58: 2021-09-01 | F58: 2021-12-17 | G58: Coventry | H58: 71 | I58: 7251.984375 | J58: BF5E | K58: 1 | P58: Band 5E
A59: 6 | B59: Woodward, Cody R. | C59: 7 | D59: M331211814023 | E59: 2021-09-01 | F59: 2021-12-17 | G59: Coventry | H59: 71 | I59: 3259.944809 | J59: BF2E | K59: 1 | P59: Band 2E
A60: 6 | B60: Urch, Sophia G. | C60: 7 | D60: B331212214038 | E60: 2021-09-01 | F60: 2021-12-17 | G60: Coventry | H60: 71 | I60: 3259.944809 | J60: BF2E | K60: 1 | P60: Band 2E
A61: 6 | B61: Gleeson, Reece R. | C61: 7 | D61: U331213113033 | E61: 2021-09-01 | F61: 2021-12-17 | G61: Coventry | H61: 71 | I61: 3524.262722 | J61: BF1E | K61: 1 | P61: Band 1E
A62: 6 | B62: Ahmed, Hana H. | C62: 7 | D62: L331702414007 | E62: 2021-09-01 | F62: 2021-12-17 | G62: Coventry | H62: 71 | I62: 3524.262722 | J62: BF1E | K62: 1 | P62: Band 1E
A63: 6 | B63: Ali, Azhar | C63: 7 | D63: B331214114005 | E63: 2021-09-01 | F63: 2021-12-17 | G63: Coventry | H63: 71 | I63: 5726.928337 | J63: BF1F | K63: 1 | P63: Band 1F
A64: 6 | B64: Hyde, Brody J. | C64: 7 | D64: M331214113061 | E64: 2021-09-01 | F64: 2021-12-17 | G64: Coventry | H64: 71 | I64: 3524.262722 | J64: BF1E | K64: 1 | P64: Band 1E
A65: 6 | B65: Madu, Great I. | C65: 7 | D65: M331701719011 | E65: 2021-09-01 | F65: 2021-12-17 | G65: Coventry | H65: 71 | I65: 5286.392197 | J65: BF4F | K65: 1 | P65: Band 4F
A66: 6 | B66: Cooney, Charlotte B. | C66: 8 | D66: A331702412006 | E66: 2021-09-01 | F66: 2021-12-17 | G66: Coventry | H66: 71 | I66: 5286.392197 | J66: BF2F | K66: 1 | P66: Band 2F
A67: 6 | B67: Chidube, Maurice I. | C67: 8 | D67: J331214913014 | E67: 2021-09-01 | F67: 2021-12-17 | G67: Coventry | H67: 71 | I67: 3259.944809 | J67: BF2E | K67: 1 | P67: Band 2E
A68: 6 | B68: Teensa, Raul S. | C68: 8 | D68: N331212412052 | E68: 2021-09-01 | F68: 2021-12-17 | G68: Coventry | H68: 71 | I68: 3259.944809 | J68: BF2E | K68: 1 | P68: Band 2E
A69: 6 | B69: Zeno, Eryk | C69: 8 | D69: J331343513046 | E69: 2021-09-01 | F69: 2021-12-17 | G69: Coventry | H69: 71 | I69: 5726.928337 | J69: BF1F | K69: 1 | P69: Band 1F
A70: 6 | B70: Carty, Loveonhe D. | C70: 8 | D70: L331343813008 | E70: 2021-09-01 | F70: 2021-12-17 | G70: Coventry | H70: 71 | I70: 3259.944809 | J70: BF2E | K70: 1 | P70: Band 2E
A71: 6 | B71: Karamat, Safiullah | C71: 8 | D71: V331201512013 | E71: 2021-09-01 | F71: 2021-10-05 | G71: Coventry | H71: 23 | I71: 1855.202137 | J71: BF1F | K71: 1 | P71: Band 1F
A72: 6 | B72: Karamat, Safiullah | C72: 8 | D72: V331201512013 | E72: 2021-10-06 | F72: 2021-12-17 | G72: Coventry | H72: 48 | I72: 4902.75 | J72: BF5E | K72: 1 | P72: Band 5E
A73: 6 | B73: Astolfi, Franco P. | C73: 8 | D73: Y331701713002 | E73: 2021-09-01 | F73: 2021-12-17 | G73: Coventry | H73: 71 | I73: 7251.984375 | J73: BF5E | K73: 1 | P73: Band 5E
A74: 6 | B74: GRYSZKIENAS, Santiago A. | C74: 8 | D74: L331212112059 | E74: 2021-09-01 | F74: 2021-12-17 | G74: Coventry | H74: 71 | I74: 3524.262722 | J74: BF1E | K74: 1 | P74: Band 1E
A75: 6 | B75: Bush, Matthew P. | C75: 8 | D75: A331341813003 | E75: 2021-09-01 | F75: 2021-12-17 | G75: Coventry | H75: 71 | I75: 1762.129475 | J75: BF2D | K75: 1 | P75: Band 2D
A76: 6 | B76: Mack, Paige D. | C76: 8 | D76: L331214312064 | E76: 2021-09-01 | F76: 2021-12-17 | G76: Coventry | H76: 71 | I76: 3259.944809 | J76: BF2E | K76: 1 | P76: Band 2E
A77: 6 | B77: McKinlay, Maddox E. | C77: 8 | D77: Y331100711270 | E77: 2021-09-01 | F77: 2021-12-17 | G77: Coventry | H77: 71 | I77: 5726.928337 | J77: BF1F | K77: 1 | P77: Band 1F
A78: 6 | B78: Mula, Elliot J. | C78: 8 | D78: H331330213012 | E78: 2021-09-01 | F78: 2021-12-17 | G78: Coventry | H78: 71 | I78: 5726.928337 | J78: BF1F | K78: 1 | P78: Band 1F
A79: 6 | B79: Molad, MOHAMAD | C79: 8 | D79: M331201512016 | E79: 2021-09-01 | F79: 2021-12-17 | G79: Coventry | H79: 71 | I79: 3259.944809 | J79: BF2E | K79: 1 | P79: Band 2E
A80: 6 | B80: Akhtar, Shumena | C80: 8 | D80: F331214112083 | E80: 2021-09-01 | F80: 2021-12-17 | G80: Coventry | H80: 71 | I80: 3524.262722 | J80: BF1E | K80: 1 | P80: Band 1E
A81: 6 | B81: Hudson, Elise A. | C81: 9 | D81: N331300611029 | E81: 2021-09-01 | F81: 2021-12-17 | G81: Warwickshire | H81: 71 | I81: 3259.944809 | J81: BF2E | K81: 1 | P81: Band 2E
A82: 6 | B82: Moseley, Holly | C82: 9 | D82: U331702411001 | E82: 2021-09-01 | F82: 2021-12-17 | G82: Coventry | H82: 71 | I82: 5286.392197 | J82: BF2F | K82: 1 | P82: Band 2F
A83: 6 | B83: Abu Baker, Daniel | C83: 9 | D83: P331700911004 | E83: 2021-09-01 | F83: 2021-12-17 | G83: Coventry | H83: 71 | I83: 7251.984375 | J83: BF5E | K83: 1 | P83: Band 5E
A84: 6 | B84: Padan, Rohan S. | C84: 9 | D84: W331341411043 | E84: 2021-09-01 | F84: 2021-12-17 | G84: Coventry | H84: 71 | I84: 3259.944809 | J84: BF2E | K84: 1 | P84: Band 2E
A85: 6 | B85: Docherty, Rico V. | C85: 9 | D85: J341302612014 | E85: 2021-09-01 | F85: 2021-10-22 | G85: Coventry | H85: 36 | I85: 1786.950113 | J85: BF1E | K85: 1 | P85: Band 1E
A86: 6 | B86: Jones, Ellis D. | C86: 9 | D86: L937262612011 | E86: 2021-09-01 | F86: 2021-12-17 | G86: Coventry | H86: 71 | I86: 3524.262722 | J86: BF1E | K86: 1 | P86: Band 1E
A87: 6 | B87: Ray, Jasmine | C87: 9 | D87: R331214111023 | E87: 2021-09-01 | F87: 2021-12-17 | G87: Coventry | H87: 71 | I87: 3259.944809 | J87: BF2E | K87: 1 | P87: Band 2E
A88: 6 | B88: Sahota, Joydeep | C88: 9 | D88: Y331214612092 | E88: 2021-09-01 | F88: 2021-12-17 | G88: Coventry | H88: 71 | I88: 3524.262722 | J88: BF1E | K88: 1 | P88: Band 1E
A89: 6 | B89: Mullin, Harley J. | C89: 9 | D89: B331214112061 | E89: 2021-09-01 | F89: 2021-12-17 | G89: Coventry | H89: 71 | I89: 3524.262722 | J89: BF1E | K89: 1 | P89: Band 1E
A90: 6 | B90: Beauchamp, Morgan T. | C90: 9 | D90: H331300712002 | E90: 2021-09-01 | F90: 2021-12-17 | G90: Coventry | H90: 71 | I90: 3259.944809 | J90: BF2E | K90: 1 | P90: Band 2E
A91: 6 | B91: Khapane, Yugandhar | C91: 9 | D91: N331700612005 | E91: 2021-09-01 | F91: 2021-12-17 | G91: Coventry | H91: 71 | I91: 5726.928337 | J91: BF1F | K91: 1 | P91: Band 1F
A92: 6 | B92: Norman, William K. | C92: 9 | D92: G331702418018 | E92: 2021-09-01 | F92: 2021-12-17 | G92: Coventry | H92: 71 | I92: 5726.928337 | J92: BF1F | K92: 1 | P92: Band 1F
A93: 6 | B93: Jose, Aannet | C93: 9 | D93: J331701717005 | E93: 2021-09-01 | F93: 2021-12-17 | G93: Coventry | H93: 71 | I93: 3524.262722 | J93: BF1E | K93: 1 | P93: Band 1E
A94: 6 | B94: MEESALA, Jeetendrareddy | C94: 10 | D94: U331343710017 | E94: 2021-09-01 | F94: 2021-12-17 | G94: Coventry | H94: 71 | I94: 3259.944809 | J94: BF2E | K94: 1 | P94: Band 2E
A95: 6 | B95: Ali, Ifza | C95: 10 | D95: Z331700611003 | E95: 2021-09-01 | F95: 2021-12-17 | G95: Coventry | H95: 71 | I95: 3259.944809 | J95: BF2E | K95: 1 | P95: Band 2E
A96: 6 | B96: ADEMAKINWA, Kikiola O. | C96: 10 | D96: A331702411005 | E96: 2021-09-01 | F96: 2021-12-17 | G96: Coventry | H96: 71 | I96: 5726.928337 | J96: BF1F | K96: 1 | P96: Band 1F
A97: 6 | B97: KASONGO, Tony S. | C97: 10 | D97: R331215610002 | E97: 2021-09-01 | F97: 2021-12-17 | G97: Coventry | H97: 71 | I97: 5726.928337 | J97: BF1F | K97: 1 | P97: Band 1F
A98: 6 | B98: MALANGU, Sharon B. | C98: 10 | D98: C331343811047 | E98: 2021-09-01 | F98: 2021-12-17 | G98: Coventry | H98: 71 | I98: 5726.928337 | J98: BF1F | K98: 1 | P98: Band 1F
A99: 6 | B99: Kunasingam, Harryshan | C99: 10 | D99: L331100709018 | E99: 2021-09-01 | F99: 2021-12-17 | G99: Coventry | H99: 71 | I99: 5726.928337 | J99: BF1F | K99: 1 | P99: Band 1F
A100: 6 | B100: Rama, Elbion | C100: 10 | D100: L331702411004 | E100: 2021-09-01 | F100: 2021-12-17 | G100: Coventry | H100: 71 | I100: 5726.928337 | J100: BF1F | K100: 1 | P100: Band 1F
A101: 6 | B101: EKALAKALA, Eliezer | C101: 10 | D101: E331701710003 | E101: 2021-09-01 | F101: 2021-12-17 | G101: Coventry | H101: 71 | I101: 3259.944809 | J101: BF2E | K101: 1 | P101: Band 2E
A102: 6 | B102: Walters, Casadie-Rae J. | C102: 10 | D102: Q331341811022 | E102: 2021-09-01 | F102: 2021-12-17 | G102: Coventry | H102: 71 | I102: 3524.262722 | J102: BF1E | K102: 1 | P102: Band 1E
A103: 6 | B103: Cain, Chanel | C103: 10 | D103: Y331214210011 | E103: 2021-09-01 | F103: 2021-12-17 | G103: Coventry | H103: 71 | I103: 3259.944809 | J103: BF2E | K103: 1 | P103: Band 2E
A104: 6 | B104: Suleiman, Mohammad | C104: 10 | D104: T331110715006 | E104: 2021-09-01 | F104: 2021-12-17 | G104: Coventry | H104: 71 | I104: 5726.928337 | J104: BF1F | K104: 1 | P104: Band 1F
A105: 6 | B105: Singh, Navbir | C105: 10 | D105: K331400418026 | E105: 2021-09-01 | F105: 2021-12-17 | G105: Coventry | H105: 71 | I105: 5726.928337 | J105: BF1F | K105: 1 | P105: Band 1F
A106: 6 | B106: Stokes, Bradley P. | C106: 10 | D106: R312201611091 | E106: 2021-09-01 | F106: 2021-12-17 | G106: Coventry | H106: 71 | I106: 3259.944809 | J106: BF2E | K106: 1 | P106: Band 2E
A107: 6 | B107: Hatem, Ahmed B. | C107: 10 | D107: A856721714003 | E107: 2021-09-01 | F107: 2021-12-17 | G107: Coventry | H107: 71 | I107: 5726.928337 | J107: BF1F | K107: 1 | P107: Band 1F
A108: 6 | B108: Biyasi, Hala | C108: 10 | D108: D331701920001 | E108: 2021-09-01 | F108: 2021-12-17 | G108: Coventry | H108: 71 | I108: 3259.944809 | J108: BF2E | K108: 1 | P108: Band 2E
A109: 6 | B109: Ginova-Pearson, Denisa A. | C109: 11 | D109: B331213610031 | E109: 2021-09-01 | F109: 2021-12-17 | G109: Coventry | H109: 71 | I109: 3259.944809 | J109: BF2E | K109: 1 | P109: Band 2E
A110: 6 | B110: Kazmi, Aleeza | C110: 11 | D110: W331701708004 | E110: 2021-09-01 | F110: 2021-12-17 | G110: Coventry | H110: 71 | I110: 5286.392197 | J110: BF2F | K110: 1 | P110: Band 2F
A111: 6 | B111: Munir, Aisha | C111: 11 | D111: R331702409006 | E111: 2021-09-01 | F111: 2021-12-17 | G111: Coventry | H111: 71 | I111: 3259.944809 | J111: BF2E | K111: 1 | P111: Band 2E
A112: 6 | B112: Bhatti, Aman | C112: 11 | D112: J331702409009 | E112: 2021-09-01 | F112: 2021-12-17 | G112: Coventry | H112: 71 | I112: 5286.392197 | J112: BF2F | K112: 1 | P112: Band 2F
A113: 6 | B113: Leese, Noah | C113: 11 | D113: Y331343709002 | E113: 2021-09-01 | F113: 2021-12-17 | G113: Coventry | H113: 71 | I113: 5726.928337 | J113: BF1F | K113: 1 | P113: Band 1F
A114: 6 | B114: Hughes, Dylan J. | C114: 11 | D114: F331343810048 | E114: 2021-09-01 | F114: 2021-12-17 | G114: Coventry | H114: 71 | I114: 3259.944809 | J114: BF2E | K114: 1 | P114: Band 2E
A115: 6 | B115: Younis, Mohammed E. | C115: 11 | D115: D331701709002 | E115: 2021-09-01 | F115: 2021-12-17 | G115: Coventry | H115: 71 | I115: 5726.928337 | J115: BF1F | K115: 1 | P115: =IF(ISBLANK(A115),"",CONCATENATE($J$50," ",RIGHT(J115,2))) -> Band 1F
A116: =IF(LEFT(J116,2)="BF",6,IF(LEFT(J116,2)="CW",1,IF(LEFT(J116,2)="CO",4,IF(LEFT(J116,2)="TS",2,IF(LEFT(J116,2)="RB",3,IF(LEFT(J116,2)="SF",7,IF(LEFT(J116,2)="TV",5,IF(LEFT(J116,2)="WF",8,"")))))))) -> 6 | B116: Moseley, Thomas | C116: 11 | D116: E331202109018 | E116: 2021-09-01 | F116: 2021-12-17 | G116: Coventry | H116: 71 | I116: 3524.262722 | J116: BF1E | K116: 1 | P116: Band 1E
A117: 6 | B117: Abdullah, Nasif | C117: 11 | D117: D331214509052 | E117: 2021-09-01 | F117: 2021-12-17 | G117: Coventry | H117: 71 | I117: 5286.392197 | J117: BF2F | K117: 1 | P117: Band 2F
A118: 6 | B118: Wain, Aiden T. | C118: 11 | D118: N331343509055 | E118: 2021-09-01 | F118: 2021-12-17 | G118: Coventry | H118: 71 | I118: 3524.262722 | J118: BF1E | K118: 1 | P118: Band 1E
A119: 6 | B119: Christian, Riquelme N. | C119: 11 | D119: K331300810023 | E119: 2021-09-01 | F119: 2021-12-17 | G119: Coventry | H119: 71 | I119: 3524.262722 | J119: BF1E | K119: 1 | P119: Band 1E
A120: 6 | B120: Cockerill, William | C120: 11 | D120: R331341109030 | E120: 2021-09-01 | F120: 2021-12-17 | G120: Coventry | H120: 71 | I120: 3259.944809 | J120: BF2E | K120: 1 | P120: Band 2E
A121: 6 | B121: Tankala, Daniel B. | C121: 11 | D121: K331214509137 | E121: 2021-09-01 | F121: 2021-12-17 | G121: Coventry | H121: 71 | I121: 14503.96875 | J121: BF5F | K121: 1 | P121: Band 5F
A122: 6 | B122: Efrem Tekle, Feelmona E. | C122: 11 | D122: M331300810034 | E122: 2021-09-01 | F122: 2021-12-17 | G122: Coventry | H122: 71 | I122: 3259.944809 | J122: BF2E | K122: 1 | P122: Band 2E
A123: 6 | B123: Smith, Katie-Jayne | C123: 11 | D123: K936296309021 | E123: 2021-09-01 | F123: 2021-12-17 | G123: Coventry | H123: 71 | I123: 5726.928337 | J123: BF1F | K123: 1 | P123: Band 1F
A124: 6 | B124: Voicu, Alexandru V. | C124: 11 | D124: N937702017001 | E124: 2021-09-01 | F124: 2021-12-17 | G124: Coventry | H124: 71 | I124: 5286.392197 | J124: BF2F | K124: 1 | P124: Band 2F
A125: 6 | B125: Didiu, Cosmin | C125: 11 | D125: F331701918001 | E125: 2021-09-01 | F125: 2021-12-17 | G125: Coventry | H125: 71 | I125: 3259.944809 | J125: BF2E | K125: 1 | P125: Band 2E
A126: 6 | B126: Jadeszko, Gabriel | C126: 11 | D126: V331701918002 | E126: 2021-09-01 | F126: 2021-12-17 | G126: Coventry | H126: 71 | I126: 3259.944809 | J126: BF2E | K126: 1 | P126: Band 2E
A127: 6 | B127: Hatem, Ibraheem B. | C127: 11 | D127: Q856700314010 | E127: 2021-09-01 | F127: 2021-12-17 | G127: Coventry | H127: 71 | I127: 5286.392197 | J127: BF2F | K127: 1 | P127: Band 2F
A128: 6 | B128: Okorie, Michael | C128: 11 | D128: F331701919002 | E128: 2021-09-01 | F128: 2021-12-17 | G128: Coventry | H128: 71 | I128: 5286.392197 | J128: BF2F | K128: 1 | P128: Band 2F
A129: 6 | B129: ESSEKU-OTOO, Nadia A. | C129: 11 | D129: R307700710005 | E129: 2021-09-01 | F129: 2021-12-17 | G129: Coventry | H129: 71 | I129: 3524.262722 | J129: BF1E | K129: 1 | P129: Band 1E
A130: 6 | B130: Russell, William J. | C130: 12 | D130: Y331700609001 | E130: 2021-09-01 | F130: 2021-12-17 | G130: Coventry | H130: 71 | I130: 5726.928337 | J130: BF1F | K130: 1 | P130: Band 1F
A131: 6 | B131: McGovern, THOMAS E. | C131: 12 | D131: K331701707004 | E131: 2021-09-01 | F131: 2021-12-17 | G131: Coventry | H131: 71 | I131: 5726.928337 | J131: BF1F | K131: 1 | P131: Band 1F
A132: 6 | B132: Grantham-Buchanan, Dani V. | C132: 12 | D132: K331213809004 | E132: 2021-09-01 | F132: 2021-12-17 | G132: Coventry | H132: 71 | I132: 3259.944809 | J132: BF2E | K132: 1 | P132: Band 2E
A133: 6 | B133: Ekalakala, Beni T. | C133: 12 | D133: D331343708043 | E133: 2021-09-01 | F133: 2021-12-17 | G133: Coventry | H133: 71 | I133: 3524.262722 | J133: BF1E | K133: 1 | P133: Band 1E
A134: 6 | B134: Clifton, Amy E. | C134: 12 | D134: C331215608046 | E134: 2021-09-01 | F134: 2021-12-17 | G134: Coventry | H134: 71 | I134: 3259.944809 | J134: BF2E | K134: 1 | P134: Band 2E
A135: 6 | B135: Mubele, Quincey | C135: 12 | D135: W331212908067 | E135: 2021-09-01 | F135: 2021-12-17 | G135: Coventry | H135: 71 | I135: 3524.262722 | J135: BF1E | K135: 1 | P135: Band 1E
A136: 6 | B136: Kirkby, Olivia | C136: 12 | D136: T331343708044 | E136: 2021-09-01 | F136: 2021-12-17 | G136: Coventry | H136: 71 | I136: 3524.262722 | J136: BF1E | K136: 1 | P136: Band 1E
A137: 6 | B137: Riley, Kirk S. | C137: 12 | D137: Q336204110010 | E137: 2021-09-01 | F137: 2021-12-17 | G137: Coventry | H137: 71 | I137: 3259.944809 | J137: BF2E | K137: 1 | P137: Band 2E
A138: 6 | B138: Newport, Brandon A. | C138: 12 | D138: K331702408001 | E138: 2021-09-01 | F138: 2021-12-17 | G138: Coventry | H138: 71 | I138: 5726.928337 | J138: BF1F | K138: 1 | P138: Band 1F
A139: 6 | B139: Hussain, Shafee | C139: 13 | D139: W331343707016 | E139: 2021-09-01 | F139: 2021-12-17 | G139: Coventry | H139: 71 | I139: 7251.984375 | J139: BF5E | K139: 1 | P139: Band 5E
A140: 6 | B140: Cooper, Dixie | C140: 13 | D140: K331701705002 | E140: 2021-09-01 | F140: 2021-12-17 | G140: Coventry | H140: 71 | I140: 5286.392197 | J140: BF2F | K140: 1 | P140: Band 2F
A141: 6 | B141: Sadler, Lewis C. | C141: 13 | D141: M331343707030 | E141: 2021-09-01 | F141: 2021-12-17 | G141: Coventry | H141: 71 | I141: 4405.327459 | J141: BF3E | K141: 1 | P141: Band 3E
A142: 6 | B142: Miguel, Emmanuel | C142: 13 | D142: Z331702408002 | E142: 2021-09-01 | F142: 2021-12-17 | G142: Coventry | H142: 71 | I142: 5726.928337 | J142: BF1F | K142: 1 | P142: Band 1F
A143: 6 | B143: McLaughlin, CHARLIE S. | C143: 13 | D143: G331701707002 | E143: 2021-09-01 | F143: 2021-12-17 | G143: Coventry | H143: 71 | I143: 5726.928337 | J143: BF1F | K143: 1 | P143: Band 1F
A144: 6 | B144: Mackley, Connor K. | C144: 13 | D144: M331200808036 | E144: 2021-09-01 | F144: 2021-12-17 | G144: Coventry | H144: 71 | I144: 3259.944809 | J144: BF2E | K144: 1 | P144: Band 2E
A145: 6 | B145: Miah, Tahim M. | C145: 13 | D145: Z331215607014 | E145: 2021-09-01 | F145: 2021-12-17 | G145: Coventry | H145: 71 | I145: 5726.928337 | J145: BF1F | K145: 1 | P145: Band 1F
A146: 6 | B146: Rawlinson, Jack M. | C146: 13 | D146: B331300908036 | E146: 2021-09-01 | F146: 2021-12-17 | G146: Coventry | H146: 71 | I146: 3524.262722 | J146: BF1E | K146: 1 | P146: Band 1E
A147: 6 | B147: Raja, Mohammed Qasim Q. | C147: 13 | D147: F331214107040 | E147: 2021-09-01 | F147: 2021-12-17 | G147: Coventry | H147: 71 | I147: 3524.262722 | J147: BF1E | K147: 1 | P147: Band 1E
A148: 6 | B148: Edginton, ADAM M. | C148: 13 | D148: W331214207015 | E148: 2021-09-01 | F148: 2021-12-17 | G148: Coventry | H148: 71 | I148: 3259.944809 | J148: BF2E | K148: 1 | P148: Band 2E
A149: 6 | B149: Akhtar, Kerrum | C149: 13 | D149: D331202307051 | E149: 2021-09-01 | F149: 2021-12-17 | G149: Coventry | H149: 71 | I149: 3259.944809 | J149: BF2E | K149: 1 | P149: Band 2E
A150: 6 | B150: James, Kieran | C150: 13 | D150: M331214208057 | E150: 2021-09-01 | F150: 2021-12-17 | G150: Coventry | H150: 71 | I150: 4405.327459 | J150: BF3E | K150: 1 | P150: Band 3E
A151: 6 | B151: Daniels, Cameron J. | C151: 13 | D151: R331300708004 | E151: 2021-09-01 | F151: 2021-12-17 | G151: Coventry | H151: 71 | I151: 3259.944809 | J151: BF2E | K151: 1 | P151: Band 2E
A152: 6 | B152: Ben Othman, Shahd B. | C152: 13 | D152: T331701708002 | E152: 2021-09-01 | F152: 2021-12-17 | G152: Coventry | H152: 71 | I152: 3524.262722 | J152: BF1E | K152: 1 | P152: Band 1E
A153: 6 | B153: Madu, Promise | C153: 13 | D153: R331701919001 | E153: 2021-09-01 | F153: 2021-12-17 | G153: Coventry | H153: 71 | I153: 5726.928337 | J153: BF1F | K153: 1 | P153: Band 1F
A154: 6 | B154: Magandi, Phillip K. | C154: 14 | D154: V331215606020 | E154: 2021-09-01 | F154: 2021-12-17 | G154: Coventry | H154: 71 | I154: 5726.928337 | J154: BF1F | K154: 1 | P154: Band 1F
A155: 6 | B155: Quartey-Papafio, Joel | C155: 14 | D155: E331701807003 | E155: 2021-09-01 | F155: 2021-12-17 | G155: Coventry | H155: 71 | I155: 5726.928337 | J155: BF1F | K155: 1 | P155: Band 1F
A156: 6 | B156: Patel, Kishan | C156: 14 | D156: H331215606028 | E156: 2021-09-01 | F156: 2021-12-17 | G156: Coventry | H156: 71 | I156: 5726.928337 | J156: BF1F | K156: 1 | P156: Band 1F
A157: 6 | B157: Iqbal, Hamzah | C157: 14 | D157: Z331215606013 | E157: 2021-09-01 | F157: 2021-12-17 | G157: Coventry | H157: 71 | I157: 3259.944809 | J157: BF2E | K157: 1 | P157: Band 2E
A158: 6 | B158: Bansal, Amrit | C158: 14 | D158: X331213206002 | E158: 2021-09-01 | F158: 2021-12-17 | G158: Coventry | H158: 71 | I158: 5286.392197 | J158: BF4F | K158: 1 | P158: Band 4F
A159: 6 | B159: Nkurunziza, Shadia | C159: 14 | D159: K331701706003 | E159: 2021-09-01 | F159: 2021-12-17 | G159: Coventry | H159: 71 | I159: 3259.944809 | J159: BF2E | K159: 1 | P159: Band 2E
A160: 6 | B160: De Souza, Amadou | C160: 14 | D160: W331701706002 | E160: 2021-09-01 | F160: 2021-12-17 | G160: Coventry | H160: 71 | I160: 5286.392197 | J160: BF3F | K160: 1 | P160: Band 3F
A161: 6 | B161: Downes, Justin T. | C161: 14 | D161: Q331701806001 | E161: 2021-09-01 | F161: 2021-12-17 | G161: Coventry | H161: 71 | I161: 3259.944809 | J161: BF2E | K161: 1 | P161: Band 2E
A162: 6 | B162: Ali, Waqas | C162: 14 | D162: A331215606004 | E162: 2021-09-01 | F162: 2021-12-17 | G162: Coventry | H162: 71 | I162: 5726.928337 | J162: BF1F | K162: 1 | P162: Band 1F
A163: 6 | B163: Talib, Amaan | C163: 14 | D163: U331212106041 | E163: 2021-09-01 | F163: 2021-12-17 | G163: Coventry | H163: 71 | I163: 3259.944809 | J163: BF2E | K163: 1 | P163: Band 2E
A164: 6 | B164: HURAN, Najma | C164: 14 | D164: V856237006026 | E164: 2021-09-01 | F164: 2021-12-17 | G164: Coventry | H164: 71 | I164: 5286.392197 | J164: BF2F | K164: 1 | P164: Band 2F
A165: 6 | B165: Batchelor, Ajay | C165: 14 | D165: E331701806002 | E165: 2021-09-01 | F165: 2021-12-17 | G165: Coventry | H165: 71 | I165: 3259.944809 | J165: BF2E | K165: 1 | P165: Band 2E
A166: 6 | B166: Frasineanu, Antonio J. | C166: 14 | D166: Q331702413001 | E166: 2021-09-01 | F166: 2021-12-17 | G166: Coventry | H166: 71 | I166: 5286.392197 | J166: BF2F | K166: 1 | P166: Band 2F
A167: 6 | B167: Sureshkumar, Pravin | C167: 14 | D167: C307216107003 | E167: 2021-09-01 | F167: 2021-12-17 | G167: Coventry | H167: 71 | I167: 3524.262722 | J167: BF1E | K167: 1 | P167: Band 1E
B168: Baginton Fields School | C168: Period: | D168: 2021-09-01 | E168: to | F168: 2021-12-17 | G168: No of Pupils: 116 | H168: Cost for Period: | I168: 518140.6355 | P168: Band
B169: Report for Castle Wood School | H169: =SUM(H51:H167) -> 8201 | J169: =H169/71 -> 115.5070423 | K169: =SUM(K51:K167) -> 117 | P169: Band 21
B170: Count of Students in Each Band | P170: Band
C171: Cat 1 | D171: Cat 2 | E171: Cat 4 | F171: Cat 5 | G171: Total | P171: Band
B172: Band D | C172: 0 | D172: 0 | E172: 1 | F172: 0 | G172: 1 | P172: Band
B173: Band E | C173: 84 | D173: 21 | E173: 5 | F173: 7 | G173: 117 | P173: Band
B174: Band F | C174: 26 | D174: 12 | E174: 5 | F174: 0 | G174: 43 | P174: Band
B175: Total | C175: 110 | D175: 33 | E175: 11 | F175: 7 | G175: 160 | P175: Band
P176: Band
P177: Band
B178: Sum of Open Days in Each Band | P178: Band
C179: Cat 1 | D179: Cat 2 | E179: Cat 4 | F179: Cat 5 | G179: Total | P179: =IF(ISBLANK(A179),"",CONCATENATE($J$50," ",RIGHT(J179,2))) -> Band
A180: =IF(LEFT(J180,2)="BF",6,IF(LEFT(J180,2)="CW",1,IF(LEFT(J180,2)="CO",4,IF(LEFT(J180,2)="TS",2,IF(LEFT(J180,2)="RB",3,IF(LEFT(J180,2)="SF",7,IF(LEFT(J180,2)="TV",5,IF(LEFT(J180,2)="WF",8,"")))))))) ->  | B180: Band D | C180: 0 | D180: 0 | E180: 71 | F180: 0 | G180: 71 | P180: Band
B181: Band E | C181: 5964 | D181: 1491 | E181: 355 | F181: 431 | G181: 8241 | P181: Band
B182: Band F | C182: 1834 | D182: 852 | E182: 304 | F182: 0 | G182: 2990 | P182: Band
B183: Total | C183: 7798 | D183: 2343 | E183: 730 | F183: 431 | G183: 11302 | P183: Band
P184: Band
P185: Band
P186: Band
B187: High Needs Top-Up_Rates for each Band | P187: Band
P188: Band
C189: CW | P189: Band
B190: Report for Castle Wood School | P190: Band
B191: Coventry High Needs Top-Up_Funding by Band | P191: Band
C192: Cat 1 | D192: Cat 2 | E192: Cat 4 | F192: Cat 5 | G192: Total | P192: Band
B193: Band D | C193: 0 | D193: 0 | E193: 2643.197984 | F193: 0 | G193: 2643.197984 | P193: Band
B194: Band E | C194: 292513.8059 | D194: 68458.841 | E194: 22026.6373 | F194: 44022.60938 | G194: 427021.8936 | P194: Band
B195: Band F | C195: 147932.2052 | D195: 63436.70636 | E195: 22634.69335 | F195: 0 | G195: 234003.6049 | P195: Band
B196: Total | C196: 440446.0111 | D196: 131895.5474 | E196: 47304.52863 | F196: 44022.60938 | G196: 663668.6965 | P196: Band
P197: Band
P198: Band
B199: Other LA High Needs Top-Up_Funding for Each Band | P199: Band
C200: Cat 1 | D200: Cat 2 | E200: Cat 4 | F200: Cat 5 | G200: Total | P200: Band
... 1476 more rows

Sheet SpringProvRep (hidden)
B1: Funding Report for Period 01/01/2022 to 31/03/2022 | C1: No of Days in Year 192
A2: =IF(LEFT(J2,2)="BF",6,IF(LEFT(J2,2)="CW",1,IF(LEFT(J2,2)="CO",4,IF(LEFT(J2,2)="TS",2,IF(LEFT(J2,2)="RB",3,IF(LEFT(J2,2)="SF",7,IF(LEFT(J2,2)="TV",5,IF(LEFT(J2,2)="WF",8,"")))))))) ->  | B2: Report for Baginton Fields School | P2: =IF(ISBLANK(A2),"",CONCATENATE($J$50," ",RIGHT(J2,2))) -> Band
B3: Count of Students in Each Band | P3: Band
C4: Cat 1 | D4: Cat 2 | E4: Cat 3 | F4: Cat 4 | G4: Cat 5 | H4: Total | P4: Band
B5: Band D | C5: 0 | D5: 1 | E5: 0 | F5: 0 | G5: 0 | H5: 1 | P5: Band
B6: Band E | C6: 21 | D6: 40 | E6: 2 | F6: 0 | G6: 5 | H6: 68 | P6: Band
B7: Band F | C7: 29 | D7: 12 | E7: 1 | F7: 2 | G7: 1 | H7: 45 | P7: Band
B8: Total | C8: 50 | D8: 53 | E8: 3 | F8: 2 | G8: 6 | H8: 114 | P8: Band
P9: Band
P10: Band
B11: Sum of Open Days in Each Band | P11: Band
C12: Cat 1 | D12: Cat 2 | E12: Cat 3 | F12: Cat 4 | G12: Cat 5 | H12: Total | P12: Band
B13: Band D | C13: 0 | D13: 58 | E13: 0 | F13: 0 | G13: 0 | H13: 58 | P13: Band
B14: Band E | C14: 1218 | D14: 2301 | E14: 116 | F14: 0 | G14: 290 | H14: 3925 | P14: Band
B15: Band F | C15: 1682 | D15: 696 | E15: 58 | F15: 116 | G15: 58 | H15: 2610 | P15: Band
B16: Total | C16: 2900 | D16: 3055 | E16: 174 | F16: 116 | G16: 348 | H16: 6593 | P16: Band
P17: Band
P18: =IF(ISBLANK(A18),"",CONCATENATE($J$50," ",RIGHT(J18,2))) -> Band
P19: =IF(ISBLANK(A19),"",CONCATENATE($J$50," ",RIGHT(J19,2))) -> Band
B20: High Needs Top-Up_Rates for each Band | P20: Band
P21: Band
C22: BF | P22: Band
B23: Report for Baginton Fields School | P23: Band
B24: Coventry High Needs Top-Up_Funding by Band | P24: Band
C25: Cat 1 | D25: Cat 2 | E25: Cat 3 | F25: Cat 4 | G25: Cat 5 | H25: Total | P25: Band
B26: Band D | C26: 0 | D26: 1439.48605 | E26: 0 | F26: 0 | G26: 0 | H26: 1439.48605 | P26: Band
B27: Band E | C27: 60458.47881 | D27: 102986.7071 | E27: 7197.436413 | F27: 0 | G27: 29620.78125 | H27: 200263.4036 | P27: Band
B28: Band F | C28: 135671.7389 | D28: 51821.53478 | E28: 4318.461231 | F28: 8636.922462 | G28: 11848.3125 | H28: 212296.9699 | P28: Band
B29: Total | C29: 196130.2177 | D29: 156247.728 | E29: 11515.89764 | F29: 8636.922462 | G29: 41469.09375 | H29: 413999.8596 | P29: Band
P30: Band
P31: Band
B32: Other LA High Needs Top-Up_Funding for Each Band | P32: Band
C33: Cat 1 | D33: Cat 2 | E33: Cat 3 | F33: Cat 4 | G33: Cat 5 | H33: Total | P33: Band
B34: Band D | C34: 0 | D34: 0 | E34: 0 | F34: 0 | G34: 0 | H34: 0 | P34: Band
B35: Band E | C35: 0 | D35: 2663.053506 | E35: 0 | F35: 0 | G35: 0 | H35: 2663.053506 | P35: Band
B36: Band F | C36: 0 | D36: 0 | E36: 0 | F36: 0 | G36: 0 | H36: 0 | P36: Band
B37: Total | C37: 0 | D37: 2663.053506 | E37: 0 | F37: 0 | G37: 0 | H37: 2663.053506 | P37: Band
P38: Band
P39: Band
B40: Total High Needs Top-Up_Funding for Each Band | P40: Band
C41: Cat 1 | D41: Cat 2 | E41: Cat 3 | F41: Cat 4 | G41: Cat 5 | H41: Total | P41: Band
B42: Band D | C42: 0 | D42: 1439.48605 | E42: 0 | F42: 0 | G42: 0 | H42: 1439.48605 | P42: Band
B43: Band E | C43: 60458.47881 | D43: 105649.7607 | E43: 7197.436413 | F43: 0 | G43: 29620.78125 | H43: 202926.4571 | P43: Band
B44: Band F | C44: 135671.7389 | D44: 51821.53478 | E44: 4318.461231 | F44: 8636.922462 | G44: 11848.3125 | H44: 212296.9699 | P44: Band
B45: Total | C45: 196130.2177 | D45: 158910.7815 | E45: 11515.89764 | F45: 8636.922462 | G45: 41469.09375 | H45: 416662.9131 | P45: Band
P46: Band
P47: Band
B48: Baginton Fields School. List of Pupils who were registered for funding between 01/01/2022 and 31/03/2022 | P48: Band
B49: Start and end dates shown only if different to the above specified period limits | P49: Band
B50: Name | C50: NCY | D50: UPN | E50: start date | F50: end date | G50: Funding LA | H50: Funded Days | I50: Top Up Amount | J50: Band | K50: FTE | P50: =IF(ISBLANK(A50),"",CONCATENATE($J$50," ",RIGHT(J50,2))) -> Band nd
A51: =IF(LEFT(J51,2)="BF",6,IF(LEFT(J51,2)="CW",1,IF(LEFT(J51,2)="CO",4,IF(LEFT(J51,2)="TS",2,IF(LEFT(J51,2)="RB",3,IF(LEFT(J51,2)="SF",7,IF(LEFT(J51,2)="TV",5,IF(LEFT(J51,2)="WF",8,"")))))))) -> 6 | B51: Collinson, Catherine j. | C51: 7 | D51: J331214114002 | E51: 2022-01-01 | G51: Coventry | H51: 58 | I51: 2663.053506 | J51: BF2E | K51: 1 | P51: =IF(ISBLANK(A51),"",CONCATENATE($J$50," ",RIGHT(J51,2))) -> Band 2E
A52: =IF(LEFT(J52,2)="BF",6,IF(LEFT(J52,2)="CW",1,IF(LEFT(J52,2)="CO",4,IF(LEFT(J52,2)="TS",2,IF(LEFT(J52,2)="RB",3,IF(LEFT(J52,2)="SF",7,IF(LEFT(J52,2)="TV",5,IF(LEFT(J52,2)="WF",8,"")))))))) -> 6 | B52: Skvortsov-Kirsteine, Jessica | C52: 7 | D52: B331340813020 | E52: 2022-01-01 | G52: Coventry | H52: 58 | I52: 2663.053506 | J52: BF2E | K52: 1 | P52: Band 2E
A53: 6 | B53: Molad, Marwan A. | C53: 7 | D53: Q331201513019 | E53: 2022-01-01 | G53: Coventry | H53: 58 | I53: 2663.053506 | J53: BF2E | K53: 1 | P53: Band 2E
A54: 6 | B54: Islam, Mohammed Sami S. | C54: 7 | D54: B331702414001 | E54: 2022-01-01 | G54: Coventry | H54: 58 | I54: 4678.335825 | J54: BF1F | K54: 1 | P54: Band 1F
A55: 6 | B55: Gul, Annum | C55: 7 | D55: M331701713003 | E55: 2022-01-01 | G55: Coventry | H55: 58 | I55: 4318.461231 | J55: BF2F | K55: 1 | P55: Band 2F
A56: 6 | B56: Gibson, Libby G. | C56: 7 | D56: K331100712259 | E56: 2022-01-01 | G56: Coventry | H56: 58 | I56: 4678.335825 | J56: BF1F | K56: 1 | P56: Band 1F
A57: 6 | B57: McGowan, Lucas C. | C57: 7 | D57: W331342314010 | E57: 2022-01-01 | G57: Coventry | H57: 58 | I57: 2663.053506 | J57: BF2E | K57: 1 | P57: Band 2E
A58: 6 | B58: Braithwaite, Lacey P. | C58: 7 | D58: V331330214003 | E58: 2022-01-01 | G58: Coventry | H58: 58 | I58: 5924.15625 | J58: BF5E | K58: 1 | P58: Band 5E
A59: 6 | B59: Woodward, Cody R. | C59: 7 | D59: M331211814023 | E59: 2022-01-01 | G59: Coventry | H59: 58 | I59: 2663.053506 | J59: BF2E | K59: 1 | P59: Band 2E
A60: 6 | B60: Urch, Sophia G. | C60: 7 | D60: B331212214038 | E60: 2022-01-01 | G60: Coventry | H60: 58 | I60: 2663.053506 | J60: BF2E | K60: 1 | P60: Band 2E
A61: 6 | B61: Gleeson, Reece R. | C61: 7 | D61: U331213113033 | E61: 2022-01-01 | G61: Coventry | H61: 58 | I61: 2878.975181 | J61: BF1E | K61: 1 | P61: Band 1E
A62: 6 | B62: Ahmed, Hana H. | C62: 7 | D62: L331702414007 | E62: 2022-01-01 | G62: Coventry | H62: 58 | I62: 2878.975181 | J62: BF1E | K62: 1 | P62: Band 1E
A63: 6 | B63: Ali, Azhar | C63: 7 | D63: B331214114005 | E63: 2022-01-01 | G63: Coventry | H63: 58 | I63: 4678.335825 | J63: BF1F | K63: 1 | P63: Band 1F
A64: 6 | B64: Hyde, Brody J. | C64: 7 | D64: M331214113061 | E64: 2022-01-01 | G64: Coventry | H64: 58 | I64: 2878.975181 | J64: BF1E | K64: 1 | P64: Band 1E
A65: 6 | B65: Madu, Great I. | C65: 7 | D65: M331701719011 | E65: 2022-01-01 | G65: Coventry | H65: 58 | I65: 4318.461231 | J65: BF4F | K65: 1 | P65: Band 4F
A66: 6 | B66: Cooney, Charlotte B. | C66: 8 | D66: A331702412006 | E66: 2022-01-01 | G66: Coventry | H66: 58 | I66: 4318.461231 | J66: BF2F | K66: 1 | P66: Band 2F
A67: 6 | B67: Chidube, Maurice I. | C67: 8 | D67: J331214913014 | E67: 2022-01-01 | G67: Coventry | H67: 58 | I67: 2663.053506 | J67: BF2E | K67: 1 | P67: Band 2E
A68: 6 | B68: Teensa, Raul S. | C68: 8 | D68: N331212412052 | E68: 2022-01-01 | G68: Coventry | H68: 58 | I68: 2663.053506 | J68: BF2E | K68: 1 | P68: Band 2E
A69: 6 | B69: Zeno, Eryk | C69: 8 | D69: J331343513046 | E69: 2022-01-01 | G69: Coventry | H69: 58 | I69: 4678.335825 | J69: BF1F | K69: 1 | P69: Band 1F
A70: 6 | B70: Carty, Loveonhe D. | C70: 8 | D70: L331343813008 | E70: 2022-01-01 | G70: Coventry | H70: 58 | I70: 2663.053506 | J70: BF2E | K70: 1 | P70: Band 2E
A71: 6 | B71: Karamat, Safiullah | C71: 8 | D71: V331201512013 | E71: 2022-01-01 | G71: Coventry | H71: 58 | I71: 5924.15625 | J71: BF5E | K71: 1 | P71: Band 5E
A72: 6 | B72: Astolfi, Franco P. | C72: 8 | D72: Y331701713002 | E72: 2022-01-01 | G72: Coventry | H72: 58 | I72: 5924.15625 | J72: BF5E | K72: 1 | P72: Band 5E
A73: 6 | B73: GRYSZKIENAS, Santiago A. | C73: 8 | D73: L331212112059 | E73: 2022-01-01 | G73: Coventry | H73: 58 | I73: 2878.975181 | J73: BF1E | K73: 1 | P73: Band 1E
A74: 6 | B74: Bush, Matthew P. | C74: 8 | D74: A331341813003 | E74: 2022-01-01 | G74: Coventry | H74: 58 | I74: 1439.48605 | J74: BF2D | K74: 1 | P74: Band 2D
A75: 6 | B75: Mack, Paige D. | C75: 8 | D75: L331214312064 | E75: 2022-01-01 | G75: Coventry | H75: 58 | I75: 2663.053506 | J75: BF2E | K75: 1 | P75: Band 2E
A76: 6 | B76: McKinlay, Maddox E. | C76: 8 | D76: Y331100711270 | E76: 2022-01-01 | G76: Coventry | H76: 58 | I76: 4678.335825 | J76: BF1F | K76: 1 | P76: Band 1F
A77: 6 | B77: Mula, Elliot J. | C77: 8 | D77: H331330213012 | E77: 2022-01-01 | G77: Coventry | H77: 58 | I77: 4678.335825 | J77: BF1F | K77: 1 | P77: Band 1F
A78: 6 | B78: Molad, MOHAMAD | C78: 8 | D78: M331201512016 | E78: 2022-01-01 | G78: Coventry | H78: 58 | I78: 2663.053506 | J78: BF2E | K78: 1 | P78: Band 2E
A79: 6 | B79: Akhtar, Shumena | C79: 8 | D79: F331214112083 | E79: 2022-01-01 | G79: Coventry | H79: 58 | I79: 2878.975181 | J79: BF1E | K79: 1 | P79: Band 1E
A80: 6 | B80: Hudson, Elise A. | C80: 9 | D80: N331300611029 | E80: 2022-01-01 | G80: Warwickshire | H80: 58 | I80: 2663.053506 | J80: BF2E | K80: 1 | P80: Band 2E
A81: 6 | B81: Moseley, Holly | C81: 9 | D81: U331702411001 | E81: 2022-01-01 | G81: Coventry | H81: 58 | I81: 4318.461231 | J81: BF2F | K81: 1 | P81: Band 2F
A82: 6 | B82: Abu Baker, Daniel | C82: 9 | D82: P331700911004 | E82: 2022-01-01 | G82: Coventry | H82: 58 | I82: 5924.15625 | J82: BF5E | K82: 1 | P82: Band 5E
A83: 6 | B83: Padan, Rohan S. | C83: 9 | D83: W331341411043 | E83: 2022-01-01 | G83: Coventry | H83: 58 | I83: 2663.053506 | J83: BF2E | K83: 1 | P83: Band 2E
A84: 6 | B84: Jones, Ellis D. | C84: 9 | D84: L937262612011 | E84: 2022-01-01 | G84: Coventry | H84: 58 | I84: 2878.975181 | J84: BF1E | K84: 1 | P84: Band 1E
A85: 6 | B85: Ray, Jasmine | C85: 9 | D85: R331214111023 | E85: 2022-01-01 | G85: Coventry | H85: 58 | I85: 2663.053506 | J85: BF2E | K85: 1 | P85: Band 2E
A86: 6 | B86: Sahota, Joydeep | C86: 9 | D86: Y331214612092 | E86: 2022-01-01 | G86: Coventry | H86: 58 | I86: 2878.975181 | J86: BF1E | K86: 1 | P86: Band 1E
A87: 6 | B87: Mullin, Harley J. | C87: 9 | D87: B331214112061 | E87: 2022-01-01 | G87: Coventry | H87: 58 | I87: 2878.975181 | J87: BF1E | K87: 1 | P87: Band 1E
A88: 6 | B88: Beauchamp, Morgan T. | C88: 9 | D88: H331300712002 | E88: 2022-01-01 | G88: Coventry | H88: 58 | I88: 2663.053506 | J88: BF2E | K88: 1 | P88: Band 2E
A89: 6 | B89: Khapane, Yugandhar | C89: 9 | D89: N331700612005 | E89: 2022-01-01 | G89: Coventry | H89: 58 | I89: 4678.335825 | J89: BF1F | K89: 1 | P89: Band 1F
A90: 6 | B90: Norman, William K. | C90: 9 | D90: G331702418018 | E90: 2022-01-01 | G90: Coventry | H90: 58 | I90: 4678.335825 | J90: BF1F | K90: 1 | P90: Band 1F
A91: 6 | B91: Jose, Aannet | C91: 9 | D91: J331701717005 | E91: 2022-01-01 | G91: Coventry | H91: 58 | I91: 2878.975181 | J91: BF1E | K91: 1 | P91: Band 1E
A92: 6 | B92: MEESALA, Jeetendrareddy | C92: 10 | D92: U331343710017 | E92: 2022-01-01 | F92: 2022-03-04 | G92: Coventry | H92: 39 | I92: 1790.673909 | J92: BF2E | K92: 1 | P92: Band 2E
A93: 6 | B93: Ali, Ifza | C93: 10 | D93: Z331700611003 | E93: 2022-01-01 | G93: Coventry | H93: 58 | I93: 2663.053506 | J93: BF2E | K93: 1 | P93: Band 2E
A94: 6 | B94: ADEMAKINWA, Kikiola O. | C94: 10 | D94: A331702411005 | E94: 2022-01-01 | G94: Coventry | H94: 58 | I94: 4678.335825 | J94: BF1F | K94: 1 | P94: Band 1F
A95: 6 | B95: KASONGO, Tony S. | C95: 10 | D95: R331215610002 | E95: 2022-01-01 | G95: Coventry | H95: 58 | I95: 4678.335825 | J95: BF1F | K95: 1 | P95: Band 1F
A96: 6 | B96: MALANGU, Sharon B. | C96: 10 | D96: C331343811047 | E96: 2022-01-01 | G96: Coventry | H96: 58 | I96: 4678.335825 | J96: BF1F | K96: 1 | P96: Band 1F
A97: 6 | B97: Kunasingam, Harryshan | C97: 10 | D97: L331100709018 | E97: 2022-01-01 | G97: Coventry | H97: 58 | I97: 4678.335825 | J97: BF1F | K97: 1 | P97: Band 1F
A98: 6 | B98: Rama, Elbion | C98: 10 | D98: L331702411004 | E98: 2022-01-01 | G98: Coventry | H98: 58 | I98: 4678.335825 | J98: BF1F | K98: 1 | P98: Band 1F
A99: 6 | B99: EKALAKALA, Eliezer | C99: 10 | D99: E331701710003 | E99: 2022-01-01 | G99: Coventry | H99: 58 | I99: 2663.053506 | J99: BF2E | K99: 1 | P99: Band 2E
A100: 6 | B100: Walters, Casadie-Rae J. | C100: 10 | D100: Q331341811022 | E100: 2022-01-01 | G100: Coventry | H100: 58 | I100: 2878.975181 | J100: BF1E | K100: 1 | P100: Band 1E
A101: 6 | B101: Cain, Chanel | C101: 10 | D101: Y331214210011 | E101: 2022-01-01 | G101: Coventry | H101: 58 | I101: 2663.053506 | J101: BF2E | K101: 1 | P101: Band 2E
A102: 6 | B102: Suleiman, Mohammad | C102: 10 | D102: T331110715006 | E102: 2022-01-01 | G102: Coventry | H102: 58 | I102: 4678.335825 | J102: BF1F | K102: 1 | P102: Band 1F
A103: 6 | B103: Singh, Navbir | C103: 10 | D103: K331400418026 | E103: 2022-01-01 | G103: Coventry | H103: 58 | I103: 4678.335825 | J103: BF1F | K103: 1 | P103: Band 1F
A104: 6 | B104: Stokes, Bradley P. | C104: 10 | D104: R312201611091 | E104: 2022-01-01 | G104: Coventry | H104: 58 | I104: 2663.053506 | J104: BF2E | K104: 1 | P104: Band 2E
A105: 6 | B105: Hatem, Ahmed B. | C105: 10 | D105: A856721714003 | E105: 2022-01-01 | G105: Coventry | H105: 58 | I105: 4678.335825 | J105: BF1F | K105: 1 | P105: Band 1F
A106: 6 | B106: Biyasi, Hala | C106: 10 | D106: D331701920001 | E106: 2022-01-01 | G106: Coventry | H106: 58 | I106: 2663.053506 | J106: BF2E | K106: 1 | P106: Band 2E
A107: 6 | B107: Ginova-Pearson, Denisa A. | C107: 11 | D107: B331213610031 | E107: 2022-01-01 | G107: Coventry | H107: 58 | I107: 2663.053506 | J107: BF2E | K107: 1 | P107: Band 2E
A108: 6 | B108: Kazmi, Aleeza | C108: 11 | D108: W331701708004 | E108: 2022-01-01 | G108: Coventry | H108: 58 | I108: 4318.461231 | J108: BF2F | K108: 1 | P108: Band 2F
A109: 6 | B109: Munir, Aisha | C109: 11 | D109: R331702409006 | E109: 2022-01-01 | G109: Coventry | H109: 58 | I109: 2663.053506 | J109: BF2E | K109: 1 | P109: Band 2E
A110: 6 | B110: Bhatti, Aman | C110: 11 | D110: J331702409009 | E110: 2022-01-01 | G110: Coventry | H110: 58 | I110: 4318.461231 | J110: BF2F | K110: 1 | P110: Band 2F
A111: 6 | B111: Leese, Noah | C111: 11 | D111: Y331343709002 | E111: 2022-01-01 | G111: Coventry | H111: 58 | I111: 4678.335825 | J111: BF1F | K111: 1 | P111: Band 1F
A112: 6 | B112: Hughes, Dylan J. | C112: 11 | D112: F331343810048 | E112: 2022-01-01 | G112: Coventry | H112: 58 | I112: 2663.053506 | J112: BF2E | K112: 1 | P112: Band 2E
A113: 6 | B113: Younis, Mohammed E. | C113: 11 | D113: D331701709002 | E113: 2022-01-01 | G113: Coventry | H113: 58 | I113: 4678.335825 | J113: BF1F | K113: 1 | P113: Band 1F
A114: 6 | B114: Moseley, Thomas | C114: 11 | D114: E331202109018 | E114: 2022-01-01 | G114: Coventry | H114: 58 | I114: 2878.975181 | J114: BF1E | K114: 1 | P114: Band 1E
A115: 6 | B115: Abdullah, Nasif | C115: 11 | D115: D331214509052 | E115: 2022-01-01 | G115: Coventry | H115: 58 | I115: 4318.461231 | J115: BF2F | K115: 1 | P115: =IF(ISBLANK(A115),"",CONCATENATE($J$50," ",RIGHT(J115,2))) -> Band 2F
A116: =IF(LEFT(J116,2)="BF",6,IF(LEFT(J116,2)="CW",1,IF(LEFT(J116,2)="CO",4,IF(LEFT(J116,2)="TS",2,IF(LEFT(J116,2)="RB",3,IF(LEFT(J116,2)="SF",7,IF(LEFT(J116,2)="TV",5,IF(LEFT(J116,2)="WF",8,"")))))))) -> 6 | B116: Wain, Aiden T. | C116: 11 | D116: N331343509055 | E116: 2022-01-01 | G116: Coventry | H116: 58 | I116: 2878.975181 | J116: BF1E | K116: 1 | P116: Band 1E
A117: 6 | B117: Christian, Riquelme N. | C117: 11 | D117: K331300810023 | E117: 2022-01-01 | G117: Coventry | H117: 58 | I117: 2878.975181 | J117: BF1E | K117: 1 | P117: Band 1E
A118: 6 | B118: Cockerill, William | C118: 11 | D118: R331341109030 | E118: 2022-01-01 | G118: Coventry | H118: 58 | I118: 2663.053506 | J118: BF2E | K118: 1 | P118: Band 2E
A119: 6 | B119: Tankala, Daniel B. | C119: 11 | D119: K331214509137 | E119: 2022-01-01 | G119: Coventry | H119: 58 | I119: 11848.3125 | J119: BF5F | K119: 1 | P119: Band 5F
A120: 6 | B120: Efrem Tekle, Feelmona E. | C120: 11 | D120: M331300810034 | E120: 2022-01-01 | G120: Coventry | H120: 58 | I120: 2663.053506 | J120: BF2E | K120: 1 | P120: Band 2E
A121: 6 | B121: Smith, Katie-Jayne | C121: 11 | D121: K936296309021 | E121: 2022-01-01 | G121: Coventry | H121: 58 | I121: 4678.335825 | J121: BF1F | K121: 1 | P121: Band 1F
A122: 6 | B122: Voicu, Alexandru V. | C122: 11 | D122: N937702017001 | E122: 2022-01-01 | G122: Coventry | H122: 58 | I122: 4318.461231 | J122: BF2F | K122: 1 | P122: Band 2F
A123: 6 | B123: Didiu, Cosmin | C123: 11 | D123: F331701918001 | E123: 2022-01-01 | G123: Coventry | H123: 58 | I123: 2663.053506 | J123: BF2E | K123: 1 | P123: Band 2E
A124: 6 | B124: Jadeszko, Gabriel | C124: 11 | D124: V331701918002 | E124: 2022-01-01 | G124: Coventry | H124: 58 | I124: 2663.053506 | J124: BF2E | K124: 1 | P124: Band 2E
A125: 6 | B125: Hatem, Ibraheem B. | C125: 11 | D125: Q856700314010 | E125: 2022-01-01 | G125: Coventry | H125: 58 | I125: 4318.461231 | J125: BF2F | K125: 1 | P125: Band 2F
A126: 6 | B126: Okorie, Michael | C126: 11 | D126: F331701919002 | E126: 2022-01-01 | G126: Coventry | H126: 58 | I126: 4318.461231 | J126: BF2F | K126: 1 | P126: Band 2F
A127: 6 | B127: ESSEKU-OTOO, Nadia A. | C127: 11 | D127: R307700710005 | E127: 2022-01-01 | G127: Coventry | H127: 58 | I127: 2878.975181 | J127: BF1E | K127: 1 | P127: Band 1E
A128: 6 | B128: Russell, William J. | C128: 12 | D128: Y331700609001 | E128: 2022-01-01 | G128: Coventry | H128: 58 | I128: 4678.335825 | J128: BF1F | K128: 1 | P128: Band 1F
A129: 6 | B129: Grantham-Buchanan, Dani V. | C129: 12 | D129: K331213809004 | E129: 2022-01-01 | G129: Coventry | H129: 58 | I129: 2663.053506 | J129: BF2E | K129: 1 | P129: Band 2E
A130: 6 | B130: Ekalakala, Beni T. | C130: 12 | D130: D331343708043 | E130: 2022-01-01 | G130: Coventry | H130: 58 | I130: 2878.975181 | J130: BF1E | K130: 1 | P130: Band 1E
A131: 6 | B131: Clifton, Amy E. | C131: 12 | D131: C331215608046 | E131: 2022-01-01 | G131: Coventry | H131: 58 | I131: 2663.053506 | J131: BF2E | K131: 1 | P131: Band 2E
A132: 6 | B132: Mubele, Quincey | C132: 12 | D132: W331212908067 | E132: 2022-01-01 | G132: Coventry | H132: 58 | I132: 2878.975181 | J132: BF1E | K132: 1 | P132: Band 1E
A133: 6 | B133: Kirkby, Olivia | C133: 12 | D133: T331343708044 | E133: 2022-01-01 | G133: Coventry | H133: 58 | I133: 2878.975181 | J133: BF1E | K133: 1 | P133: Band 1E
A134: 6 | B134: Riley, Kirk S. | C134: 12 | D134: Q336204110010 | E134: 2022-01-01 | G134: Coventry | H134: 58 | I134: 2663.053506 | J134: BF2E | K134: 1 | P134: Band 2E
A135: 6 | B135: Newport, Brandon A. | C135: 12 | D135: K331702408001 | E135: 2022-01-01 | G135: Coventry | H135: 58 | I135: 4678.335825 | J135: BF1F | K135: 1 | P135: Band 1F
A136: 6 | B136: Hussain, Shafee | C136: 13 | D136: W331343707016 | E136: 2022-01-01 | G136: Coventry | H136: 58 | I136: 5924.15625 | J136: BF5E | K136: 1 | P136: Band 5E
A137: 6 | B137: Cooper, Dixie | C137: 13 | D137: K331701705002 | E137: 2022-01-01 | G137: Coventry | H137: 58 | I137: 4318.461231 | J137: BF2F | K137: 1 | P137: Band 2F
A138: 6 | B138: Sadler, Lewis C. | C138: 13 | D138: M331343707030 | E138: 2022-01-01 | G138: Coventry | H138: 58 | I138: 3598.718206 | J138: BF3E | K138: 1 | P138: Band 3E
A139: 6 | B139: Miguel, Emmanuel | C139: 13 | D139: Z331702408002 | E139: 2022-01-01 | G139: Coventry | H139: 58 | I139: 4678.335825 | J139: BF1F | K139: 1 | P139: Band 1F
A140: 6 | B140: McLaughlin, CHARLIE S. | C140: 13 | D140: G331701707002 | E140: 2022-01-01 | G140: Coventry | H140: 58 | I140: 4678.335825 | J140: BF1F | K140: 1 | P140: Band 1F
A141: 6 | B141: Mackley, Connor K. | C141: 13 | D141: M331200808036 | E141: 2022-01-01 | G141: Coventry | H141: 58 | I141: 2663.053506 | J141: BF2E | K141: 1 | P141: Band 2E
A142: 6 | B142: Miah, Tahim M. | C142: 13 | D142: Z331215607014 | E142: 2022-01-01 | G142: Coventry | H142: 58 | I142: 4678.335825 | J142: BF1F | K142: 1 | P142: Band 1F
A143: 6 | B143: Rawlinson, Jack M. | C143: 13 | D143: B331300908036 | E143: 2022-01-01 | G143: Coventry | H143: 58 | I143: 2878.975181 | J143: BF1E | K143: 1 | P143: Band 1E
A144: 6 | B144: Raja, Mohammed Qasim Q. | C144: 13 | D144: F331214107040 | E144: 2022-01-01 | G144: Coventry | H144: 58 | I144: 2878.975181 | J144: BF1E | K144: 1 | P144: Band 1E
A145: 6 | B145: Edginton, ADAM M. | C145: 13 | D145: W331214207015 | E145: 2022-01-01 | G145: Coventry | H145: 58 | I145: 2663.053506 | J145: BF2E | K145: 1 | P145: Band 2E
A146: 6 | B146: Akhtar, Kerrum | C146: 13 | D146: D331202307051 | E146: 2022-01-01 | G146: Coventry | H146: 58 | I146: 2663.053506 | J146: BF2E | K146: 1 | P146: Band 2E
A147: 6 | B147: James, Kieran | C147: 13 | D147: M331214208057 | E147: 2022-01-01 | G147: Coventry | H147: 58 | I147: 3598.718206 | J147: BF3E | K147: 1 | P147: Band 3E
A148: 6 | B148: Daniels, Cameron J. | C148: 13 | D148: R331300708004 | E148: 2022-01-01 | G148: Coventry | H148: 58 | I148: 2663.053506 | J148: BF2E | K148: 1 | P148: Band 2E
A149: 6 | B149: Ben Othman, Shahd B. | C149: 13 | D149: T331701708002 | E149: 2022-01-01 | G149: Coventry | H149: 58 | I149: 2878.975181 | J149: BF1E | K149: 1 | P149: Band 1E
A150: 6 | B150: Madu, Promise | C150: 13 | D150: R331701919001 | E150: 2022-01-01 | G150: Coventry | H150: 58 | I150: 4678.335825 | J150: BF1F | K150: 1 | P150: Band 1F
A151: 6 | B151: Magandi, Phillip K. | C151: 14 | D151: V331215606020 | E151: 2022-01-01 | G151: Coventry | H151: 58 | I151: 4678.335825 | J151: BF1F | K151: 1 | P151: Band 1F
A152: 6 | B152: Quartey-Papafio, Joel | C152: 14 | D152: E331701807003 | E152: 2022-01-01 | G152: Coventry | H152: 58 | I152: 4678.335825 | J152: BF1F | K152: 1 | P152: Band 1F
A153: 6 | B153: Patel, Kishan | C153: 14 | D153: H331215606028 | E153: 2022-01-01 | G153: Coventry | H153: 58 | I153: 4678.335825 | J153: BF1F | K153: 1 | P153: Band 1F
A154: 6 | B154: Iqbal, Hamzah | C154: 14 | D154: Z331215606013 | E154: 2022-01-01 | G154: Coventry | H154: 58 | I154: 2663.053506 | J154: BF2E | K154: 1 | P154: Band 2E
A155: 6 | B155: Bansal, Amrit | C155: 14 | D155: X331213206002 | E155: 2022-01-01 | G155: Coventry | H155: 58 | I155: 4318.461231 | J155: BF4F | K155: 1 | P155: Band 4F
A156: 6 | B156: Nkurunziza, Shadia | C156: 14 | D156: K331701706003 | E156: 2022-01-01 | G156: Coventry | H156: 58 | I156: 2663.053506 | J156: BF2E | K156: 1 | P156: Band 2E
A157: 6 | B157: De Souza, Amadou | C157: 14 | D157: W331701706002 | E157: 2022-01-01 | G157: Coventry | H157: 58 | I157: 4318.461231 | J157: BF3F | K157: 1 | P157: Band 3F
A158: 6 | B158: Downes, Justin T. | C158: 14 | D158: Q331701806001 | E158: 2022-01-01 | G158: Coventry | H158: 58 | I158: 2663.053506 | J158: BF2E | K158: 1 | P158: Band 2E
A159: 6 | B159: Ali, Waqas | C159: 14 | D159: A331215606004 | E159: 2022-01-01 | G159: Coventry | H159: 58 | I159: 4678.335825 | J159: BF1F | K159: 1 | P159: Band 1F
A160: 6 | B160: Talib, Amaan | C160: 14 | D160: U331212106041 | E160: 2022-01-01 | G160: Coventry | H160: 58 | I160: 2663.053506 | J160: BF2E | K160: 1 | P160: Band 2E
A161: 6 | B161: HURAN, Najma | C161: 14 | D161: V856237006026 | E161: 2022-01-01 | G161: Coventry | H161: 58 | I161: 4318.461231 | J161: BF2F | K161: 1 | P161: Band 2F
A162: 6 | B162: Batchelor, Ajay | C162: 14 | D162: E331701806002 | E162: 2022-01-01 | G162: Coventry | H162: 58 | I162: 2663.053506 | J162: BF2E | K162: 1 | P162: Band 2E
A163: 6 | B163: Frasineanu, Antonio J. | C163: 14 | D163: Q331702413001 | E163: 2022-01-01 | G163: Coventry | H163: 58 | I163: 4318.461231 | J163: BF2F | K163: 1 | P163: Band 2F
A164: 6 | B164: Sureshkumar, Pravin | C164: 14 | D164: C307216107003 | E164: 2022-01-01 | G164: Coventry | H164: 58 | I164: 2878.975181 | J164: BF1E | K164: 1 | P164: Band 1E
B165: Baginton Fields School | C165: Period: | D165: 2022-01-01 | E165: to | F165: 2022-03-31 | G165: No of Pupils: 114 | H165: Cost for Period: | I165: 416662.9131 | P165: Band
B166: Report for Castle Wood School | P166: Band
B167: Count of Students in Each Band | P167: Band
C168: Cat 1 | D168: Cat 2 | E168: Cat 4 | F168: Cat 5 | G168: Total | P168: Band
B169: Band D | C169: 0 | D169: 0 | E169: 1 | F169: 0 | G169: 1 | P169: Band
B170: Band E | C170: 84 | D170: 21 | E170: 5 | F170: 7 | G170: 117 | P170: Band
B171: Band F | C171: 27 | D171: 12 | E171: 5 | F171: 0 | G171: 44 | P171: Band
B172: Total | C172: 109 | D172: 33 | E172: 11 | F172: 7 | G172: 160 | P172: Band
P173: Band
P174: Band
B175: Sum of Open Days in Each Band | P175: Band
C176: Cat 1 | D176: Cat 2 | E176: Cat 4 | F176: Cat 5 | G176: Total | P176: Band
B177: Band D | C177: 0 | D177: 0 | E177: 58 | F177: 0 | G177: 58 | P177: Band
B178: Band E | C178: 4824 | D178: 1218 | E178: 290 | F178: 406 | G178: 6738 | P178: Band
B179: Band F | C179: 1498 | D179: 696 | E179: 290 | F179: 0 | G179: 2484 | P179: =IF(ISBLANK(A179),"",CONCATENATE($J$50," ",RIGHT(J179,2))) -> Band
A180: =IF(LEFT(J180,2)="BF",6,IF(LEFT(J180,2)="CW",1,IF(LEFT(J180,2)="CO",4,IF(LEFT(J180,2)="TS",2,IF(LEFT(J180,2)="RB",3,IF(LEFT(J180,2)="SF",7,IF(LEFT(J180,2)="TV",5,IF(LEFT(J180,2)="WF",8,"")))))))) ->  | B180: Total | C180: 6322 | D180: 1914 | E180: 638 | F180: 406 | G180: 9280 | P180: Band
P181: Band
P182: Band
P183: Band
B184: High Needs Top-Up_Rates for each Band | P184: Band
P185: Band
C186: CW | P186: Band
B187: Report for Castle Wood School | P187: Band
B188: Coventry High Needs Top-Up_Funding by Band | P188: Band
C189: Cat 1 | D189: Cat 2 | E189: Cat 4 | F189: Cat 5 | G189: Total | P189: Band
B190: Band D | C190: 0 | D190: 0 | E190: 2159.232156 | F190: 0 | G190: 2159.232156 | P190: Band
B191: Band E | C191: 236572.3399 | D191: 55924.12363 | E191: 17993.59103 | F191: 41469.09375 | G191: 351959.1483 | P191: Band
B192: Band F | C192: 120830.1218 | D192: 51821.53478 | E192: 21592.30616 | F192: 0 | G192: 194243.9628 | P192: Band
B193: Total | C193: 357402.4617 | D193: 107745.6584 | E193: 41745.12934 | F193: 41469.09375 | G193: 548362.3432 | P193: Band
P194: Band
P195: Band
B196: Other LA High Needs Top-Up_Funding for Each Band | P196: Band
C197: Cat 1 | D197: Cat 2 | E197: Cat 4 | F197: Cat 5 | G197: Total | P197: Band
B198: Band D | C198: 0 | D198: 0 | E198: 0 | F198: 0 | G198: 0 | P198: Band
B199: Band E | C199: 2878.975181 | D199: 0 | E199: 0 | F199: 0 | G199: 2878.975181 | P199: Band
B200: Band F | C200: 0 | D200: 0 | E200: 0 | F200: 0 | G200: 0 | P200: Band
... 1476 more rows

Sheet LogIn (hidden)
A1: User Name | B1: Password | C1: ID
A2: Riverbank Academy | B2: Mbu55Z. | C2: 3
A3: Baginton Fields | B3: YH3b9R | C3: 6
A4: Castlewood | B4: 3nAc2M | C4: 1
A5: Corley (Coventry) | B5: 6vYYEE | C5: 4
A6: Sherbourne Fields | B6: C48bc7 | C6: 7
A7: Kingsbury Academy | B7: pceQ65. | C7: 2
A8: Tiverton | B8: cz3VN2 | C8: 5
A9: Woodfield | B9: 2c9Rk8 | C9: 8

Sheet LoginPage
